Workbook

Sheet Summary Options (hidden)
A1: Wellington Regional Council
A2: ="Rates per Assessment "&Instructions!D11 -> Rates per Assessment 2017/18
A3: Printed:
C4: District-wide rates
C6: Total | D6: Total
C7: District-wide Rates | D7: District-wide Rates | F7: Rates per $100K | J7: Average Rates
C8: Option A | D8: Current | F8: Option A | G8: %Change | H8: Current | J8: Option A | K8: %Change | L8: Current
A10: Wellington City | C10: ='Summary proposed'!E9 -> 66378243.07 | D10: ='Summary current'!E9 -> 62570979.33
A11: CBD Business | C11: ='Summary proposed'!E10 -> 29986767.09 | D11: ='Summary current'!E10 -> 29269028.39 | F11: ='Summary proposed'!G10 -> 381.793175 | G11: =F11/H11-1 -> 0.02452212261 | H11: ='Summary current'!G10 -> 372.6548861 | J11: ='Summary proposed'!H10 -> 8817.044133 | K11: =J11/L11-1 -> 0.02452212261 | L11: ='Summary current'!H10 -> 8606.006584
A12: Business | C12: ='Summary proposed'!E11 -> 4259553.435 | D12: ='Summary current'!E11 -> 3259619.517 | F12: ='Summary proposed'!G11 -> 111.5137748 | G12: =F12/H12-1 -> 0.3067639989 | H12: ='Summary current'!G11 -> 85.33581801 | J12: ='Summary proposed'!H11 -> 2233.641025 | K12: =J12/L12-1 -> 0.3067639989 | L12: ='Summary current'!H11 -> 1709.291828
A13: Residential | C13: ='Summary proposed'!E12 -> 31836532.34 | D13: ='Summary current'!E12 -> 29731934.66 | F13: ='Summary proposed'!G12 -> 78.95300059 | G13: =F13/H13-1 -> 0.07323017113 | H13: ='Summary current'!G12 -> 73.56576689 | J13: ='Summary proposed'!H12 -> 435.1039842 | K13: =J13/L13-1 -> 0.07323017113 | L13: ='Summary current'!H12 -> 405.4153488
A14: Rural | C14: ='Summary proposed'!E13 -> 295390.2083 | D14: ='Summary current'!E13 -> 310396.7571 | F14: ='Summary proposed'!G13 -> 47.29149106 | G14: =F14/H14-1 -> -0.05197527559 | H14: ='Summary current'!G13 -> 49.88423808 | J14: ='Summary proposed'!H13 -> 353.641096 | K14: =J14/L14-1 -> -0.05197527559 | L14: ='Summary current'!H13 -> 373.029402
A16: Lower Hutt City | C16: ='Summary proposed'!E15 -> 21001090.06 | D16: ='Summary current'!E15 -> 23454231.52
A17: Business | C17: ='Summary proposed'!E16 -> 4517451.577 | D17: ='Summary current'!E16 -> 4434152.045 | F17: ='Summary proposed'!G16 -> 118.9787439 | G17: =F17/H17-1 -> 0.01878589884 | H17: ='Summary current'!G16 -> 116.7848358 | J17: ='Summary proposed'!H16 -> 1916.610766 | K17: =J17/L17-1 -> 0.01878589884 | L17: ='Summary current'!H16 -> 1881.269429
A18: Residential | C18: ='Summary proposed'!E17 -> 16257977.59 | D18: ='Summary current'!E17 -> 18796224.14 | F18: ='Summary proposed'!G17 -> 92.36027437 | G18: =F18/H18-1 -> -0.1387691361 | H18: ='Summary current'!G17 -> 107.2421789 | J18: ='Summary proposed'!H17 -> 435.1389312 | K18: =J18/L18-1 -> -0.1387691361 | L18: ='Summary current'!H17 -> 505.2523655
A19: Rural | C19: ='Summary proposed'!E18 -> 225660.8967 | D19: ='Summary current'!E18 -> 223855.3382 | F19: ='Summary proposed'!G18 -> 66.63969837 | G19: =F19/H19-1 -> 0.00859236 | H19: ='Summary current'!G18 -> 66.0719841 | J19: ='Summary proposed'!H18 -> 432.5324423 | K19: =J19/L19-1 -> 0.00859236 | L19: ='Summary current'!H18 -> 428.847629
A21: Upper Hutt City | C21: ='Summary proposed'!E20 -> 6672554.231 | D21: ='Summary current'!E20 -> 8387210.574
A22: Business | C22: ='Summary proposed'!E21 -> 1231517.277 | D22: ='Summary current'!E21 -> 1335297.063 | F22: ='Summary proposed'!G21 -> 105.2073065 | G22: =F22/H22-1 -> -0.07772037352 | H22: ='Summary current'!G21 -> 114.0731113 | J22: ='Summary proposed'!H21 -> 1705.702599 | K22: =J22/L22-1 -> -0.07772037352 | L22: ='Summary current'!H21 -> 1849.441916
A23: Residential | C23: ='Summary proposed'!E22 -> 4983898.501 | D23: ='Summary current'!E22 -> 6551666.48 | F23: ='Summary proposed'!G22 -> 79.10704643 | G23: =F23/H23-1 -> -0.2469945638 | H23: ='Summary current'!G22 -> 105.0550801 | J23: ='Summary proposed'!H22 -> 327.2809163 | K23: =J23/L23-1 -> -0.2469945638 | L23: ='Summary current'!H22 -> 434.6328732
A24: Rural | C24: ='Summary proposed'!E23 -> 457138.4531 | D24: ='Summary current'!E23 -> 500247.0304 | F24: ='Summary proposed'!G23 -> 53.0370515 | G24: =F24/H24-1 -> -0.09225762479 | H24: ='Summary current'!G23 -> 58.42742716 | J24: ='Summary proposed'!H23 -> 340.9601713 | K24: =J24/L24-1 -> -0.09225762479 | L24: ='Summary current'!H23 -> 375.6133685
A26: Porirua City | C26: ='Summary proposed'!E25 -> 6855195.675 | D26: ='Summary current'!E25 -> 9886888.419
A27: Business | C27: ='Summary proposed'!E26 -> 992132.8808 | D27: ='Summary current'!E26 -> 1172136.436 | F27: ='Summary proposed'!G26 -> 90.62730273 | G27: =F27/H27-1 -> -0.1535687739 | H27: ='Summary current'!G26 -> 107.0698953 | J27: ='Summary proposed'!H26 -> 1246.398091 | K27: =J27/L27-1 -> -0.1535687739 | L27: ='Summary current'!H26 -> 1472.533211
A28: Residential | C28: ='Summary proposed'!E27 -> 5614028.415 | D28: ='Summary current'!E27 -> 8396353.635 | F28: ='Summary proposed'!G27 -> 64.37313259 | G28: =F28/H28-1 -> -0.3411020826 | H28: ='Summary current'!G27 -> 97.69818798 | J28: ='Summary proposed'!H27 -> 314.1906006 | K28: =J28/L28-1 -> -0.3411020826 | L28: ='Summary current'!H27 -> 476.842607
A29: Rural | C29: ='Summary proposed'!E28 -> 249034.3799 | D29: ='Summary current'!E28 -> 318398.348 | F29: ='Summary proposed'!G28 -> 38.59783199 | G29: =F29/H29-1 -> -0.2302443984 | H29: ='Summary current'!G28 -> 50.14296993 | J29: ='Summary proposed'!H28 -> 378.9189215 | K29: =J29/L29-1 -> -0.2302443984 | L29: ='Summary current'!H28 -> 492.2587386
A31: Kapiti Coast District | C31: ='Summary proposed'!E30 -> 10632965.75 | D31: ='Summary current'!E30 -> 9327065.91
A32: Urban - Commerical | C32: ='Summary proposed'!E31 -> 1587072.439 | D32: ='Summary current'!E31 -> 1201099.058 | F32: ='Summary proposed'!G31 -> 125.1035536 | G32: =F32/H32-1 -> 0.3213501654 | H32: ='Summary current'!G31 -> 94.6785772 | J32: ='Summary proposed'!H31 -> 1142.600748 | K32: =J32/L32-1 -> 0.3213501654 | L32: ='Summary current'!H31 -> 864.7221438
A33: Urban - Residential | C33: ='Summary proposed'!E32 -> 7883585.012 | D33: ='Summary current'!E32 -> 7036322.732 | F33: ='Summary proposed'!G32 -> 94.71609425 | G33: =F33/H33-1 -> 0.125488162 | H33: ='Summary current'!G32 -> 84.15556684 | J33: ='Summary proposed'!H32 -> 369.1878255 | K33: =J33/L33-1 -> 0.125488162 | L33: ='Summary current'!H32 -> 328.0246189
A34: Rural | C34: ='Summary proposed'!E33 -> 1162308.304 | D34: ='Summary current'!E33 -> 1089644.121 | F34: ='Summary proposed'!G33 -> 64.70512414 | G34: =F34/H34-1 -> 0.07149790115 | H34: ='Summary current'!G33 -> 60.38754165 | J34: ='Summary proposed'!H33 -> 390.4540351 | K34: =J34/L34-1 -> 0.07149790115 | L34: ='Summary current'!H33 -> 364.4001866
A36: Masterton District | C36: ='Summary proposed'!E35 -> 3408862.041 | D36: ='Summary current'!E35 -> 2243225.876
A37: Urban - Commercial | C37: ='Summary proposed'!E36 -> 423174.0784 | D37: ='Summary current'!E36 -> 212061.4826 | F37: ='Summary proposed'!G36 -> 111.0260089 | G37: =F37/H37-1 -> 0.9955254165 | H37: ='Summary current'!G36 -> 55.63748171 | J37: ='Summary proposed'!H36 -> 775.0440996 | K37: =J37/L37-1 -> 0.9955254165 | L37: ='Summary current'!H36 -> 388.3909938
A38: Urban - Residential | C38: ='Summary proposed'!E37 -> 1551104.615 | D38: ='Summary current'!E37 -> 1021509.358 | F38: ='Summary proposed'!G37 -> 72.99393236 | G38: =F38/H38-1 -> 0.5807224336 | H38: ='Summary current'!G37 -> 46.17757729 | J38: ='Summary proposed'!H37 -> 183.8248681 | K38: =J38/L38-1 -> 0.5807224336 | L38: ='Summary current'!H37 -> 116.2916804
A39: Rural Ward | C39: ='Summary proposed'!E38 -> 1434583.347 | D39: ='Summary current'!E38 -> 1009655.036 | F39: ='Summary proposed'!G38 -> 56.5307472 | G39: =F39/H39-1 -> 0.4650637625 | H39: ='Summary current'!G38 -> 38.58586134 | J39: ='Summary proposed'!H38 -> 342.5351451 | K39: =J39/L39-1 -> 0.4650637625 | L39: ='Summary current'!H38 -> 233.8022097
A41: Carterton District | C41: ='Summary proposed'!E40 -> 1465881.196 | D41: ='Summary current'!E40 -> 1093949.651
A42: Urban - Commercial | C42: ='Summary proposed'!E41 -> 102993.6675 | D42: ='Summary current'!E41 -> 60016.58541 | F42: ='Summary proposed'!G41 -> 110.6917234 | G42: =F42/H42-1 -> 0.7160867582 | H42: ='Summary current'!G41 -> 64.50240518 | J42: ='Summary proposed'!H41 -> 457.7496333 | K42: =J42/L42-1 -> 0.7160867582 | L42: ='Summary current'!H41 -> 266.7403796
A43: Urban - Residential | C43: ='Summary proposed'!E42 -> 473230.7909 | D43: ='Summary current'!E42 -> 365741.0889 | F43: ='Summary proposed'!G42 -> 72.7519045 | G43: =F43/H43-1 -> 0.3211897215 | H43: ='Summary current'!G42 -> 55.06544845 | J43: ='Summary proposed'!H42 -> 192.323093 | K43: =J43/L43-1 -> 0.3211897215 | L43: ='Summary current'!H42 -> 145.5681117
A44: Rural Ward | C44: ='Summary proposed'!E43 -> 889656.7372 | D44: ='Summary current'!E43 -> 668191.9769 | F44: ='Summary proposed'!G43 -> 56.37906278 | G44: =F44/H44-1 -> 0.3588519588 | H44: ='Summary current'!G43 -> 41.4902171 | J44: ='Summary proposed'!H43 -> 411.6901017 | K44: =J44/L44-1 -> 0.3588519588 | L44: ='Summary current'!H43 -> 302.9690608
A46: South Wairarapa District | C46: ='Summary proposed'!E45 -> 2347721.044 | D46: ='Summary current'!E45 -> 1798673.691
A47: Urban - Commercial | C47: ='Summary proposed'!E46 -> 205633.5959 | D47: ='Summary current'!E46 -> 128735.9369 | F47: ='Summary proposed'!G46 -> 107.989607 | G47: =F47/H47-1 -> 0.5973286152 | H47: ='Summary current'!G46 -> 67.60638105 | J47: ='Summary proposed'!H46 -> 659.082038 | K47: =J47/L47-1 -> 0.5973286152 | L47: ='Summary current'!H46 -> 412.6151825
A48: Urban - Residential | C48: ='Summary proposed'!E47 -> 673514.256 | D48: ='Summary current'!E47 -> 561580.0301 | F48: ='Summary proposed'!G47 -> 71.01822424 | G48: =F48/H48-1 -> 0.215850874 | H48: ='Summary current'!G47 -> 58.41030817 | J48: ='Summary proposed'!H47 -> 200.3515272 | K48: =J48/L48-1 -> 0.215850874 | L48: ='Summary current'!H47 -> 164.7829775
A49: Rural Ward | C49: ='Summary proposed'!E48 -> 1468573.192 | D49: ='Summary current'!E48 -> 1108357.723 | F49: ='Summary proposed'!G48 -> 54.88798516 | G49: =F49/H49-1 -> 0.3494436165 | H49: ='Summary current'!G48 -> 40.67453022 | J49: ='Summary proposed'!H48 -> 443.147879 | K49: =J49/L49-1 -> 0.3494436165 | L49: ='Summary current'!H48 -> 328.3930307
A51: Tararua District | C51: ='Summary proposed'!E50 -> 2319.778706 | D51: ='Summary current'!E50 -> 2606 | F51: ='Summary proposed'!G50 -> 30.381703 | G51: =F51/H51-1 -> -0.1215893348 | H51: ='Summary current'!G50 -> 34.587129 | J51: ='Summary proposed'!H50 -> 172.3148922 | K51: =J51/L51-1 -> -0.1215893348 | L51: ='Summary current'!H50 -> 196.1666667
A52: Totals | C52: =+C51+C46+C41+C36+C31+C26+C21+C16+C10 -> 118764832.9 | D52: =+D51+D46+D41+D36+D31+D26+D21+D16+D10 -> 118764831
A54: Per Helen G Option | C54: ='Summarised data'!E102 -> 118764836.6 | D54: ='Summary current'!E53 -> 118764835.7
A55: Difference | C55: =C52-C54 -> -3.727066174 | D55: =D52-D54 -> -4.725251988

Sheet Instructions (hidden)
A1: Rates Spreadsheet - notes on use.
G2: Show Reports | H2: All reports
A3: General:
C5: Copy over last years at start of year | G5: rates1 | H5: Instructions
C6: Fields to be updated manually (Indicate if field is entered or yet to be updated) | D6: entered | E6: not updated | G6: rates2 | H6: rates1
C7: Fields which have been manually rounded | G7: rates5 | H7: rates2
C8: Fields no longer required - once confirmed that they aren't needed, these can be deleted. | G8: rates6 | H8: rates3
C9: Used for Annual Plan document - must add up! | G9: Impact 1 | H9: rates4
G10: Impact for rates | H10: rates5
C11: Control Date (entered once here and it will change all worksheets) | D11: 2017/18 | E11: 2016/17 | H11: rates5 b
D12: New Year | E12: Last Year | H12: rates6
H13: Sheet1 (2)
H14: rates_Changes
A15: Total Regional Check | H15: ratesWCC
H16: ratesHCC
A17: Check sheet only | H17: ratesUHCC
H18: ratesPCC
H19: ratesKCDC
H20: ratesMDC
H21: ratesCDC
H22: ratesSWDC
H23: rates8
H24: Impact for rates
H25: For IT
H26: Impact 1
H27: Summary
H28: Essbase
H29: Rates Calculator
H30: NRV
H31: Rates
H32: Input Sheet
H33: Rates per Assess
H34: Regional Check
H35: Gen
H36: Riv
H37: Stad
H38: Tran
H39: WRS
H40: Water
H41: Class Rates
H42: TA Split
H43: UHCC Adjustments
H44: UHCC Rates Check
H45: PCC Rates Check
H46: KCDC Rates Check
H47: HCC Rates Check
H48: MDC Rates Check
H49: CDC Rates Check
H50: SWDC Rates Check
H51: WCC Rates Check
H52: Sheet2

Sheet rates1 (hidden)
A3: SUMMARY OF RATES AND LEVIES
A7: This table shows the rates and levies for GWRC in 2017/18, together with the changes from 2016/17. Rates comprise the general rate and various targeted rates. GWRC also charges a water supply levy directly to the four city councils in the region. The city councils then rate accordingly for this levy.
A11: The total rate increase in regional rates for 2017/18 is 5.6%. The water supply levy, which is charged to the four metropolitan city councils is proposed to increase by 6.1% over 2017/18. When the water supply levy is included, Greater Wellington Regional Council's overall increase is 5.7%.
A14: By rate and levy type: | F14: =Instructions!E11 -> 2016/17 | G14: =Instructions!D11 -> 2017/18
F15: Budget | G15: Plan | H15: Change | I15: Change
F16: $000s | G16: $000s | H16: $000s | I16: % | K16: Round | L16: Round
A17: General rates
A18: Flood protection 1 | F18: =+Summary..!B5/1000 -> 10171 | G18: =+Summary..!C5/1000 -> 10679 | H18: =G18-F18 -> 508 | I18: =ROUND(H18/F18,4) -> 0.0499
A19: Environment, Parks | F19: =+Summary..!B6/1000 -> 23160 | G19: =+Summary..!C6/1000 -> 25442 | H19: 2282 | I19: =ROUND(H19/F19,4) -> 0.0985
A20: Council costs, Strategy and Planning | F20: =+Summary..!B7/1000 -> 5128 | G20: =+Summary..!C7/1000 -> 5273 | H20: 145 | I20: =ROUND(H20/F20,4) -> 0.0283
A21: Biosecurity and land management | F21: =+Summary..!B8/1000 -> 11083 | G21: =+Summary..!C8/1000 -> 10984 | H21: -99 | I21: =ROUND(H21/F21,4) -> -0.0089
A22: Investment management 2 | F22: =+Summary..!B9/1000 -> -10038 | G22: =+Summary..!C9/1000 -> -9896 | H22: 142 | I22: =-ROUND(H22/F22,4) -> 0.0141
A23: General rates | F23: =+Summary..!B10/1000 -> 39504 | G23: =+Summary..!C10/1000 -> 42482 | H23: 2978 | I23: =ROUND(H23/F23,4) -> 0.0754 | K23: 1 | L23: -3
A25: Targeted rates:
A26: Region wide targeted rates:
A27: River management rates | F27: =+Summary..!B13/1000 -> 5483 | G27: =+Summary..!C13/1000 -> 5827 | H27: =ROUND(G27-F27,0) -> 344 | I27: =ROUND(H27/F27,4) -> 0.0627
A28: Transport rates | F28: =+Summary..!B14/1000-K28 -> 59938 | G28: =+Summary..!C14/1000 -> 64656 | H28: =ROUND(G28-F28,0) -> 4718 | I28: =ROUND(H28/F28,4) -> 0.0787 | K28: 1
A29: Stadium rates | F29: =+Summary..!B15/1000 -> 2676 | G29: =+Summary..!C15/1000 -> 978 | H29: =ROUND(G29-F29,0) -> -1698 | I29: =ROUND(H29/F29,4) -> -0.6345
A30: WRS rates | F30: =+Summary..!B16/1000 -> 4768 | G30: =+Summary..!C16/1000 -> 4822 | H30: =ROUND(G30-F30,0) -> 54 | I30: =ROUND(H30/F30,4) -> 0.0113
A32: Specific area targeted rates:
A34: Possum / Predator rates | F34: =+Summary..!B17/1000 -> 424 | G34: =+Summary..!C17/1000 -> 472 | H34: =ROUND(G34-F34,0) -> 48 | I34: =ROUND(H34/F34,4) -> 0.1132
A35: South Wairarapa district – river rates | F35: =+Summary..!B18/1000 -> 91 | G35: =+Summary..!C18/1000 -> 93 | H35: =G35-F35 -> 2 | I35: =ROUND(H35/F35,4) -> 0.022
A36: Wairarapa scheme and stop bank rates | F36: =+Summary..!B19/1000 -> 1491 | G36: =+Summary..!C19/1000 -> 1390 | H36: =G36-F36 -> -101 | I36: =ROUND(H36/F36,4) -> -0.0677
A37: Total targeted rates 1 | F37: =SUM(F27:F36) -> 74871 | G37: =SUM(G27:G36) -> 78238 | H37: =SUM(H27:H36) -> 3367 | I37: =ROUND(H37/F37,4) -> 0.045
A39: Total regional rates | F39: =F23+F37 -> 114375 | G39: =G23+G37 -> 120720 | H39: =+G39-F39 -> 6345 | I39: =ROUND(H39/F39,4) -> 0.0555 | N39: =F39-rates2!F27 -> 0 | O39: =G39-rates2!G27 -> 3729 | P39: check
A41: Water supply levy | F41: =+rates2!F34 -> 29098 | G41: =+rates2!G34 -> 30863 | H41: =+G41-F41 -> 1765 | I41: =ROUND(H41/F41,3)-0 -> 0.061
A43: Total regional rates and levies 1 | F43: =+F39+F41 -> 143473 | G43: =+G39+G41 -> 151583 | H43: =+H39+H41 -> 8110 | I43: =ROUND(H43/F43,4) -> 0.0565 | N43: =F43-rates2!F36 -> 0 | O43: =G43-rates2!G36 -> 3729
A45: Warm Wellington rates 2 | F45: =+Summary..!B28/1000 -> 3089 | G45: =+Summary..!C28/1000 -> 3182
A47: Total rates and levies | F47: =+F43+F45 -> 146562 | G47: =+G43+G45 -> 154765 | N47: =G47-rates2!G40 -> 3729
A50: All figures on this page exclude GST
A54: Figures labelled “2016/17 Budget” are sourced from GWRC's 2016/17 Annual plan.
A57: 1 This total excludes any "Warm Greater Wellington" targeted rates as they impact only those ratepayers that participate in the scheme.
A59: 2 Warm Greater Wellington is the scheme to assist regional ratepayers install insulation in their home. Only ratepayers participating in the scheme are charged this rate.
A61: This information should be read in conjunction with the Funding Impact Statement and the Revenue and Financing Policy contained within the 2015/25 10 year plan available at http://www.gw.govt.nz/long-term-plan-2015-25/.
A62: All figures on this page exclude GST.
A65: Check to Comprehensive Income Statement
A66: Check to Comprehensive Income Statement

Sheet rates2 (hidden)
K1: =+rates1!L1 -> 0
A4: WHAT IS THE IMPACT ON YOUR CITY OR DISTRICT?
A6: Rates increases vary between city and district councils because of differing capital values. Further, some of GWRC's work programmes impact differently across the region, especially flood protection and public transport. See the next page for a break down by city and rate type
A10: By area: | F10: =+rates1!F14 -> 2016/17 | G10: =+rates1!G14 -> 2017/18
F11: Budget | G11: Plan | H11: Change | I11: Change
F12: $000s | G12: $000s | H12: $000s | I12: % | K12: Check to Rates | M12: =+F11 -> Budget | N12: =+G11 -> Plan | O12: rounding
A13: Wellington city | F13: 59009 | G13: =+Rates!U53+N13 -> 68888 | H13: =ROUND(G13-F13,0) -> 9879 | I13: =ROUND(+H13/F13,4) -> 0.1674 | K13: =+Rates!W68 -> 0.1673 | L13: =+I13-K13 -> 0.0001 | M13: 0 | N13: 1 | O13: rounding
A14: Lower Hutt city | F14: 22083 | G14: =+Rates!U54 -> 16029 | H14: =ROUND(G14-F14,0) -> -6054 | I14: -0.2741 | K14: =+Rates!W69 -> -0.2742 | L14: =+I14-K14 -> 0.0001
A15: Upper Hutt city | F15: 7861 | G15: =+Rates!U55 -> 6522 | H15: -1339 | I15: -0.1703 | K15: =+Rates!W70 -> -0.1702 | L15: -0.0001
A16: Porirua city | F16: 9193 | G16: =+Rates!U56 -> 7245 | H16: -1948 | I16: -0.2119 | K16: =+Rates!W71 -> -0.2119 | L16: 0
A17: Kapiti Coast district | F17: 8788 | G17: =+Rates!U57 -> 10346 | H17: 1558 | I17: 0.1773 | K17: =+Rates!W72 -> 0.1773 | L17: 0
A18: Masterton district | F18: 2375 | G18: =+Rates!U58 -> 2846 | H18: 471 | I18: 0.1983 | K18: =+Rates!W73 -> 0.1983 | L18: 0
A19: Carterton district | F19: 1154 | G19: =+Rates!U59 -> 1229 | H19: 75 | I19: 0.065 | K19: =+Rates!W74 -> 0.0641 | L19: 0.0009
A20: South Wairarapa district | F20: 1903 | G20: =+Rates!U60 -> 1929 | H20: 26 | I20: 0.0137 | K20: =+Rates!W75 -> 0.0137 | L20: 0
A21: Tararua district 1 | F21: 3 | G21: =+Rates!U61 -> 2 | H21: -1 | I21: -0.3333 | K21: =+Rates!W76 -> -0.3333 | L21: =+I21-K21 -> 0
A22: Region-wide rates 2 | F22: 112369 | G22: =SUM(G13:G21) -> 115036 | H22: =SUM(H13:H21) -> 2667 | I22: =ROUND(+H22/F22,4) -> 0.0237 | K22: =+Rates!W77 -> 0.0237 | L22: 0
A24: Possum / predator rates | F24: 424 | G24: =+rates1!G34 -> 472 | H24: =ROUND(G24-F24,0) -> 48 | I24: =ROUND(+H24/F24,4) -> 0.1132
A25: South Wairarapa district – river rates | F25: 91 | G25: =+Rates!K13 -> 93 | H25: =ROUND(G25-F25,0) -> 2 | I25: =ROUND(+H25/F25,4) -> 0.022
A26: Wairarapa scheme and stopbank rates | F26: 1491 | G26: =+Rates!K14 -> 1390 | H26: =ROUND(G26-F26,0) -> -101 | I26: =ROUND(+H26/F26,4) -> -0.0677 | K26: rounding comparative
A27: Total regional rates | F27: 114375 | G27: =SUM(G22:G26) -> 116991 | H27: =+G27-F27 -> 2616 | I27: =ROUND(+H27/F27,4) -> 0.0229
A29: Water supply levy | P29: 2014/15 Levy
A30: Wellington City Council | F30: 15681 | G30: =ROUND(Water!E7/1000,0) -> 16515 | H30: =ROUND(G30-F30,0) -> 834 | I30: =ROUND(+H30/F30,4) -> 0.0532 | P30: $ (GST exclusive)
A31: Hutt City Council | F31: 7312 | G31: =ROUND(Water!E8/1000,0) -> 7660 | H31: =ROUND(G31-F31,0) -> 348 | I31: =ROUND(+H31/F31,4) -> 0.0476 | O31: Hutt City Council | P31: 6717330
A32: Upper Hutt City Council | F32: 2773 | G32: =ROUND(Water!E9/1000,0) -> 3096 | H32: =ROUND(G32-F32,0) -> 323 | I32: =ROUND(+H32/F32,4) -> 0.1165 | O32: Porirua City Council | P32: 3001660
A33: Porirua City Council | F33: 3332 | G33: =ROUND(Water!E10/1000,0) -> 3592 | H33: =ROUND(G33-F33,0) -> 260 | I33: =ROUND(+H33/F33,4) -> 0.078 | O33: Upper Hutt City Council | P33: 2474810
A34: Water supply levy | F34: 29098 | G34: =SUM(G30:G33) -> 30863 | H34: =+G34-F34 -> 1765 | I34: =ROUND(+H34/F34,4)-0.0001 -> 0.0606 | O34: Wellington City Council | P34: 14082199
A36: Total regional rates and levies 3 | F36: 143473 | G36: =+G27+G34 -> 147854 | H36: =+H27+H34 -> 4381 | I36: =ROUND(+H36/F36,4) -> 0.0305 | O36: Total | P36: 26275999
A38: Warm Wellington rate 4 | F38: 3089 | G38: =+rates1!G45 -> 3182
A40: Total rates and levies | F40: 146562 | G40: =+G36+G38 -> 151036
A42: =+rates1!$A$50 -> All figures on this page exclude GST
A46: Notes:
A47: =+rates1!$A$54 -> Figures labelled “2016/17 Budget” are sourced from GWRC's 2016/17 Annual plan.
O49: Certain comparatives have been reclassified to aid comparability
A51: 1 12 rural properties in the Tararua District are within the boundaries of the Greater Wellington region.
A52: 2 Region-wide rates are rates that are charged to all ratepayers in the region. It excludes Possum / Predator, South Wairarapa Region river rates, Wairarapa river and drainage scheme rates and any "Warm Greater Wellington" targeted rates as they impact only certain ratepayers that are covered by these programmes.
A55: 3 This total excludes any "Warm Greater Wellington" targeted rates as they impact only those ratepayers that participate in the scheme.
A56: 4 Warm Wellington is the scheme to assist regional ratepayers install insulation or clean heating appliances in their home. Only ratepayers participating in the scheme are charged this rate.
A58: =+rates1!A61 -> This information should be read in conjunction with the Funding Impact Statement and the Revenue and Financing Policy contained within the 2015/25 10 year plan available at http://www.gw.govt.nz/long-term-plan-2015-25/.
A60: =rates1!A62 -> All figures on this page exclude GST.
A62: Check Totals to Rates1
A63: Rates sheet 1 Regional rates | F63: =+rates1!F39 -> 114375 | G63: =+rates1!G39 -> 120720 | H63: =+rates1!H39 -> 6345 | I63: =+rates1!I39 -> 0.0555
A64: Rates sheet 1 Total rates | F64: =+rates1!F47 -> 146562 | G64: =+rates1!G47 -> 154765 | I64: =+rates1!I43 -> 0.0565
F65: =+F27-F63 -> 0 | G65: =+G27-G63 -> -3729 | H65: =+H27-H63 -> -3729 | I65: =+I27-I63 -> -0.0326
F66: =+F40-F64 -> 0 | G66: =+G40-G64 -> -3729 | I66: =+I36-I64 -> -0.026

Sheet rates3 (hidden)
A1: PAGE xx gone | Q1: =+rates1!$L1 -> 0
A3: RATES AND LEVIES - REGION-WIDE CHANGES BY CITY AND RATE TYPE
A4: WHAT IS THE IMPACT ON YOUR CITY OR DISTRICT?
A11: Changes in Region-wide rates due to equalised capital value (ECV) movements and apportionment from 2016/17 to 2017/18
C13: ECV movements1 | E13: General rate | G13: River management rate | I13: Transport rate | K13: Stadium-purposes rate | M13: WRS rate | O13: Total Region-wide rates2
C15: Change | D15: Change | E15: Change | F15: Change | G15: Change | H15: Change | I15: Change | J15: Change | K15: Change | L15: Change | M15: Change | N15: Change | O15: Change | P15: Change
C16: $000s | D16: % | E16: $000s | F16: % | G16: $000s | H16: % | I16: $000s | J16: % | K16: $000s | L16: % | M16: $000s | N16: % | O16: $000s | P16: % | R16: Check adds | T16: Check adds | V16: Check to rates 2
A17: =Checks!#REF! ->  | C17: =Rates!D68 -> 392 | D17: =Rates!E68 -> 0.0066 | E17: =Rates!F68 -> 1488 | F17: =Rates!G68 -> 0.0252 | G17: =Rates!I68 -> -42 | H17: =Rates!J68 -> -0.0007 | I17: =+Rates!L68 -> 8981 | J17: =Rates!M68 -> 0.1522 | K17: =+Rates!R68 -> -1008 | L17: =Rates!S68 -> -0.0171 | M17: =+Rates!O68 -> 66 | N17: =Rates!P68 -> 0.0011 | O17: =Rates!U68 -> 9877 | P17: =+Rates!W68 -> 0.1673 | R17: =+C17+E17+G17+I17+K17+M17 -> 9877 | S17: =+rates2!H13-R17 -> 2 | T17: =+D17+F17+H17+J17+L17+N17 -> 0.1673 | U17: =+P17-T17 -> 0 | V17: =+rates2!H13-O17 -> 2 | W17: =+rates2!I13-P17 -> 0.0001
A18: =Checks!#REF! ->  | C18: =Rates!D69 -> 139 | D18: =Rates!E69 -> 0.0063 | E18: =Rates!F69 -> 503 | F18: =Rates!G69 -> 0.0228 | G18: =Rates!I69 -> -3529 | H18: =Rates!J69 -> -0.1598 | I18: =+Rates!L69 -> -2826 | J18: =Rates!M69 -> -0.128 | K18: =+Rates!R69 -> -331 | L18: =Rates!S69 -> -0.015 | M18: =+Rates!O69 -> -10 | N18: =Rates!P69 -> -0.0005 | O18: =Rates!U69 -> -6054 | P18: =+Rates!W69 -> -0.2742 | R18: =+C18+E18+G18+I18+K18+M18 -> -6054 | S18: =+rates2!H14-R18 -> 0 | T18: =+D18+F18+H18+J18+L18+N18 -> -0.2742 | U18: =+P18-T18 -> 0 | V18: =+rates2!H14-O18 -> 0 | W18: =+rates2!I14-P18 -> 0.0001
A19: =Checks!#REF! ->  | C19: =Rates!D70 -> -8 | D19: =Rates!E70 -> -0.001 | E19: =Rates!F70 -> 191 | F19: =Rates!G70 -> 0.0243 | G19: =Rates!I70 -> 68 | H19: =Rates!J70 -> 0.0087 | I19: =+Rates!L70 -> -1495 | J19: =Rates!M70 -> -0.1902 | K19: =+Rates!R70 -> -90 | L19: =Rates!S70 -> -0.0114 | M19: =+Rates!O70 -> -5 | N19: =Rates!P70 -> -0.0006 | O19: =Rates!U70 -> -1339 | P19: =+Rates!W70 -> -0.1702 | R19: -1339 | S19: =+rates2!H15-R19 -> 0 | T19: -0.1702 | U19: 0 | V19: =+rates2!H15-O19 -> 0 | W19: =+rates2!I15-P19 -> -0.0001
A20: =Checks!#REF! ->  | C20: =Rates!D71 -> 70 | D20: =Rates!E71 -> 0.0076 | E20: =Rates!F71 -> 236 | F20: =Rates!G71 -> 0.0257 | G20: =Rates!I71 -> 0 | H20: =Rates!J71 -> 0 | I20: =+Rates!L71 -> -2132 | J20: =Rates!M71 -> -0.2319 | K20: =+Rates!R71 -> -122 | L20: =Rates!S71 -> -0.0133 | M20: =+Rates!O71 -> 0 | N20: =Rates!P71 -> 0 | O20: =Rates!U71 -> -1948 | P20: =+Rates!W71 -> -0.2119 | R20: -1948 | S20: =+rates2!H16-R20 -> 0 | T20: -0.2119 | U20: 0 | V20: =+rates2!H16-O20 -> 0 | W20: =+rates2!I16-P20 -> 0
A21: =Checks!#REF! ->  | C21: =Rates!D72 -> -43 | D21: =Rates!E72 -> -0.0049 | E21: =Rates!F72 -> 303 | F21: =Rates!G72 -> 0.0345 | G21: =Rates!I72 -> 116 | H21: =Rates!J72 -> 0.0132 | I21: =+Rates!L72 -> 1263 | J21: =Rates!M72 -> 0.1437 | K21: =+Rates!R72 -> -83 | L21: =Rates!S72 -> -0.0094 | M21: =+Rates!O72 -> 2 | N21: =Rates!P72 -> 0.0002 | O21: =Rates!U72 -> 1558 | P21: =+Rates!W72 -> 0.1773 | R21: 1558 | S21: =+rates2!H17-R21 -> 0 | T21: 0.1773 | U21: 0 | V21: =+rates2!H17-O21 -> 0 | W21: =+rates2!I17-P21 -> 0
A22: =Checks!#REF! ->  | C22: =Rates!D73 -> -229 | D22: =Rates!E73 -> -0.0964 | E22: =Rates!F73 -> 118 | F22: =Rates!G73 -> 0.0497 | G22: =Rates!I73 -> 0 | H22: =Rates!J73 -> 0 | I22: =+Rates!L73 -> 619 | J22: =Rates!M73 -> 0.2606 | K22: =+Rates!R73 -> -34 | L22: =Rates!S73 -> -0.0143 | M22: =+Rates!O73 -> -3 | N22: =Rates!P73 -> -0.0013 | O22: =Rates!U73 -> 471 | P22: =+Rates!W73 -> 0.1983 | R22: 471 | S22: =+rates2!H18-R22 -> 0 | T22: 0.1983 | U22: 0 | V22: =+rates2!H18-O22 -> 0 | W22: =+rates2!I18-P22 -> 0
A23: =Checks!#REF! ->  | C23: =Rates!D74 -> -120 | D23: =Rates!E74 -> -0.104 | E23: =Rates!F74 -> 55 | F23: =Rates!G74 -> 0.0477 | G23: =Rates!I74 -> -1 | H23: =Rates!J74 -> -0.0009 | I23: =+Rates!L74 -> 148 | J23: =Rates!M74 -> 0.1282 | K23: =+Rates!R74 -> -12 | L23: =Rates!S74 -> -0.0104 | M23: =+Rates!O74 -> 4 | N23: =Rates!P74 -> 0.0035 | O23: =Rates!U74 -> 74 | P23: =+Rates!W74 -> 0.0641 | R23: 74 | S23: =+rates2!H19-R23 -> 1 | T23: 0.0641 | U23: 0 | V23: =+rates2!H19-O23 -> 1 | W23: =+rates2!I19-P23 -> 0.0009
A24: =Checks!#REF! ->  | C24: =Rates!D75 -> -202 | D24: =Rates!E75 -> -0.1061 | E24: =Rates!F75 -> 87 | F24: =Rates!G75 -> 0.0457 | G24: =Rates!I75 -> 0 | H24: =Rates!J75 -> 0 | I24: =+Rates!L75 -> 159 | J24: =Rates!M75 -> 0.0836 | K24: =+Rates!R75 -> -18 | L24: =Rates!S75 -> -0.0095 | M24: =+Rates!O75 -> 0 | N24: =Rates!P75 -> 0 | O24: =Rates!U75 -> 26 | P24: =+Rates!W75 -> 0.0137 | R24: 26 | S24: =+rates2!H20-R24 -> 0 | T24: 0.0137 | U24: 0 | V24: =+rates2!H20-O24 -> 0 | W24: =+rates2!I20-P24 -> 0
A25: =Checks!#REF! ->  | C25: =Rates!D76 -> -1 | D25: =Rates!E76 -> -0.3333 | E25: =Rates!F76 -> 0 | F25: =Rates!G76 -> 0 | G25: =Rates!I76 -> 0 | H25: =Rates!J76 -> 0 | I25: =+Rates!L76 -> 0 | J25: =Rates!M76 -> 0 | K25: =+Rates!R76 -> 0 | L25: =Rates!S76 -> 0 | M25: =+Rates!O76 -> 0 | N25: =Rates!P76 -> 0 | O25: =Rates!U76 -> -1 | P25: =+Rates!W76 -> -0.3333 | R25: -1 | S25: =+rates2!H21-R25 -> 0 | T25: -0.3333 | U25: 0 | V25: =+rates2!H21-O25 -> 0 | W25: =+rates2!I21-P25 -> 0
A26: Region-wide rates 2 | C26: =SUM(C17:C25) -> -2 | D26: =Rates!E77 -> 0 | E26: =SUM(E17:E25) -> 2981 | F26: =Rates!G77 -> 0.0265 | G26: =SUM(G17:G25) -> -3388 | H26: =Rates!J77 -> -0.0302 | I26: =SUM(I17:I25) -> 4717 | J26: =Rates!M77 -> 0.042 | K26: =SUM(K17:K25) -> -1698 | L26: =Rates!S77 -> -0.0151 | M26: =SUM(M17:M25) -> 54 | N26: =Rates!P77 -> 0.0005 | O26: =SUM(O17:O25) -> 2664 | P26: =+Rates!W77 -> 0.0237 | R26: 2664 | S26: =+rates2!H22-R26 -> 3 | T26: 0.0237 | U26: 0 | V26: =+rates2!H22-O26 -> 3 | W26: =+rates2!I22-P26 -> 0
Q27: Doesn't incl area specifc rates
A29: WATER SUPPLY LEVY
A31: This table shows that the proposed water supply levy will increase by 5.4% from the 2016/17 level. The amounts charged to each of the four cities are based on the 2016/17 water consumption budgets and will be based on actual usage when the annual plan is finalised in June 2017.
M35: =Instructions!E11 -> 2016/17 | N35: =Instructions!D11 -> 2017/18
M36: Budget | N36: Plan | O36: Change | P36: Change
M37: $000s | N37: $000s | O37: $000s | P37: %
A38: Wellington City Council | M38: =ROUND(Water!B7/1000,0)-1 -> 15680 | N38: =ROUND(Water!E7/1000,0) -> 16515 | O38: =+N38-M38 -> 835 | P38: =ROUND((N38-M38)/M38,2) -> 0.05
A39: Hutt City Council | M39: =ROUND(Water!B8/1000,0) -> 7312 | N39: =ROUND(Water!E8/1000,0) -> 7660 | O39: =+N39-M39 -> 348 | P39: =ROUND((N39-M39)/M39,2) -> 0.05
A40: Upper Hutt City Council | M40: =ROUND(Water!B9/1000,0) -> 2773 | N40: =ROUND(Water!E9/1000,0) -> 3096 | O40: =+N40-M40 -> 323 | P40: =ROUND((N40-M40)/M40,2) -> 0.12
A41: Porirua City Council | M41: =ROUND(Water!B10/1000,0) -> 3332 | N41: =ROUND(Water!E10/1000,0) -> 3592 | O41: =+N41-M41 -> 260 | P41: =ROUND((N41-M41)/M41,2) -> 0.08
A42: Water supply levy | M42: =SUM(M38:M41) -> 29097 | N42: =SUM(N38:N41) -> 30863 | O42: =+N42-M42 -> 1766 | P42: =ROUND((N42-M42)/M42,2) -> 0.06
A46: Notes:
A48: 1 Rates for Greater Wellington are mostly allocated to ratepayers on the basis of their capital values. The territorial local authorities undertake valuations in different years. To ensure properties are valued on the same basis in each territorial area, Greater Wellington undertakes an equalised capital value (ECV) calculation. The movements in ECV reflect the extent to which capital values in each area have moved relative to each other. The ECV change by city amount shows how much the general rate changes as a direct consequence of the relative changes in capital values between the cities and districts from 2016/17 to 2017/18
A54: 2 Region-wide rates are rates that are charged to all ratepayers in the region. It excludes South Wairarapa Region river rates, Wairarapa river and drainage schemes and any "Warm Greater Wellington" targeted rates as they impact only certain ratepayers that are covered by these programmes
A57: This information should be read in conjunction with the Funding Impact Statement and the Revenue and Financing Policy contained within the 2015/25 long term plan available at www.gw.govt.nz
A59: =+rates1!$A$50 -> All figures on this page exclude GST
A61: Check Totals to Rates2
A62: Rates sheet 2 Region-wide rates | D62: =+rates2!H22 -> 2667 | E62: =+rates2!I22 -> 0.0237
D63: =+D62-O26 -> 3 | E63: =+P26-E62 -> 0
A64: Check Totals to Rates1 | E64: =+rates1!H23 -> 2978 | G64: =+rates1!H27 -> 344 | I64: =+rates1!H28 -> 4718 | K64: =+rates1!H29 -> -1698 | M64: =+rates1!H30 -> 54 | O64: =+rates1!H39-rates1!H36-rates1!H35-rates1!H33-rates1!H34 -> 6396
E65: =+E26-E64 -> 3 | G65: =+G26-G64 -> -3732 | I65: =+I26-I64 -> -1 | K65: =+K26-K64 -> 0 | M65: =+M26-M64 -> 0 | O65: =+O26-O64 -> -3732

Sheet rates4 (hidden)
A1: PAGE xx gone | T1: =+rates1!$L1 -> 0
A3: RATES AND LEVIES - REGION-WIDE TOTAL RATES BY CITY AND RATE TYPE
A4: =+rates3!A4 -> WHAT IS THE IMPACT ON YOUR CITY OR DISTRICT?
A9: Percentage changes in each rate type which together make up the changes in region-wide rates from 2016/17 to 2017/18
D11: General rate | G11: River management rate | J11: Transport rate | M11: Stadium-purposes rate | P11: EDA rate | T11: Check totals
D12: =+Instructions!E11 -> 2016/17 | E12: =+Instructions!D11 -> 2017/18 | G12: =+D12 -> 2016/17 | H12: =+E12 -> 2017/18 | J12: =+G12 -> 2016/17 | K12: =+H12 -> 2017/18 | M12: =+J12 -> 2016/17 | N12: =+K12 -> 2017/18 | P12: =+M12 -> 2016/17 | Q12: =+N12 -> 2017/18
D13: Budget | E13: Plan | F13: Change | G13: Budget | H13: Plan | I13: Change | J13: Budget | K13: Plan | L13: Change | M13: Budget | N13: Plan | O13: Change | P13: Budget | Q13: Plan | R13: Change
D14: $000s | E14: $000s | F14: % | G14: $000s | H14: $000s | I14: % | J14: $000s | K14: $000s | L14: % | M14: $000s | N14: $000s | O14: % | P14: $000s | Q14: $000s | R14: %
A15: Wellington city | D15: =Rates!G53 -> 19312 | E15: =Rates!F53 -> 21192 | F15: =Rates!H53 -> 0.0973 | G15: =Rates!J53 -> 43 | H15: =Rates!I53 -> 1 | I15: =Rates!K53 -> -0.9767 | J15: =Rates!M53 -> 35833 | K15: =Rates!L53 -> 44814 | L15: =Rates!N53 -> 0.2506 | M15: =Rates!S53 -> 1589 | N15: =Rates!R53 -> 581 | O15: =Rates!T53 -> -0.6344 | P15: =Rates!P53 -> 2234 | Q15: =Rates!O53 -> 2300 | R15: =Rates!Q53 -> 0.0295 | T15: =+D15+G15+J15+M15+P15-P34 -> 0 | U15: =+E15+H15+K15+N15+Q15-Q34 -> 1
A16: Lower Hutt city | D16: =Rates!G54 -> 6537 | E16: =Rates!F54 -> 7179 | F16: =Rates!H54 -> 0.0982 | G16: =Rates!J54 -> 3529 | H16: =Rates!I54 -> 0 | I16: =Rates!K54 -> -1 | J16: =Rates!M54 -> 10623 | K16: =Rates!L54 -> 7797 | L16: =Rates!N54 -> -0.266 | M16: =Rates!S54 -> 522 | N16: =Rates!R54 -> 191 | O16: =Rates!T54 -> -0.6341 | P16: =Rates!P54 -> 872 | Q16: =Rates!O54 -> 862 | R16: =Rates!Q54 -> -0.0115 | T16: 0 | U16: 0
A17: Upper Hutt city | D17: =Rates!G55 -> 2535 | E17: =Rates!F55 -> 2718 | F17: =Rates!H55 -> 0.0722 | G17: =Rates!J55 -> 610 | H17: =Rates!I55 -> 678 | I17: =Rates!K55 -> 0.1115 | J17: =Rates!M55 -> 4227 | K17: =Rates!L55 -> 2732 | L17: =Rates!N55 -> -0.3537 | M17: =Rates!S55 -> 141 | N17: =Rates!R55 -> 51 | O17: =Rates!T55 -> -0.6383 | P17: =Rates!P55 -> 348 | Q17: =Rates!O55 -> 343 | R17: =Rates!Q55 -> -0.0144 | T17: 0 | U17: 0
A18: Porirua city | D18: =Rates!G56 -> 3062 | E18: =Rates!F56 -> 3368 | F18: =Rates!H56 -> 0.0999 | G18: =Rates!J56 -> 28 | H18: =Rates!I56 -> 28 | I18: =Rates!K56 -> 0 | J18: =Rates!M56 -> 5556 | K18: =Rates!L56 -> 3424 | L18: =Rates!N56 -> -0.3837 | M18: =Rates!S56 -> 192 | N18: =Rates!R56 -> 70 | O18: =Rates!T56 -> -0.6354 | P18: =Rates!P56 -> 355 | Q18: =Rates!O56 -> 355 | R18: =Rates!Q56 -> 0 | T18: 0 | U18: 0
A19: Kapiti Coast district | D19: =Rates!G57 -> 4069 | E19: =Rates!F57 -> 4329 | F19: =Rates!H57 -> 0.0639 | G19: =Rates!J57 -> 1252 | H19: =Rates!I57 -> 1368 | I19: =Rates!K57 -> 0.0927 | J19: =Rates!M57 -> 2848 | K19: =Rates!L57 -> 4111 | L19: =Rates!N57 -> 0.4435 | M19: =Rates!S57 -> 130 | N19: =Rates!R57 -> 47 | O19: =Rates!T57 -> -0.6385 | P19: =Rates!P57 -> 489 | Q19: =Rates!O57 -> 491 | R19: =Rates!Q57 -> 0.0041 | T19: 0 | U19: 0
A20: Masterton district | D20: =Rates!G58 -> 1786 | E20: =Rates!F58 -> 1675 | F20: =Rates!H58 -> -0.0622 | G20: =Rates!J58 -> 0 | H20: =Rates!I58 -> 0 | I20: =Rates!K58 -> 0 | J20: =Rates!M58 -> 290 | K20: =Rates!L58 -> 909 | L20: =Rates!N58 -> 2.1345 | M20: =Rates!S58 -> 54 | N20: =Rates!R58 -> 20 | O20: =Rates!T58 -> -0.6296 | P20: =Rates!P58 -> 245 | Q20: =Rates!O58 -> 242 | R20: =Rates!Q58 -> -0.0122 | T20: 0 | U20: 0
A21: Carterton district | D21: =Rates!G59 -> 839 | E21: =Rates!F59 -> 774 | F21: =Rates!H59 -> -0.0775 | G21: =Rates!J59 -> 23 | H21: =Rates!I59 -> 23 | I21: =Rates!K59 -> 0 | J21: =Rates!M59 -> 186 | K21: =Rates!L59 -> 334 | L21: =Rates!N59 -> 0.7957 | M21: =Rates!S59 -> 19 | N21: =Rates!R59 -> 7 | O21: =Rates!T59 -> -0.6316 | P21: =Rates!P59 -> 87 | Q21: =Rates!O59 -> 91 | R21: =Rates!Q59 -> 0.046 | T21: 0 | U21: 0
A22: South Wairarapa district | D22: =Rates!G60 -> 1360 | E22: =Rates!F60 -> 1245 | F22: =Rates!H60 -> -0.0846 | G22: =Rates!J60 -> 0 | H22: =Rates!I60 -> 0 | I22: =Rates!K60 -> 0 | J22: =Rates!M60 -> 376 | K22: =Rates!L60 -> 535 | L22: =Rates!N60 -> 0.4229 | M22: =Rates!S60 -> 29 | N22: =Rates!R60 -> 11 | O22: =Rates!T60 -> -0.6207 | P22: =Rates!P60 -> 138 | Q22: =Rates!O60 -> 138 | R22: =Rates!Q60 -> 0 | T22: 0 | U22: 0
A23: Tararua district | D23: =Rates!G61 -> 3 | E23: =Rates!F61 -> 2 | F23: =Rates!H61 -> -0.3333 | G23: =Rates!J61 -> 0 | H23: =Rates!I61 -> 0 | I23: =Rates!K61 -> 0 | J23: =Rates!M61 -> 0 | K23: =Rates!L61 -> 0 | L23: =Rates!N61 -> 0 | M23: =Rates!S61 -> 0 | N23: =Rates!R61 -> 0 | O23: =Rates!T61 -> 0 | P23: =Rates!P61 -> 0 | Q23: =Rates!O61 -> 0 | R23: =Rates!Q61 -> 0 | T23: 0 | U23: 0
A24: Region-wide rates1 | D24: =SUM(D15:D23) -> 39503 | E24: =SUM(E15:E23) -> 42482 | F24: =Rates!H62 -> 0.0754 | G24: =SUM(G15:G23) -> 5485 | H24: =Rates!I62 -> 2098 | I24: =Rates!K62 -> -0.6175022789 | J24: =SUM(J15:J23) -> 59939 | K24: =SUM(K15:K23) -> 64656 | L24: =Rates!N62 -> 0.0787 | M24: =SUM(M15:M23) -> 2676 | N24: =SUM(N15:N23) -> 978 | O24: =Rates!T62 -> -0.6345 | P24: =SUM(P15:P23) -> 4768 | Q24: =SUM(Q15:Q23) -> 4822 | R24: =+Q24/P24-1 -> 0.01132550336
A27: Rates increases vary between city and district councils because of differing capital values. In addition, some of Greater Wellington’s work programmes impact differently across the region, especially flood protection and public transport
P30: Total Region-wide rates1
P31: =+J12 -> 2016/17 | Q31: =+K12 -> 2017/18 | R31: Change
P32: Budget | Q32: Plan
P33: $000s | Q33: $000s | R33: % | U33: Check to Rates 3
A34: =+A15 -> Wellington city | P34: =Rates!V53 -> 59011 | Q34: =Rates!U53 -> 68887 | R34: =+Q34/P34-1 -> 0.1673586281 | T34: rounding | U34: =+rates3!P17 -> 0.1673 | V34: =+R34-U34 -> 5.86280524e-05
A35: =+A16 -> Lower Hutt city | P35: =Rates!V54 -> 22083 | Q35: =Rates!U54 -> 16029 | R35: =+Q35/P35-1 -> -0.2741475343 | T35: rounding | U35: =+rates3!P18 -> -0.2742 | V35: =+R35-U35 -> 5.24656976e-05
A36: Upper Hutt city | P36: =Rates!V55 -> 7861 | Q36: =Rates!U55 -> 6522 | R36: =+Q36/P36-1 -> -0.170334563 | T36: rounding | U36: =+rates3!P19 -> -0.1702 | V36: -0.0001345630327 | W36: =+R36 -> -0.170334563
A37: Porirua city | P37: =Rates!V56 -> 9193 | Q37: =Rates!U56 -> 7245 | R37: -0.211900359 | T37: rounding | U37: =+rates3!P20 -> -0.2119 | V37: -3.589687806e-07 | W37: =+R37 -> -0.211900359
A38: Kapiti Coast district | P38: =Rates!V57 -> 8788 | Q38: =Rates!U57 -> 10346 | R38: 0.1772872098 | T38: rounding | U38: =+rates3!P21 -> 0.1773 | V38: -1.279016841e-05 | W38: 0.1772872098
A39: Masterton district | P39: =Rates!V58 -> 2375 | Q39: =Rates!U58 -> 2846 | R39: 0.1983157895 | T39: rounding | U39: =+rates3!P22 -> 0.1983 | V39: 1.578947368e-05 | W39: 0.1983157895
A40: Carterton district | P40: =Rates!V59 -> 1154 | Q40: =Rates!U59 -> 1229 | R40: 0.06499133449 | T40: rounding | U40: =+rates3!P23 -> 0.0641 | V40: 0.0008913344887 | W40: 0.06499133449
A41: South Wairarapa district | P41: =Rates!V60 -> 1903 | Q41: =Rates!U60 -> 1929 | R41: 0.01366263794 | T41: rounding | U41: =+rates3!P24 -> 0.0137 | V41: -3.736205991e-05 | W41: 0.01366263794
A42: Tararua district | P42: =Rates!V61 -> 3 | Q42: =Rates!U61 -> 2 | R42: =+Q42/P42-1 -> -0.3333333333 | T42: rounding | U42: =+rates3!P25 -> -0.3333 | V42: -3.333333333e-05 | W42: -0.3333333333
A43: Region-wide rates1 | P43: =SUM(P34:P42) -> 112371 | Q43: =SUM(Q34:Q42) -> 115035 | R43: =+Q43/P43-1 -> 0.02370718424 | T43: rounding | U43: =+rates3!P26 -> 0.0237 | V43: 7.184237926e-06
A46: =+rates1!$A$50 -> All figures on this page exclude GST
A49: 1 Region-wide rates are rates that are charged to all ratepayers in the region. It excludes South Wairarapa Region river rates, Wairarapa river and drainage schemes and any "Warm Greater Wellington" targeted rates as they impact only certain ratepayers that are covered by these programmes
A52: This information should be read in conjunction with the Funding Impact Statement and the Revenue and Financing Policy contained within the 2015/25 long term plan available at www.gw.govt.nz
A55: Check Data | D55: =+rates2!F22 -> 112369 | E55: =+rates2!G22 -> 115036 | F55: =+rates2!I22 -> 0.0237
A56: Diff to rates 1 | D56: =+D55-P43 -> -2 | E56: =+E55-Q43 -> 1 | F56: =+R43-F55 -> 7.184237926e-06
A57: Region-wide (rates1) | D57: =+rates1!F23 -> 39504 | E57: =+rates1!G23 -> 42482 | G57: =+rates1!F27 -> 5483 | H57: =+rates1!G27 -> 5827 | J57: =+rates1!F28 -> 59938 | K57: =+rates1!G28 -> 64656 | M57: =+rates1!F29 -> 2676 | N57: =+rates1!G29 -> 978 | P57: =+rates1!F30 -> 4768 | Q57: =+rates1!G30 -> 4822
A58: Region-wide (rates1) | D58: =+D57-D24 -> 1 | E58: =+E57-E24 -> 0 | G58: =+G57-G24 -> -2 | H58: =+H57-H24 -> 3729 | J58: =+J57-J24 -> -1 | K58: =+K57-K24 -> 0 | M58: =+M57-M24 -> 0 | N58: =+N57-N24 -> 0 | P58: =+P57-P24 -> 0 | Q58: =+Q57-Q24 -> 0

Sheet rates5 (hidden)
R1: =+rates1!$L1 -> 0
A3: RATES AND LEVIES - RESIDENTIAL REGION-WIDE RATES
A4: WHAT IS THE IMPACT ON YOUR CITY OR DISTRICT?
A9: 2017/18 Residential Region wide rates by rate type and for an average valued residential property
C12: General rate | E12: River management rate | G12: Transport rate | I12: Stadium-purposes rate | K12: Region-wide residential1 | S12: General rate | U12: River management rate | W12: Transport rate | Y12: Stadium-purposes rate | AA12: Region-wide residential1
C13: per average valued residential property | E13: =+C13 -> per average valued residential property | G13: =+E13 -> per average valued residential property | I13: =+G13 -> per average valued residential property | K13: =+I13 -> per average valued residential property | S13: per $100k of valued residential property | U13: =+S13 -> per $100k of valued residential property | W13: =+U13 -> per $100k of valued residential property | Y13: =+W13 -> per $100k of valued residential property | AA13: =+Y13 -> per $100k of valued residential property
K15: excluding WRS rate
C16: =+rates4!D12 -> 2016/17 | D16: =+rates4!E12 -> 2017/18 | E16: =+C16 -> 2016/17 | F16: 2017/18 | G16: 2016/17 | H16: 2017/18 | I16: 2016/17 | J16: 2017/18 | K16: =+I16 -> 2016/17 | L16: =+J16 -> 2017/18
A17: =Checks!#REF! ->  | C17: 209.63 | D17: =G33-F17-H17-J17 -> 199.8426395 | E17: 0.44 | F17: =+V17*E33/100000 -> 0.7715293572 | G17: 162.82 | H17: =+X17*E33/100000 -> 229.1442191 | I17: 14.68 | J17: =+Z17*E33/100000 -> 5.34559626 | K17: 387.57 | L17: =+D17+F17+H17+J17 -> 435.1039842 | Q17: =+L17/K17-1 -> 0.1226461909 | S17: 28.67 | T17: =ROUND(+'Summary proposed'!Q12,2) -> 30.91 | U17: 0.14 | V17: =ROUND(+'Summary proposed'!U12,2) -> 0.14 | W17: 27.86 | X17: =ROUND(+'Summary proposed'!R12,2) -> 41.58 | Y17: 2.95 | Z17: =ROUND(+'Summary proposed'!S12,2) -> 0.97 | AA17: =+Y17+W17+U17+S17 -> 59.62 | AB17: =+Z17+X17+V17+T17 -> 73.6
A18: =Checks!#REF! ->  | C18: 143.44 | D18: =G34-F18-H18-J18 -> 140.3515552 | E18: 77.43 | F18: =+V18*E34/100000 -> 130.0795821 | G18: 235.93 | H18: 160.8916236 | I18: 10.52 | J18: 3.816170282 | K18: 467.33 | L18: 435.1389312 | Q18: -0.06888294947 | S18: 28.15 | T18: =ROUND(+'Summary proposed'!Q17,2) -> 25.39 | U18: 16.2 | V18: =ROUND(+'Summary proposed'!U17,2) -> 27.61 | W18: 49.69 | X18: =ROUND(+'Summary proposed'!R17,2) -> 34.15 | Y18: 2.9 | Z18: =ROUND(+'Summary proposed'!S17,2) -> 0.81 | AA18: =+Y18+W18+U18+S18 -> 96.94 | AB18: =+Z18+X18+V18+T18 -> 87.96
A19: =Checks!#REF! ->  | C19: 127.59 | D19: =G35-F19-H19-J19 -> 123.2760556 | E19: 30.96 | F19: 59.82377378 | G19: 232.96 | H19: 141.3264255 | I19: 7.86 | J19: 2.854661404 | K19: 399.37 | L19: 327.2809163 | Q19: -0.1805070078 | S19: 27.71 | T19: =ROUND(+'Summary proposed'!Q22,2) -> 25.4 | U19: 8.86 | V19: =ROUND(+'Summary proposed'!U22,2) -> 14.46 | W19: 53.28 | X19: =ROUND(+'Summary proposed'!R22,2) -> 34.16 | Y19: 2.4 | Z19: =ROUND(+'Summary proposed'!S22,2) -> 0.69 | AA19: =+Y19+W19+U19+S19 -> 92.25 | AB19: =+Z19+X19+V19+T19 -> 74.71
A20: =Checks!#REF! ->  | C20: 147.98 | D20: 143.7540329 | E20: 1.34 | F20: 2.342770691 | G20: 282.12 | H20: 164.7748719 | I20: 9.15 | J20: 3.318925146 | K20: 440.59 | L20: 314.1906006 | Q20: -0.2868866732 | S20: 27.31 | T20: =ROUND(+'Summary proposed'!Q27,2) -> 25.1 | U20: 0.57 | V20: =ROUND(+'Summary proposed'!U27,2) -> 0.48 | W20: 58.77 | X20: =ROUND(+'Summary proposed'!R27,2) -> 33.76 | Y20: 2.48 | Z20: =ROUND(+'Summary proposed'!S27,2) -> 0.68 | AA20: 89.13 | AB20: 60.02
A21: =Checks!#REF! ->  | C21: 145.27 | D21: 135.044802 | E21: 44.69 | F21: 77.48898462 | G21: 114.61 | H21: 154.8610341 | I21: 4.97 | J21: 1.793004674 | K21: 309.53 | L21: 369.1878255 | Q21: 0.1927368122 | S21: 27.86 | T21: =ROUND(+'Summary proposed'!Q32,2) -> 29.53 | U21: 13.27 | V21: =ROUND(+'Summary proposed'!U32,2) -> 19.88 | W21: 24.36 | X21: =ROUND(+'Summary proposed'!R32,2) -> 39.73 | Y21: 1.38 | Z21: =ROUND(+'Summary proposed'!S32,2) -> 0.46 | AA21: 66.87 | AB21: 89.6
A22: =Checks!#REF! ->  | C22: 95.93 | D22: 78.43157741 | E22: 0 | F22: 40.89813716 | G22: 24.2 | H22: 62.95895499 | I22: 4.24 | J22: 1.536198502 | K22: 124.38 | L22: 183.8248681 | Q22: 0.4779294747 | S22: 27.96 | T22: =ROUND(+'Summary proposed'!Q37,2) -> 26.55 | U22: 0 | V22: =ROUND(+'Summary proposed'!U37,2) -> 16.24 | W22: 9.09 | X22: =ROUND(+'Summary proposed'!R37,2) -> 25 | Y22: 1.78 | Z22: =ROUND(+'Summary proposed'!S37,2) -> 0.61 | AA22: 38.83 | AB22: 68.4
A23: =Checks!#REF! ->  | C23: 101.2 | D23: 82.14004596 | E23: 2.76 | F23: 42.82546455 | G23: 44.76 | H23: 65.93006703 | I23: 3.97 | J23: 1.427515485 | K23: 152.69 | L23: 192.323093 | Q23: 0.2595657412 | S23: 28.6 | T23: =ROUND(+'Summary proposed'!Q42,2) -> 26.48 | U23: 1.03 | V23: =ROUND(+'Summary proposed'!U42,2) -> 16.2 | W23: 15.64 | X23: =ROUND(+'Summary proposed'!R42,2) -> 24.94 | Y23: 1.78 | Z23: =ROUND(+'Summary proposed'!S42,2) -> 0.54 | AA23: 47.05 | AB23: 68.16
A24: South Wairarapa district | C24: 106.87 | D24: 85.44696868 | E24: 0 | F24: 44.51740568 | G24: 61.88 | H24: 68.55341939 | I24: 5.15 | J24: 1.83373344 | K24: 173.9 | L24: 200.3515272 | S24: 28.06 | T24: =ROUND(+'Summary proposed'!Q47,2) -> 25.81 | U24: 0 | V24: =ROUND(+'Summary proposed'!U47,2) -> 15.78 | W24: 18.88 | X24: =ROUND(+'Summary proposed'!R47,2) -> 24.3 | Y24: 2.06 | Z24: =ROUND(+'Summary proposed'!S47,2) -> 0.65 | AA24: 49 | AB24: 66.54
D28: Average value of residential property in each city or district | F28: Total Region-wide1 | H28: WRS rate2 | K28: Total Region-wide1
F29: =+C13 -> per average valued residential property | H29: per residential property | K29: rates per average residential property
F31: excluding WRS rate | K31: including WRS rate
D32: =+$K$16 -> 2016/17 | E32: =+$L$16 -> 2017/18 | F32: =+$K$16 -> 2016/17 | G32: =+$L$16 -> 2017/18 | H32: =+$K$16 -> 2016/17 | I32: =+$L$16 -> 2017/18 | K32: =+F32 -> 2016/17 | L32: =+G32 -> 2017/18 | R32: inc GST | U32: Check totals
A33: =+A17 ->  | D33: 549713 | E33: =+NRV!F12 -> 551092.398 | F33: 387.57 | G33: =+'Summary proposed'!H12 -> 435.1039842 | H33: 14 | I33: 14 | K33: 401.57 | L33: =+G33+I33 -> 449.1039842 | O33: =+L33/K33-1 -> 0.1183703569 | P33: =(+L33-K33)*1.15 -> 54.66408184 | Q33: =+L33-K33 -> 47.53398421 | R33: =+L33*1.15 -> 516.4695818 | S33: =+P33/52 -> 1.051232343 | U33: =+K33*NRV!E12 -> 28466895.73 | V33: =+L33*NRV!E12 -> 31836532.34 | W33: =+NRV!E12 -> 70889 | X33: =+W33*L33 -> 31836532.34
A34: =+A18 ->  | D34: 378461 | E34: =+NRV!F17 -> 471132.1336 | F34: 467.33 | G34: =+'Summary proposed'!H17 -> 435.1389312 | H34: 14 | I34: =+I33 -> 14 | K34: 481.33 | L34: 449.1389312 | O34: -0.06687941491 | P34: -37.01972909 | Q34: -32.19106878 | R34: =+L34*1.15 -> 516.5097709 | S34: =+P34/52 -> -0.7119178672 | U34: =+K34*NRV!E17 -> 17425108.66 | V34: =+L34*NRV!E17 -> 16259727.59 | W34: =+NRV!E17 -> 36202 | X34: =+W34*L34 -> 16259727.59
D35: 343289 | E35: =+NRV!F22 -> 413719.0441 | F35: 399.37 | G35: =+'Summary proposed'!H22 -> 327.2809163 | H35: 14 | I35: =+I34 -> 14 | K35: 413.37 | L35: 341.2809163 | O35: -0.1743936031 | P35: -82.90244627 | Q35: -72.08908371 | R35: 392.4730537 | S35: -1.594277813 | U35: =+K35*NRV!E22 -> 6036855.48 | V35: =+L35*NRV!E22 -> 4984066.501 | W35: =+NRV!E22 -> 14604 | X35: 4984066.501
D36: 394401 | E36: =+NRV!F27 -> 488077.2273 | F36: 440.59 | G36: =+'Summary proposed'!H27 -> 314.1906006 | H36: 14 | I36: 14 | K36: 454.59 | L36: 328.1906006 | O36: -0.2780514295 | P36: -145.3593093 | Q36: -126.3993994 | R36: 377.4191907 | S36: -2.795371332 | U36: =+K36*NRV!E26 -> 361853.64 | V36: =+L36*NRV!E26 -> 261239.7181 | W36: =+NRV!E26 -> 796 | X36: 261239.7181
D37: 388240 | E37: =+NRV!F32 -> 389783.6248 | F37: 309.53 | G37: =+'Summary proposed'!H32 -> 369.1878255 | H37: 14 | I37: 14 | K37: 323.53 | L37: 383.1878255 | O37: 0.1843965799 | P37: 68.6064993 | Q37: 59.65782548 | R37: 440.6659993 | S37: 1.319355756 | U37: =+K37*NRV!E31 -> 449383.17 | V37: =+L37*NRV!E31 -> 532247.8896 | W37: =+NRV!E31 -> 1389 | X37: 532247.8896
D38: 251063 | E38: =+NRV!F37 -> 251835.8199 | F38: 124.38 | G38: =+'Summary proposed'!H37 -> 183.8248681 | H38: 14 | I38: 14 | K38: 138.38 | L38: 197.8248681 | O38: 0.4295770202 | P38: 68.36159827 | Q38: 59.44486806 | R38: 227.4985983 | S38: 1.314646121 | U38: =+K38*NRV!E36 -> 75555.48 | V38: =+L38*NRV!E36 -> 108012.378 | W38: =+NRV!E36 -> 546 | X38: 108012.378
D39: 257835 | E39: =+NRV!F42 -> 264354.7194 | F39: 152.69 | G39: =+'Summary proposed'!H42 -> 192.323093 | H39: 14 | I39: 14 | K39: 166.69 | L39: 206.323093 | O39: 0.237765271 | P39: 45.57805698 | Q39: 39.63309303 | R39: 237.271557 | S39: 0.8765010957 | U39: =+K39*NRV!E41 -> 37505.25 | V39: =+L39*NRV!E41 -> 46422.69593 | W39: =+NRV!E41 -> 225 | X39: 46422.69593
A40: South Wairarapa district | D40: 276988 | E40: =+NRV!F47 -> 282112.837 | F40: 173.9 | G40: =+'Summary proposed'!H47 -> 200.3515272 | H40: 14 | I40: 14 | K40: 187.9 | L40: 214.3515272 | O40: 0.1407744927 | P40: 30.41925626 | Q40: 26.45152718 | R40: 246.5042563 | S40: 0.5849856973 | U40: =+K40*NRV!E46 -> 58624.8 | V40: =+L40*NRV!E46 -> 66877.67648 | W40: =+NRV!E46 -> 312 | X40: 66877.67648
U41: =SUM(U33:U40) -> 52911782.21 | V41: =SUM(V33:V40) -> 54095126.78 | W41: =SUM(W33:W40) -> 124963 | X41: =SUM(X33:X40) -> 54095126.78
A42: =+rates1!$A$50 -> All figures on this page exclude GST | U42: =+NRV!E55 -> 8254 | V42: =+NRV!E55 -> 8254 | X42: =+X41/W41 -> 432.8891495
U43: =+U41/U42 -> 6410.441266 | V43: =+V41/V42 -> 6553.807461
A45: Notes: | V45: =+V43-U43 -> 143.3661951
A46: =+rates1!$A$54 -> Figures labelled “2016/17 Budget” are sourced from GWRC's 2016/17 Annual plan. | R46: Proposed | S46: Final | T46: Diff
Q47: =+rates5!K33 -> 401.57 | R47: =+rates5!L33 -> 449.1039842 | S47: =+L33 -> 449.1039842 | T47: =+S47-R47 -> 0
A48: Certain comparatives have been reclassified to aid comparability | Q48: =+rates5!K34 -> 481.33 | R48: =+rates5!L34 -> 449.1389312 | S48: =+L34 -> 449.1389312 | T48: =+S48-R48 -> 0
A50: 1 Region-wide rates are rates that are charged to all ratepayers in the region. This excludes South Wairarapa Region river rates, Wairarapa river and drainage scheme rates and any "Warm Greater Wellington" targeted rates as they impact only certain ratepayers that are covered by these programmes. | Q50: =+rates5!K35 -> 413.37 | R50: =+rates5!L35 -> 341.2809163 | S50: =+L35 -> 341.2809163 | T50: =+S50-R50 -> 0
Q51: =+rates5!K36 -> 454.59 | R51: =+rates5!L36 -> 328.1906006 | S51: =+L36 -> 328.1906006 | T51: =+S51-R51 -> 0
A52: 2 The WRS rate is a targeted rate allocated on a fixed amount basis for residential and rural ratepayers. It is allocated on capital value for businesses. For residential properties the fixed amount is $14.00 + GST and rural properties $28.00 + GST. This rate is used to fund Wellington Regional Strategy activities including WREDA, the region’s economic development agency. | Q52: =+rates5!K37 -> 323.53 | R52: =+rates5!L37 -> 383.1878255 | S52: =+L37 -> 383.1878255 | T52: =+S52-R52 -> 0
Q53: =+rates5!K38 -> 138.38 | R53: =+rates5!L38 -> 197.8248681 | S53: =+L38 -> 197.8248681 | T53: =+S53-R53 -> 0
Q54: =+rates5!K39 -> 166.69 | R54: =+rates5!L39 -> 206.323093 | S54: =+L39 -> 206.323093 | T54: =+S54-R54 -> 0
A56: Rates for Greater Wellington region are mostly allocated to ratepayers on the basis of their capital values. The territorial authorities undertake valuations in different years. To ensure properties are valued on the same basis in each territorial area, GWRC undertakes an equalised capital value (ECV) calculation to ensure fair distribution of rates based on capital values.
A59: =+rates1!$A$61 -> This information should be read in conjunction with the Funding Impact Statement and the Revenue and Financing Policy contained within the 2015/25 10 year plan available at http://www.gw.govt.nz/long-term-plan-2015-25/.
A61: =rates1!A62 -> All figures on this page exclude GST. | R61: For Summary
R63: District/City | S63: Average residential property value | T63: Annual rates increase | U63: Weekly rates increase | V63: Average Weekly rates including GST
R65: Carterton district | S65: 215000 | T65: -1.274749485 | U65: -0.02451441317 | V65: =+(L39*1.15)/52 -> 4.562914557 | W65: =+V65/1.15 -> 3.967751789
R66: Kapiti Coast district | S66: 363000 | T66: 18.6403387 | U66: 0.358468052 | V66: =+(L37*1.15)/52 -> 8.47434614 | W66: =+V66/1.15 -> 7.368996644
R67: Lower Hutt city | S67: 367000 | T67: 34.15673396 | U67: 0.6568602684 | V67: =+(L34*1.15)/52 -> 9.93288021 | W67: 8.637287139
R68: Masterton district | S68: 235000 | T68: 11.4838026 | U68: 0.2208423576 | V68: =+(L38*1.15)/52 -> 4.374973044 | W68: 3.804324386
R69: Porirua city | S69: 379000 | T69: 9.282197324 | U69: 0.1785037947 | V69: =+(L36*1.15)/52 -> 7.258061361 | W69: 6.311357705
R70: South Wairarapa district | S70: 269000 | T70: 7.856953338 | U70: 0.1510952565 | V70: =+(L40*1.15)/52 -> 4.740466466 | W70: 4.122144753
R71: Upper Hutt city | S71: 331000 | T71: 17.19906501 | U71: 0.3307512502 | V71: =+(L35*1.15)/52 -> 7.547558726 | W71: 6.563094544
R72: Wellington city | S72: 509000 | T72: 17.05212536 | U72: 0.3279254877 | V72: =+(L33*1.15)/52 -> 9.932107343 | W72: 8.636615081

Sheet rates5 b (hidden)
A3: RATES AND LEVIES - REGION-WIDE RATES
A4: WHAT IS THE IMPACT ON YOUR CITY OR DISTRICT?
A7: Residential Property - including GST | C7: Average Capital Value | D7: Average Increase per year | E7: Average Increase per week | F7: Average Rates per year | G7: Average rates per week
A8: Wellington city | C8: =+rates_Changes!C50 -> 551000 | D8: =+rates_Changes!D50 -> 55 | E8: =+rates_Changes!E50 -> 1.057692308 | F8: =+rates_Changes!F50 -> 516 | G8: =+rates_Changes!G50 -> 9.923076923
A9: Lower Hutt city | C9: =+rates_Changes!C51 -> 471000 | D9: =+rates_Changes!D51 -> -37 | E9: =+rates_Changes!E51 -> -0.7115384615 | F9: =+rates_Changes!F51 -> 517 | G9: =+rates_Changes!G51 -> 9.942307692
A10: Upper Hutt city | C10: =+rates_Changes!C52 -> 414000 | D10: =+rates_Changes!D52 -> -83 | E10: =+rates_Changes!E52 -> -1.596153846 | F10: =+rates_Changes!F52 -> 392 | G10: =+rates_Changes!G52 -> 7.538461538
A11: Porirua city | C11: =+rates_Changes!C53 -> 488000 | D11: =+rates_Changes!D53 -> -145 | E11: =+rates_Changes!E53 -> -2.788461538 | F11: =+rates_Changes!F53 -> 377 | G11: =+rates_Changes!G53 -> 7.25
A12: Kapiti Coast district | C12: =+rates_Changes!C54 -> 390000 | D12: =+rates_Changes!D54 -> 69 | E12: =+rates_Changes!E54 -> 1.326923077 | F12: =+rates_Changes!F54 -> 441 | G12: =+rates_Changes!G54 -> 8.480769231
A13: Masterton district | C13: =+rates_Changes!C55 -> 252000 | D13: =+rates_Changes!D55 -> 68 | E13: =+rates_Changes!E55 -> 1.307692308 | F13: =+rates_Changes!F55 -> 227 | G13: =+rates_Changes!G55 -> 4.365384615
A14: Carterton district | C14: =+rates_Changes!C56 -> 264000 | D14: =+rates_Changes!D56 -> 46 | E14: =+rates_Changes!E56 -> 0.8846153846 | F14: =+rates_Changes!F56 -> 237 | G14: =+rates_Changes!G56 -> 4.557692308
A15: South Wairarapa district | C15: =+rates_Changes!C57 -> 282000 | D15: =+rates_Changes!D57 -> 30 | E15: =+rates_Changes!E57 -> 0.5769230769 | F15: =+rates_Changes!F57 -> 247 | G15: =+rates_Changes!G57 -> 4.75
A16: These projected rates exclude the targeted rural pest and river management rates that are not charged to all ratepayers
A18: Rural Property - excluding GST | C18: Average Capital Value | D18: Average Increase per year | E18: Average Increase per week | F18: Average Rates per year | G18: Average rates per week
A19: Wellington city | C19: =+rates_Changes!C61 -> 748000 | D19: =+rates_Changes!D61 -> 10 | E19: =+rates_Changes!E61 -> 0.1923076923 | F19: =+rates_Changes!F61 -> 382 | G19: =+rates_Changes!G61 -> 7.346153846
A20: Lower Hutt city | C20: =+rates_Changes!C62 -> 649000 | D20: =+rates_Changes!D62 -> -2 | E20: =+rates_Changes!E62 -> -0.03846153846 | F20: =+rates_Changes!F62 -> 461 | G20: =+rates_Changes!G62 -> 8.865384615
A21: Upper Hutt city | C21: =+rates_Changes!C63 -> 643000 | D21: =+rates_Changes!D63 -> -45 | E21: =+rates_Changes!E63 -> -0.8653846154 | F21: =+rates_Changes!F63 -> 369 | G21: =+rates_Changes!G63 -> 7.096153846
A22: Porirua city | C22: =+rates_Changes!C64 -> 982000 | D22: =+rates_Changes!D64 -> -117 | E22: =+rates_Changes!E64 -> -2.25 | F22: =+rates_Changes!F64 -> 407 | G22: =+rates_Changes!G64 -> 7.826923077
A23: Kapiti Coast district | C23: =+rates_Changes!C65 -> 603000 | D23: =+rates_Changes!D65 -> 49 | E23: =+rates_Changes!E65 -> 0.9423076923 | F23: =+rates_Changes!F65 -> 418 | G23: =+rates_Changes!G65 -> 8.038461538
A24: Masterton district | C24: =+rates_Changes!C66 -> 606000 | D24: =+rates_Changes!D66 -> 92 | E24: =+rates_Changes!E66 -> 1.769230769 | F24: =+rates_Changes!F66 -> 371 | G24: =+rates_Changes!G66 -> 7.134615385
A25: Carterton district | C25: =+rates_Changes!C67 -> 730000 | D25: =+rates_Changes!D67 -> 82 | E25: =+rates_Changes!E67 -> 1.576923077 | F25: =+rates_Changes!F67 -> 440 | G25: =+rates_Changes!G67 -> 8.461538462
A26: South Wairarapa district | C26: =+rates_Changes!C68 -> 807000 | D26: =+rates_Changes!D68 -> 83 | E26: =+rates_Changes!E68 -> 1.596153846 | F26: =+rates_Changes!F68 -> 471 | G26: =+rates_Changes!G68 -> 9.057692308
A27: Tararua | C27: =+rates_Changes!C69 -> 567000 | D27: =+rates_Changes!D69 -> 30 | E27: =+rates_Changes!E69 -> 0.5769230769 | F27: =+rates_Changes!F69 -> 200 | G27: =+rates_Changes!G69 -> 3.846153846
A28: These projected rates exclude the targeted rural pest and river management rates that are not charged to all ratepayers
A31: Business Property - excluding GST | C31: Average Capital Value | D31: Average Increase per year | E31: Average Increase per week | F31: Average Rates per year | G31: Average rates per week
A32: Wellington city | C32: =+rates_Changes!C74 -> 2003000 | D32: =+rates_Changes!D74 -> 591 | E32: =+rates_Changes!E74 -> 11.36538462 | F32: =+rates_Changes!F74 -> 2234 | G32: =+rates_Changes!G74 -> 42.96153846
A33: Wellington city - CBD | C33: =+rates_Changes!C75 -> 2309000 | D33: =+rates_Changes!D75 -> 882 | E33: =+rates_Changes!E75 -> 16.96153846 | F33: =+rates_Changes!F75 -> 8817 | G33: =+rates_Changes!G75 -> 169.5576923
A34: Lower Hutt city | C34: =+rates_Changes!C76 -> 1611000 | D34: =+rates_Changes!D76 -> 0 | E34: =+rates_Changes!E76 -> 0 | F34: =+rates_Changes!F76 -> 1917 | G34: =+rates_Changes!G76 -> 36.86538462
A35: Upper Hutt city | C35: =+rates_Changes!C77 -> 1621000 | D35: =+rates_Changes!D77 -> -175 | E35: =+rates_Changes!E77 -> -3.365384615 | F35: =+rates_Changes!F77 -> 1706 | G35: =+rates_Changes!G77 -> 32.80769231
A36: Porirua city | C36: =+rates_Changes!C78 -> 1375000 | D36: =+rates_Changes!D78 -> -236 | E36: =+rates_Changes!E78 -> -4.538461538 | F36: =+rates_Changes!F78 -> 1246 | G36: =+rates_Changes!G78 -> 23.96153846
A37: Kapiti Coast district | C37: =+rates_Changes!C79 -> 913000 | D37: =+rates_Changes!D79 -> 316 | E37: =+rates_Changes!E79 -> 6.076923077 | F37: =+rates_Changes!F79 -> 1143 | G37: =+rates_Changes!G79 -> 21.98076923
A38: Masterton district | C38: =+rates_Changes!C80 -> 698000 | D38: =+rates_Changes!D80 -> 355 | E38: =+rates_Changes!E80 -> 6.826923077 | F38: =+rates_Changes!F80 -> 775 | G38: =+rates_Changes!G80 -> 14.90384615
A39: Carterton district | C39: =+rates_Changes!C81 -> 414000 | D39: =+rates_Changes!D81 -> 139 | E39: =+rates_Changes!E81 -> 2.673076923 | F39: =+rates_Changes!F81 -> 458 | G39: =+rates_Changes!G81 -> 8.807692308
A40: South Wairarapa district | C40: =+rates_Changes!C82 -> 610000 | D40: =+rates_Changes!D82 -> 227 | E40: =+rates_Changes!E82 -> 4.365384615 | F40: =+rates_Changes!F82 -> 659 | G40: =+rates_Changes!G82 -> 12.67307692
A41: These projected rates exclude the targeted rural pest and river management rates that are not charged to all ratepayers
A44: Notes:
A46: Rates for Greater Wellington are mostly allocated to ratepayers on the basis of their capital values. The territorial authorities undertake valuations in different years. To ensure properties are valued on the same basis in each territorial area, Greater Wellington undertakes an equalised capital value (ECV) calculation to ensure fair distribution of rates based on capital values.
A49: =+rates1!$A$61 -> This information should be read in conjunction with the Funding Impact Statement and the Revenue and Financing Policy contained within the 2015/25 10 year plan available at http://www.gw.govt.nz/long-term-plan-2015-25/.

Sheet rates6 (hidden)
A3: RATES AND LEVIES - RESIDENTIAL REGION-WIDE RATES CALCULATOR
A4: WHAT IS THE IMPACT ON YOUR PROPERTY?
A8: The table below shows how you can calculate your own residential proposed region-wide rates for 2016/17. For example, if you live in Lower Hutt city and have a residential property with a capital value of $350,000 your indicative annual regional rates are $410.87 plus GST @ 15% = $472.50
A11: Please note: The above calculation does not include rates set by your local city or district council and any district or property specific targeted rate
B14: 2015/16 Region-wide1 rates per $100,000 of capital value, excluding the WRS rate | D14: Enter the capital value of your property | G14: WRS rate2 residential property | I14: Indicative rates on your property for 2014/15 1
A20: =+rates5!A17 ->  | B20: =+rates5!AB17 -> 73.6 | C20: x | E20: ÷ 100,000 | F20: + | G20: =+rates5!I33 -> 14 | H20: =
A21: =+rates5!A18 ->  | B21: =+rates5!AB18 -> 87.96 | C21: x | E21: ÷ 100,000 | F21: + | G21: =+G20 -> 14 | H21: =
A22: =+rates5!A19 ->  | B22: =+rates5!AB19 -> 74.71 | C22: x | E22: ÷ 100,000 | F22: + | G22: =+G21 -> 14 | H22: =
A23: =+rates5!A20 ->  | B23: =+rates5!AB20 -> 60.02 | C23: x | E23: ÷ 100,000 | F23: + | G23: 14 | H23: =
A24: =+rates5!A21 ->  | B24: =+rates5!AB21 -> 89.6 | C24: x | E24: ÷ 100,000 | F24: + | G24: 14 | H24: =
A25: =+rates5!A22 ->  | B25: =+rates5!AB22 -> 68.4 | C25: x | E25: ÷ 100,000 | F25: + | G25: 14 | H25: =
A26: =+rates5!A23 ->  | B26: =+rates5!AB23 -> 68.16 | C26: x | E26: ÷ 100,000 | F26: + | G26: 14 | H26: =
A27: =+rates5!A24 -> South Wairarapa district | B27: =+rates5!AB24 -> 66.54 | C27: x | E27: ÷ 100,000 | F27: + | G27: 14 | H27: =
A32: =A21&" example" ->  | B32: =+B21 -> 87.96 | C32: x | D32: 350000 | E32: ÷ 100,000 | F32: + | G32: =+G20 -> 14 | H32: = | I32: =ROUND(+B32*D32/100000+G32,2) -> 321.86
G34: Including GST @ 15% | I34: =ROUND(I32*1.15,2) -> 370.14
A38: A calulator to assist you check your region-wide rates for all property types is available on our website www.gw.govt.nz
A40: 1 Region-wide rates are rates that are charged to all ratepayers in the region. It excludes South Wairarapa Region river rates, Wairarapa river and drainage scheme rates and any "Warm Greater Wellington" targeted rates as they impact only certain ratepayers that are covered by these programmes
A42: =rates5!A52 -> 2 The WRS rate is a targeted rate allocated on a fixed amount basis for residential and rural ratepayers. It is allocated on capital value for businesses. For residential properties the fixed amount is $14.00 + GST and rural properties $28.00 + GST. This rate is used to fund Wellington Regional Strategy activities including WREDA, the region’s economic development agency.
A45: Greater Wellington rates are set and assessed by Greater Wellington but are invoiced and collected by the relevant territorial authority in the Wellington region. Such combined collection arrangements are cost effective and more convenient for ratepayers.
A48: =+rates1!A61 -> This information should be read in conjunction with the Funding Impact Statement and the Revenue and Financing Policy contained within the 2015/25 10 year plan available at http://www.gw.govt.nz/long-term-plan-2015-25/.

Sheet rates_Changes (hidden)
A2: 2017/18 Final Rates Averages
A3: Greater Wellington Region | D3: =+G3 -> 2016/17 | E3: =+H3 -> 2017/18 | G3: =+rates2!F10 -> 2016/17 | H3: =+rates2!G10 -> 2017/18
D4: Average Value | E4: =+D4 -> Average Value | G4: Budget | H4: Plan | I4: Change | J4: Change
G5: $000s | H5: $000s | I5: $000s | J5: %
A6: The Overall rates movement for Greater Wellington | G6: =+rates1!F39 -> 114375 | H6: =+rates1!G39 -> 120720 | I6: =+rates1!H39 -> 6345 | J6: =+rates1!I39 -> 0.0555 | L6: =I6/G6 -> 0.05547540984
G7: Excluding GST
A8: Average Rates - All properties | D8: =+NRV!V53 -> 510942.7342 | E8: =+NRV!F53 -> 562142.1461 | G8: =+G6*1000/rates8!P51 -> 577.5815053 | H8: =+H6*1000/rates8!F51 -> 605.6227801 | I8: =+H8-G8 -> 28.04127481 | J8: =+I8/G8 -> 0.04854946801
A9: Average Rates - WCC CBD | D9: =+NRV!V54 -> 2145774.705 | E9: =+NRV!F54 -> 2309377.095 | G9: =+rates8!O55 -> 7935.45 | H9: =+rates8!E55 -> 8817.044133 | I9: =+H9-G9 -> 881.5941326 | J9: =+I9/G9 -> 0.1110956698 | M9: =G9*1.15 -> 9125.7675 | N9: 10139.60075 | O9: 1013.833252 | P9: =O9/M9 -> 0.1110956698
A10: Average Rates - Businesses* | D10: =+NRV!V55 -> 1305288.963 | E10: =+NRV!F55 -> 1431443.458 | G10: =+rates8!O56 -> 1425.17 | H10: =+rates8!E56 -> 1613.705955 | I10: =+H10-G10 -> 188.5359546 | J10: =+I10/G10 -> 0.1322901511 | M10: 1638.9455 | N10: 1855.761848 | O10: 216.8163478 | P10: =O10/M10 -> 0.1322901511
A11: Average Rates - Residential properties | D11: =+NRV!V56 -> 426025.039 | E11: =+NRV!F56 -> 474927.55 | G11: =+rates8!O57 -> 396.41 | H11: =+rates8!E57 -> 401.1876362 | I11: =+H11-G11 -> 4.777636184 | J11: =+I11/G11 -> 0.01205225949
A12: Average Rates - Rural properties | D12: =+NRV!V57 -> 665264.1672 | E12: =+NRV!F57 -> 691562.9817 | G12: =+rates8!O58 -> 358.07 | H12: =+rates8!E58 -> 412.1736286 | I12: =+H12-G12 -> 54.1036286 | J12: =+I12/G12 -> 0.1510979099
A13: * some business and rural values dropped due to on-going sesimic assesments impacting capital value
G14: Including GST
A15: All properties - including GST | D15: =+D8 -> 510942.7342 | E15: =+E8 -> 562142.1461 | G15: =+G8*1.15 -> 664.2187311 | H15: =+H8*1.15 -> 696.4661971 | I15: =+I8*1.15 -> 32.24746604 | J15: =+I15/G15 -> 0.04854946801
A16: Residential property - including GST | D16: =+D11 -> 426025.039 | E16: =+E11 -> 474927.55 | G16: =+G11*1.15 -> 455.8715 | H16: =+H11*1.15 -> 461.3657816 | I16: =+I11*1.15 -> 5.494281612 | J16: =+I16/G16 -> 0.01205225949
A18: Average Rates - Residential properties
C19: =+ratesWCC!A4 -> WELLINGTON CITY | D19: =+ratesHCC!A4 -> HUTT CITY | E19: =+ratesUHCC!A4 -> UPPER HUTT CITY | F19: =+ratesPCC!A4 -> PORIRUA CITY | G19: =+ratesKCDC!A4 -> KAPITI COAST DISTRICT | H19: =+ratesMDC!A4 -> MASTERTON DISTRICT | I19: =+ratesCDC!A4 -> CARTERTON DISTRICT | J19: =+ratesSWDC!A4 -> SOUTH WAIRARAPA DISTRICT | L19: Wairarapa Average | R19: Territorial authority | S19: Average Capital Value | T19: Average Increase per year | U19: Average Increase per week | V19: Average Rates (inc GST) | W19: Average rates per week
C20: Excluding GST | R20: Wellington city | S20: =ROUND(+$C$28,-3) -> 551000 | T20: =+$C$25 -> 54.66408184 | U20: =+T20/52 -> 1.051232343 | V20: =+$C$26 -> 516.4695818 | W20: =+V20/52 -> 9.932107343
A21: Residential property | B21: Average Rates 17/18 | C21: =+ratesWCC!$F$36 -> 449.1039842 | D21: =+ratesHCC!$F$36 -> 449.1389312 | E21: =+ratesUHCC!$F$36 -> 341.2809163 | F21: =+ratesPCC!$F$36 -> 328.1906006 | G21: =+ratesKCDC!$F$36 -> 383.1878255 | H21: =+ratesMDC!$F$36 -> 197.8248681 | I21: =+ratesCDC!$F$36 -> 206.323093 | J21: =+ratesSWDC!$F$36 -> 214.3515272 | L21: =+N22/M22 -> 203.0290233 | M21: =+(+rates8!P37+rates8!P42+rates8!P47) -> 13072 | N21: =+(+rates8!M37+rates8!M42+rates8!M47) -> 2020783 | R21: Lower Hutt city | S21: =+$D$28 -> 471132.1336 | T21: =+$D$25 -> -37.01972909 | U21: =+T21/52 -> -0.7119178672 | V21: =+$D$26 -> 516.5097709 | W21: =+V21/52 -> 9.93288021
B22: Average Increase | C22: =+ratesWCC!$G$36 -> 47.53398421 | D22: =+ratesHCC!$G$36 -> -32.19106878 | E22: =+ratesUHCC!$G$36 -> -72.08908371 | F22: =+ratesPCC!$G$36 -> -126.3993994 | G22: =+ratesKCDC!$G$36 -> 59.65782548 | H22: =+ratesMDC!$G$36 -> 59.44486806 | I22: =+ratesCDC!$G$36 -> 39.63309303 | J22: =+ratesSWDC!$G$36 -> 26.45152718 | L22: =L21-N21/M21 -> 48.44036055 | M22: =+(+rates8!F37+rates8!F42+rates8!F47) -> 13288 | N22: =+(+rates8!C37+rates8!C42+rates8!C47) -> 2697849.662 | R22: Upper Hutt city | S22: =+$E$28 -> 413719.0441 | T22: =+$E$25 -> -82.90244627 | U22: -1.594277813 | V22: =+$E$26 -> 392.4730537 | W22: 7.547558726
B23: % Increase | C23: =+ratesWCC!$H$36 -> 0.1183703569 | D23: =+ratesHCC!$H$36 -> -0.06687941491 | E23: =+ratesUHCC!$H$36 -> -0.1743936031 | F23: =+ratesPCC!$H$36 -> -0.2780514295 | G23: =+ratesKCDC!$H$36 -> 0.1843965799 | H23: =+ratesMDC!$H$36 -> 0.4295770202 | I23: =+ratesCDC!$H$36 -> 0.237765271 | J23: =+ratesSWDC!$H$36 -> 0.1407744927 | L23: =+L22/L21 -> 0.2385883543 | R23: Porirua city | S23: =+$F$28 -> 488077.2273 | T23: =+$F$25 -> -145.3593093 | U23: -2.795371332 | V23: =+$F$26 -> 377.4191907 | W23: 7.258061361
G24: Including GST | R24: Kapiti Coast district | S24: =+$G$28 -> 389783.6248 | T24: =+$G$25 -> 68.6064993 | U24: 1.319355756 | V24: =+$G$26 -> 440.6659993 | W24: 8.47434614
A25: Residential property | B25: =+B21 -> Average Rates 17/18 | C25: =+C22*1.15 -> 54.66408184 | D25: =+D22*1.15 -> -37.01972909 | E25: =+E22*1.15 -> -82.90244627 | F25: =+F22*1.15 -> -145.3593093 | G25: 68.6064993 | H25: 68.36159827 | I25: 45.57805698 | J25: 30.41925626 | L25: =(L22)*1.15 -> 55.70641464 | R25: Masterton district | S25: =+$H$28 -> 251835.8199 | T25: =+$H$25 -> 68.36159827 | U25: 1.314646121 | V25: =+$H$26 -> 227.4985983 | W25: 4.374973044
B26: Including GST | C26: =+C21*1.15 -> 516.4695818 | D26: =+D21*1.15 -> 516.5097709 | E26: 392.4730537 | F26: 377.4191907 | G26: 440.6659993 | H26: 227.4985983 | I26: 237.271557 | J26: 246.5042563 | L26: =+L21*1.15 -> 233.4833768 | R26: Carterton district | S26: =+$I$28 -> 264354.7194 | T26: =+$I$25 -> 45.57805698 | U26: 0.8765010957 | V26: =+$I$26 -> 237.271557 | W26: 4.562914557
B27: Increase per week | C27: =C25/52 -> 1.051232343 | D27: =D25/52 -> -0.7119178672 | E27: -1.594277813 | F27: -2.795371332 | G27: 1.319355756 | H27: 1.314646121 | I27: 0.8765010957 | J27: 0.5849856973 | L27: 1.071277205 | R27: South Wairarapa district | S27: =+$J$28 -> 282112.837 | T27: =+$J$25 -> 30.41925626 | U27: 0.5849856973 | V27: =+$J$26 -> 246.5042563 | W27: 4.740466466
B28: Average Value | C28: =+ratesWCC!$D$36 -> 551092.398 | D28: =+ratesHCC!$D$36 -> 471132.1336 | E28: =+ratesUHCC!$D$36 -> 413719.0441 | F28: =+ratesPCC!$D$36 -> 488077.2273 | G28: =+ratesKCDC!$D$36 -> 389783.6248 | H28: =+ratesMDC!$D$36 -> 251835.8199 | I28: =+ratesCDC!$D$36 -> 264354.7194 | J28: =+ratesSWDC!$D$36 -> 282112.837 | L28: =+rates8!J54 -> 261172.2681
C29: Excluding GST | R29: Territorial authority | S29: Average Capital Value | T29: Average Increase per year | U29: Average Increase per week | V29: Average Rates (inc GST) | W29: Average rates per week
A30: Rural property | B30: =+B21 -> Average Rates 17/18 | C30: =+ratesWCC!$F$37 -> 381.641096 | D30: =+ratesHCC!$F$37 -> 460.5324423 | E30: =+ratesUHCC!$F$37 -> 368.9601713 | F30: =+ratesPCC!$F$37 -> 406.9189215 | G30: =+ratesKCDC!$F$37 -> 418.4540351 | H30: =+ratesMDC!$F$37 -> 370.5351451 | I30: =+ratesCDC!$F$37 -> 439.6901017 | J30: =+ratesSWDC!$F$37 -> 471.147879 | L30: =+N31/M31 -> 417.5267808 | M30: =+(+rates8!P38+rates8!P43+rates8!P48) -> 9008 | N30: =+(+rates8!M38+rates8!M43+rates8!M48) -> 2973578 | R30: Wellington city | S30: =ROUND(+S20,-3) -> 551000 | T30: =ROUND(+T20,1) -> 54.7 | U30: =+T30/52 -> 1.051923077 | V30: =ROUND(+V20,1) -> 516.5 | W30: =+V30/52 -> 9.932692308
B31: Average Increase | C31: =+ratesWCC!$G$37 -> 9.781095998 | D31: =+ratesHCC!$G$37 -> -1.56755775 | E31: =+ratesUHCC!$G$37 -> -45.49982873 | F31: =+ratesPCC!$G$37 -> -117.4810785 | G31: =+ratesKCDC!$G$37 -> 49.34403515 | H31: =+ratesMDC!$G$37 -> 92.23514506 | I31: =+ratesCDC!$G$37 -> 81.80010172 | J31: =+ratesSWDC!$G$37 -> 82.75787905 | L31: =+L30-N30/M30 -> 87.4226511 | M31: =+(+rates8!F38+rates8!F43+rates8!F48) -> 9084 | N31: =+(+rates8!C38+rates8!C43+rates8!C48) -> 3792813.276 | R31: Lower Hutt city | S31: =ROUND(+S21,-3) -> 471000 | T31: =ROUND(+T21,1) -> -37 | U31: =+T31/52 -> -0.7115384615 | V31: =ROUND(+V21,1) -> 516.5 | W31: =+V31/52 -> 9.932692308
B32: % Increase | C32: =+ratesWCC!$H$37 -> 0.02630316785 | D32: =+ratesHCC!$H$37 -> -0.003392247889 | E32: =+ratesUHCC!$H$37 -> -0.1097809891 | F32: =+ratesPCC!$H$37 -> -0.2240295166 | G32: =+ratesKCDC!$H$37 -> 0.1336838209 | H32: =+ratesMDC!$H$37 -> 0.3314234462 | I32: =+ratesCDC!$H$37 -> 0.2285621328 | J32: =+ratesSWDC!$H$37 -> 0.213079325 | L32: =+L31/L30 -> 0.2093821406 | R32: Upper Hutt city | S32: 414000 | T32: -82.9 | U32: -1.594230769 | V32: 392.5 | W32: 7.548076923
B33: Average Value | C33: =+ratesWCC!$D$37 -> 747790.1163 | D33: =+ratesHCC!$D$37 -> 649061.2245 | E33: =+ratesUHCC!$D$37 -> 642871.6559 | F33: =+ratesPCC!$D$37 -> 981710.3758 | G33: =+ratesKCDC!$D$37 -> 603436.0344 | H33: =+ratesMDC!$D$37 -> 605927.1494 | I33: =+ratesCDC!$D$37 -> 730218.0658 | J33: =+ratesSWDC!$D$37 -> 807367.7286 | L33: =+rates8!J55 -> 703406.517 | R33: Porirua city | S33: 488000 | T33: -145.4 | U33: -2.796153846 | V33: 377.4 | W33: 7.257692308
C34: Excluding GST | R34: Kapiti Coast district | S34: 390000 | T34: 68.6 | U34: 1.319230769 | V34: 440.7 | W34: 8.475
A35: Business | B35: =+B25 -> Average Rates 17/18 | C35: =+ratesWCC!$F$38 -> 2233.641025 | D35: =+ratesHCC!$F$38 -> 1916.610766 | E35: =+ratesUHCC!$F$38 -> 1705.702599 | F35: =+ratesPCC!$F$38 -> 1246.398091 | G35: =+ratesKCDC!$F$38 -> 1142.600748 | H35: =+ratesMDC!$F$38 -> 775.0440996 | I35: =+ratesCDC!$F$38 -> 457.7496333 | J35: =+ratesSWDC!$F$38 -> 659.082038 | L35: =+N35/M35 -> 402.1524334 | M35: =+(+rates8!P36+rates8!P41+rates8!P46) -> 1089 | N35: =+(+rates8!M36+rates8!M41+rates8!M46) -> 437944 | R35: Masterton district | S35: 252000 | T35: 68.4 | U35: 1.315384615 | V35: 227.5 | W35: 4.375
B36: Average Increase | C36: =+ratesWCC!$G$38 -> 590.661025 | D36: =+ratesHCC!$G$38 -> -0.2792335461 | E36: =+ratesUHCC!$G$38 -> -174.6474006 | F36: =+ratesPCC!$G$38 -> -235.5619086 | G36: =+ratesKCDC!$G$38 -> 315.6207478 | H36: =+ratesMDC!$G$38 -> 355.4240996 | I36: =+ratesCDC!$G$38 -> 139.4496333 | J36: =+ratesSWDC!$G$38 -> 226.912038 | L36: =+N36/M36-L35 -> 273.5644103 | M36: =+(+rates8!F36+rates8!F41+rates8!F46) -> 1083 | N36: =+(+rates8!C36+rates8!C41+rates8!C46) -> 731801.3418 | R36: Carterton district | S36: 264000 | T36: 45.6 | U36: 0.8769230769 | V36: 237.3 | W36: 4.563461538
B37: % Increase | C37: =+ratesWCC!$H$38 -> 0.3595059131 | D37: =+ratesHCC!$H$38 -> -0.0001456700938 | E37: =+ratesUHCC!$H$38 -> -0.09288026197 | F37: =+ratesPCC!$H$38 -> -0.1589529465 | G37: =+ratesKCDC!$H$38 -> 0.3816546322 | H37: =+ratesMDC!$H$38 -> 0.8470142025 | I37: =+ratesCDC!$H$38 -> 0.4381075505 | J37: =+ratesSWDC!$H$38 -> 0.5250527293 | L37: =+L36/L35 -> 0.6802505408 | R37: South Wairarapa district | S37: 282000 | T37: 30.4 | U37: 0.5846153846 | V37: 246.5 | W37: 4.740384615
B38: Average Value | C38: =+ratesWCC!$D$38 -> 2003018.039 | D38: =+ratesHCC!$D$38 -> 1610885.023 | E38: =+ratesUHCC!$D$38 -> 1621277.701 | F38: =+ratesPCC!$D$38 -> 1375300.879 | G38: =+ratesKCDC!$D$38 -> 913323.9741 | H38: =+ratesMDC!$D$38 -> 698074.359 | I38: =+ratesCDC!$D$38 -> 413535.5556 | J38: =+ratesSWDC!$D$38 -> 610319.8782
C39: Excluding GST
A40: CBD Business WCC | B40: =+B30 -> Average Rates 17/18 | C40: =+ratesWCC!$F$39 -> 8817.044133 | D40: Tararua Rural | E40: =+rates8!E50 -> 200.3148922
B41: Average Increase | C41: =+ratesWCC!$G$39 -> 881.5941326 | E41: =+rates8!D50 -> 30.381703
B42: % Increase | C42: =+ratesWCC!$H$39 -> 0.1110956698 | E42: =+rates8!E50/rates8!O50-1 -> -0.2368956489
B43: Average Value | C43: =+ratesWCC!$D$39 -> 2309377.095 | E43: =+rates8!$G$50 -> 567166.6667
A44: Average per TA | C44: =+ratesWCC!$H$19 -> 0.1673 | D44: =+ratesHCC!$H$19 -> -0.2742 | E44: =+ratesUHCC!$H$19 -> -0.1702 | F44: =+ratesPCC!$H$19 -> -0.2119 | G44: =+ratesKCDC!$H$19 -> 0.1773 | H44: =+ratesMDC!$H$19 -> 0.1983 | I44: =+ratesCDC!$H$19 -> 0.0641 | J44: =+ratesSWDC!$H$19 -> 0.0137
B47: Consultation document
B49: Residential Property - including GST | C49: Average Capital Value | D49: Average Increase in 2017/18 | E49: Average Increase Weekly | F49: Average Rates 2017/18 | G49: Average rates weekly | H49: Increase %
B50: Wellington city | C50: =ROUND(+$C$28,-3) -> 551000 | D50: =ROUND(+$C$25,0) -> 55 | E50: =+D50/52 -> 1.057692308 | F50: =ROUND(+$C$26,0) -> 516 | G50: =+F50/52 -> 9.923076923 | H50: =C23 -> 0.1183703569 | L50: increase is due to the increase in cents per dollar (growth in budget and 1 % more ECV split result more shares of budget while RCV remains consistent from June 16 as the reval was done previously)
B51: Lower Hutt city | C51: =ROUND(+$D$28,-3) -> 471000 | D51: =ROUND(+$D$25,0) -> -37 | E51: =+D51/52 -> -0.7115384615 | F51: =ROUND(+$D$26,0) -> 517 | G51: =+F51/52 -> 9.942307692 | H51: =D23 -> -0.06687941491 | L51: although the cents per dollar has decreased (due to the growth of CV, reval in July 16), the impact of significant increase of average CV has result an increase in rates
B52: Upper Hutt city | C52: =ROUND(+$E$28,-3) -> 414000 | D52: =ROUND(+$E$25,0) -> -83 | E52: -1.596153846 | F52: =ROUND(+$E$26,0) -> 392 | G52: 7.538461538 | H52: =E23 -> -0.1743936031 | L52: although the cents per dollar has decreased (due to the growth of CV, reval in July 16), the impact of significant increase of average CV has result an increase in rates
B53: Porirua city | C53: =ROUND(+$F$28,-3) -> 488000 | D53: =ROUND(+$F$25,0) -> -145 | E53: -2.788461538 | F53: =ROUND(+$F$26,0) -> 377 | G53: 7.25 | H53: =F23 -> -0.2780514295 | L53: although the cents per dollar has decreased (due to the growth of CV, reval in July 16), the impact of significant increase of average CV has result an increase in rates
B54: Kapiti Coast district | C54: =ROUND(+$G$28,-3) -> 390000 | D54: =ROUND(+$G$25,0) -> 69 | E54: 1.326923077 | F54: =ROUND(+$G$26,0) -> 441 | G54: 8.480769231 | H54: =G23 -> 0.1843965799 | L54: similar to WCC, due to the increase in cents per dollar (due to the increase in budget but minimal change in RCV from June 16 as the reval was done previously)
B55: Masterton district | C55: =ROUND(+$H$28,-3) -> 252000 | D55: =ROUND(+$H$25,0) -> 68 | E55: =+D55/52 -> 1.307692308 | F55: =ROUND(+$H$26,0) -> 227 | G55: 4.365384615 | H55: =H23 -> 0.4295770202 | L55: decrease is due to less share on rates (general, PT ect) as a result of the less % split of ECV of the region while average CV remains consistent
B56: Carterton district | C56: =ROUND(+$I$28,-3) -> 264000 | D56: =ROUND(+$I$25,0) -> 46 | E56: 0.8846153846 | F56: =ROUND(+$I$26,0) -> 237 | G56: 4.557692308 | H56: =I23 -> 0.237765271 | L56: decrease is due to less share on rates (general, PT ect) as a result of the less % split of ECV of the region while average CV remains consistent
B57: South Wairarapa district | C57: =ROUND(+$J$28,-3) -> 282000 | D57: =ROUND(+$J$25,0) -> 30 | E57: 0.5769230769 | F57: =ROUND(+$J$26,0) -> 247 | G57: 4.75 | H57: =J23 -> 0.1407744927 | L57: decrease is due to less share on rates (general, PT ect) as a result of the less % split of ECV of the region while average CV remains consistent
B60: Rural Property - excluding GST | C60: Average Capital Value | D60: Average Increase per year | E60: Average Increase per week | F60: Average Rates per year | G60: Average rates per week | H60: Increase %
B61: Wellington city | C61: =ROUND(+$C$33,-3) -> 748000 | D61: =ROUND(+$C$31,0) -> 10 | E61: =+D61/52 -> 0.1923076923 | F61: =ROUND(+$C$30,0) -> 382 | G61: =+F61/52 -> 7.346153846 | H61: =C32 -> 0.02630316785 | L61: increase is due to the increase in cents per dollar (growth in budget and 1 % more ECV split result more shares of budget while RCV remains consistent from June 16 as the reval was done previously)
B62: Lower Hutt city | C62: =ROUND(+$D$33,-3) -> 649000 | D62: =ROUND(+$D$31,0) -> -2 | E62: =+D62/52 -> -0.03846153846 | F62: =ROUND(+$D$30,0) -> 461 | G62: =+F62/52 -> 8.865384615 | H62: =D32 -> -0.003392247889 | L62: the average CV increased, it has just overcome the decrease in cents per dollar (due to the growth of CV, reval in July 16)
B63: Upper Hutt city | C63: =ROUND(+$E$33,-3) -> 643000 | D63: =ROUND(+$E$31,0) -> -45 | E63: -0.8653846154 | F63: =ROUND(+$E$30,0) -> 369 | G63: 7.096153846 | H63: =E32 -> -0.1097809891 | L63: the average CV increased, it has just overcome the decrease in cents per dollar (due to the growth of CV, reval in July 16)
B64: Porirua city | C64: =ROUND(+$F$33,-3) -> 982000 | D64: =ROUND(+$F$31,0) -> -117 | E64: -2.25 | F64: =ROUND(+$F$30,0) -> 407 | G64: 7.826923077 | H64: =F32 -> -0.2240295166 | L64: the average CV increased, it has just overcome the decrease in cents per dollar (due to the growth of CV, reval in July 16)
B65: Kapiti Coast district | C65: =ROUND(+$G$33,-3) -> 603000 | D65: =ROUND(+$G$31,0) -> 49 | E65: 0.9423076923 | F65: =ROUND(+$G$30,0) -> 418 | G65: 8.038461538 | H65: =G32 -> 0.1336838209 | L65: similar to WCC, due to the increase in cents per dollar (due to the increase in budget but minimal change in RCV from June 16 as the reval was done previously)
B66: Masterton district | C66: =ROUND(+$H$33,-3) -> 606000 | D66: =ROUND(+$H$31,0) -> 92 | E66: 1.769230769 | F66: =ROUND(+$H$30,0) -> 371 | G66: 7.134615385 | H66: =H32 -> 0.3314234462 | L66: decrease is due to less share on rates (general, PT ect) as a result of the less % split of ECV of the region while average CV remains consistent
B67: Carterton district | C67: =ROUND(+$I$33,-3) -> 730000 | D67: =ROUND(+$I$31,0) -> 82 | E67: 1.576923077 | F67: =ROUND(+$I$30,0) -> 440 | G67: 8.461538462 | H67: =I32 -> 0.2285621328 | L67: decrease is due to less share on rates (general, PT ect) as a result of the less % split of ECV of the region while average CV remains consistent
B68: South Wairarapa district | C68: =ROUND(+$J$33,-3) -> 807000 | D68: =ROUND(+$J$31,0) -> 83 | E68: 1.596153846 | F68: =ROUND(+$J$30,0) -> 471 | G68: 9.057692308 | H68: =J32 -> 0.213079325 | L68: decrease is due to less share on rates (general) as a result of the less % split of ECV of the region while average CV remains consistent
B69: Tararua | C69: =ROUND(+$E$43,-3) -> 567000 | D69: =ROUND(+$E$41,0) -> 30 | E69: =+D69/52 -> 0.5769230769 | F69: =ROUND(+$E$40,0) -> 200 | G69: =+F69/52 -> 3.846153846 | H69: =L32 -> 0.2093821406
B70: These projected rates exclude the targeted rural pest and river management rates that are not charged to all ratepayers
B73: Business Property - excluding GST | C73: Average Capital Value | D73: Average Increase per year | E73: Average Increase per week | F73: Average Rates per year | G73: Average rates per week | H73: Increase %
B74: Wellington city | C74: =ROUND(+$C$38,-3) -> 2003000 | D74: =ROUND(+$C$36,0) -> 591 | E74: =+D74/52 -> 11.36538462 | F74: =ROUND(+$C$35,0) -> 2234 | G74: =+F74/52 -> 42.96153846 | H74: =C37 -> 0.3595059131 | L74: increase is due to the increase in cents per dollar (growth in budget and 1 % more ECV split result more shares of budget while RCV remains consistent from June 16 as the reval was done previously)
B75: Wellington city - CBD | C75: =ROUND(+$C$43,-3) -> 2309000 | D75: =ROUND(+$C$41,0) -> 882 | E75: =+D75/52 -> 16.96153846 | F75: =ROUND(+$C$40,0) -> 8817 | G75: =+F75/52 -> 169.5576923 | H75: =C42 -> 0.1110956698 | L75: increase is due to the increase in cents per dollar (growth in budget and 1 % more ECV split result more shares of budget while RCV remains consistent from June 16 as the reval was done previously)
B76: Lower Hutt city | C76: =ROUND(+$D$38,-3) -> 1611000 | D76: =ROUND(+$D$36,0) -> 0 | E76: =+D76/52 -> 0 | F76: =ROUND(+$D$35,0) -> 1917 | G76: =+F76/52 -> 36.86538462 | H76: =D37 -> -0.0001456700938 | L76: the average CV increased, it has just overcome the decrease in cents per dollar (due to the growth of CV, reval in July 16)
B77: Upper Hutt city | C77: =ROUND(+$E$38,-3) -> 1621000 | D77: =ROUND(+$E$36,0) -> -175 | E77: -3.365384615 | F77: =ROUND(+$E$35,0) -> 1706 | G77: 32.80769231 | H77: =E37 -> -0.09288026197 | L77: the average CV increased, it has just overcome the decrease in cents per dollar (due to the growth of CV, reval in July 16)
B78: Porirua city | C78: =ROUND(+$F$38,-3) -> 1375000 | D78: =ROUND(+$F$36,0) -> -236 | E78: -4.538461538 | F78: =ROUND(+$F$35,0) -> 1246 | G78: 23.96153846 | H78: =F37 -> -0.1589529465 | L78: the average CV increased, it has just overcome the decrease in cents per dollar (due to the growth of CV, reval in July 16)
B79: Kapiti Coast district | C79: =ROUND(+$G$38,-3) -> 913000 | D79: =ROUND(+$G$36,0) -> 316 | E79: 6.076923077 | F79: =ROUND(+$G$35,0) -> 1143 | G79: 21.98076923 | H79: =G37 -> 0.3816546322 | L79: similar to WCC, due to the increase in cents per dollar (due to the increase in budget but minimal change in RCV from June 16 as the reval was done previously)
B80: Masterton district | C80: =ROUND(+$H$38,-3) -> 698000 | D80: =ROUND(+$H$36,0) -> 355 | E80: 6.826923077 | F80: =ROUND(+$H$35,0) -> 775 | G80: 14.90384615 | H80: =H37 -> 0.8470142025 | L80: decrease is due to less share on rates (general, PT ect) as a result of the less % split of ECV of the region while average CV remains consistent
B81: Carterton district | C81: =ROUND(+$I$38,-3) -> 414000 | D81: =ROUND(+$I$36,0) -> 139 | E81: 2.673076923 | F81: =ROUND(+$I$35,0) -> 458 | G81: 8.807692308 | H81: =I37 -> 0.4381075505 | L81: decrease is due to less share on rates (general, PT ect) as a result of the less % split of ECV of the region while average CV remains consistent
B82: South Wairarapa district | C82: =ROUND(+$J$38,-3) -> 610000 | D82: =ROUND(+$J$36,0) -> 227 | E82: 4.365384615 | F82: =ROUND(+$J$35,0) -> 659 | G82: 12.67307692 | H82: =J37 -> 0.5250527293 | L82: decrease is due to less share on rates (general) as a result of the less % split of ECV of the region while average CV remains consistent
B83: These projected rates exclude the targeted rural pest and river management rates that are not charged to all ratepayers
B85: You can estimate your own projected regional rates on our website
B90: Residential Property - including GST | C90: Average Capital Value | D90: Average Increase per year | E90: Average Increase per week | F90: Average Rates per year | G90: Average rates per week | L90: Residential Property - including GST | M90: Average Capital Value | N90: Average Increase per year | O90: Average Increase per week | P90: Average Rates per year | Q90: Average rates per week
B91: =+B92 -> Wellington city | C91: =ROUND(C92,-5)-100000 -> 400000 | D91: =ROUND($C91/$C92*D92,0) -> 40 | E91: =+D91/52 -> 0.7692307692 | F91: =ROUND($C91/$C92*F92,0) -> 374 | G91: =+F91/52 -> 7.192307692
B92: =+B93 -> Wellington city | C92: =ROUND(C93,-5)-100000 -> 500000 | D92: =ROUND($C92/$C93*D93,0) -> 50 | E92: =+D92/52 -> 0.9615384615 | F92: =ROUND($C92/$C93*F93,0) -> 468 | G92: =+F92/52 -> 9
B93: Wellington city | C93: =ROUND(+$C$28,-3) -> 551000 | D93: =ROUND(+$C$25,0) -> 55 | E93: =+D93/52 -> 1.057692308 | F93: =ROUND(+$C$26,0) -> 516 | G93: =+F93/52 -> 9.923076923 | L93: =B93 -> Wellington city | M93: 100000 | N93: =$M$93/$C$93*D93 -> 9.98185118 | O93: =$M$93/$C$93*E93 -> 0.1919586765 | P93: =$M$93/$C$93*F93 -> 93.64791289 | Q93: =$M$93/$C$93*G93 -> 1.800921402
B94: =+B93 -> Wellington city | C94: =ROUND(C93,-5)+100000 -> 700000 | D94: =ROUND($C94/$C93*D93,0) -> 70 | E94: =+D94/52 -> 1.346153846 | F94: =ROUND($C94/$C93*F93,0) -> 656 | G94: =+F94/52 -> 12.61538462 | L94: =B102 -> Lower Hutt city | M94: 100000 | N94: =$M$93/$C$93*D94 -> 12.70417423 | O94: =$M$94/$C$111*E111 -> -0.3855444073 | P94: =$M$94/$C$111*F111 -> 94.68599034 | Q94: =$M$94/$C$111*G111 -> 1.82088443
B95: =+B94 -> Wellington city | C95: =ROUND(C94,-5)+100000 -> 800000 | D95: =ROUND($C95/$C94*D94,0) -> 80 | E95: =+D95/52 -> 1.538461538 | F95: =ROUND($C95/$C94*F94,0) -> 750 | G95: =+F95/52 -> 14.42307692 | L95: =B55 -> Masterton district | M95: 100000 | N95: =$M$93/$C$93*D95 -> 14.51905626 | O95: =$M$95/$C$55*E55 -> 0.5189255189 | P95: =$M$95/$C$55*F55 -> 90.07936508 | Q95: =$M$95/$C$55*G55 -> 1.732295482
B99: Residential Property - including GST | C99: Average Capital Value | D99: Average Increase per year | E99: Average Increase per week | F99: Average Rates per year | G99: Average rates per week
B100: =+B101 -> Lower Hutt city | C100: =ROUND(C101,-5)-100000 -> 300000 | D100: =ROUND($C100/$C101*D101,0) -> -23 | E100: =+D100/52 -> -0.4423076923 | F100: =ROUND($C100/$C101*F101,0) -> 329 | G100: =+F100/52 -> 6.326923077
B101: =+B102 -> Lower Hutt city | C101: =ROUND(C102,-5)-100000 -> 400000 | D101: =ROUND($C101/$C102*D102,0) -> -31 | E101: =+D101/52 -> -0.5961538462 | F101: =ROUND($C101/$C102*F102,0) -> 439 | G101: =+F101/52 -> 8.442307692
B102: =+B51 -> Lower Hutt city | C102: =ROUND(+$D$28,-3) -> 471000 | D102: =ROUND(+$D$25,0) -> -37 | E102: =+D102/52 -> -0.7115384615 | F102: =ROUND(+$D$26,0) -> 517 | G102: =+F102/52 -> 9.942307692
B103: =+B102 -> Lower Hutt city | C103: =ROUND(C102,-5)+100000 -> 600000 | D103: =ROUND($C103/$C102*D102,0) -> -47 | E103: =+D103/52 -> -0.9038461538 | F103: =ROUND($C103/$C102*F102,0) -> 659 | G103: =+F103/52 -> 12.67307692
B104: =+B103 -> Lower Hutt city | C104: =ROUND(C103,-5)+100000 -> 700000 | D104: =ROUND($C104/$C103*D103,0) -> -55 | E104: =+D104/52 -> -1.057692308 | F104: =ROUND($C104/$C103*F103,0) -> 769 | G104: =+F104/52 -> 14.78846154
B108: Residential Property - including GST | C108: Average Capital Value | D108: Average Increase per year | E108: Average Increase per week | F108: Average Rates per year | G108: Average rates per week
B109: =+B110 -> Upper Hutt city | C109: =ROUND(C110,-5)-100000 -> 200000 | D109: =ROUND($C109/$C110*D110,0) -> -40 | E109: =+D109/52 -> -0.7692307692 | F109: =ROUND($C109/$C110*F110,0) -> 189 | G109: =+F109/52 -> 3.634615385
B110: =+B111 -> Upper Hutt city | C110: =ROUND(C111,-5)-100000 -> 300000 | D110: =ROUND($C110/$C111*D111,0) -> -60 | E110: =+D110/52 -> -1.153846154 | F110: =ROUND($C110/$C111*F111,0) -> 284 | G110: =+F110/52 -> 5.461538462
B111: =+B52 -> Upper Hutt city | C111: =ROUND(+$E$28,-3) -> 414000 | D111: =ROUND(+$E$25,0) -> -83 | E111: =+D111/52 -> -1.596153846 | F111: =ROUND(+$E$26,0) -> 392 | G111: =+F111/52 -> 7.538461538
B112: =+B111 -> Upper Hutt city | C112: =ROUND(C111,-5)+100000 -> 500000 | D112: =ROUND($C112/$C111*D111,0) -> -100 | E112: =+D112/52 -> -1.923076923 | F112: =ROUND($C112/$C111*F111,0) -> 473 | G112: =+F112/52 -> 9.096153846
B113: =+B112 -> Upper Hutt city | C113: =ROUND(C112,-5)+100000 -> 600000 | D113: =ROUND($C113/$C112*D112,0) -> -120 | E113: =+D113/52 -> -2.307692308 | F113: =ROUND($C113/$C112*F112,0) -> 568 | G113: =+F113/52 -> 10.92307692
B117: Residential Property - including GST | C117: Average Capital Value | D117: Average Increase per year | E117: Average Increase per week | F117: Average Rates per year | G117: Average rates per week
B118: =+B119 -> Porirua city | C118: =ROUND(C119,-5)-100000 -> 300000 | D118: =ROUND($C118/$C119*D119,0) -> -89 | E118: =+D118/52 -> -1.711538462 | F118: =ROUND($C118/$C119*F119,0) -> 232 | G118: =+F118/52 -> 4.461538462
B119: =+B120 -> Porirua city | C119: =ROUND(C120,-5)-100000 -> 400000 | D119: =ROUND($C119/$C120*D120,0) -> -119 | E119: =+D119/52 -> -2.288461538 | F119: =ROUND($C119/$C120*F120,0) -> 309 | G119: =+F119/52 -> 5.942307692
B120: =+B53 -> Porirua city | C120: =ROUND(+$F$28,-3) -> 488000 | D120: =ROUND(+$F$25,0) -> -145 | E120: =+D120/52 -> -2.788461538 | F120: =ROUND(+$F$26,0) -> 377 | G120: =+F120/52 -> 7.25
B121: =+B120 -> Porirua city | C121: =ROUND(C120,-5)+100000 -> 600000 | D121: =ROUND($C121/$C120*D120,0) -> -178 | E121: =+D121/52 -> -3.423076923 | F121: =ROUND($C121/$C120*F120,0) -> 464 | G121: =+F121/52 -> 8.923076923
B122: =+B121 -> Porirua city | C122: =ROUND(C121,-5)+100000 -> 700000 | D122: =ROUND($C122/$C121*D121,0) -> -208 | E122: =+D122/52 -> -4 | F122: =ROUND($C122/$C121*F121,0) -> 541 | G122: =+F122/52 -> 10.40384615
B126: Residential Property - including GST | C126: Average Capital Value | D126: Average Increase per year | E126: Average Increase per week | F126: Average Rates per year | G126: Average rates per week
B127: =+B128 -> Kapiti Coast district | C127: =ROUND(C128,-5)-100000 -> 200000 | D127: =ROUND($C127/$C128*D128,0) -> 35 | E127: =+D127/52 -> 0.6730769231 | F127: =ROUND($C127/$C128*F128,0) -> 226 | G127: =+F127/52 -> 4.346153846
B128: =+B129 -> Kapiti Coast district | C128: =ROUND(C129,-5)-100000 -> 300000 | D128: =ROUND($C128/$C129*D129,0) -> 53 | E128: =+D128/52 -> 1.019230769 | F128: =ROUND($C128/$C129*F129,0) -> 339 | G128: =+F128/52 -> 6.519230769
B129: =+B54 -> Kapiti Coast district | C129: =ROUND(+$G$28,-3) -> 390000 | D129: =ROUND(+$G$25,0) -> 69 | E129: =+D129/52 -> 1.326923077 | F129: =ROUND(+$G$26,0) -> 441 | G129: =+F129/52 -> 8.480769231
B130: =+B129 -> Kapiti Coast district | C130: =ROUND(C129,-5)+100000 -> 500000 | D130: =ROUND($C130/$C129*D129,0) -> 88 | E130: =+D130/52 -> 1.692307692 | F130: =ROUND($C130/$C129*F129,0) -> 565 | G130: =+F130/52 -> 10.86538462
B131: =+B130 -> Kapiti Coast district | C131: =ROUND(C130,-5)+100000 -> 600000 | D131: =ROUND($C131/$C130*D130,0) -> 106 | E131: =+D131/52 -> 2.038461538 | F131: =ROUND($C131/$C130*F130,0) -> 678 | G131: =+F131/52 -> 13.03846154
B135: Residential Property - including GST | C135: Average Capital Value | D135: Average Increase per year | E135: Average Increase per week | F135: Average Rates per year | G135: Average rates per week
B136: =+B137 -> Wairarapa Average | C136: =ROUND(C137,-5)-100000 -> 100000 | D136: =ROUND($C136/$C137*D137,0) -> 22 | E136: =+D136/52 -> 0.4230769231 | F136: =ROUND($C136/$C137*F137,0) -> 90 | G136: =+F136/52 -> 1.730769231
B137: =+B138 -> Wairarapa Average | C137: =ROUND(C138,-5)-100000 -> 200000 | D137: =ROUND($C137/$C138*D138,0) -> 43 | E137: =+D137/52 -> 0.8269230769 | F137: =ROUND($C137/$C138*F138,0) -> 179 | G137: =+F137/52 -> 3.442307692
B138: =+L19 -> Wairarapa Average | C138: =ROUND(+$L$28,-3) -> 261000 | D138: =ROUND(+$L$25,0) -> 56 | E138: =+D138/52 -> 1.076923077 | F138: =ROUND(+$L$26,0) -> 233 | G138: =+F138/52 -> 4.480769231
B139: =+B138 -> Wairarapa Average | C139: =ROUND(C138,-5)+100000 -> 400000 | D139: =ROUND($C139/$C138*D138,0) -> 86 | E139: =+D139/52 -> 1.653846154 | F139: =ROUND($C139/$C138*F138,0) -> 357 | G139: =+F139/52 -> 6.865384615
B140: =+B139 -> Wairarapa Average | C140: =ROUND(C139,-5)+100000 -> 500000 | D140: =ROUND($C140/$C139*D139,0) -> 108 | E140: =+D140/52 -> 2.076923077 | F140: =ROUND($C140/$C139*F139,0) -> 446 | G140: =+F140/52 -> 8.576923077
B143: =+B60 -> Rural Property - excluding GST | C143: Average Capital Value | D143: Average Increase per year | E143: Average Increase per week | F143: Average Rates per year | G143: Average rates per week
B144: =+B145 -> Wairarapa Average | C144: =ROUND(C145,-5)-100000 -> 500000 | D144: =ROUND($C144/$C145*D145,0) -> 62 | E144: =+D144/52 -> 1.192307692 | F144: =ROUND($C144/$C145*F145,0) -> 298 | G144: =+F144/52 -> 5.730769231
B145: =+B146 -> Wairarapa Average | C145: =ROUND(C146,-5)-100000 -> 600000 | D145: =ROUND($C145/$C146*D146,0) -> 74 | E145: =+D145/52 -> 1.423076923 | F145: =ROUND($C145/$C146*F146,0) -> 357 | G145: =+F145/52 -> 6.865384615
B146: =+L19 -> Wairarapa Average | C146: =ROUND(+$L$33,-3) -> 703000 | D146: =ROUND(+$L$31,0) -> 87 | E146: =+D146/52 -> 1.673076923 | F146: =ROUND(+$L$30,0) -> 418 | G146: =+F146/52 -> 8.038461538
B147: =+B146 -> Wairarapa Average | C147: =ROUND(C146,-5)+100000 -> 800000 | D147: =ROUND($C147/$C146*D146,0) -> 99 | E147: =+D147/52 -> 1.903846154 | F147: =ROUND($C147/$C146*F146,0) -> 476 | G147: =+F147/52 -> 9.153846154
B148: =+B147 -> Wairarapa Average | C148: =ROUND(C147,-5)+100000 -> 900000 | D148: =ROUND($C148/$C147*D147,0) -> 111 | E148: =+D148/52 -> 2.134615385 | F148: =ROUND($C148/$C147*F147,0) -> 536 | G148: =+F148/52 -> 10.30769231

Sheet ratesHCC (hidden)
A3: 2017/18 Region Wide Average Rates
A4: HUTT CITY | E4: =+rates2!F10 -> 2016/17 | F4: =+rates2!G10 -> 2017/18
E5: Budget | F5: Plan | G5: Change | H5: Change
E6: $000s | F6: $000s | G6: $000s | H6: %
A7: The overall rates movement for Greater Wellington Regional Council - GWRC | E7: =+rates1!F39 -> 114375 | F7: =+rates1!G39 -> 120720 | G7: =+rates1!H39 -> 6345 | H7: =+rates1!I39 -> 0.0555
A9: The overall GWRC rates movement for Hutt City | E9: =+rates2!F14 -> 22083 | F9: =+rates2!G14 -> 16029 | G9: =+rates2!H14 -> -6054 | H9: =+rates2!I14 -> -0.2741 | J9: =+G9*1000/rates8!$F$15 -> -155.0359804 | L9: inc GST
L10: per year | M10: per week
A11: Made up of:
A12: ECV movements1 | E12: 0 | F12: =+G12 -> 139 | G12: =+rates3!C18 -> 139 | H12: =+rates3!D18 -> 0.0063 | J12: =+G12*1000/rates8!$F$15 -> 3.559630208 | L12: =+H12/$H$19*($G$36*1.15) -> 0.8505627035 | M12: =+L12/52 -> 0.01635697507
A13: General rate2 | E13: =+rates4!D16 -> 6537 | F13: =+rates4!E16-F12 -> 7040 | G13: =+rates3!E18 -> 503 | H13: =+rates3!F18 -> 0.0228 | J13: =+G13*1000/rates8!$F$15 -> 12.88125176 | L13: 3.078226927 | M13: 0.05919667167
A14: River management rate3 | E14: =+rates4!G16 -> 3529 | F14: =+rates4!H16 -> 0 | G14: =+rates3!G18 -> -3529 | H14: =+rates3!H18 -> -0.1598 | J14: =+G14*1000/rates8!$F$15 -> -90.37363313 | L14: -21.57459048 | M14: -0.4148959707
A15: Transport rate4 | E15: =+rates4!J16 -> 10623 | F15: =+rates4!K16 -> 7797 | G15: =+rates3!I18 -> -2826 | H15: =+rates3!J18 -> -0.128 | J15: =+G15*1000/rates8!$F$15 -> -72.37061128 | L15: -17.28127398 | M15: -0.3323321918
A16: Stadium-purposes rate5 | E16: =+rates4!M16 -> 522 | F16: =+rates4!N16 -> 191 | G16: =+rates3!K18 -> -331 | H16: =+rates3!L18 -> -0.015 | J16: =+G16*1000/rates8!$F$15 -> -8.476529489 | L16: -2.025149294 | M16: -0.03894517873
A17: WRS rate6 | E17: =+rates4!P16 -> 872 | F17: =+rates4!Q16 -> 862 | G17: =+rates3!M18 -> -10 | H17: =+rates3!N18 -> -0.0005 | J17: =+G17*1000/rates8!$F$15 -> -0.2560885042 | L17: -0.06750497647 | M17: -0.001298172624
A19: Total Region-wide rates7 | E19: =SUM(E12:E18) -> 22083 | F19: =SUM(F12:F18) -> 16029 | G19: =SUM(G12:G18) -> -6054 | H19: =SUM(H12:H18) -> -0.2742 | J19: =+G19*1000/rates8!$F$15 -> -155.0359804 | L19: =SUM(L12:L18) -> -37.01972909 | M19: =SUM(M12:M18) -> -0.7119178672
A21: 2 Overall the general rate has decreased over 2009/10 due to increased returns from investments and lower debt servicing costs
A22: 3 The River management rates have increased due the continuing flood protection programme including the Boulcott / Hutt Stopbank in Lower Hutt progressing in 2011/12
A23: 4 The Transport rate has increased due to funding the on-going rail upgrade projects and the increased expenditure associated with ensuring the rail network and rolling stock are appropriately managed and maintained after the upgrade is complete. Overall the transport rate is proposed to increase by $4.045 million.
B26: The Transport increase includes: | F26: $000s
B27: Debt servicing cost of the rail upgrade | F27: =+ratesWCC!F27 -> 1844
B28: Regional Rail package | F28: =+ratesWCC!F28 -> 2102
B29: Other transport changes | F29: =+ratesWCC!F29 -> 772
F30: =+ratesWCC!F30 -> 4718
A33: Average Rates | C33: =+E4 -> 2016/17 | D33: =+F4 -> 2017/18 | E33: =+C33 -> 2016/17 | F33: =+D33 -> 2017/18 | G33: =+G5 -> Change | H33: =+H5 -> Change
C34: Average Capital Value | D34: Average Capital Value | E34: Average Rates | F34: Average Rates | G34: per year excluding GST
C35: $ | D35: $ | E35: $ | F35: $ | G35: $ | H35: %
A36: Residential property | C36: =+rates8!Q17 -> 378461 | D36: =+rates8!G17 -> 471132.1336 | E36: =+rates8!O17 -> 481.33 | F36: =+rates8!E17 -> 449.1389312 | G36: =+F36-E36 -> -32.19106878 | H36: =+G36/E36 -> -0.06687941491
A37: Rural property | C37: =+rates8!Q18 -> 567557 | D37: =+rates8!G18 -> 649061.2245 | E37: =+rates8!O18 -> 462.1 | F37: =+rates8!E18 -> 460.5324423 | G37: =+F37-E37 -> -1.56755775 | H37: =+G37/E37 -> -0.003392247889
A38: Business | C38: =+rates8!Q16 -> 1414644 | D38: =+rates8!G16 -> 1610885.023 | E38: =+rates8!O16 -> 1916.89 | F38: =+rates8!E16 -> 1916.610766 | G38: =+F38-E38 -> -0.2792335461 | H38: =+G38/E38 -> -0.0001456700938
A40: Hutt city has 17.4% of the equalised capital value of the region. (2010 17.7%)
A43: In Hutt city the rural values have remained steady whilst residential and business values have decreased. This has the result of creating a larger percentage increase for rural properties than other properties in Hutt city
A46: Rates increases vary between city and district councils because of differing capital values. Further, some of Greater Wellington’s work programmes impact differently across the region, especially flood protection and public transport.
A51: 1 Rates for Greater Wellington are mostly allocated to ratepayers on the basis of their capital values. The territorial local authorities undertake valuations in different years. To ensure properties are valued on the same basis in each territorial area, Greater Wellington undertakes an equalised capital value (ECV) calculation. The movements in ECV reflect the extent to which capital values in each area have moved relative to each other. The ECV change by city amount shows how much the general rate changes as a direct consequence of the relative changes in capital values between the cities and districts from 30 June 2017 to 30 June 2018.
A56: 2 The General rate funds: resource management; land management; Parks; Council costs; 50% of flood protection, and is reduced by investment management net income
A57: 3 The River management rate is the 50% of flood protection costs directly incurred in the city or district council area
A58: 4 The Transport rate includes directly attributable bus costs plus a share of the rest based on congestion and calculated using work travel statistics. The Wellington CBD businesses pick up the greatest portion of the transport rate
A60: 5 The Stadium rate is the rates to repay the $25 million advance to have the stadium built. This rate is forecast to finish in 2018/19
A61: 6 The WRS rate is to cover Economic development in the region. Residents pay $14 + GST, Rural $28 + GST and businesses based on CV.
A62: 7 Region-wide rates are rates that are charged to all ratepayers in the region. It excludes Bovine TB, Possum, South Wairarapa Region river rates, Wairarapa river and drainage scheme rates and any "Warm Greater Wellington" targeted rates as they impact only certain ratepayers that are covered by these programmes. These rates are additional to the umbers listed above.
A65: =+rates1!$A$50 -> All figures on this page exclude GST

Sheet ratesUHCC (hidden)
A3: 2017/18 Region Wide Average Rates
A4: UPPER HUTT CITY | E4: =+rates2!F10 -> 2016/17 | F4: =+rates2!G10 -> 2017/18
E5: Budget | F5: Plan | G5: Change | H5: Change
E6: $000s | F6: $000s | G6: $000s | H6: %
A7: The overall rates movement for Greater Wellington Regional Council - GWRC | E7: =+rates1!F39 -> 114375 | F7: =+rates1!G39 -> 120720 | G7: =+rates1!H39 -> 6345 | H7: =+rates1!I39 -> 0.0555
A9: The overall GWRC rates movement for Upper Hutt City | E9: =+rates2!F15 -> 7861 | F9: =+rates2!G15 -> 6522 | G9: =+rates2!H15 -> -1339 | H9: =+rates2!I15 -> -0.1703 | J9: =+G9*1000/rates8!$F$20 -> -80.8086904 | L9: inc GST
L10: per year | M10: per week
A11: Made up of:
A12: ECV movements1 | E12: 0 | F12: =+G12 -> -8 | G12: =+rates3!C19 -> -8 | H12: =+rates3!D19 -> -0.001 | J12: =+G12*1000/rates8!$F$20 -> -0.4828002414 | L12: =+H12/$H$19*($G$36*1.15) -> -0.4870884035 | M12: =+L12/52 -> -0.009367084682
A13: General rate2 | E13: =+rates4!D17 -> 2535 | F13: =+rates4!E17-F12 -> 2726 | G13: =+rates3!E19 -> 191 | H13: =+rates3!F19 -> 0.0243 | J13: =+G13*1000/rates8!$F$20 -> 11.52685576 | L13: 11.8362482 | M13: 0.2276201578
A14: River management rate3 | E14: =+rates4!G17 -> 610 | F14: =+rates4!H17 -> 678 | G14: =+rates3!G19 -> 68 | H14: =+rates3!H19 -> 0.0087 | J14: =+G14*1000/rates8!$F$20 -> 4.103802052 | L14: 4.23766911 | M14: 0.08149363673
A15: Transport rate4 | E15: =+rates4!J17 -> 4227 | F15: =+rates4!K17 -> 2732 | G15: =+rates3!I19 -> -1495 | H15: =+rates3!J19 -> -0.1902 | J15: =+G15*1000/rates8!$F$20 -> -90.22329511 | L15: -92.64421434 | M15: -1.781619506
A16: Stadium-purposes rate5 | E16: =+rates4!M17 -> 141 | F16: =+rates4!N17 -> 51 | G16: =+rates3!K19 -> -90 | H16: =+rates3!L19 -> -0.0114 | J16: =+G16*1000/rates8!$F$20 -> -5.431502716 | L16: -5.552807799 | M16: -0.1067847654
A17: WRS rate6 | E17: =+rates4!P17 -> 348 | F17: =+rates4!Q17 -> 343 | G17: =+rates3!M19 -> -5 | H17: =+rates3!N19 -> -0.0006 | J17: =+G17*1000/rates8!$F$20 -> -0.3017501509 | L17: -0.2922530421 | M17: -0.005620250809
A19: Total Region-wide rates7 | E19: =SUM(E12:E18) -> 7861 | F19: =SUM(F12:F18) -> 6522 | G19: =SUM(G12:G18) -> -1339 | H19: =SUM(H12:H18) -> -0.1702 | J19: =+G19*1000/rates8!$F$20 -> -80.8086904 | L19: =SUM(L12:L18) -> -82.90244627 | M19: =SUM(M12:M18) -> -1.594277813
A21: 2 Overall the general rate has decreased over 2009/10 due to increased returns from investments and lower debt servicing costs
A22: 3 The River management rates have increased due the continuing flood protection programme
A23: 4 The Transport rate has increased due to funding the on-going rail upgrade projects and the increased expenditure associated with ensuring the rail network and rolling stock are appropriately managed and maintained after the upgrade is complete. Overall the transport rate is proposed to increase by $4.045 million.
B26: The Transport increase includes: | F26: $000s
B27: Debt servicing cost of the rail upgrade | F27: =+ratesWCC!F27 -> 1844
B28: Regional Rail package | F28: =+ratesWCC!F28 -> 2102
B29: Other transport changes | F29: =+ratesWCC!F29 -> 772
F30: =+ratesWCC!F30 -> 4718
A33: Average Rates | C33: =+E4 -> 2016/17 | D33: =+F4 -> 2017/18 | E33: =+C33 -> 2016/17 | F33: =+D33 -> 2017/18 | G33: =+G5 -> Change | H33: =+H5 -> Change
C34: Average Capital Value | D34: Average Capital Value | E34: Average Rates | F34: Average Rates | G34: per year excluding GST
C35: $ | D35: $ | E35: $ | F35: $ | G35: $ | H35: %
A36: Residential property | C36: =+rates8!Q22 -> 343289 | D36: =+rates8!G22 -> 413719.0441 | E36: =+rates8!O22 -> 413.37 | F36: =+rates8!E22 -> 341.2809163 | G36: =+F36-E36 -> -72.08908371 | H36: =+G36/E36 -> -0.1743936031 | J36: =+E36*1.5% -> 6.20055
A37: Rural property | C37: =+rates8!Q23 -> 599978 | D37: =+rates8!G23 -> 642871.6559 | E37: =+rates8!O23 -> 414.46 | F37: =+rates8!E23 -> 368.9601713 | G37: =+F37-E37 -> -45.49982873 | H37: =+G37/E37 -> -0.1097809891
A38: Business | C38: =+rates8!Q21 -> 1485365 | D38: =+rates8!G21 -> 1621277.701 | E38: =+rates8!O21 -> 1880.35 | F38: =+rates8!E21 -> 1705.702599 | G38: =+F38-E38 -> -174.6474006 | H38: =+G38/E38 -> -0.09288026197
A40: Upper Hutt city has 6.5% of the equalised capital value of the region. (2010 6.4%)
A43: Rates increases vary between city and district councils because of differing capital values. Further, some of Greater Wellington’s work programmes impact differently across the region, especially flood protection and public transport.
A47: 1 Rates for Greater Wellington are mostly allocated to ratepayers on the basis of their capital values. The territorial local authorities undertake valuations in different years. To ensure properties are valued on the same basis in each territorial area, Greater Wellington undertakes an equalised capital value (ECV) calculation. The movements in ECV reflect the extent to which capital values in each area have moved relative to each other. The ECV change by city amount shows how much the general rate changes as a direct consequence of the relative changes in capital values between the cities and districts from 30 June 2017 to 30 June 2018.
A52: 2 The General rate funds: resource management; land management; Parks; Council costs; 50% of flood protection, and is reduced by investment management net income
A53: 3 The River management rate is the 50% of flood protection costs directly incurred in the city or district council area
A54: 4 The Transport rate includes directly attributable bus costs plus a share of the rest based on congestion and calculated using work travel statistics. The Wellington CBD businesses pick up the greatest portion of the transport rate
A56: 5 The Stadium rate is the rates to repay the $25 million advance to have the stadium built. This rate is forecast to finish in 2018/19
A57: 6 The WRS rate is to cover Economic development in the region. Residents pay $14 + GST, Rural $28 + GST and businesses based on CV.
A58: 7 Region-wide rates are rates that are charged to all ratepayers in the region. It excludes Bovine TB, Possum, South Wairarapa Region river rates, Wairarapa river and drainage scheme rates and any "Warm Greater Wellington" targeted rates as they impact only certain ratepayers that are covered by these programmes. These rates are additional to the umbers listed above.
A61: =+rates1!$A$50 -> All figures on this page exclude GST

Sheet ratesPCC (hidden)
A3: 2017/18 Region Wide Average Rates
A4: PORIRUA CITY | E4: =+rates2!F10 -> 2016/17 | F4: =+rates2!G10 -> 2017/18
E5: Budget | F5: Plan | G5: Change | H5: Change
E6: $000s | F6: $000s | G6: $000s | H6: %
A7: The overall rates movement for Greater Wellington Regional Council - GWRC | E7: =+rates1!F39 -> 114375 | F7: =+rates1!G39 -> 120720 | G7: =+rates1!H39 -> 6345 | H7: =+rates1!I39 -> 0.0555
A9: The overall GWRC rates movement for Porirua City | E9: =+rates2!F16 -> 9193 | F9: =+rates2!G16 -> 7245 | G9: =+rates2!H16 -> -1948 | H9: =+rates2!I16 -> -0.2119 | J9: =+G9*1000/rates8!$F$25 -> -105.2176731 | L9: inc GST
L10: per year | M10: per week
A11: Made up of:
A12: ECV movements1 | E12: 0 | F12: =+G12 -> 70 | G12: =+rates3!C20 -> 70 | H12: =+rates3!D20 -> 0.0076 | J12: =+G12*1000/rates8!$F$25 -> 3.780922545 | L12: =+H12/$H$19*($G$36*1.15) -> 5.213453281 | M12: =+L12/52 -> 0.1002587169
A13: General rate2 | E13: =+rates4!D18 -> 3062 | F13: =+rates4!E18-F12 -> 3298 | G13: =+rates3!E20 -> 236 | H13: =+rates3!F20 -> 0.0257 | J13: =+G13*1000/rates8!$F$25 -> 12.74711029 | L13: 17.62970386 | M13: 0.3390327665
A14: River management rate3 | E14: =+rates4!G18 -> 28 | F14: =+rates4!H18 -> 28 | G14: =+rates3!G20 -> 0 | H14: =+rates3!H20 -> 0 | J14: =+G14*1000/rates8!$F$25 -> 0 | L14: 0 | M14: 0
A15: Transport rate4 | E15: =+rates4!J18 -> 5556 | F15: =+rates4!K18 -> 3424 | G15: =+rates3!I20 -> -2132 | H15: =+rates3!J20 -> -0.2319 | J15: =+G15*1000/rates8!$F$25 -> -115.1560981 | L15: -159.0789232 | M15: -3.059210061
A16: Stadium-purposes rate5 | E16: =+rates4!M18 -> 192 | F16: =+rates4!N18 -> 70 | G16: =+rates3!K20 -> -122 | H16: =+rates3!L20 -> -0.0133 | J16: =+G16*1000/rates8!$F$25 -> -6.589607864 | L16: -9.123543242 | M16: -0.1754527547
A17: WRS rate6 | E17: =+rates4!P18 -> 355 | F17: =+rates4!Q18 -> 355 | G17: =+rates3!M20 -> 0 | H17: =+rates3!N20 -> 0 | J17: =+G17*1000/rates8!$F$25 -> 0 | L17: 0 | M17: 0
A19: Total Region-wide rates7 | E19: =SUM(E12:E18) -> 9193 | F19: =SUM(F12:F18) -> 7245 | G19: =SUM(G12:G18) -> -1948 | H19: =SUM(H12:H18) -> -0.2119 | J19: =+G19*1000/rates8!$F$25 -> -105.2176731 | L19: =SUM(L12:L18) -> -145.3593093 | M19: =SUM(M12:M18) -> -2.795371332
A21: 2 Overall the general rate has decreased over 2009/10 due to increased returns from investments and lower debt servicing costs
A22: 3 The River management rates has decreased due to lower debt servicing costs of completed projects
A23: 4 The Transport rate has increased due to funding the on-going rail upgrade projects and the increased expenditure associated with ensuring the rail network and rolling stock are appropriately managed and maintained after the upgrade is complete. Overall the transport rate is proposed to increase by $4.045 million.
B26: The Transport increase includes: | F26: $000s
B27: Debt servicing cost of the rail upgrade | F27: =+ratesWCC!F27 -> 1844
B28: Regional Rail package | F28: =+ratesWCC!F28 -> 2102
B29: Other transport changes | F29: =+ratesWCC!F29 -> 772
F30: =+ratesWCC!F30 -> 4718
A33: Average Rates | C33: =+E4 -> 2016/17 | D33: =+F4 -> 2017/18 | E33: =+C33 -> 2016/17 | F33: =+D33 -> 2017/18 | G33: =+G5 -> Change | H33: =+H5 -> Change
C34: Average Capital Value | D34: Average Capital Value | E34: Average Rates | F34: Average Rates | G34: per year excluding GST
C35: $ | D35: $ | E35: $ | F35: $ | G35: $ | H35: %
A36: Residential property | C36: =+rates8!Q27 -> 394401 | D36: =+rates8!G27 -> 488077.2273 | E36: =+rates8!O27 -> 454.59 | F36: =+rates8!E27 -> 328.1906006 | G36: =+F36-E36 -> -126.3993994 | H36: =+G36/E36 -> -0.2780514295
A37: Rural property | C37: =+rates8!Q28 -> 873720 | D37: =+rates8!G28 -> 981710.3758 | E37: =+rates8!O28 -> 524.4 | F37: =+rates8!E28 -> 406.9189215 | G37: =+F37-E37 -> -117.4810785 | H37: =+G37/E37 -> -0.2240295166
A38: Business | C38: =+rates8!Q26 -> 1200392 | D38: =+rates8!G26 -> 1375300.879 | E38: =+rates8!O26 -> 1481.96 | F38: =+rates8!E26 -> 1246.398091 | G38: =+F38-E38 -> -235.5619086 | H38: =+G38/E38 -> -0.1589529465
A40: Porirua city has 7.8% of the equalised capital value of the region. (2010 7.8%)
A43: Rates increases vary between city and district councils because of differing capital values. Further, some of Greater Wellington’s work programmes impact differently across the region, especially flood protection and public transport.
A47: 1 Rates for Greater Wellington are mostly allocated to ratepayers on the basis of their capital values. The territorial local authorities undertake valuations in different years. To ensure properties are valued on the same basis in each territorial area, Greater Wellington undertakes an equalised capital value (ECV) calculation. The movements in ECV reflect the extent to which capital values in each area have moved relative to each other. The ECV change by city amount shows how much the general rate changes as a direct consequence of the relative changes in capital values between the cities and districts from 30 June 2017 to 30 June 2018.
A52: 2 The General rate funds: resource management; land management; Parks; Council costs; 50% of flood protection, and is reduced by investment management net income
A53: 3 The River management rate is the 50% of flood protection costs directly incurred in the city or district council area
A54: 4 The Transport rate includes directly attributable bus costs plus a share of the rest based on congestion and calculated using work travel statistics. The Wellington CBD businesses pick up the greatest portion of the transport rate
A56: 5 The Stadium rate is the rates to repay the $25 million advance to have the stadium built. This rate is forecast to finish in 2018/19
A57: 6 The WRS rate is to cover Economic development in the region. Residents pay $14 + GST, Rural $28 + GST and businesses based on CV.
A58: 7 Region-wide rates are rates that are charged to all ratepayers in the region. It excludes Bovine TB, Possum, South Wairarapa Region river rates, Wairarapa river and drainage scheme rates and any "Warm Greater Wellington" targeted rates as they impact only certain ratepayers that are covered by these programmes. These rates are additional to the umbers listed above.
A61: =+rates1!$A$50 -> All figures on this page exclude GST

Sheet ratesKCDC (hidden)
A3: 2017/18 Region Wide Average Rates
A4: KAPITI COAST DISTRICT | E4: =+rates2!F10 -> 2016/17 | F4: =+rates2!G10 -> 2017/18
E5: Budget | F5: Plan | G5: Change | H5: Change
E6: $000s | F6: $000s | G6: $000s | H6: %
A7: The overall rates movement for Greater Wellington Regional Council - GWRC | E7: =+rates1!F39 -> 114375 | F7: =+rates1!G39 -> 120720 | G7: =+rates1!H39 -> 6345 | H7: =+rates1!I39 -> 0.0555
A9: The overall GWRC rates movement for Kapiti Coast District | E9: =+rates2!F17 -> 8788 | F9: =+rates2!G17 -> 10346 | G9: =+rates2!H17 -> 1558 | H9: =+rates2!I17 -> 0.1773 | J9: =+G9*1000/rates8!$F$30 -> 62.92152983 | L9: inc GST
L10: per year | M10: per week
A11: Made up of:
A12: ECV movements1 | E12: 0 | F12: =+G12 -> -43 | G12: =+rates3!C21 -> -43 | H12: =+rates3!D21 -> -0.0049 | J12: =+G12*1000/rates8!$F$30 -> -1.736601914 | L12: =+H12/$H$19*($G$36*1.15) -> -1.896062305 | M12: =+L12/52 -> -0.03646273663
A13: General rate2 | E13: =+rates4!D19 -> 4069 | F13: =+rates4!E19-F12 -> 4372 | G13: =+rates3!E21 -> 303 | H13: =+rates3!F21 -> 0.0345 | J13: =+G13*1000/rates8!$F$30 -> 12.23698558 | L13: 13.34982643 | M13: 0.2567274313
A14: River management rate3 | E14: =+rates4!G19 -> 1252 | F14: =+rates4!H19 -> 1368 | G14: =+rates3!G21 -> 116 | H14: =+rates3!H21 -> 0.0132 | J14: =+G14*1000/rates8!$F$30 -> 4.68478656 | L14: 5.107759678 | M14: 0.09822614764
A15: Transport rate4 | E15: =+rates4!J19 -> 2848 | F15: =+rates4!K19 -> 4111 | G15: =+rates3!I21 -> 1263 | H15: =+rates3!J21 -> 0.1437 | J15: =+G15*1000/rates8!$F$30 -> 51.00763297 | L15: 55.60492922 | M15: 1.069325562
A16: Stadium-purposes rate5 | E16: =+rates4!M19 -> 130 | F16: =+rates4!N19 -> 47 | G16: =+rates3!K21 -> -83 | H16: =+rates3!L21 -> -0.0094 | J16: =+G16*1000/rates8!$F$30 -> -3.352045556 | L16: -3.637344013 | M16: -0.06994892332
A17: WRS rate6 | E17: =+rates4!P19 -> 489 | F17: =+rates4!Q19 -> 491 | G17: =+rates3!M21 -> 2 | H17: =+rates3!N21 -> 0.0002 | J17: =+G17*1000/rates8!$F$30 -> 0.08077218206 | L17: 0.07739029814 | M17: 0.001488274964
A19: Total Region-wide rates7 | E19: =SUM(E12:E18) -> 8788 | F19: =SUM(F12:F18) -> 10346 | G19: =SUM(G12:G18) -> 1558 | H19: =SUM(H12:H18) -> 0.1773 | J19: =+G19*1000/rates8!$F$30 -> 62.92152983 | L19: =SUM(L12:L18) -> 68.6064993 | M19: =SUM(M12:M18) -> 1.319355756
A21: 2 Overall the general rate has decreased over 2009/10 due to increased returns from investments and lower debt servicing costs
A22: 3 The River management rates have increased due the continuing flood protection programme including the Convent Road and South Waitohu stopbank improvements in Kapiti which are progressing in 2011/12
A23: 4 The Transport rate has increased due to funding the on-going rail upgrade projects and the increased expenditure associated with ensuring the rail network and rolling stock are appropriately managed and maintained after the upgrade is complete. Overall the transport rate is proposed to increase by $4.045 million.
B26: The Transport increase includes: | F26: $000s
B27: Debt servicing cost of the rail upgrade to date | F27: =+ratesWCC!F27 -> 1844
B28: Regional Rail package | F28: =+ratesWCC!F28 -> 2102
B29: Other transport changes | F29: =+ratesWCC!F29 -> 772
F30: =+ratesWCC!F30 -> 4718
A33: Average Rates | C33: =+E4 -> 2016/17 | D33: =+F4 -> 2017/18 | E33: =+C33 -> 2016/17 | F33: =+D33 -> 2017/18 | G33: =+G5 -> Change | H33: =+H5 -> Change
C34: Average Capital Value | D34: Average Capital Value | E34: Average Rates | F34: Average Rates | G34: per year excluding GST
C35: $ | D35: $ | E35: $ | F35: $ | G35: $ | H35: %
A36: Residential property | C36: =+rates8!Q32 -> 388240 | D36: =+rates8!G32 -> 389783.6248 | E36: =+rates8!O32 -> 323.53 | F36: =+rates8!E32 -> 383.1878255 | G36: =+F36-E36 -> 59.65782548 | H36: =+G36/E36 -> 0.1843965799
A37: Rural property | C37: =+rates8!Q33 -> 595615 | D37: =+rates8!G33 -> 603436.0344 | E37: =+rates8!O33 -> 369.11 | F37: =+rates8!E33 -> 418.4540351 | G37: =+F37-E37 -> 49.34403515 | H37: =+G37/E37 -> 0.1336838209
A38: Business | C38: =+rates8!Q31 -> 915954 | D38: =+rates8!G31 -> 913323.9741 | E38: =+rates8!O31 -> 826.98 | F38: =+rates8!E31 -> 1142.600748 | G38: =+F38-E38 -> 315.6207478 | H38: =+G38/E38 -> 0.3816546322
A40: Kapiti district has 10.4% of the equalised capital value of the region. (2010 10.3%)
A43: Rates increases vary between city and district councils because of differing capital values. Further, some of Greater Wellington’s work programmes impact differently across the region, especially flood protection and public transport.
A47: 1 Rates for Greater Wellington are mostly allocated to ratepayers on the basis of their capital values. The territorial local authorities undertake valuations in different years. To ensure properties are valued on the same basis in each territorial area, Greater Wellington undertakes an equalised capital value (ECV) calculation. The movements in ECV reflect the extent to which capital values in each area have moved relative to each other. The ECV change by city amount shows how much the general rate changes as a direct consequence of the relative changes in capital values between the cities and districts from 30 June 2017 to 30 June 2018.
A52: 2 The General rate funds: resource management; land management; Parks; Council costs; 50% of flood protection, and is reduced by investment management net income
A53: 3 The River management rate is the 50% of flood protection costs directly incurred in the city or district council area
A54: 4 The Transport rate includes directly attributable bus costs plus a share of the rest based on congestion and calculated using work travel statistics. The Wellington CBD businesses pick up the greatest portion of the transport rate
A56: 5 The Stadium rate is the rates to repay the $25 million advance to have the stadium built. This rate is forecast to finish in 2018/19
A57: 6 The WRS rate is to cover Economic development in the region. Residents pay $14 + GST, Rural $28 + GST and businesses based on CV.
A58: 7 Region-wide rates are rates that are charged to all ratepayers in the region. It excludes Bovine TB, Possum, South Wairarapa Region river rates, Wairarapa river and drainage scheme rates and any "Warm Greater Wellington" targeted rates as they impact only certain ratepayers that are covered by these programmes. These rates are additional to the umbers listed above.
A61: =+rates1!$A$50 -> All figures on this page exclude GST

Sheet ratesMDC (hidden)
A3: 2017/18 Region Wide Average Rates
A4: MASTERTON DISTRICT | E4: =+rates2!F10 -> 2016/17 | F4: =+rates2!G10 -> 2017/18
E5: Budget | F5: Plan | G5: Change | H5: Change | J5: Real Average
E6: $000s | F6: $000s | G6: $000s | H6: %
A7: The overall rates movement for Greater Wellington Regional Council - GWRC | E7: =+rates1!F39 -> 114375 | F7: =+rates1!G39 -> 120720 | G7: =+rates1!H39 -> 6345 | H7: =+rates1!I39 -> 0.0555
A9: The overall GWRC rates movement for Masterton District | E9: =+rates2!F18 -> 2375 | F9: =+rates2!G18 -> 2846 | G9: =+rates2!H18 -> 471 | H9: =+rates2!I18 -> 0.1983 | J9: =+G9*1000/rates8!$F$35 -> 38.30513988 | L9: inc GST
L10: per year | M10: per week
A11: Made up of:
A12: ECV movements1 | E12: 0 | F12: =+G12 -> -229 | G12: =+rates3!C22 -> -229 | H12: =+rates3!D22 -> -0.0964 | J12: =+G12*1000/rates8!$F$35 -> -18.62394275 | L12: =+H12/$H$19*($G$36*1.15) -> -33.2327689 | M12: =+L12/52 -> -0.6390917096
A13: General rate2 | E13: =+rates4!D20 -> 1786 | F13: =+rates4!E20-F12 -> 1904 | G13: =+rates3!E22 -> 118 | H13: =+rates3!F22 -> 0.0497 | J13: =+G13*1000/rates8!$F$35 -> 9.596616786 | L13: 17.13349185 | M13: 0.3294902279
A14: River management rate3 | E14: =+rates4!G20 -> 0 | F14: =+rates4!H20 -> 0 | G14: =+rates3!G22 -> 0 | H14: =+rates3!H22 -> 0 | J14: =+G14*1000/rates8!$F$35 -> 0 | L14: 0 | M14: 0
A15: Transport rate4 | E15: =+rates4!J20 -> 290 | F15: =+rates4!K20 -> 909 | G15: =+rates3!I22 -> 619 | H15: =+rates3!J22 -> 0.2606 | J15: =+G15*1000/rates8!$F$35 -> 50.3415745 | L15: 89.83879228 | M15: 1.727669082
A16: Stadium-purposes rate5 | E16: =+rates4!M20 -> 54 | F16: =+rates4!N20 -> 20 | G16: =+rates3!K22 -> -34 | H16: =+rates3!L22 -> -0.0143 | J16: =+G16*1000/rates8!$F$35 -> -2.765126871 | L16: -4.929757212 | M16: -0.09480302332
A17: WRS rate6 | E17: =+rates4!P20 -> 245 | F17: =+rates4!Q20 -> 242 | G17: =+rates3!M22 -> -3 | H17: =+rates3!N22 -> -0.0013 | J17: =+G17*1000/rates8!$F$35 -> -0.2439817827 | L17: -0.4481597466 | M17: -0.008618456665
A19: Total Region-wide rates7 | E19: =SUM(E12:E18) -> 2375 | F19: =SUM(F12:F18) -> 2846 | G19: =SUM(G12:G18) -> 471 | H19: =SUM(H12:H18) -> 0.1983 | J19: =+G19*1000/rates8!$F$35 -> 38.30513988 | L19: =SUM(L12:L18) -> 68.36159827 | M19: =SUM(M12:M18) -> 1.314646121
A21: 2 Overall the general rate has decreased over 2009/10 due to increased returns from investments and lower debt servicing costs
A22: 3 The River management rates has decreased due to lower debt servicing costs of completed projects
A23: 4 The Transport rate has increased due to funding the on-going rail upgrade projects and the increased expenditure associated with ensuring the rail network and rolling stock are appropriately managed and maintained after the upgrade is complete. Overall the transport rate is proposed to increase by $4.045 million.
B26: The Transport increase includes: | F26: $000s
B27: Debt servicing cost of the rail upgrade to date | F27: =+ratesWCC!F27 -> 1844
B28: Regional Rail package | F28: =+ratesWCC!F28 -> 2102
B29: Other transport changes | F29: =+ratesWCC!F29 -> 772
F30: =+ratesWCC!F30 -> 4718
A33: Average Rates | C33: =+E4 -> 2016/17 | D33: =+F4 -> 2017/18 | E33: =+C33 -> 2016/17 | F33: =+D33 -> 2017/18 | G33: =+G5 -> Change | H33: =+H5 -> Change
C34: Average Capital Value | D34: Average Capital Value | E34: Average Rates | F34: Average Rates | G34: per year excluding GST
C35: $ | D35: $ | E35: $ | F35: $ | G35: $ | H35: %
A36: Residential property | C36: =+rates8!Q37 -> 251063 | D36: =+rates8!G37 -> 251835.8199 | E36: =+rates8!O37 -> 138.38 | F36: =+rates8!E37 -> 197.8248681 | G36: =+F36-E36 -> 59.44486806 | H36: =+G36/E36 -> 0.4295770202
A37: Rural property | C37: =+rates8!Q38 -> 601555 | D37: =+rates8!G38 -> 605927.1494 | E37: =+rates8!O38 -> 278.3 | F37: =+rates8!E38 -> 370.5351451 | G37: =+F37-E37 -> 92.23514506 | H37: =+G37/E37 -> 0.3314234462
A38: Business | C38: =+rates8!Q36 -> 695568 | D38: =+rates8!G36 -> 698074.359 | E38: =+rates8!O36 -> 419.62 | F38: =+rates8!E36 -> 775.0440996 | G38: =+F38-E38 -> 355.4240996 | H38: =+G38/E38 -> 0.8470142025
A40: Masterton district has 4.6% of the equalised capital value of the region. (2010 4.8%) As this is a decrease Masterton recevies a smaller share of the general rates
A43: Rates increases vary between city and district councils because of differing capital values. Further, some of Greater Wellington’s work programmes impact differently across the region, especially flood protection and public transport.
A47: 1 Rates for Greater Wellington are mostly allocated to ratepayers on the basis of their capital values. The territorial local authorities undertake valuations in different years. To ensure properties are valued on the same basis in each territorial area, Greater Wellington undertakes an equalised capital value (ECV) calculation. The movements in ECV reflect the extent to which capital values in each area have moved relative to each other. The ECV change by city amount shows how much the general rate changes as a direct consequence of the relative changes in capital values between the cities and districts from 30 June 2017 to 30 June 2018.
A52: 2 The General rate funds: resource management; land management; Parks; Council costs; 50% of flood protection, and is reduced by investment management net income
A53: 3 The River management rate is the 50% of flood protection costs directly incurred in the city or district council area
A54: 4 The Transport rate includes directly attributable bus costs plus a share of the rest based on congestion and calculated using work travel statistics. The Wellington CBD businesses pick up the greatest portion of the transport rate
A56: 5 The Stadium rate is the rates to repay the $25 million advance to have the stadium built. This rate is forecast to finish in 2018/19
A57: 6 The WRS rate is to cover Economic development in the region. Residents pay $14 + GST, Rural $28 + GST and businesses based on CV.
A58: 7 Region-wide rates are rates that are charged to all ratepayers in the region. It excludes Bovine TB, Possum, South Wairarapa Region river rates, Wairarapa river and drainage scheme rates and any "Warm Greater Wellington" targeted rates as they impact only certain ratepayers that are covered by these programmes. These rates are additional to the umbers listed above.
A61: =+rates1!$A$50 -> All figures on this page exclude GST

Sheet ratesCDC (hidden)
A3: 2017/18 Region Wide Average Rates
A4: CARTERTON DISTRICT | E4: =+rates2!F10 -> 2016/17 | F4: =+rates2!G10 -> 2017/18
E5: Budget | F5: Plan | G5: Change | H5: Change
E6: $000s | F6: $000s | G6: $000s | H6: %
A7: The overall rates movement for Greater Wellington Regional Council - GWRC | E7: =+rates1!F39 -> 114375 | F7: =+rates1!G39 -> 120720 | G7: =+rates1!H39 -> 6345 | H7: =+rates1!I39 -> 0.0555
A9: The overall GWRC rates movement for Carterton District | E9: =+rates2!F19 -> 1154 | F9: =+rates2!G19 -> 1229 | G9: =+rates2!H19 -> 75 | H9: =+rates2!I19 -> 0.065 | J9: =+G9*1000/rates8!$F$40 -> 16.44376233 | L9: inc GST
L10: per year | M10: per week
A11: Made up of:
A12: ECV movements1 | E12: 0 | F12: =+G12 -> -120 | G12: =+rates3!C23 -> -120 | H12: =+rates3!D23 -> -0.104 | J12: =+G12*1000/rates8!$F$40 -> -26.31001973 | L12: =+H12/$H$19*($G$36*1.15) -> -73.94879759 | M12: =+L12/52 -> -1.422092261
A13: General rate2 | E13: =+rates4!D21 -> 839 | F13: =+rates4!E21-F12 -> 894 | G13: =+rates3!E23 -> 55 | H13: =+rates3!F23 -> 0.0477 | J13: =+G13*1000/rates8!$F$40 -> 12.05875904 | L13: 33.91690044 | M13: 0.6522480853
A14: River management rate3 | E14: =+rates4!G21 -> 23 | F14: =+rates4!H21 -> 23 | G14: =+rates3!G23 -> -1 | H14: =+rates3!H23 -> -0.0009 | J14: =+G14*1000/rates8!$F$40 -> -0.2192501644 | L14: -0.6399415176 | M14: -0.01230656765
A15: Transport rate4 | E15: =+rates4!J21 -> 186 | F15: =+rates4!K21 -> 334 | G15: =+rates3!I23 -> 148 | H15: =+rates3!J23 -> 0.1282 | J15: =+G15*1000/rates8!$F$40 -> 32.44902434 | L15: 91.15611396 | M15: 1.753002191
A16: Stadium-purposes rate5 | E16: =+rates4!M21 -> 19 | F16: =+rates4!N21 -> 7 | G16: =+rates3!K23 -> -12 | H16: =+rates3!L23 -> -0.0104 | J16: =+G16*1000/rates8!$F$40 -> -2.631001973 | L16: -7.394879759 | M16: -0.1422092261
A17: WRS rate6 | E17: =+rates4!P21 -> 87 | F17: =+rates4!Q21 -> 91 | G17: =+rates3!M23 -> 4 | H17: =+rates3!N23 -> 0.0035 | J17: =+G17*1000/rates8!$F$40 -> 0.8770006578 | L17: 2.488661458 | M17: 0.04785887418
A19: Total Region-wide rates7 | E19: =SUM(E12:E18) -> 1154 | F19: =SUM(F12:F18) -> 1229 | G19: =SUM(G12:G18) -> 74 | H19: =SUM(H12:H18) -> 0.0641 | J19: =+G19*1000/rates8!$F$40 -> 16.22451217 | L19: =SUM(L12:L18) -> 45.57805698 | M19: =SUM(M12:M18) -> 0.8765010957
A21: 2 Overall the general rate has decreased over 2009/10 due to increased returns from investments and lower debt servicing costs
A22: 3 The River management rates has decreased due to lower debt servicing costs of completed projects
A23: 4 The Transport rate has increased due to funding the on-going rail upgrade projects and the increased expenditure associated with ensuring the rail network and rolling stock are appropriately managed and maintained after the upgrade is complete. Overall the transport rate is proposed to increase by $4.045 million.
B26: The Transport increase includes: | F26: $000s
B27: Debt servicing cost of the rail upgrade to date | F27: =+ratesWCC!F27 -> 1844
B28: Regional Rail package | F28: =+ratesWCC!F28 -> 2102
B29: Other transport changes | F29: =+ratesWCC!F29 -> 772
F30: =+ratesWCC!F30 -> 4718
A33: Average Rates | C33: =+E4 -> 2016/17 | D33: =+F4 -> 2017/18 | E33: =+C33 -> 2016/17 | F33: =+D33 -> 2017/18 | G33: =+G5 -> Change | H33: =+H5 -> Change
C34: Average Capital Value | D34: Average Capital Value | E34: Average Rates | F34: Average Rates | G34: per year excluding GST
C35: $ | D35: $ | E35: $ | F35: $ | G35: $ | H35: %
A36: Residential property | C36: =+rates8!Q42 -> 257835 | D36: =+rates8!G42 -> 264354.7194 | E36: =+rates8!O42 -> 166.69 | F36: =+rates8!E42 -> 206.323093 | G36: =+F36-E36 -> 39.63309303 | H36: =+G36/E36 -> 0.237765271
A37: Rural property | C37: =+rates8!Q43 -> 724218 | D37: =+rates8!G43 -> 730218.0658 | E37: =+rates8!O43 -> 357.89 | F37: =+rates8!E43 -> 439.6901017 | G37: =+F37-E37 -> 81.80010172 | H37: =+G37/E37 -> 0.2285621328
A38: Business | C38: =+rates8!Q41 -> 452791 | D38: =+rates8!G41 -> 413535.5556 | E38: =+rates8!O41 -> 318.3 | F38: =+rates8!E41 -> 457.7496333 | G38: =+F38-E38 -> 139.4496333 | H38: =+G38/E38 -> 0.4381075505
A40: Carterton district has 1.9% of the equalised capital value of the region. (2010 1.9%)
A43: In Carterton the business values have remained steady whilst residential values have decreased. This results in a small increase for Carterton businesses and small reduction for residential ratepayers
A46: Rates increases vary between city and district councils because of differing capital values. Further, some of Greater Wellington’s work programmes impact differently across the region, especially flood protection and public transport.
A51: 1 Rates for Greater Wellington are mostly allocated to ratepayers on the basis of their capital values. The territorial local authorities undertake valuations in different years. To ensure properties are valued on the same basis in each territorial area, Greater Wellington undertakes an equalised capital value (ECV) calculation. The movements in ECV reflect the extent to which capital values in each area have moved relative to each other. The ECV change by city amount shows how much the general rate changes as a direct consequence of the relative changes in capital values between the cities and districts from 30 June 2017 to 30 June 2018.
A56: 2 The General rate funds: resource management; land management; Parks; Council costs; 50% of flood protection, and is reduced by investment management net income
A57: 3 The River management rate is the 50% of flood protection costs directly incurred in the city or district council area
A58: 4 The Transport rate includes directly attributable bus costs plus a share of the rest based on congestion and calculated using work travel statistics. The Wellington CBD businesses pick up the greatest portion of the transport rate
A60: 5 The Stadium rate is the rates to repay the $25 million advance to have the stadium built. This rate is forecast to finish in 2018/19
A61: 6 The WRS rate is to cover Economic development in the region. Residents pay $14 + GST, Rural $28 + GST and businesses based on CV.
A62: 7 Region-wide rates are rates that are charged to all ratepayers in the region. It excludes Bovine TB, Possum, South Wairarapa Region river rates, Wairarapa river and drainage scheme rates and any "Warm Greater Wellington" targeted rates as they impact only certain ratepayers that are covered by these programmes. These rates are additional to the umbers listed above.
A65: =+rates1!$A$50 -> All figures on this page exclude GST

Sheet ratesSWDC (hidden)
A3: 2017/18 Region Wide Average Rates
A4: SOUTH WAIRARAPA DISTRICT | E4: =+rates2!F10 -> 2016/17 | F4: =+rates2!G10 -> 2017/18
E5: Budget | F5: Plan | G5: Change | H5: Change
E6: $000s | F6: $000s | G6: $000s | H6: %
A7: The overall rates movement for Greater Wellington Regional Council - GWRC | E7: =+rates1!F39 -> 114375 | F7: =+rates1!G39 -> 120720 | G7: =+rates1!H39 -> 6345 | H7: =+rates1!I39 -> 0.0555
A9: The overall GWRC rates movement for South Wairarapa District | E9: =+rates2!F20 -> 1903 | F9: =+rates2!G20 -> 1929 | G9: =+rates2!H20 -> 26 | H9: =+rates2!I20 -> 0.0137 | J9: =+G9*1000/rates8!$F$45 -> 3.940588057 | L9: inc GST
L10: per year | M10: per week
A11: Made up of:
A12: ECV movements1 | E12: 0 | F12: =+G12 -> -202 | G12: =+rates3!C24 -> -202 | H12: =+rates3!D24 -> -0.1061 | J12: =+G12*1000/rates8!$F$45 -> -30.61533798 | L12: =+H12/$H$19*($G$36*1.15) -> -235.5827072 | M12: =+L12/52 -> -4.530436677
A13: General rate2 | E13: =+rates4!D22 -> 1360 | F13: =+rates4!E22-F12 -> 1447 | G13: =+rates3!E24 -> 87 | H13: =+rates3!F24 -> 0.0457 | J13: =+G13*1000/rates8!$F$45 -> 13.18581388 | L13: 101.4715336 | M13: 1.951375647
A14: River management rate3 | E14: =+rates4!G22 -> 0 | F14: =+rates4!H22 -> 0 | G14: =+rates3!G24 -> 0 | H14: =+rates3!H24 -> 0 | J14: =+G14*1000/rates8!$F$45 -> 0 | L14: 0 | M14: 0
A15: Transport rate4 | E15: =+rates4!J22 -> 376 | F15: =+rates4!K22 -> 535 | G15: =+rates3!I24 -> 159 | H15: =+rates3!J24 -> 0.0836 | J15: =+G15*1000/rates8!$F$45 -> 24.09821158 | L15: 185.6240747 | M15: 3.569693744
A16: Stadium-purposes rate5 | E16: =+rates4!M22 -> 29 | F16: =+rates4!N22 -> 11 | G16: =+rates3!K24 -> -18 | H16: =+rates3!L24 -> -0.0095 | J16: =+G16*1000/rates8!$F$45 -> -2.728099424 | L16: -21.09364485 | M16: -0.4056470164
A17: WRS rate6 | E17: =+rates4!P22 -> 138 | F17: =+rates4!Q22 -> 138 | G17: =+rates3!M24 -> 0 | H17: =+rates3!N24 -> 0 | J17: =+G17*1000/rates8!$F$45 -> 0 | L17: 0 | M17: 0
A19: Total Region-wide rates7 | E19: =SUM(E12:E18) -> 1903 | F19: =SUM(F12:F18) -> 1929 | G19: =SUM(G12:G18) -> 26 | H19: =SUM(H12:H18) -> 0.0137 | J19: =+G19*1000/rates8!$F$45 -> 3.940588057 | L19: =SUM(L12:L18) -> 30.41925626 | M19: =SUM(M12:M18) -> 0.5849856973
A21: 2 Overall the general rate has decreased over 2009/10 due to increased returns from investments and lower debt servicing costs
A22: 3 The River management rates has decreased due to lower debt servicing costs of completed projects
A23: 4 The Transport rate has increased due to funding the on-going rail upgrade projects and the increased expenditure associated with ensuring the rail network and rolling stock are appropriately managed and maintained after the upgrade is complete. Overall
B26: The Transport increase includes: | F26: $000s
B27: Debt servicing cost of the rail upgrade to date | F27: =+ratesWCC!F27 -> 1844
B28: Regional Rail package | F28: =+ratesWCC!F28 -> 2102
B29: Other transport changes | F29: =+ratesWCC!F29 -> 772
F30: =+ratesWCC!F30 -> 4718
A33: Average Rates | C33: =+E4 -> 2016/17 | D33: =+F4 -> 2017/18 | E33: =+C33 -> 2016/17 | F33: =+D33 -> 2017/18 | G33: =+G5 -> Change | H33: =+H5 -> Change
C34: Average Capital Value | D34: Average Capital Value | E34: Average Rates | F34: Average Rates | G34: per year excluding GST
C35: $ | D35: $ | E35: $ | F35: $ | G35: $ | H35: %
A36: Residential property | C36: =+rates8!Q47 -> 276988 | D36: =+rates8!G47 -> 282112.837 | E36: =+rates8!O47 -> 187.9 | F36: =+rates8!E47 -> 214.3515272 | G36: =+F36-E36 -> 26.45152718 | H36: =+G36/E36 -> 0.1407744927
A37: Rural property | C37: =+rates8!Q48 -> 804372 | D37: =+rates8!G48 -> 807367.7286 | E37: =+rates8!O48 -> 388.39 | F37: =+rates8!E48 -> 471.147879 | G37: =+F37-E37 -> 82.75787905 | H37: =+G37/E37 -> 0.213079325
A38: Business | C38: =+rates8!Q46 -> 586621 | D38: =+rates8!G46 -> 610319.8782 | E38: =+rates8!O46 -> 432.17 | F38: =+rates8!E46 -> 659.082038 | G38: =+F38-E38 -> 226.912038 | H38: =+G38/E38 -> 0.5250527293
A40: South Wairarapa district has 3.3% of the equalised capital value of the region. (2010 3.3%)
A43: In South Wairarapa the Residential and Business values have had a slight increase whilst the rural values have slightly decreased. This results in a small increase for South Wairarapa residential and business ratepayers and small reduction for rural ratepayers
A46: Rates increases vary between city and district councils because of differing capital values. Further, some of Greater Wellington’s work programmes impact differently across the region, especially flood protection and public transport.
A51: 1 Rates for Greater Wellington are mostly allocated to ratepayers on the basis of their capital values. The territorial local authorities undertake valuations in different years. To ensure properties are valued on the same basis in each territorial area, Greater Wellington undertakes an equalised capital value (ECV) calculation. The movements in ECV reflect the extent to which capital values in each area have moved relative to each other. The ECV change by city amount shows how much the general rate changes as a direct consequence of the relative changes in capital values between the cities and districts from 30 June 2017 to 30 June 2018.
A56: 2 The General rate funds: resource management; land management; Parks; Council costs; 50% of flood protection, and is reduced by investment management net income
A57: 3 The River management rate is the 50% of flood protection costs directly incurred in the city or district council area
A58: 4 The Transport rate includes directly attributable bus costs plus a share of the rest based on congestion and calculated using work travel statistics. The Wellington CBD businesses pick up the greatest portion of the transport rate
A60: 5 The Stadium rate is the rates to repay the $25 million advance to have the stadium built. This rate is forecast to finish in 2018/19
A61: 6 The WRS rate is to cover Economic development in the region. Residents pay $14 + GST, Rural $28 + GST and businesses based on CV.
A62: 7 Region-wide rates are rates that are charged to all ratepayers in the region. It excludes Bovine TB, Possum, South Wairarapa Region river rates, Wairarapa river and drainage scheme rates and any "Warm Greater Wellington" targeted rates as they impact only certain ratepayers that are covered by these programmes. These rates are additional to the umbers listed above.
A65: =+rates1!$A$50 -> All figures on this page exclude GST

Sheet rates8 (hidden)
K2: Paste Values from last years final file
A3: RATES AND LEVIES - What's happening to your property
B4: =+ratesWCC!F4 -> 2017/18 | L4: =+Instructions!E11 -> 2016/17
C5: Total | F5: No. of Assessments | G5: Average Capital Value | M5: Total | P5: No. of Assessments | Q5: Average Capital Value
B6: Cents / Dollar | C6: District-wide Rates | D6: Rates per $100K | E6: Average Rates | H6: contingues | L6: Cents / Dollar | M6: District-wide Rates | N6: Rates per $100K | O6: Average Rates
C7: Check | M7: Check
Y8: Rates Increase GST excl | Z8: Rates Increase / -Decrease % | AA8: Cents per Dollar Increase / -Decrease | AB8: Cents per Dollar Increase / -Decrease %
A9: Wellington City | C9: =+'Summary proposed'!E9 -> 66378243.07 | F9: =+NRV!E9 -> 76971 | K9: Wellington City | M9: 59010378 | P9: 76485 | S9: =+M9/M51 -> 0.5251489517 | X9: Wellington City | Y9: 1988299.916 | Z9: 0.07867058572 | AA9: 0.003962170085 | AB9: 0.07062003345
A10: CBD Business | B10: =+'Summary proposed'!D10 -> 0.381793175 | C10: =+'Summary proposed'!E10 -> 29986767.09 | D10: =+'Summary proposed'!G10 -> 381.793175 | E10: =+'Summary proposed'!H10 -> 8817.044133 | F10: =+NRV!E10 -> 3401 | G10: =+NRV!F10 -> 2309377.095 | H10: =+E10*F10-C10 -> 0 | I10: =+C10/M10-1 -> 0.09786109263 | K10: CBD Business | L10: 0.35878 | M10: 27313808 | N10: 358.78 | O10: 7935.45 | P10: 3442 | Q10: 2211759 | R10: 0 | X10: CBD Business | Y10: 1564381.495 | Z10: 0.1016850898 | AA10: 0.01716318339 | AB10: 0.08207897018
A11: Business | B11: =+'Summary proposed'!D11 -> 0.1115137748 | C11: =+'Summary proposed'!E11 -> 4259553.435 | D11: =+'Summary proposed'!G11 -> 111.5137748 | E11: =+'Summary proposed'!H11 -> 2233.641025 | F11: =+NRV!E11 -> 1907 | G11: =+NRV!F11 -> 2003018.039 | H11: =+E11*F11-C11 -> 0 | I11: =+C11/M11-1 -> 0.3474904581 | K11: Business | L11: 0.08342 | M11: 3161101 | N11: 83.42 | O11: 1642.98 | P11: 1924 | Q11: 1969522 | R11: 0 | X11: Urban | Y11: 422892.0185 | Z11: 0.04292160701 | AA11: 0.0009823160565 | AB11: 0.03707557414
A12: Residential | B12: =+'Summary proposed'!D12 -> 0.07895300059 | C12: =+'Summary proposed'!E12 -> 31836532.34 | D12: =+'Summary proposed'!G12 -> 78.95300059 | E12: =+'Summary proposed'!H12+14 -> 449.1039842 | F12: =+NRV!E12 -> 70889 | G12: =+NRV!F12 -> 551092.398 | H12: =+E12*F12-C12 -> 0 | I12: =+C12/M12-1 -> 0.1273473781 | K12: Residential | L12: 0.0705 | M12: 28240215 | N12: 70.5 | O12: 401.57 | P12: 70325 | Q12: 549713 | R12: 0 | T12: =+O12+14 -> 415.57 | X12: Urban | Y12: 422892.0185 | Z12: 0.04292160701 | AA12: 0.0009823160565 | AB12: 0.03707557414
A13: Rural | B13: =+'Summary proposed'!D13 -> 0.04729149106 | C13: =+'Summary proposed'!E13 -> 295390.2083 | D13: =+'Summary proposed'!G13 -> 47.29149106 | E13: =+'Summary proposed'!H13+28 -> 381.641096 | F13: =+NRV!E13 -> 774 | G13: =+NRV!F13 -> 747790.1163 | H13: =+E13*F13-C13 -> 0 | I13: =+C13/M13-1 -> 0.0004579373853 | K13: Rural | L13: 0.04718 | M13: 295255 | N13: 47.18 | O13: 371.86 | P13: 794 | Q13: 728871 | R13: 0 | T13: =+O13+28 -> 399.86 | X13: Rural | Y13: 1026.403044 | Z13: 0.02811423306 | AA13: 0.0002671481189 | AB13: 0.03677801014
A15: Lower Hutt City | C15: =+'Summary proposed'!E15 -> 21001090.06 | F15: =+NRV!E15 -> 39049 | K15: Lower Hutt City | M15: 22082817 | P15: 38911 | X15: Lower Hutt City | Y15: 812461.1343 | Z15: 0.1133714499 | AA15: 0.007435490739 | AB15: 0.1859198626
A16: Business | B16: =+'Summary proposed'!D16 -> 0.1189787439 | C16: =+'Summary proposed'!E16 -> 4517451.577 | D16: =+'Summary proposed'!G16 -> 118.9787439 | E16: =+'Summary proposed'!H16 -> 1916.610766 | F16: =+NRV!E16 -> 2357 | G16: =+NRV!F16 -> 1610885.023 | H16: =+E16*F16-C16 -> 0 | K16: Business | L16: 0.1355 | M16: 4493194 | N16: 135.5 | O16: 1916.89 | P16: 2344 | Q16: 1414644 | R16: 0 | X16: Urban | Y16: 806490.4134 | Z16: 0.1129928482 | AA16: 0.007565012162 | AB16: 0.1870924758
A17: Residential | B17: =+'Summary proposed'!D17 -> 0.09236027437 | C17: =+'Summary proposed'!E17 -> 16257977.59 | D17: =+'Summary proposed'!G17 -> 92.36027437 | E17: =+'Summary proposed'!H17+14 -> 449.1389312 | F17: =+NRV!E17 -> 36202 | G17: =+NRV!F17 -> 471132.1336 | H17: =+E17*F17-C17 -> 1750 | K17: Residential | L17: 0.12348 | M17: 17363657 | N17: 123.48 | O17: 481.33 | P17: 36078 | Q17: 378461 | R17: 1750 | T17: =+O17+14 -> 495.33 | X17: Urban | Y17: 806490.4134 | Z17: 0.1129928482 | AA17: 0.007565012162 | AB17: 0.1870924758
A18: Rural | B18: =+'Summary proposed'!D18 -> 0.06663969837 | C18: =+'Summary proposed'!E18 -> 225660.8967 | D18: =+'Summary proposed'!G18 -> 66.63969837 | E18: =+'Summary proposed'!H18+28 -> 460.5324423 | F18: =+NRV!E18 -> 490 | G18: =+NRV!F18 -> 649061.2245 | H18: =+E18*F18-C18 -> 0 | K18: Rural | L18: 0.07649 | M18: 225966 | N18: 76.49 | O18: 462.1 | P18: 489 | Q18: 567557 | R18: 0 | T18: =+O18+28 -> 490.1 | X18: Rural | Y18: 5970.720833 | Z18: 0.2071047993 | AA18: 0.00196533646 | AB18: 0.1820243386
A20: Upper Hutt City | C20: =+'Summary proposed'!E20 -> 6672554.231 | F20: =+NRV!E20 -> 16570 | K20: Upper Hutt City | M20: 7860431 | P20: 16473 | X20: Upper Hutt City | Y20: 343783.6401 | Z20: 0.1277511549 | AA20: 0.006804948036 | AB20: 0.1644408014
A21: Business | B21: =+'Summary proposed'!D21 -> 0.1052073065 | C21: =+'Summary proposed'!E21 -> 1231517.277 | D21: =+'Summary proposed'!G21 -> 105.2073065 | E21: =+'Summary proposed'!H21 -> 1705.702599 | F21: =+NRV!E21 -> 722 | G21: =+NRV!F21 -> 1621277.701 | H21: =+E21*F21-C21 -> 0 | K21: Business | L21: 0.12659 | M21: 1348212 | N21: 126.59 | O21: 1880.35 | P21: 717 | Q21: 1485365 | R21: 0 | X21: Urban | Y21: 330340.9717 | Z21: 0.1263786537 | AA21: 0.007521247901 | AB21: 0.1684321802
A22: Residential | B22: =+'Summary proposed'!D22 -> 0.07910704643 | C22: =+'Summary proposed'!E22 -> 4983898.501 | D22: =+'Summary proposed'!G22 -> 79.10704643 | E22: =+'Summary proposed'!H22+14 -> 341.2809163 | F22: =+NRV!E22 -> 14604 | G22: =+NRV!F22 -> 413719.0441 | H22: =+E22*F22-C22 -> 168 | K22: Residential | L22: 0.11634 | M22: 6021664 | N22: 116.34 | O22: 413.37 | P22: 14568 | Q22: 343289 | R22: 266 | T22: =+O22+14 -> 427.37 | X22: Urban | Y22: 330340.9717 | Z22: 0.1263786537 | AA22: 0.007521247901 | AB22: 0.1684321802
A23: Rural | B23: =+'Summary proposed'!D23 -> 0.0530370515 | C23: =+'Summary proposed'!E23 -> 457138.4531 | D23: =+'Summary proposed'!G23 -> 53.0370515 | E23: =+'Summary proposed'!H23+28 -> 368.9601713 | F23: =+NRV!E23 -> 1244 | G23: =+NRV!F23 -> 642871.6559 | H23: =+E23*F23-C23 -> 1848 | K23: Rural | L23: 0.06441 | M23: 490554 | N23: 64.41 | O23: 414.46 | P23: 1188 | Q23: 599978 | R23: 1820 | T23: =+O23+28 -> 442.46 | X23: Rural | Y23: 13442.66842 | Z23: 0.1742568034 | AA23: 0.001947247534 | AB23: 0.1638867587
A25: Porirua City | C25: =+'Summary proposed'!E25 -> 6855195.675 | F25: =+NRV!E25 -> 18514 | K25: Porirua City | M25: 9192730 | P25: 18335 | X25: Porirua City | Y25: 449962.4731 | Z25: 0.1167472304 | AA25: 0.005414885052 | AB25: 0.1114615081
A26: Business | B26: =+'Summary proposed'!D26 -> 0.09062730273 | C26: =+'Summary proposed'!E26 -> 992132.8808 | D26: =+'Summary proposed'!G26 -> 90.62730273 | E26: =+'Summary proposed'!H26 -> 1246.398091 | F26: =+NRV!E26 -> 796 | G26: =+NRV!F26 -> 1375300.879 | H26: =+E26*F26-C26 -> 0 | K26: Business | L26: 0.12346 | M26: 1176674 | N26: 123.46 | O26: 1481.96 | P26: 794 | Q26: 1200392 | R26: 0 | X26: Urban Ward | Y26: 439955.5715 | Z26: 0.1165290577 | AA26: 0.005764367787 | AB26: 0.1122792748
A27: Residential | B27: =+'Summary proposed'!D27 -> 0.06437313259 | C27: =+'Summary proposed'!E27 -> 5614028.415 | D27: =+'Summary proposed'!G27 -> 64.37313259 | E27: =+'Summary proposed'!H27+14 -> 328.1906006 | F27: =+NRV!E27 -> 17106 | G27: =+NRV!F27 -> 488077.2273 | H27: =+E27*F27-C27 -> 0 | K27: Residential | L27: 0.11171 | M27: 7699321 | N27: 111.71 | O27: 454.59 | P27: 16937 | Q27: 394401 | R27: 0 | T27: =+O27+14 -> 468.59 | X27: Urban Ward | Y27: 439955.5715 | Z27: 0.1165290577 | AA27: 0.005764367787 | AB27: 0.1122792748
A28: Rural | B28: =+'Summary proposed'!D28 -> 0.03859783199 | C28: =+'Summary proposed'!E28 -> 249034.3799 | D28: =+'Summary proposed'!G28 -> 38.59783199 | E28: =+'Summary proposed'!H28+28 -> 406.9189215 | F28: =+NRV!E28 -> 612 | G28: =+NRV!F28 -> 981710.3758 | H28: =+E28*F28-C28 -> 0 | K28: Rural | L28: 0.05681 | M28: 316735 | N28: 56.81 | O28: 524.4 | P28: 604 | Q28: 873720 | R28: 0 | T28: =+O28+28 -> 552.4 | X28: Rural Ward | Y28: 10006.90163 | Z28: 0.127219188 | AA28: 0.001476627096 | AB28: 0.1087925378
A30: Kapiti Coast District | C30: =+'Summary proposed'!E30 -> 10632965.75 | F30: =+NRV!E30 -> 24761 | K30: Kapiti Coast District | M30: 8787114 | P30: 24639 | X30: Kapiti Coast District | Y30: 376006.0428 | Z30: 0.2071867351 | AA30: 0.003506058569 | AB30: 0.1990790284
A31: Urban - Commerical | B31: =+'Summary proposed'!D31 -> 0.1251035536 | C31: =+'Summary proposed'!E31 -> 1587072.439 | D31: =+'Summary proposed'!G31 -> 125.1035536 | E31: =+'Summary proposed'!H31 -> 1142.600748 | F31: =+NRV!E31 -> 1389 | G31: =+NRV!F31 -> 913323.9741 | H31: =+E31*F31-C31 -> 0 | K31: Urban - Commerical | L31: 0.09029 | M31: 1146190 | N31: 90.29 | O31: 826.98 | P31: 1386 | Q31: 915954 | R31: 0 | X31: Urban Ward | Y31: 357194.8471 | Z31: 0.2077920386 | AA31: 0.004011144356 | AB31: 0.2009042478
A32: Urban - Residential | B32: =+'Summary proposed'!D32 -> 0.09471609425 | C32: =+'Summary proposed'!E32 -> 7883585.012 | D32: =+'Summary proposed'!G32 -> 94.71609425 | E32: =+'Summary proposed'!H32+14 -> 383.1878255 | F32: =+NRV!E32 -> 20583 | G32: =+NRV!F32 -> 389783.6248 | H32: =+E32*F32-C32 -> 3570 | K32: Urban - Residential | L32: 0.07973 | M32: 6617313 | N32: 79.73 | O32: 323.53 | P32: 20466 | Q32: 388240 | R32: 4088 | T32: =+O32+14 -> 337.53 | X32: Urban Ward | Y32: 357194.8471 | Z32: 0.2077920386 | AA32: 0.004011144356 | AB32: 0.2009042478
A33: Rural | B33: =+'Summary proposed'!D33 -> 0.06470512414 | C33: =+'Summary proposed'!E33 -> 1162308.304 | D33: =+'Summary proposed'!G33 -> 64.70512414 | E33: =+'Summary proposed'!H33+28 -> 418.4540351 | F33: =+NRV!E33 -> 2789 | G33: =+NRV!F33 -> 603436.0344 | H33: =+E33*F33-C33 -> 4760 | K33: Rural | L33: 0.05727 | M33: 1023611 | N33: 57.27 | O33: 369.11 | P33: 2787 | Q33: 595615 | R33: 5096 | T33: =+O33+28 -> 397.11 | X33: Rural Ward | Y33: 18811.19577 | Z33: 0.1963271454 | AA33: 0.001029840515 | AB33: 0.1821717318
J34: Wai Average
A35: Masterton District | C35: =+'Summary proposed'!E35 -> 3408862.041 | F35: =+NRV!E35 -> 12296 | K35: Masterton District | M35: 2375020 | P35: 12222 | X35: Masterton District | Y35: 25994.26614 | Z35: 0.1178680617 | AA35: 0.0004912024534 | AB35: 0.1089800964
A36: Urban - Commercial | B36: =+'Summary proposed'!D36 -> 0.1110260089 | C36: =+'Summary proposed'!E36 -> 423174.0784 | D36: =+'Summary proposed'!G36 -> 111.0260089 | E36: =+'Summary proposed'!H36 -> 775.0440996 | F36: =+NRV!E36 -> 546 | G36: =+NRV!F36 -> 698074.359 | H36: =+E36*F36-C36 -> 0 | K36: Urban - Commercial | L36: 0.06033 | M36: 228693 | N36: 60.33 | O36: 419.62 | P36: 545 | Q36: 695568 | R36: 0 | X36: Urban Ward | Y36: 19432.13865 | Z36: 0.1211748121 | AA36: 0.000797777344 | AB36: 0.1105110076
A37: Urban - Residential | B37: =+'Summary proposed'!D37 -> 0.07299393236 | C37: =+'Summary proposed'!E37 -> 1551104.615 | D37: =+'Summary proposed'!G37 -> 72.99393236 | E37: =+'Summary proposed'!H37+14 -> 197.8248681 | F37: =+NRV!E37 -> 7842 | G37: =+NRV!F37 -> 251835.8199 | H37: =+E37*F37-C37 -> 238 | I37: =+F37 -> 7842 | J37: =+F37*G37 -> 1974896500 | K37: Urban - Residential | L37: 0.04954 | M37: 1077301 | N37: 49.54 | O37: 138.38 | P37: 7787 | Q37: 251063 | R37: 252 | T37: =+O37+14 -> 152.38 | X37: Urban Ward | Y37: 19432.13865 | Z37: 0.1211748121 | AA37: 0.000797777344 | AB37: 0.1105110076
A38: Rural Ward | B38: =+'Summary proposed'!D38 -> 0.0565307472 | C38: =+'Summary proposed'!E38 -> 1434583.347 | D38: =+'Summary proposed'!G38 -> 56.5307472 | E38: =+'Summary proposed'!H38+28 -> 370.5351451 | F38: =+NRV!E38 -> 3908 | G38: =+NRV!F38 -> 605927.1494 | H38: =+E38*F38-C38 -> 13468 | I38: =+F38 -> 3908 | J38: =+F38*G38 -> 2367963300 | K38: Rural Ward | L38: 0.04161 | M38: 1069026 | N38: 41.61 | O38: 278.3 | P38: 3890 | Q38: 601555 | R38: 13552 | T38: =+O38+28 -> 306.3 | X38: Rural Ward | Y38: 6562.127495 | Z38: 0.1090553048 | AA38: 0.0002290246382 | AB38: 0.1016806422
A40: Carterton District | C40: =+'Summary proposed'!E40 -> 1465881.196 | F40: =+NRV!E40 -> 4561 | K40: Carterton District | M40: 1153609 | P40: 4471 | X40: Carterton District | Y40: 16786.96329 | Z40: 0.1338617282 | AA40: 0.0008999172513 | AB40: 0.1365301544
A41: Urban - Commercial | B41: =+'Summary proposed'!D41 -> 0.1106917234 | C41: =+'Summary proposed'!E41 -> 102993.6675 | D41: =+'Summary proposed'!G41 -> 110.6917234 | E41: =+'Summary proposed'!H41 -> 457.7496333 | F41: =+NRV!E41 -> 225 | G41: =+NRV!F41 -> 413535.5556 | H41: =+E41*F41-C41 -> 0 | K41: Urban - Commercial | L41: 0.0703 | M41: 72253 | N41: 70.3 | O41: 318.3 | P41: 227 | Q41: 452791 | R41: 0 | X41: Urban Ward | Y41: 7458.424258 | Z41: 0.0976056311 | AA41: 0.002249838876 | AB41: 0.1708438288
A42: Urban - Residential | B42: =+'Summary proposed'!D42 -> 0.0727519045 | C42: =+'Summary proposed'!E42 -> 473230.7909 | D42: =+'Summary proposed'!G42 -> 72.7519045 | E42: =+'Summary proposed'!H42+14 -> 206.323093 | F42: =+NRV!E42 -> 2299 | G42: =+NRV!F42 -> 264354.7194 | H42: =+E42*F42-C42 -> 1106 | I42: =+F42 -> 2299 | J42: =+F42*G42 -> 607751500 | K42: Urban - Residential | L42: 0.05922 | M42: 369450 | N42: 59.22 | O42: 166.69 | P42: 2225 | Q42: 257835 | R42: 1428 | T42: =+O42+14 -> 180.69 | X42: Urban Ward | Y42: 7458.424258 | Z42: 0.0976056311 | AA42: 0.002249838876 | AB42: 0.1708438288
A43: Rural Ward | B43: =+'Summary proposed'!D43 -> 0.05637906278 | C43: =+'Summary proposed'!E43 -> 889656.7372 | D43: =+'Summary proposed'!G43 -> 56.37906278 | E43: =+'Summary proposed'!H43+28 -> 439.6901017 | F43: =+NRV!E43 -> 2037 | G43: =+NRV!F43 -> 730218.0658 | H43: =+E43*F43-C43 -> 5992 | I43: =+F43 -> 2037 | J43: =+F43*G43 -> 1487454200 | K43: Rural Ward | L43: 0.04555 | M43: 711906 | N43: 45.55 | O43: 357.89 | P43: 2019 | Q43: 724218 | R43: 10668 | T43: =+O43+28 -> 385.89 | X43: Rural Ward | Y43: 9328.539035 | Z43: 0.1904118603 | AA43: 0.0006018021862 | AB43: 0.1624314296
A45: South Wairarapa District | C45: =+'Summary proposed'!E45 -> 2347721.044 | F45: =+NRV!E45 -> 6598 | K45: South Wairarapa District | M45: 1903675 | P45: 6476 | X45: South Wairarapa District | Y45: 30921.47194 | Z45: 0.125478094 | AA45: 0.0008551504397 | AB45: 0.1099460327
A46: Urban - Commercial | B46: =+'Summary proposed'!D46 -> 0.107989607 | C46: =+'Summary proposed'!E46 -> 205633.5959 | D46: =+'Summary proposed'!G46 -> 107.989607 | E46: =+'Summary proposed'!H46 -> 659.082038 | F46: =+NRV!E46 -> 312 | G46: =+NRV!F46 -> 610319.8782 | H46: =+E46*F46-C46 -> 0 | K46: Urban - Commercial | L46: 0.07367 | M46: 136998 | N46: 73.67 | O46: 432.17 | P46: 317 | Q46: 586621 | R46: 0 | X46: Urban Ward | Y46: 19430.09425 | Z46: 0.1312623237 | AA46: 0.001749958219 | AB46: 0.1083671341
A47: Urban - Residential | B47: =+'Summary proposed'!D47 -> 0.07101822424 | C47: =+'Summary proposed'!E47 -> 673514.256 | D47: =+'Summary proposed'!G47 -> 71.01822424 | E47: =+'Summary proposed'!H47+14 -> 214.3515272 | F47: =+NRV!E47 -> 3147 | G47: =+NRV!F47 -> 282112.837 | H47: =+E47*F47-C47 -> 1050 | I47: =+F47 -> 3147 | J47: =+F47*G47 -> 887809098 | K47: Urban - Residential | L47: 0.06278 | M47: 574032 | N47: 62.78 | O47: 187.9 | P47: 3060 | Q47: 276988 | R47: 952 | T47: =+O47+14 -> 201.9 | X47: Urban Ward | Y47: 19430.09425 | Z47: 0.1312623237 | AA47: 0.001749958219 | AB47: 0.1083671341
A48: Rural Ward | B48: =+'Summary proposed'!D48 -> 0.05488798516 | C48: =+'Summary proposed'!E48 -> 1468573.192 | D48: =+'Summary proposed'!G48 -> 54.88798516 | E48: =+'Summary proposed'!H48+28 -> 471.147879 | F48: =+NRV!E48 -> 3139 | G48: =+NRV!F48 -> 807367.7286 | H48: =+E48*F48-C48 -> 10360 | I48: =+F48 -> 3139 | J48: =+F48*G48 -> 2534327300 | K48: Rural Ward | L48: 0.0448 | M48: 1192646 | N48: 44.8 | O48: 388.39 | P48: 3099 | Q48: 804372 | R48: 10976 | T48: =+O48+28 -> 416.39 | X48: Rural Ward | Y48: 11491.37769 | Z48: 0.1167771546 | AA48: 0.0004559052039 | AB48: 0.1043193677
A50: Tararua District | B50: =+'Summary proposed'!D50 -> 0.030381703 | C50: =+'Summary proposed'!E50 -> 2319.778706 | D50: =+'Summary proposed'!G50 -> 30.381703 | E50: =+'Summary proposed'!H50+28 -> 200.3148922 | F50: =+NRV!E50 -> 12 | G50: =+NRV!F50 -> 567166.6667 | H50: =+E50*F50-C50 -> 84 | K50: Tararua District | L50: 0.04135 | M50: 3066 | N50: 41.35 | O50: 262.5 | P50: 12 | Q50: 567171 | R50: 84 | T50: =+O50+28 -> 290.5 | X50: Tararua District | AA50: 0
A51: Totals | C51: =+C50+C45+C40+C35+C30+C25+C20+C15+C9 -> 118764832.9 | F51: =+F50+F45+F40+F35+F30+F25+F20+F15+F9 -> 199332 | G51: =+NRV!F51 -> 21002769.33 | K51: Totals | M51: 112368839 | P51: 198024 | Q51: 525430 | X51: Totals | Y51: 4044215.908 | Z51: 0.09770408865
C52: =Rates!F15+Rates!F16 -> 116991207.7 | I52: =+I37+I42+I47 -> 13288 | J52: =+J37+J42+J47 -> 3470457098 | M52: 114375076
C53: =+C52-C51 -> -1773625.154 | D53: =Essbase!F21-C53 -> 3790678.63 | I53: =+I38+I43+I48 -> 9084 | J53: =+J38+J43+J48 -> 6389744800 | M53: 2006237
A54: Averages | E54: Average Rates | G54: Average Value | J54: =+J52/I52 -> 261172.2681 | K54: Averages | O54: Average Rates | Q54: Average Value
A55: CBD Business | C55: =+C10 -> 29986767.09 | E55: =+C55/F55 -> 8817.044133 | F55: =+F10 -> 3401 | G55: =+NRV!F54 -> 2309377.095 | J55: =+J53/I53 -> 703406.517 | K55: CBD Business | M55: 27313808 | O55: 7935.45 | P55: 3442 | Q55: 2211759
A56: Urban - Commercial | C56: =+C11+C16+C21+C26+C31+C36+C41+C46 -> 13319528.95 | E56: =+C56/F56 -> 1613.705955 | F56: =+F11+F16+F21+F26+F31+F36+F41+F46 -> 8254 | G56: =+NRV!F55 -> 1431443.458 | K56: Urban - Commercial | M56: 11763315 | O56: 1425.17 | P56: 8254 | Q56: 1340046
A57: Urban - Residential | C57: =+C12+C17+C22+C27+C32+C37+C42+C47 -> 69273871.52 | E57: =+C57/F57 -> 401.1876362 | F57: =+F12+F17+F22+F27+F32+F37+F42+F47 -> 172672 | G57: =+NRV!F56 -> 474927.55 | K57: Urban - Residential | M57: 67962953 | O57: 396.41 | P57: 171446 | Q57: 439297
A58: Rural Ward | C58: =+C13+C18+C23+C28+C33+C38+C43+C48+C50 -> 6184665.297 | E58: =+C58/F58 -> 412.1736286 | F58: =+F13+F18+F23+F28+F33+F38+F43+F48+F50 -> 15005 | G58: =+NRV!F57 -> 691562.9817 | K58: Rural Ward | M58: 5328764 | O58: 358.07 | P58: 14882 | Q58: 675886
C59: =SUM(C55:C58) -> 118764832.9 | F59: =SUM(F55:F58) -> 199332 | M59: 112368839 | P59: 198024

Sheet Impact for rates (hidden)
L1: Rates funding impact statement | Q1: Non District Wide | R1: Less than + or - 1000 is rounding | S1: Check Rates Pages | T1: Check Rates sheet
A4: General rate | C4: =Instructions!D11 -> 2017/18 | E4: =+C4 -> 2017/18 | G4: Targeted rate: Public transport | J4: =+C4 -> 2017/18 | L4: =+J4 -> 2017/18
C5: Cents per $ of rateable capital value | E5: Revenue sought $ | J5: =+$C$5 -> Cents per $ of rateable capital value | L5: =+$E$5 -> Revenue sought $
A8: Wellington city | C8: =+Gen!E9 -> 0.03091013539 | E8: =+ROUND(Gen!C9,0) -> 15862811 | G8: Wellington city
A9: Lower Hutt city | C9: =+Gen!E10 -> 0.02538707663 | E9: =+ROUND(Gen!C10,0) -> 5374653 | G9: Downtown city centre business | J9: =+Tran!G8 -> 0.3326515694 | L9: =ROUND(+Tran!D8,0) -> 26127091
A10: Upper Hutt city | C10: =+Gen!E22 -> 0.02545108965 | E10: =+ROUND(Gen!C11,0) -> 2034840 | G10: Urban | J10: =+Tran!G9 -> 0.06237216927 | L10: =ROUND(+Tran!D9+Tran!D10,0) -> 18626834 | P10: Picks up Ex trentham numbers
A11: Porirua city | C11: =+Gen!E12 -> 0.02509961824 | E11: =+ROUND(Gen!C12,0) -> 2521155 | G11: Rural | J11: =+Tran!G11 -> 0.01039536154 | L11: =ROUND(+Tran!D11,0) -> 60167
A12: Kapiti Coast district | C12: =+Gen!E13 -> 0.02953301847 | E12: =+ROUND(Gen!C13,0) -> 3241103 | G12: Lower Hutt city
A13: Masterton district | C13: =+Gen!E14 -> 0.02654939248 | E13: =+ROUND(Gen!C14,0) -> 1254196 | G13: Urban | J13: =+Tran!G14 -> 0.05122743789 | L13: =ROUND(+Tran!D14+Tran!D15,0) -> 7769908
A14: Carterton district | C14: =+Gen!E15 -> 0.02648498939 | E14: =+ROUND(Gen!C15,0) -> 579558 | G14: Rural | J14: =+Tran!G16 -> 0.008537906314 | L14: =ROUND(+Tran!D16,0) -> 27154
A15: South Wairarapa district | C15: =+Gen!E16 -> 0.0258089445 | E15: =+ROUND(Gen!C16,0) -> 932363 | G15: Upper Hutt city
A16: Tararua district | C16: =+Gen!E17 -> 0.02589733514 | E16: =+ROUND(Gen!C17,0) -> 1763 | G16: Urban | J16: =+Tran!G54 -> 0.03728395354 | L16: =ROUND(+Tran!D19+Tran!D20,0) -> 2664075 | P16: Picks up Ex trentham numbers
A17: Total general rate | E17: =SUM(E8:E16) -> 31802442 | G17: Rural | J17: =+Tran!G59 -> 0.008535577697 | L17: =ROUND(+Tran!D21,0) -> 68306 | P17: Picks up Ex trentham numbers | S17: =+rates1!G23*1000-E17 -> 10679558 | T17: =+Rates!F7 -> 42481670.52
G18: Porirua city
A19: Targeted rate: River management | C19: =+C4 -> 2017/18 | E19: =+E4 -> 2017/18 | G19: Urban | J19: =+Tran!G24 -> 0.05064738857 | L19: =ROUND(+Tran!D24++Tran!D25,0) -> 3373507
C20: =+$C$5 -> Cents per $ of rateable capital value | E20: =+$E$5 -> Revenue sought $ | G20: Rural | J20: =+Tran!G26 -> 0.008441231428 | L20: =ROUND(+Tran!D26,0) -> 50715
A21: based on capital value | G21: Kapiti Coast district
G22: Urban | J22: =+Tran!G29 -> 0.05959334709 | L22: =ROUND(+Tran!D29+Tran!D30,0) -> 3943422
A23: Wellington city | C23: =+Riv!D6 -> 0.0001436245184 | E23: =ROUND(Riv!B6,0) -> 73707 | G23: Rural | J23: =+Tran!G31 -> 0.009932224515 | L23: =ROUND(+Tran!D31,0) -> 167158
A24: Lower Hutt city | C24: =+Riv!D7 -> 0.02761124547 | E24: =ROUND(Riv!B7,0) -> 5845527 | G24: Masterton district
A25: Upper Hutt city | C25: =+Riv!D19 -> 0.01448808518 | E25: =ROUND(Riv!B8,0) -> 1158337 | G25: Urban | J25: =+Tran!G34 -> 0.05357282266 | L25: =ROUND(+Tran!D34+Tran!D35,0) -> 697929
A26: Porirua city | C26: =+Riv!D9 -> 0.0004828863805 | E26: =ROUND(Riv!B9,0) -> 48504 | G26: Rural | J26: =+Tran!G36 -> 0.008928803777 | L26: =ROUND(+Tran!D36,0) -> 211431 | P26: Picks up Ex trentham numbers
A27: Kapiti Coast district | C27: =+Riv!D10 -> 0.01987604706 | E27: =ROUND(Riv!B10,0) -> 2181298 | G27: Carterton district
A28: Carterton district | C28: =+Riv!D14 -> 0 | E28: =ROUND(Riv!B14,0) -> 0 | G28: Urban | J28: =+Tran!G39 -> 0.05344286657 | L28: =ROUND(+Tran!D39+Tran!D40,0) -> 201299
A29: Total district-wide river management rate | E29: =SUM(E23:E28) -> 9307373 | G29: Rural | J29: =+Tran!G41 -> 0.008907144428 | L29: =ROUND(+Tran!D41,0) -> 132490 | S29: =+rates1!G27*1000-E29 -> -3480373 | T29: =+Rates!F8 -> 2097819
A30: Greytown ward | C30: =+Riv!D23 -> 0.01695785319 | E30: =ROUND(Riv!B23,0) -> 90734 | G30: South Wairarapa district
A31: Total river management rates based upon capital value | E31: =+E30+E29 -> 9398107 | G31: Urban | J31: =+Tran!G44 -> 0.05207870606 | L31: =ROUND(+Tran!D44+Tran!D45,0) -> 314936 | Q31: =+E30 -> 90734 | T31: =+Rates!F13 -> 93297.36
G32: Rural | J32: =+Tran!G46 -> 0.008679784343 | L32: =ROUND(+Tran!D46,0) -> 219974 | T32: =+T31-Q31 -> 2563.36
A33: Targeted rate: River management based on land value | C33: =+C4 -> 2017/18 | E33: =+C33 -> 2017/18 | G33: Total public transport rate | L33: =SUM(L9:L32) -> 64656396 | S33: =+rates1!G28*1000-L33 -> -396 | T33: =+Rates!F9 -> 64656396.14
C34: Cents per $ of rateable land value | E34: =+$E$5 -> Revenue sought $
G35: Targeted rate: Warm Greater Wellington Based on extent of service provided | J35: =+J4 -> 2017/18 | L35: =+J35 -> 2017/18
J36: Percentage of service provided | L36: =+$E$5 -> Revenue sought $
A38: Featherston urban: Donalds Creek Stopbank | C38: =+Riv!D25 -> 0.003253430038 | E38: =ROUND(Riv!B25,0) -> 2563
A39: Total river management rates based upon land value | E39: =+E38+E37 -> 2563 | G39: For any ratepayer that utilises the service | J39: 0.15 | L39: =+Summary..!C28 -> 3182000 | Q39: =+L39 -> 3182000 | T39: =+rates1!G45*1000 -> 3182000
Q40: =+E39 -> 2563
A41: Total river management rates | E41: =+E39+E31 -> 9400670
A42: Note:
A43: 1 12 Rural properties in the Tararua District are within the boundaries of the Wellington region.
A44: Note that all figures on this page exclude GST.
L45: =+$L$1 -> Rates funding impact statement
A48: Targeted rate: Stadium purposes | C48: =+C4 -> 2017/18 | E48: =+C48 -> 2017/18 | G48: Targeted rate: Wellington Regional Strategy | I48: ` | J48: =+C4 -> 2017/18 | L48: =+E4 -> 2017/18
C49: =+$C$5 -> Cents per $ of rateable capital value | E49: =+$E$5 -> Revenue sought $ | I49: $ per rating unit | J49: =+$C$5 -> Cents per $ of rateable capital value | L49: =+$E$5 -> Revenue sought $
A52: Wellington city | G52: Wellington city
A53: Business | C53: =+Stad!G9 -> 0.001721768561 | E53: =+Stad!D9 -> 135231 | G53: Downtown city centre business | J53: =WRS!I9 -> 0.01101369557 | L53: =ROUND(WRS!D50,0)-(SUM(L54:L85)) -> 865037
A54: Residential | C54: =+Stad!G11 -> 0.000965413005 | E54: =+Stad!D11 -> 377152 | G54: Business | J54: =WRS!I10 -> 0.01101369557 | L54: =ROUND(WRS!D10,0) -> 420696
A55: Rural | C55: =+Stad!G12 -> 0.000489988114 | E55: =+Stad!D12 -> 2836 | G55: Residential – per rating unit | I55: =WRS!$C$11 -> 14 | L55: =ROUND(WRS!D11,0) -> 992446
A56: Lower Hutt city | G56: Rural – per rating unit | I56: =WRS!$C$12 -> 28 | L56: =ROUND(WRS!D12,0) -> 21672
A57: Business | C57: =+Stad!G15 -> 0.001311216438 | E57: =+Stad!D15 -> 49785 | G57: Lower Hutt city
A58: Residential | C58: =+Stad!G16 -> 0.0008143152361 | E58: =+Stad!D16 -> 138889 | G58: Business | J58: =WRS!I15 -> 0.009045755701 | L58: =ROUND(WRS!D15,0) -> 343454
A59: Rural | C59: =+Stad!G17 -> 0.0007074581814 | E59: =+Stad!D17 -> 2250 | G59: Residential – per rating unit | I59: =WRS!$C$11 -> 14 | L59: =ROUND(WRS!D16,0) -> 505078
A60: Upper Hutt city | G60: Rural – per rating unit | I60: =WRS!$C$12 -> 28 | L60: =ROUND(WRS!D17,0) -> 13720
A61: Business | C61: =+Stad!G55 -> 0.00068772551 | E61: =+Stad!D20 -> 7727 | G61: Upper Hutt city | P61: Picks up Ex trentham numbers
A62: Residential | C62: =+Stad!G60 -> 0.0006718152068 | E62: =+Stad!D21 -> 41764 | G62: Business | J62: =WRS!I20 -> 0.009049154643 | L62: =ROUND(WRS!D20,0) -> 105926 | P62: Picks up Ex trentham numbers
A63: Rural | C63: =+Stad!G65 -> 0.000244423282 | E63: =+Stad!D22 -> 1956 | G63: Residential – per rating unit | I63: =WRS!$C$11 -> 14 | L63: =ROUND(WRS!D21,0) -> 204288 | P63: Picks up Ex trentham numbers
A64: Porirua city | G64: Rural – per rating unit | I64: =WRS!$C$12 -> 28 | L64: =ROUND(WRS!D22,0) -> 32984
A65: Business | C65: =+Stad!G25 -> 0.001107843464 | E65: =+Stad!D25 -> 12128 | G65: Porirua city
A66: Residential | C66: =+Stad!G26 -> 0.0006794666034 | E66: =+Stad!D26 -> 56729 | G66: Business | J66: =WRS!I25 -> 0.008943330425 | L66: =ROUND(WRS!D25,0) -> 97906
A67: Rural | C67: =+Stad!G27 -> 0.0002278602895 | E67: =+Stad!D27 -> 1369 | G67: Residential – per rating unit | I67: =WRS!$C$11 -> 14 | L67: =ROUND(WRS!D26,0) -> 239484
A68: Kapiti Coast district | G68: Rural – per rating unit | I68: =WRS!$C$12 -> 28 | L68: =ROUND(WRS!D27,0) -> 17136
A69: Urban | C69: =+Stad!G30 -> 0.0004642099563 | E69: =+Stad!D30 -> 5889 | G69: Kapiti Coast district
A70: Rural | C70: =+Stad!G32 -> 0.000249913383 | E70: =+Stad!D32 -> 4206 | G70: Business | J70: =WRS!I30 -> 0.01052301035 | L70: =ROUND(WRS!D30,0) -> 133496
A71: Masterton district | G71: Residential – per rating unit | I71: =WRS!$C$11 -> 14 | L71: =ROUND(WRS!D31,0) -> 284592
A72: Urban | C72: =+Stad!G35 -> 0.00061026067 | E72: =+Stad!D35 -> 2326 | G72: Rural – per rating unit | I72: =WRS!$C$12 -> 28 | L72: =ROUND(WRS!D32,0) -> 73332
A73: Rural | C73: =+Stad!G37 -> 0.0002189223118 | E73: =+Stad!D37 -> 5184 | G73: Masterton district
A74: Carterton district | G74: Business | J74: =WRS!I35 -> 0.009459904418 | L74: =ROUND(WRS!D35,0) -> 36056
A75: Urban | C75: =+Stad!G40 -> 0.0005438199591 | E75: =+Stad!D40 -> 506 | G75: Residential – per rating unit | I75: =WRS!$C$11 -> 14 | L75: =ROUND(WRS!D36,0) -> 109550
A76: Rural | C76: =+Stad!G42 -> 0.0002038382089 | E76: =+Stad!D42 -> 3032 | G76: Rural – per rating unit | I76: =WRS!$C$12 -> 28 | L76: =ROUND(WRS!D37,0) -> 95956
A77: South Wairarapa district | G77: Carterton district
A78: Urban | C78: =+Stad!G45 -> 0.0006532934007 | E78: =+Stad!D45 -> 1244 | G78: Business | J78: =WRS!I40 -> 0.009436956734 | L78: =ROUND(WRS!D40,0) -> 8781
A79: Rural | C79: =+Stad!G47 -> 0.000146666139 | E79: =+Stad!D47 -> 3717 | G79: Residential – per rating unit | I79: =WRS!$C$11 -> 14 | L79: =ROUND(WRS!D41,0) -> 31080
A80: Total stadium purposes rate | E80: =SUM(E53:E79) -> 853920 | G80: Rural – per rating unit | I80: =WRS!$C$12 -> 28 | L80: =ROUND(WRS!D42,0) -> 51044 | S80: =+rates1!F29*1000-E80 -> 1822080 | T80: =+Rates!F10 -> 978091.35
G81: South Wairarapa district
G82: Business | J82: =WRS!I45 -> 0.009196072879 | L82: =ROUND(WRS!D45,0) -> 17511
G83: Residential – per rating unit | I83: =WRS!$C$11 -> 14 | L83: =ROUND(WRS!D46,0) -> 43008
A84: Note: | G84: Rural – per rating unit | I84: =WRS!$C$12 -> 28 | L84: =ROUND(WRS!D47,0) -> 77532
A85: 1 12 Rural properties in the Tararua District are within the boundaries of the Wellington region. | G85: Tararua district – per rating unit | I85: =WRS!$C$12 -> 28 | L85: =ROUND(WRS!D49,0) -> 252
G86: Total Wellington regional strategy rate | L86: =SUM(L53:L85) -> 4822017 | S86: =+rates1!G30*1000-L86 -> -17 | T86: =+Rates!F16 -> 4822017.219
A87: =+$A$44 -> Note that all figures on this page exclude GST.
L89: =+$L$1 -> Rates funding impact statement
A92: Targeted rate: River management schemes 1 | C92: =+C4 -> 2017/18 | E92: =+C92 -> 2017/18 | G92: Targeted rate: River management schemes 1 | J92: =+J4 -> 2017/18 | L92: =+J92 -> 2017/18
C93: $ per hectare | E93: =+$E$5 -> Revenue sought $ | J93: $ per hectare | L93: =+$E$5 -> Revenue sought $
A95: Waingawa | B95: =+'Class Rates'!D12 -> A | C95: ='Class Rates'!E4 -> 143.7757891 | E95: =ROUND(+'Class Rates'!F4,0) -> 4877 | G95: Waiohine – rural | I95: =+'Class Rates'!D43 -> A | J95: =+'Class Rates'!E37 -> 45.023616 | L95: =ROUND(+'Class Rates'!F37,0) -> 5064
B96: =+'Class Rates'!D5 -> B | C96: =+'Class Rates'!E5 -> 93.45424212 | E96: =ROUND(+'Class Rates'!F5,0) -> 12198 | I96: =+'Class Rates'!D38 -> B | J96: =+'Class Rates'!E38 -> 37.333734 | L96: =ROUND(+'Class Rates'!F38,0) -> 14301 | O96: Watch for 0s
B97: =+'Class Rates'!D6 -> C | C97: =+'Class Rates'!E6 -> 71.88789456 | E97: =ROUND(+'Class Rates'!F6,0) -> 8219 | I97: =+'Class Rates'!D39 -> C | J97: =+'Class Rates'!E39 -> 29.925984 | L97: =ROUND(+'Class Rates'!F39,0) -> 38263 | O97: and old ones coming back on
B98: =+'Class Rates'!D7 -> D | C98: =+'Class Rates'!E7 -> 64.69914672 | E98: =ROUND(+'Class Rates'!F7,0) -> 151 | I98: =+'Class Rates'!D40 -> D | J98: =+'Class Rates'!E40 -> 22.51446 | L98: =ROUND(+'Class Rates'!F40,0) -> 8365
B99: =+'Class Rates'!D8 -> E | C99: =+'Class Rates'!E8 -> 57.51029484 | E99: =ROUND(+'Class Rates'!F8,0) -> 9651 | I99: =+'Class Rates'!D41 -> E | J99: =+'Class Rates'!E41 -> 14.9991 | L99: =ROUND(+'Class Rates'!F41,0) -> 11978
B100: =+'Class Rates'!D9 -> F | C100: =+'Class Rates'!E9 -> 50.321547 | E100: =ROUND(+'Class Rates'!F9,0) -> 1306 | I100: =+'Class Rates'!D42 -> S | J100: =+'Class Rates'!E42 -> 750.73326 | L100: =ROUND(+'Class Rates'!F42,0) -> 12762
B101: =+'Class Rates'!D10 -> G | C101: =+'Class Rates'!E10 -> 21.56634756 | E101: =ROUND(+'Class Rates'!F10,0) -> 1009 | L101: =SUM(L95:L100) -> 90733
B102: =+'Class Rates'!D11 -> H | C102: =+'Class Rates'!E11 -> 14.37759972 | E102: =ROUND(+'Class Rates'!F11,0) -> 2427 | G102: Mangatarere | I102: =+'Class Rates'!D47 -> A | J102: =+'Class Rates'!E43 -> 33.930198 | L102: =ROUND(+'Class Rates'!F43,0) -> 728
E103: =SUM(E95:E102) -> 39838 | I103: =+'Class Rates'!D44 -> B | J103: =+'Class Rates'!E44 -> 32.455482 | L103: =ROUND(+'Class Rates'!F44,0) -> 6801
A104: Upper Ruamahanga | B104: =+'Class Rates'!D15 -> A | C104: =+'Class Rates'!E15 -> 132.7899974 | E104: =ROUND(+'Class Rates'!F15,0) -> 11456 | I104: =+'Class Rates'!D45 -> C | J104: =+'Class Rates'!E45 -> 27.504606 | L104: =ROUND(+'Class Rates'!F45,0) -> 434
B105: =+'Class Rates'!D16 -> B | C105: =+'Class Rates'!E16 -> 110.6584006 | E105: =ROUND(+'Class Rates'!F16,0) -> 729 | I105: =+'Class Rates'!D46 -> D | J105: =+'Class Rates'!E46 -> 24.344646 | L105: =ROUND(+'Class Rates'!F46,0) -> 1749
B106: =+'Class Rates'!D17 -> C | C106: =+'Class Rates'!E17 -> 88.52669964 | E106: =ROUND(+'Class Rates'!F17,0) -> 10605 | L106: =SUM(L102:L105) -> 9712
B107: =+'Class Rates'!D18 -> D | C107: =+'Class Rates'!E18 -> 66.39499872 | E107: =ROUND(+'Class Rates'!F18,0) -> 1169
B108: =+'Class Rates'!D19 -> E | C108: =+'Class Rates'!E19 -> 44.2632978 | E108: =ROUND(+'Class Rates'!F19,0) -> 13109
B109: =+'Class Rates'!D20 -> F | C109: =+'Class Rates'!E20 -> 22.13170092 | E109: =ROUND(+'Class Rates'!F20,0) -> 873
B110: =+'Class Rates'!D21 -> S | C110: =+'Class Rates'!E21 -> 1246.909308 | E110: =ROUND(+'Class Rates'!F21,0) -> 3242 | G110: Waipoua | I110: =+'Class Rates'!D50 -> A | J110: =+'Class Rates'!E50 -> 109.2930836 | L110: =ROUND(+'Class Rates'!F50,0) -> 9563
E111: =SUM(E104:E110) -> 41183 | I111: =+'Class Rates'!D51 -> B | J111: =+'Class Rates'!E51 -> 87.43448772 | L111: =ROUND(+'Class Rates'!F51,0) -> 26259
A112: Middle Ruamahanga | B112: =+'Class Rates'!D29 -> A | C112: =+'Class Rates'!E22 -> 128.47818 | E112: =ROUND(+'Class Rates'!F22,0) -> 5183 | I112: =+'Class Rates'!D52 -> C | J112: =+'Class Rates'!E52 -> 65.5758918 | L112: =ROUND(+'Class Rates'!F52,0) -> 1472
B113: =+'Class Rates'!D23 -> B | C113: =+'Class Rates'!E23 -> 106.958322 | E113: =ROUND(+'Class Rates'!F23,0) -> 5838 | I113: =+'Class Rates'!D53 -> D | J113: =+'Class Rates'!E53 -> 43.71719184 | L113: =ROUND(+'Class Rates'!F53,0) -> 12994
B114: =+'Class Rates'!D24 -> C | C114: =+'Class Rates'!E24 -> 85.566678 | E114: =ROUND(+'Class Rates'!F24,0) -> 438 | I114: =+'Class Rates'!D54 -> SA | J114: =+'Class Rates'!E54 -> 3694.106144 | L114: =ROUND(+'Class Rates'!F54,0) -> 369
B115: =+'Class Rates'!D25 -> D | C115: =+'Class Rates'!E25 -> 64.200534 | E115: =ROUND(+'Class Rates'!F25,0) -> 7268 | I115: =+'Class Rates'!D55 -> SC | J115: =+'Class Rates'!E55 -> 2207.720269 | L115: =ROUND(+'Class Rates'!F55,0) -> 221
B116: =+'Class Rates'!D26 -> E | C116: =+'Class Rates'!E26 -> 42.833268 | E116: =ROUND(+'Class Rates'!F26,0) -> 1292 | L116: =SUM(L110:L115) -> 50878
B117: =+'Class Rates'!D27 -> F | C117: =+'Class Rates'!E27 -> 21.391644 | E117: =ROUND(+'Class Rates'!F27,0) -> 6324
B118: =+'Class Rates'!D28 -> S | C118: =+'Class Rates'!E28 -> 1294.385508 | E118: =ROUND(+'Class Rates'!F28,0) -> 2718
E119: =SUM(E112:E118) -> 29061
A120: Lower Ruamahanga | B120: =+'Class Rates'!D37 -> A | C120: =+'Class Rates'!E29 -> 61.78561056 | E120: =ROUND(+'Class Rates'!F29,0) -> 7758
B121: =+'Class Rates'!D30 -> B | C121: =+'Class Rates'!E30 -> 52.95906504 | E121: =ROUND(+'Class Rates'!F30,0) -> 2851
B122: =+'Class Rates'!D31 -> C | C122: =+'Class Rates'!E31 -> 44.13251952 | E122: =ROUND(+'Class Rates'!F31,0) -> 9874
B123: =+'Class Rates'!D32 -> D | C123: =+'Class Rates'!E32 -> 35.30607804 | E123: =ROUND(+'Class Rates'!F32,0) -> 11245
B124: =+'Class Rates'!D33 -> E | C124: =+'Class Rates'!E33 -> 26.47953252 | E124: =ROUND(+'Class Rates'!F33,0) -> 8565
B125: =+'Class Rates'!D34 -> F | C125: =+'Class Rates'!E34 -> 17.652987 | E125: =ROUND(+'Class Rates'!F34,0) -> 21610
B126: =+'Class Rates'!D35 -> SA | C126: =+'Class Rates'!E35 -> 1549.254542 | E126: =ROUND(+'Class Rates'!F35,0) -> 4028
B127: =+'Class Rates'!D36 -> SB | C127: =+'Class Rates'!E36 -> 774.627323 | E127: =ROUND(+'Class Rates'!F36,0) -> 1317
E128: =SUM(E120:E127) -> 67248
A130: =+A87 -> Note that all figures on this page exclude GST.
L134: =+$L$1 -> Rates funding impact statement
A137: Targeted rate: River management schemes 1 | C137: =+C48 -> 2017/18 | E137: =+C137 -> 2017/18 | G137: Targeted rate: River management schemes 2 | I137: =+$C$4 -> 2017/18 | J137: =+$C$4 -> 2017/18 | L137: =+$C$4 -> 2017/18
C138: =+$C$93 -> $ per hectare | E138: =+$E$5 -> Revenue sought $ | I138: $ per dwelling | J138: $ per point | L138: =+$E$5 -> Revenue sought $
A140: Kopuaranga | B140: =+'Class Rates'!D56 -> A2 | C140: =+'Class Rates'!E56 -> 122.7155 | E140: =ROUND(+'Class Rates'!F56,0) -> 3197 | G140: Lower Wairarapa valley | H140: =+'Class Rates'!D12 -> A | J140: =+'Class Rates'!E12 -> 0.22959537 | L140: =ROUND(+'Class Rates'!F12,0) -> 663259
B141: =+'Class Rates'!D57 -> A3 | C141: =+'Class Rates'!E57 -> 110.4441 | E141: =ROUND(+'Class Rates'!F57,0) -> 7615 | G141: Development scheme | H141: =+'Class Rates'!D13 -> Sa | I141: =+'Class Rates'!E13 -> 18.433797 | L141: =ROUND(+'Class Rates'!F13,0) -> 7687
B142: =+'Class Rates'!D58 -> A4 | C142: =+'Class Rates'!E58 -> 61.3583 | E142: =ROUND(+'Class Rates'!F58,0) -> 692 | H142: =+'Class Rates'!D14 -> Sb | I142: =+'Class Rates'!E14 -> 36.88167 | L142: =ROUND(+'Class Rates'!F14,0) -> 83426
B143: =+'Class Rates'!D59 -> A5 | C143: =+'Class Rates'!E59 -> 42.9509 | E143: =ROUND(+'Class Rates'!F59,0) -> 2479 | G143: Total river management scheme rates 2 | L143: =SUM(L140:L142) -> 754372
B144: =+'Class Rates'!D60 -> A6 | C144: =+'Class Rates'!E60 -> 24.5439 | E144: =ROUND(+'Class Rates'!F60,0) -> 1991
B145: =+'Class Rates'!D61 -> B2 | C145: =+'Class Rates'!E61 -> 24.5439 | E145: =ROUND(+'Class Rates'!F61,0) -> 1504 | G145: Total river management scheme rates | L145: =+E167+L143 -> 1111195
B146: =+'Class Rates'!D62 -> B3 | C146: =+'Class Rates'!E62 -> 22.0896 | E146: =ROUND(+'Class Rates'!F62,0) -> 1626
B147: =+'Class Rates'!D63 -> B4 | C147: =+'Class Rates'!E63 -> 12.2725 | E147: =ROUND(+'Class Rates'!F63,0) -> 114 | L147: =E103+E111+E119+E128+E152+E157+E164+L101+L106+L116+L143 -> 1111195 | Q147: =+L145 -> 1111195
B148: =+'Class Rates'!D64 -> B5 | C148: =+'Class Rates'!E64 -> 8.591 | E148: =ROUND(+'Class Rates'!F64,0) -> 267
B149: =+'Class Rates'!D65 -> B6 | C149: =+'Class Rates'!E65 -> 4.9094 | E149: =ROUND(+'Class Rates'!F65,0) -> 590
B150: =+'Class Rates'!D66 -> SA | C150: =+'Class Rates'!E66 -> 153.57 | E150: =ROUND(+'Class Rates'!F66,0) -> 768
B151: =+'Class Rates'!D67 -> SB | C151: =+'Class Rates'!E67 -> 76.79 | E151: =ROUND(+'Class Rates'!F67,0) -> 1075
E152: =SUM(E140:E151) -> 21918
A153: Lower Taueru | B153: ='Class Rates'!D68 -> A | C153: =+'Class Rates'!E68 -> 3.9446766 | E153: =ROUND(+'Class Rates'!F68,0) -> 1626
B154: ='Class Rates'!D69 -> B | C154: =+'Class Rates'!E69 -> 0.78893532 | E154: =ROUND(+'Class Rates'!F69,0) -> 223
B155: =+'Class Rates'!D70 -> C | C155: =+'Class Rates'!E70 -> 0.39451968 | E155: =ROUND(+'Class Rates'!F70,0) -> 70
B156: =+'Class Rates'!D71 -> S | C156: =+'Class Rates'!E71 -> 197.2348704 | E156: =ROUND(+'Class Rates'!F71,0) -> 299
E157: =SUM(E153:E156) -> 2218
A158: Lower Whangaehu | B158: ='Class Rates'!D73 -> A | C158: ='Class Rates'!E73 -> 21.2002 | E158: =ROUND(+'Class Rates'!F73,0) -> 708
B159: =+'Class Rates'!D74 -> B | C159: =+'Class Rates'!E74 -> 16.9601 | E159: =ROUND(+'Class Rates'!F74,0) -> 1104
B160: =+'Class Rates'!D75 -> C | C160: =+'Class Rates'!E75 -> 12.7201 | E160: =ROUND(+'Class Rates'!F75,0) -> 692
B161: =+'Class Rates'!D76 -> D | C161: =+'Class Rates'!E76 -> 8.4799 | E161: =ROUND(+'Class Rates'!F76,0) -> 649
B162: =+'Class Rates'!D77 -> E | C162: =+'Class Rates'!E77 -> 4.24 | E162: =ROUND(+'Class Rates'!F77,0) -> 739
B163: =+'Class Rates'!D78 -> S | C163: =+'Class Rates'!E78 -> 106.0006 | E163: =ROUND(+'Class Rates'!F78,0) -> 142
E164: =SUM(E158:E163) -> 4034
A167: Total river management scheme rates 1 | E167: =+E164+E157+L116+L106+L101+E128+E119+E111+E103+E152 -> 356823
A170: 1 "Separately used or inhabited part" (dwelling) includes any part of a rating unit separately used or inhabited by the owner or any other person who has the right to use or inhabit that part by virtue of a tenancy, lease, licence or other agreement. At a minimum, the land or premises intended to form the separately used or inhabited part of the rating unit must be capable of actual habitation, or actual separate use. To avoid doubt, a rating unit that has only one use (ie, it does not have separate parts or is vacant land) is treated as being one separately used or inhabited part (dwelling).
A172: =+A130 -> Note that all figures on this page exclude GST.
L174: =+$L$1 -> Rates funding impact statement
A176: Targeted rate: Catchment schemes 1 | C176: =+C4 -> 2017/18 | E176: =+$C$4 -> 2017/18 | G176: Targeted rate: Catchment schemes 2 | J176: =+C176 -> 2017/18 | L176: =+E176 -> 2017/18
C177: =+$C$138 -> $ per hectare | E177: =+$E$5 -> Revenue sought $ | J177: Cents per $ of rateable land value | L177: =+$E$5 -> Revenue sought $
O178: Watch for 0s and ones coming back
A179: Whareama | B179: =+'Class Rates'!D88 -> A | C179: =+'Class Rates'!E88 -> 3.9975 | E179: =ROUND(+'Class Rates'!F88,) -> 2860 | G179: Awhea-Opouawe | H179: Land value | J179: =+'Class Rates'!G161 -> 0.00013 | L179: =ROUND('Class Rates'!H161,0) -> 8770
B180: =+'Class Rates'!D89 -> B | C180: =+'Class Rates'!E89 -> 1.5375 | E180: =ROUND(+'Class Rates'!F89,) -> 1465 | G180: Mataikona-Whakataki | H180: Land value within scheme area | J180: =+'Class Rates'!G165 -> 3.48e-05 | L180: =ROUND(+'Class Rates'!H165,0) -> 2664
B181: =+'Class Rates'!D90 -> C | C181: =+'Class Rates'!E90 -> 0.2691 | E181: =ROUND(+'Class Rates'!F90,) -> 12266 | G181: Catchment management scheme 2 rates | L181: =+L179+L180 -> 11434
B182: =+'Class Rates'!D91 -> D | C182: =+'Class Rates'!E91 -> 0 | E182: =ROUND(+'Class Rates'!F91,) -> 0
B183: =+'Class Rates'!D92 -> E | C183: =+'Class Rates'!E92 -> 0.1922 | E183: =ROUND(+'Class Rates'!F92,) -> 3 | G183: Targeted rate: Catchment schemes 3 | J183: =+J176 -> 2017/18 | L183: =+L176 -> 2017/18
B184: =+'Class Rates'!D93 -> F | C184: =+'Class Rates'!E93 -> 0.1537 | E184: =ROUND(+'Class Rates'!F93,) -> 424 | J184: $ per dwelling | L184: =+$E$5 -> Revenue sought $
E185: =SUM(E179:E184) -> 17018
A186: Homewood | B186: =+'Class Rates'!D94 -> A | C186: =+'Class Rates'!E94 -> 1.7424 | E186: =ROUND(+'Class Rates'!F94,) -> 4099
B187: =+'Class Rates'!D95 -> B | C187: =+'Class Rates'!E95 -> 1.6614 | E187: =ROUND(+'Class Rates'!F95,) -> 754 | G187: Awhea-Opouawe | H187: Charge per dwelling | J187: =+'Class Rates'!F162 -> $114.54 / $57.27 | L187: =ROUND(+'Class Rates'!H162,0) -> 9850
B188: =+'Class Rates'!D96 -> C | C188: =+'Class Rates'!E96 -> 1.452 | E188: =ROUND(+'Class Rates'!F96,) -> 4840 | G188: Maungaraki | H188: Charge per dwelling | J188: ='Class Rates'!F171 -> 29.85527441 | L188: =ROUND(+'Class Rates'!H171,0) -> 567
B189: =+'Class Rates'!D97 -> D | C189: =+'Class Rates'!E97 -> 0.2074 | E189: =ROUND(+'Class Rates'!F97,) -> 363 | G189: Mataikona-Whakataki | H189: Charge per dwelling | J189: =+'Class Rates'!F166 -> 15 | L189: =ROUND(+'Class Rates'!H166,0) -> 1830
E190: =SUM(E186:E189) -> 10056 | G190: Catchment management scheme 3 rates | L190: =+L187+L189+L188 -> 12247
A191: Maungaraki | B191: =+'Class Rates'!E169 -> Class A | C191: =+'Class Rates'!F169 -> 0.8458994416 | E191: =ROUND(+'Class Rates'!H169,0) -> 2796
B192: =+'Class Rates'!E170 -> Class B | C192: =+'Class Rates'!F170 -> 0.3980703255 | E192: =ROUND(+'Class Rates'!H170,0) -> 1183
E193: =SUM(E191:E192) -> 3979 | G193: Targeted rate: Catchment schemes 4 | J193: =+$C$19 -> 2017/18 | L193: =+$C$19 -> 2017/18
A194: Upper Kaiwhata | B194: =+'Class Rates'!D105 -> A | C194: =+'Class Rates'!E105 -> 8.4155 | E194: =ROUND(+'Class Rates'!F105,) -> 353 | J194: Cents per metre of river frontage | L194: =+$E$5 -> Revenue sought $
B195: =+'Class Rates'!D106 -> B | C195: =+'Class Rates'!E106 -> 3.6938 | E195: =ROUND(+'Class Rates'!F106,) -> 290
B196: =+'Class Rates'!D107 -> C | C196: =+'Class Rates'!E107 -> 0.5256 | E196: =ROUND(+'Class Rates'!F107,) -> 481
B197: =+'Class Rates'!D108 -> D | C197: =+'Class Rates'!E108 -> 0.3155 | E197: =ROUND(+'Class Rates'!F108,) -> 561
B198: =+'Class Rates'!D109 -> E | C198: =+'Class Rates'!E109 -> 0.2101 | E198: =ROUND(+'Class Rates'!F109,) -> 393 | G198: Maungaraki | H198: River frontage | J198: ='Class Rates'!F172 -> 0.02786492278 | L198: =ROUND(+'Class Rates'!H172,0) -> 1327
B199: =+'Class Rates'!D110 -> F | C199: =+'Class Rates'!E110 -> 0.1051 | E199: =ROUND(+'Class Rates'!F110,) -> 47 | G199: Catchment management scheme 4 rates | L199: =L198 -> 1327 | Q199: =+L200 -> 61841
E200: =SUM(E194:E199) -> 2125 | G200: Total catchment management scheme rates | L200: =E209+L181+L190+L199 -> 61841
A201: Lower Kaiwhata | B201: =+'Class Rates'!D111 -> A | C201: =+'Class Rates'!E111 -> 14.0454 | E201: =ROUND(+'Class Rates'!F111,) -> 923
B202: =+'Class Rates'!D112 -> B | C202: =+'Class Rates'!E112 -> 6.1423 | E202: =ROUND(+'Class Rates'!F112,) -> 285 | G202: 1 "Separately used or inhabited part" (dwelling) includes any part of a rating unit separately used or inhabited by the owner or any other person who has the right to use or inhabit that part by virtue of a tenancy, lease, licence or other agreement. At a minimum, the land or premises intended to form the separately used or inhabited part of the rating unit must be capable of actual habitation, or actual separate use. To avoid of doubt, a rating unit that has only one use (ie, it does not have separate parts or is vacant land) is treated as being one separately used or inhabited part (dwelling).
B203: =+'Class Rates'!D113 -> C | C203: =+'Class Rates'!E113 -> 0.8774 | E203: =ROUND(+'Class Rates'!F113,) -> 1002
B204: =+'Class Rates'!D114 -> D | C204: =+'Class Rates'!E114 -> 0.5265 | E204: =ROUND(+'Class Rates'!F114,) -> 1384
B205: =+'Class Rates'!D115 -> E | C205: =+'Class Rates'!E115 -> 0.351 | E205: =ROUND(+'Class Rates'!F115,) -> 12
B206: =+'Class Rates'!D116 -> F | C206: =+'Class Rates'!E116 -> 0.1755 | E206: =ROUND(+'Class Rates'!F116,) -> 49
E207: =SUM(E201:E206) -> 3655
A209: Catchment management scheme 1 rates | E209: =+E207+E200+E193+E190+E185 -> 36833
A211: =+A130 -> Note that all figures on this page exclude GST.
L213: =+$L$1 -> Rates funding impact statement
A215: Targeted rate: Pump drainage schemes | C215: =+$C$4 -> 2017/18 | E215: =+C215 -> 2017/18 | G215: Targeted rate: Gravity drainage schemes | J215: =+C4 -> 2017/18 | L215: =+J215 -> 2017/18
C216: =+$C$93 -> $ per hectare | E216: =+$E$5 -> Revenue sought $ | J216: =+$C$93 -> $ per hectare | L216: =+$E$5 -> Revenue sought $
O217: Watch for 0s and ones coming back
A218: Te Hopai | B218: =+'Class Rates'!D118 -> A | C218: =+'Class Rates'!E118 -> 44.2801 | E218: ='Class Rates'!F118 -> 55200.33871 | G218: =+'Class Rates'!A123 -> Okawa | H218: =+'Class Rates'!D123 -> A | J218: =+'Class Rates'!E123 -> 7.0071 | L218: =ROUND(+'Class Rates'!F123,0) -> 1976 | O218: Papatahi - Deleted 2014
A219: Moonmoot pump | B219: =+'Class Rates'!D119 -> A | C219: =+'Class Rates'!E119 -> 118.5652 | E219: =ROUND(+'Class Rates'!F119,0) -> 27000 | G219: =+'Class Rates'!A124 -> Taumata | H219: =+'Class Rates'!D124 -> A | J219: =+'Class Rates'!E124 -> 6.3119 | L219: =ROUND(+'Class Rates'!F124,0) -> 1834
A220: Onoke pump | B220: =+'Class Rates'!D120 -> A | C220: =+'Class Rates'!E120 -> 72.5117 | E220: =ROUND(+'Class Rates'!F120,0) -> 51732 | G220: ='Class Rates'!A125 -> East Pukio | H220: =+'Class Rates'!D125 -> A | J220: =+'Class Rates'!E125 -> 27.7403 | L220: =ROUND(+'Class Rates'!F125,0) -> 3150
A221: Pouawha pump | B221: =+'Class Rates'!D121 -> A | C221: =+'Class Rates'!E121 -> 109.3922 | E221: =ROUND(+'Class Rates'!F121,0) -> 103430 | G221: ='Class Rates'!A126 -> Longbush | H221: =+'Class Rates'!D126 -> A | J221: =+'Class Rates'!E126 -> 15.7545 | L221: =ROUND(+'Class Rates'!F126,0) -> 3437
G222: =G221 -> Longbush | H222: =+'Class Rates'!D127 -> B | J222: =+'Class Rates'!E127 -> 7.8773 | L222: =ROUND(+'Class Rates'!F127,0) -> 990
A223: Total pump drainage scheme rates | E223: =SUM(E218:E222) -> 237362.3387 | G223: ='Class Rates'!A128 -> Otahoua | H223: =+'Class Rates'!D128 -> A | J223: =+'Class Rates'!E128 -> 32.3574 | L223: =ROUND(+'Class Rates'!F128,0) -> 3000 | Q223: =+E223 -> 237362.3387
G224: ='Class Rates'!A129 -> Te Whiti | H224: =+'Class Rates'!D129 -> A | J224: =+'Class Rates'!E129 -> 9.5417 | L224: =ROUND(+'Class Rates'!F129,0) -> 1348
A225: Targeted rate: Possum / predator | C225: =+$C$4 -> 2017/18 | E225: =+C225 -> 2017/18 | G225: ='Class Rates'!A130 -> Ahikouka | H225: =+'Class Rates'!D130 -> A | J225: =+'Class Rates'!E130 -> 27.1664 | L225: =ROUND(+'Class Rates'!F130,0) -> 3048
C226: =+$C$93 -> $ per hectare | E226: =+$E$5 -> Revenue sought $ | G226: ='Class Rates'!A131 -> Battersea | H226: =+'Class Rates'!D131 -> A | J226: =+'Class Rates'!E131 -> 15.0373 | L226: =ROUND(+'Class Rates'!F131,0) -> 2537
G227: =$G$226 -> Battersea | H227: =+'Class Rates'!D132 -> B | J227: =+'Class Rates'!E132 -> 12.4258 | L227: =ROUND(+'Class Rates'!F132,0) -> 2428
A228: Rural land area | G228: =$G$226 -> Battersea | H228: =+'Class Rates'!D133 -> C | J228: =+'Class Rates'!E133 -> 9.7245 | L228: =ROUND(+'Class Rates'!F133,0) -> 3093
A229: Land area of 4 or more hectares in all rural classified areas | C229: =+'Class Rates'!E145 -> 0.7690615991 | E229: =ROUND(+'Class Rates'!F145,0) -> 472000 | G229: =$G$226 -> Battersea | H229: =+'Class Rates'!D134 -> D | J229: =+'Class Rates'!E134 -> 5.8792 | L229: =ROUND(+'Class Rates'!F134,0) -> 898
A230: Total Possum / predator rate | E230: =SUM(E229:E229) -> 472000 | G230: =$G$226 -> Battersea | H230: =+'Class Rates'!D135 -> E | J230: =+'Class Rates'!E135 -> 5.028 | L230: =ROUND(+'Class Rates'!F135,0) -> 1020 | Q230: =+E231 -> 0
G231: =$G$226 -> Battersea | H231: =+'Class Rates'!D136 -> F | J231: =+'Class Rates'!E136 -> 5.069 | L231: =ROUND(+'Class Rates'!F136,0) -> 357
... 10 more rows

Sheet Impact 1 (hidden)
A3: Rating mechanisms
A5: Funding mechanisms | B5: Groups of activities funded | C5: Valuation system | D5: Matters for differentiation/categories of land | E5: Calculation factor | F5: Years used
A6: General rate
A7: General rate | B7: All except water supply, public transport , Wellington Regional Strategy, warm greater wellington and regional stadium | C7: Capital value | D7: Where the land is situated | E7: Cents per dollar of rateable capital value | F7: 2015 to 2025 | H7: only display column f for LTP year
A9: Targeted rates
A10: Public Transport | B10: Public Transport | C10: Capital value | D10: Where the land is situated and the use to which the land is put | E10: Cents per dollar of rateable capital value | F10: =+F7 -> 2015 to 2025
A11: River management | B11: Flood protection | C11: Capital value/land value | D11: Where the land is situated | E11: Cents per dollar of rateable capital value / land value | F11: =+F10 -> 2015 to 2025 | H11: should have been new page 216
A12: Stadium purposes | B12: Investments | C12: Capital value | D12: Where the land is situated and the use to which the land is put | E12: Cents per dollar of rateable capital value | F12: 2015to 2017 | H12: <------- This one different
A13: Wellington Regional Strategy | B13: Regional Leadership | C13: Capital value for Business n/a for residential n/a for rural | D13: Where the land is situated and the use to which the land is put | E13: Cents per dollar of rateable capital value Fixed dollar amount per rating unit Fixed dollar amount per rating unit | F13: =+F11 -> 2015 to 2025
A14: Warm Greater Wellington | B14: Regional Leadership | C14: Extent of service provided | D14: Provision of service to the land | E14: Extent of service provided calculated as a percentage of the service | F14: =+F10 -> 2015 to 2025
A15: Possum / Predator | B15: Managing our environment | C15: Land area | D15: Where the land is situated and the area of land within each rating unit | E15: Dollars per hectare | F15: =+F13 -> 2015 to 2025
A16: Wairarapa river management schemes | B16: Flood protection | C16: Land area/inhabited parts/services provided | D16: Where the land is situated (in some cases set under section146 of the Local Government (Rating) Act 2002 using approved classification and differential registers) and/or the benefits accruing through the provision of services and in some cases use | E16: Dollars per hectare in the area protected, or dollars per point attributed to each rating unit and in some cases a fixed charge per separately used or inhabited part (dwelling) 1 | F16: =+F15 -> 2015 to 2025
A17: Wairarapa catchment schemes | B17: Flood protection | C17: Land area/land value/inhabited part(s) | D17: Where the land is situated (in some cases set under S146 of the Local Government (Rating) Act 2002 using approved classification and differential registers) and in some cases use and land value. | E17: Dollars per hectare or cents per metre of river frontage in the area protected and in some cases a fixed charge per separately used or inhabited part (dwelling) and cents per dollar of rateable land value 1 | F17: =+F16 -> 2015 to 2025
A18: Wairarapa drainage schemes | B18: Flood protection | C18: Land area | D18: Where the land is situated (Set under S146 of the Local Government (Rating) Act 2002 using approved classification and differential registers). | E18: Dollars per hectare in the area protected | F18: =+F17 -> 2015 to 2025
A20: Differential on the general rate
A21: There are no differentials on Greater Wellington's General Rate. Greater Wellington uses an "estimate of projected valuation" under section 131 of the Local Government (Rating) Act 2002 to recognise that valuation dates vary across the region.
A24: 1"Separately used or inhabited part" (dwelling) includes any part of a rating unit separately used or inhabited by the owner or any other person who has the right to use or inhabit that part by virtue of a tenancy, lease, licence or other agreement. At a minimum, the land or premises intended to form the separately used or inhabited part of the rating unit must be capable of actual habitation, or actual separate use. To avoid doubt, a rating unit that has only one use (ie, it does not have separate parts or is vacant land) is treated as being one separately used or inhabited part (dwelling)

Sheet For IT (hidden)
A1: Rate_Class_ID | B1: Rate_Class_Name
A2: 1 | B2: Residential
A3: 2 | B3: Business | D3: per 100k | E3: per 100k | L3: per $ | P3: check to website
A4: 3 | B4: Rural | G4: TA_ID | H4: Rate_Class_ID | I4: Rates_ID | J4: Rates_Status_ID | K4: Rates_year | L4: Rates_value | N4: =VLOOKUP(G5,$A$25:$B$33,2,FALSE) -> Wellington city
A5: 4 | B5: Downtown City Centre Business (Wellington Only) | E5: =L5*100000/100 -> 30.91 | G5: 41 | H5: 1 | I5: 1 | J5: 2 | K5: 2017/18 | L5: =ROUND(+'Impact for rates'!$C$8,5) -> 0.03091 | N5: =VLOOKUP(I5,$A$14:$B$19,2,FALSE) -> General Rate | O5: =VLOOKUP(H5,$A$2:$B$5,2,FALSE) -> Residential | P5: =L5*1000000/100 -> 309.1
E6: =L6*100000/100 -> 0.14 | G6: =+G5 -> 41 | H6: 1 | I6: 2 | J6: =+J5 -> 2 | K6: =+$K$5 -> 2017/18 | L6: =ROUND(+'Impact for rates'!$C$23,5) -> 0.00014 | N6: River Management | O6: Residential | P6: =L6*1000000/100 -> 1.4
E7: =L7*100000/100 -> 62.37 | G7: 41 | H7: 1 | I7: 3 | J7: =+J6 -> 2 | K7: =+$K$5 -> 2017/18 | L7: =ROUND(+'Impact for rates'!$J$10,5) -> 0.06237 | N7: Regional Transport | O7: Residential | P7: =L7*1000000/100 -> 623.7
A8: Rates_status_ID | B8: Rates_status | E8: =L8*100000/100 -> 0.97 | G8: 41 | H8: 1 | I8: 4 | J8: 2 | K8: 2017/18 | L8: =ROUND(+'Impact for rates'!$C$54,5) -> 0.00097 | N8: Stadium Purposes | O8: Residential | P8: 9.7
A9: 1 | B9: Draft | D9: =SUM(E5:E9) -> 108.39 | E9: =+L9 -> 14 | G9: 41 | H9: 1 | I9: 5 | J9: 2 | K9: 2017/18 | L9: =ROUND(+'Impact for rates'!$I$55,5) -> 14 | N9: Wellington Regional Strategy | O9: Residential | P9: 140000
A10: 2 | B10: Approved | E10: =L10*100000/100 -> 30.91 | G10: =+G9 -> 41 | H10: 2 | I10: 1 | J10: =+J9 -> 2 | K10: 2017/18 | L10: =ROUND(+'Impact for rates'!$C$8,5) -> 0.03091 | N10: General Rate | O10: Business | P10: 309.1
E11: =L11*100000/100 -> 0.14 | G11: 41 | H11: =+H10 -> 2 | I11: 2 | J11: 2 | K11: 2017/18 | L11: =ROUND(+'Impact for rates'!$C$23,5) -> 0.00014 | N11: River Management | O11: Business | P11: 1.4
E12: 62.37 | G12: 41 | H12: =+H11 -> 2 | I12: 3 | J12: 2 | K12: 2017/18 | L12: =ROUND(+'Impact for rates'!$J$10,5) -> 0.06237 | N12: Regional Transport | O12: Business | P12: =L12*1000000/100 -> 623.7
A13: Rate_ID | B13: Rate_Name | E13: 1.72 | G13: 41 | H13: =+H12 -> 2 | I13: 4 | J13: 2 | K13: 2017/18 | L13: =ROUND(+'Impact for rates'!$C$53,5) -> 0.00172 | N13: Stadium Purposes | O13: Business | P13: 17.2
A14: 1 | B14: General Rate | D14: =SUM(E10:E14) -> 106.15 | E14: 11.01 | G14: 41 | H14: =+H13 -> 2 | I14: 6 | J14: 2 | K14: 2017/18 | L14: =ROUND(+'Impact for rates'!$J$54,5) -> 0.01101 | N14: Wellington Regional Strategy - Business | O14: Business | P14: 110.1
A15: 2 | B15: River Management | E15: 30.91 | G15: 41 | H15: 3 | I15: 1 | J15: 2 | K15: 2017/18 | L15: =ROUND(+'Impact for rates'!$C$8,5) -> 0.03091 | N15: General Rate | O15: Rural | P15: 309.1
A16: 3 | B16: Regional Transport | E16: 0.14 | G16: 41 | H16: =+H15 -> 3 | I16: 2 | J16: 2 | K16: 2017/18 | L16: =ROUND(+'Impact for rates'!$C$23,5) -> 0.00014 | N16: River Management | O16: Rural | P16: 1.4
A17: 4 | B17: Stadium Purposes | E17: 10.4 | G17: 41 | H17: =+H16 -> 3 | I17: 3 | J17: 2 | K17: 2017/18 | L17: =ROUND(+'Impact for rates'!$J$11,5) -> 0.0104 | N17: Regional Transport | O17: Rural | P17: 104
A18: 5 | B18: Wellington Regional Strategy | E18: 0.49 | G18: 41 | H18: =+H17 -> 3 | I18: 4 | J18: 2 | K18: 2017/18 | L18: =ROUND(+'Impact for rates'!$C$55,5) -> 0.00049 | N18: Stadium Purposes | O18: Rural | P18: 4.9
A19: 6 | B19: Wellington Regional Strategy - Business | D19: =SUM(E15:E19) -> 69.94 | E19: =+L19 -> 28 | G19: 41 | H19: =+H18 -> 3 | I19: 5 | J19: 2 | K19: 2017/18 | L19: =ROUND(+'Impact for rates'!$I$56,5) -> 28 | N19: Wellington Regional Strategy | O19: Rural | P19: 280000
E20: =L20*100000/100 -> 30.91 | G20: 41 | H20: 4 | I20: 1 | J20: 2 | K20: 2017/18 | L20: =ROUND(+'Impact for rates'!$C$8,5) -> 0.03091 | N20: General Rate | O20: Downtown City Centre Business (Wellington Only) | P20: 309.1
E21: =L21*100000/100 -> 0.14 | G21: 41 | H21: =+H20 -> 4 | I21: 2 | J21: 2 | K21: 2017/18 | L21: =ROUND(+'Impact for rates'!$C$23,5) -> 0.00014 | N21: River Management | O21: Downtown City Centre Business (Wellington Only) | P21: 1.4
E22: =L22*100000/100 -> 332.65 | G22: 41 | H22: =+H21 -> 4 | I22: 3 | J22: 2 | K22: 2017/18 | L22: =ROUND(+'Impact for rates'!$J$9,5) -> 0.33265 | N22: Regional Transport | O22: Downtown City Centre Business (Wellington Only) | P22: 3326.5
E23: =L23*100000/100 -> 1.72 | G23: 41 | H23: =+H22 -> 4 | I23: 4 | J23: 2 | K23: 2017/18 | L23: =ROUND(+'Impact for rates'!$C$53,5) -> 0.00172 | N23: Stadium Purposes | O23: Downtown City Centre Business (Wellington Only) | P23: 17.2
A24: TA_ID | B24: TA_NAME | D24: =SUM(E20:E24) -> 376.43 | E24: =L24*100000/100 -> 11.01 | G24: 41 | H24: =+H23 -> 4 | I24: 6 | J24: 2 | K24: 2017/18 | L24: =ROUND(+'Impact for rates'!$J$54,5) -> 0.01101 | N24: Wellington Regional Strategy - Business | O24: Downtown City Centre Business (Wellington Only) | P24: 110.1
A25: 41 | B25: Wellington city
A26: 42 | B26: Lower Hutt city | G26: TA_ID | H26: Rate_Class_ID | I26: Rates_ID | J26: Rates_Status_ID | K26: Rates_year | L26: Rates_value | N26: =VLOOKUP(G27,$A$25:$B$33,2,FALSE) -> Lower Hutt city
A27: 43 | B27: Upper Hutt city | E27: =L27*100000/100 -> 25.39 | G27: 42 | H27: 1 | I27: 1 | J27: =+J5 -> 2 | K27: =+$K$5 -> 2017/18 | L27: =ROUND(+'Impact for rates'!$C$9,5) -> 0.02539 | N27: =VLOOKUP(I27,$A$14:$B$19,2,FALSE) -> General Rate | O27: =VLOOKUP(H27,$A$2:$B$5,2,FALSE) -> Residential | P27: =L27*1000000/100 -> 253.9
A28: 44 | B28: Porirua city | E28: =L28*100000/100 -> 27.61 | G28: =+G27 -> 42 | H28: =+H27 -> 1 | I28: 2 | J28: =+J27 -> 2 | K28: 2017/18 | L28: =ROUND(+'Impact for rates'!$C$24,5) -> 0.02761 | N28: River Management | O28: Residential | P28: =L28*1000000/100 -> 276.1
A29: 45 | B29: Kapiti Coast district | E29: =L29*100000/100 -> 51.23 | G29: 42 | H29: 1 | I29: 3 | J29: =+J28 -> 2 | K29: 2017/18 | L29: =ROUND(+'Impact for rates'!$J$13,5) -> 0.05123 | N29: =VLOOKUP(I29,$A$14:$B$19,2,FALSE) -> Regional Transport | O29: Residential | P29: =L29*1000000/100 -> 512.3
A30: 46 | B30: Masterton district | E30: =L30*100000/100 -> 0.81 | G30: 42 | H30: 1 | I30: 4 | J30: =+J29 -> 2 | K30: 2017/18 | L30: =ROUND(+'Impact for rates'!$C$58,5) -> 0.00081 | N30: Stadium Purposes | O30: Residential | P30: 8.1
A31: 47 | B31: Carterton district | D31: =SUM(E27:E31) -> 119.04 | E31: =+L31 -> 14 | G31: 42 | H31: 1 | I31: 5 | J31: =+J30 -> 2 | K31: 2017/18 | L31: =ROUND(+'Impact for rates'!$I$59,5) -> 14 | N31: Wellington Regional Strategy | O31: Residential | P31: 140000
A32: 48 | B32: South Wairarapa district | E32: =L32*100000/100 -> 25.39 | G32: 42 | H32: 2 | I32: 1 | J32: =+J31 -> 2 | K32: 2017/18 | L32: =ROUND(+'Impact for rates'!$C$9,5) -> 0.02539 | N32: General Rate | O32: Business | P32: 253.9
A33: 49 | B33: Tararua district | E33: 27.61 | G33: =+G32 -> 42 | H33: 2 | I33: 2 | J33: 2 | K33: 2017/18 | L33: =ROUND(+'Impact for rates'!$C$24,5) -> 0.02761 | N33: River Management | O33: Business | P33: 276.1
B34: Tararua is Rural only | E34: 51.23 | G34: 42 | H34: 2 | I34: 3 | J34: 2 | K34: 2017/18 | L34: =ROUND(+'Impact for rates'!$J$13,5) -> 0.05123 | N34: Regional Transport | O34: Business | P34: =L34*1000000/100 -> 512.3
E35: 1.31 | G35: 42 | H35: 2 | I35: 4 | J35: 2 | K35: 2017/18 | L35: =ROUND(+'Impact for rates'!$C$57,5) -> 0.00131 | N35: Stadium Purposes | O35: Business | P35: 13.1
D36: =SUM(E32:E36) -> 114.59 | E36: 9.05 | G36: 42 | H36: 2 | I36: 6 | J36: 2 | K36: 2017/18 | L36: =ROUND(+'Impact for rates'!$J$58,5) -> 0.00905 | N36: Wellington Regional Strategy - Business | O36: Business | P36: 90.5
E37: 25.39 | G37: 42 | H37: 3 | I37: 1 | J37: 2 | K37: 2017/18 | L37: =ROUND(+'Impact for rates'!$C$9,5) -> 0.02539 | N37: General Rate | O37: Rural | P37: 253.9
E38: 27.61 | G38: =+G37 -> 42 | H38: 3 | I38: 2 | J38: 2 | K38: 2017/18 | L38: =ROUND(+'Impact for rates'!$C$24,5) -> 0.02761 | N38: River Management | O38: Rural | P38: 276.1
E39: 8.54 | G39: 42 | H39: 3 | I39: 3 | J39: 2 | K39: 2017/18 | L39: =ROUND(+'Impact for rates'!$J$14,5) -> 0.00854 | N39: Regional Transport | O39: Rural | P39: 85.4
E40: 0.71 | G40: 42 | H40: 3 | I40: 4 | J40: 2 | K40: 2017/18 | L40: =ROUND(+'Impact for rates'!$C$59,5) -> 0.00071 | N40: Stadium Purposes | O40: Rural | P40: 7.1
D41: =SUM(E37:E41) -> 90.25 | E41: =+L41 -> 28 | G41: 42 | H41: 3 | I41: 5 | J41: 2 | K41: 2017/18 | L41: =ROUND(+'Impact for rates'!$I$60,5) -> 28 | N41: Wellington Regional Strategy | O41: Rural | P41: 280000
G43: TA_ID | H43: Rate_Class_ID | I43: Rates_ID | J43: Rates_Status_ID | K43: Rates_year | L43: Rates_value | N43: =VLOOKUP(G44,$A$25:$B$33,2,FALSE) -> Upper Hutt city
E44: =L44*100000/100 -> 25.45 | G44: 43 | H44: 1 | I44: 1 | J44: =+J5 -> 2 | K44: =+$K$5 -> 2017/18 | L44: =ROUND(+'Impact for rates'!$C$10,5) -> 0.02545 | N44: =VLOOKUP(I44,$A$14:$B$19,2,FALSE) -> General Rate | O44: =VLOOKUP(H44,$A$2:$B$5,2,FALSE) -> Residential | P44: 254.5
E45: =L45*100000/100 -> 14.49 | G45: =+G44 -> 43 | H45: 1 | I45: 2 | J45: =+J44 -> 2 | K45: 2017/18 | L45: =ROUND(+'Impact for rates'!$C$25,5) -> 0.01449 | N45: River Management | O45: Residential | P45: 144.9
E46: =L46*100000/100 -> 37.28 | G46: 43 | H46: 1 | I46: 3 | J46: =+J45 -> 2 | K46: 2017/18 | L46: =ROUND(+'Impact for rates'!$J$16,5) -> 0.03728 | N46: Regional Transport | O46: Residential | P46: 372.8
E47: =L47*100000/100 -> 0.67 | G47: 43 | H47: 1 | I47: 4 | J47: =+J46 -> 2 | K47: 2017/18 | L47: =ROUND(+'Impact for rates'!$C$62,5) -> 0.00067 | N47: Stadium Purposes | O47: Residential | P47: 6.7
D48: =SUM(E44:E48) -> 91.89 | E48: =+L48 -> 14 | G48: 43 | H48: 1 | I48: 5 | J48: =+J47 -> 2 | K48: 2017/18 | L48: =ROUND(+'Impact for rates'!$I$63,5) -> 14 | N48: Wellington Regional Strategy | O48: Residential | P48: 140000
E49: =L49*100000/100 -> 25.45 | G49: =+G48 -> 43 | H49: 2 | I49: 1 | J49: =+J48 -> 2 | K49: 2017/18 | L49: =ROUND(+'Impact for rates'!$C$10,5) -> 0.02545 | N49: General Rate | O49: Business | P49: 254.5
E50: 14.49 | G50: 43 | H50: =+H49 -> 2 | I50: 2 | J50: 2 | K50: 2017/18 | L50: =ROUND(+'Impact for rates'!$C$25,5) -> 0.01449 | N50: River Management | O50: Business | P50: 144.9
E51: 37.28 | G51: 43 | H51: =+H50 -> 2 | I51: 3 | J51: 2 | K51: 2017/18 | L51: =ROUND(+'Impact for rates'!$J$16,5) -> 0.03728 | N51: Regional Transport | O51: Business | P51: 372.8
E52: 0.69 | G52: 43 | H52: =+H51 -> 2 | I52: 4 | J52: 2 | K52: 2017/18 | L52: =ROUND(+'Impact for rates'!$C$61,5) -> 0.00069 | N52: Stadium Purposes | O52: Business | P52: 6.9
D53: =SUM(E49:E53) -> 86.96 | E53: 9.05 | G53: 43 | H53: =+H52 -> 2 | I53: 6 | J53: 2 | K53: 2017/18 | L53: =ROUND(+'Impact for rates'!$J$62,5) -> 0.00905 | N53: Wellington Regional Strategy - Business | O53: Business | P53: 90.5
E54: 25.45 | G54: 43 | H54: 3 | I54: 1 | J54: 2 | K54: 2017/18 | L54: =ROUND(+'Impact for rates'!$C$10,5) -> 0.02545 | N54: General Rate | O54: Rural | P54: 254.5
E55: 14.49 | G55: 43 | H55: =+H54 -> 3 | I55: 2 | J55: 2 | K55: 2017/18 | L55: =ROUND(+'Impact for rates'!$C$25,5) -> 0.01449 | N55: River Management | O55: Rural | P55: 144.9
E56: 8.54 | G56: 43 | H56: =+H55 -> 3 | I56: 3 | J56: 2 | K56: 2017/18 | L56: =ROUND(+'Impact for rates'!$J$17,5) -> 0.00854 | N56: Regional Transport | O56: Rural | P56: 85.4
E57: 0.24 | G57: 43 | H57: =+H56 -> 3 | I57: 4 | J57: 2 | K57: 2017/18 | L57: =ROUND(+'Impact for rates'!$C$63,5) -> 0.00024 | N57: Stadium Purposes | O57: Rural | P57: 2.4
D58: =SUM(E54:E58) -> 76.72 | E58: =+L58 -> 28 | G58: 43 | H58: =+H57 -> 3 | I58: 5 | J58: 2 | K58: 2017/18 | L58: =ROUND(+'Impact for rates'!$I$64,5) -> 28 | N58: Wellington Regional Strategy | O58: Rural | P58: =L58*1000000/100 -> 280000
G60: TA_ID | H60: Rate_Class_ID | I60: Rates_ID | J60: Rates_Status_ID | K60: Rates_year | L60: Rates_value | N60: =VLOOKUP(G61,$A$25:$B$33,2,FALSE) -> Porirua city
E61: =L61*100000/100 -> 25.1 | G61: 44 | H61: 1 | I61: 1 | J61: =+J5 -> 2 | K61: =+$K$5 -> 2017/18 | L61: =ROUND(+'Impact for rates'!$C$11,5) -> 0.0251 | N61: =VLOOKUP(I61,$A$14:$B$19,2,FALSE) -> General Rate | O61: =VLOOKUP(H61,$A$2:$B$5,2,FALSE) -> Residential | P61: =L61*1000000/100 -> 251
E62: =L62*100000/100 -> 0.48 | G62: =+G61 -> 44 | H62: 1 | I62: 2 | J62: =+J61 -> 2 | K62: 2017/18 | L62: =ROUND(+'Impact for rates'!$C$26,5) -> 0.00048 | N62: River Management | O62: Residential | P62: 4.8
E63: =L63*100000/100 -> 50.65 | G63: 44 | H63: 1 | I63: 3 | J63: =+J62 -> 2 | K63: 2017/18 | L63: =ROUND(+'Impact for rates'!$J$19,5) -> 0.05065 | N63: Regional Transport | O63: Residential | P63: 506.5
E64: =L64*100000/100 -> 0.68 | G64: 44 | H64: 1 | I64: 4 | J64: =+J63 -> 2 | K64: 2017/18 | L64: =ROUND(+'Impact for rates'!$C$66,5) -> 0.00068 | N64: Stadium Purposes | O64: Residential | P64: 6.8
D65: =SUM(E61:E65) -> 90.91 | E65: =+L65 -> 14 | G65: 44 | H65: 1 | I65: 5 | J65: =+J64 -> 2 | K65: 2017/18 | L65: =ROUND(+'Impact for rates'!$I$67,5) -> 14 | N65: Wellington Regional Strategy | O65: Residential | P65: 140000
E66: =L66*100000/100 -> 25.1 | G66: =+G65 -> 44 | H66: 2 | I66: 1 | J66: =+J65 -> 2 | K66: 2017/18 | L66: =ROUND(+'Impact for rates'!$C$11,5) -> 0.0251 | N66: General Rate | O66: Business | P66: 251
E67: 0.48 | G67: 44 | H67: =+H66 -> 2 | I67: 2 | J67: 2 | K67: 2017/18 | L67: =ROUND(+'Impact for rates'!$C$26,5) -> 0.00048 | N67: River Management | O67: Business | P67: 4.8
E68: 50.65 | G68: 44 | H68: =+H67 -> 2 | I68: 3 | J68: 2 | K68: 2017/18 | L68: =ROUND(+'Impact for rates'!$J$19,5) -> 0.05065 | N68: Regional Transport | O68: Business | P68: 506.5
E69: 1.11 | G69: 44 | H69: =+H68 -> 2 | I69: 4 | J69: 2 | K69: 2017/18 | L69: =ROUND(+'Impact for rates'!$C$65,5) -> 0.00111 | N69: Stadium Purposes | O69: Business | P69: 11.1
D70: =SUM(E66:E70) -> 86.28 | E70: 8.94 | G70: 44 | H70: =+H69 -> 2 | I70: 6 | J70: 2 | K70: 2017/18 | L70: =ROUND(+'Impact for rates'!$J$66,5) -> 0.00894 | N70: Wellington Regional Strategy - Business | O70: Business | P70: 89.4
E71: 25.1 | G71: 44 | H71: 3 | I71: 1 | J71: 2 | K71: 2017/18 | L71: =ROUND(+'Impact for rates'!$C$11,5) -> 0.0251 | N71: General Rate | O71: Rural | P71: 251
E72: 0.48 | G72: 44 | H72: =+H71 -> 3 | I72: 2 | J72: 2 | K72: 2017/18 | L72: =ROUND(+'Impact for rates'!$C$26,5) -> 0.00048 | N72: River Management | O72: Rural | P72: 4.8
E73: 8.44 | G73: 44 | H73: =+H72 -> 3 | I73: 3 | J73: 2 | K73: 2017/18 | L73: =ROUND(+'Impact for rates'!$J$20,5) -> 0.00844 | N73: Regional Transport | O73: Rural | P73: 84.4
E74: 0.23 | G74: 44 | H74: =+H73 -> 3 | I74: 4 | J74: 2 | K74: 2017/18 | L74: =ROUND(+'Impact for rates'!$C$67,5) -> 0.00023 | N74: Stadium Purposes | O74: Rural | P74: 2.3
D75: =SUM(E71:E75) -> 62.25 | E75: =+L75 -> 28 | G75: 44 | H75: =+H74 -> 3 | I75: 5 | J75: 2 | K75: 2017/18 | L75: =ROUND(+'Impact for rates'!$I$68,5) -> 28 | N75: Wellington Regional Strategy | O75: Rural | P75: =L75*1000000/100 -> 280000
G77: TA_ID | H77: Rate_Class_ID | I77: Rates_ID | J77: Rates_Status_ID | K77: Rates_year | L77: Rates_value | N77: =VLOOKUP(G78,$A$25:$B$33,2,FALSE) -> Kapiti Coast district
E78: =L78*100000/100 -> 29.53 | G78: 45 | H78: 1 | I78: 1 | J78: =+J5 -> 2 | K78: =+$K$5 -> 2017/18 | L78: =ROUND(+'Impact for rates'!$C$12,5) -> 0.02953 | N78: =VLOOKUP(I78,$A$14:$B$19,2,FALSE) -> General Rate | O78: =VLOOKUP(H78,$A$2:$B$5,2,FALSE) -> Residential | P78: =L78*1000000/100 -> 295.3
E79: =L79*100000/100 -> 19.88 | G79: =+G78 -> 45 | H79: 1 | I79: 2 | J79: =+J78 -> 2 | K79: 2017/18 | L79: =ROUND(+'Impact for rates'!$C$27,5) -> 0.01988 | N79: River Management | O79: Residential | P79: 198.8
E80: =L80*100000/100 -> 59.59 | G80: 45 | H80: 1 | I80: 3 | J80: =+J79 -> 2 | K80: 2017/18 | L80: =ROUND(+'Impact for rates'!$J$22,5) -> 0.05959 | N80: Regional Transport | O80: Residential | P80: 595.9
E81: =L81*100000/100 -> 0.46 | G81: 45 | H81: 1 | I81: 4 | J81: =+J80 -> 2 | K81: 2017/18 | L81: =ROUND(+'Impact for rates'!$C$69,5) -> 0.00046 | N81: Stadium Purposes | O81: Residential | P81: 4.6
D82: =SUM(E78:E82) -> 123.46 | E82: =+L82 -> 14 | G82: 45 | H82: 1 | I82: 5 | J82: =+J81 -> 2 | K82: 2017/18 | L82: =ROUND(+'Impact for rates'!$I$71,5) -> 14 | N82: Wellington Regional Strategy | O82: Residential | P82: 140000
E83: =L83*100000/100 -> 29.53 | G83: =+G82 -> 45 | H83: 2 | I83: 1 | J83: =+J82 -> 2 | K83: 2017/18 | L83: =ROUND(+'Impact for rates'!$C$12,5) -> 0.02953 | N83: General Rate | O83: Business | P83: 295.3
E84: 19.88 | G84: 45 | H84: =+H83 -> 2 | I84: 2 | J84: 2 | K84: 2017/18 | L84: =ROUND(+'Impact for rates'!$C$27,5) -> 0.01988 | N84: River Management | O84: Business | P84: 198.8
E85: 59.59 | G85: 45 | H85: =+H84 -> 2 | I85: 3 | J85: 2 | K85: 2017/18 | L85: =ROUND(+'Impact for rates'!$J$22,5) -> 0.05959 | N85: Regional Transport | O85: Business | P85: 595.9
E86: 0.46 | G86: 45 | H86: =+H85 -> 2 | I86: 4 | J86: 2 | K86: 2017/18 | L86: =ROUND(+'Impact for rates'!$C$69,5) -> 0.00046 | N86: Stadium Purposes | O86: Business | P86: 4.6
D87: =SUM(E83:E87) -> 119.98 | E87: 10.52 | G87: 45 | H87: =+H86 -> 2 | I87: 6 | J87: 2 | K87: 2017/18 | L87: =ROUND(+'Impact for rates'!$J$70,5) -> 0.01052 | N87: Wellington Regional Strategy - Business | O87: Business | P87: 105.2
E88: 29.53 | G88: 45 | H88: 3 | I88: 1 | J88: 2 | K88: 2017/18 | L88: =ROUND(+'Impact for rates'!$C$12,5) -> 0.02953 | N88: General Rate | O88: Rural | P88: 295.3
E89: 19.88 | G89: 45 | H89: =+H88 -> 3 | I89: 2 | J89: 2 | K89: 2017/18 | L89: =ROUND(+'Impact for rates'!$C$27,5) -> 0.01988 | N89: River Management | O89: Rural | P89: 198.8
E90: 9.93 | G90: 45 | H90: =+H89 -> 3 | I90: 3 | J90: 2 | K90: 2017/18 | L90: =ROUND(+'Impact for rates'!$J$23,5) -> 0.00993 | N90: Regional Transport | O90: Rural | P90: 99.3
E91: 0.25 | G91: 45 | H91: =+H90 -> 3 | I91: 4 | J91: 2 | K91: 2017/18 | L91: =ROUND(+'Impact for rates'!$C$70,5) -> 0.00025 | N91: Stadium Purposes | O91: Rural | P91: 2.5
D92: =SUM(E88:E92) -> 87.59 | E92: =+L92 -> 28 | G92: 45 | H92: =+H91 -> 3 | I92: 5 | J92: 2 | K92: 2017/18 | L92: =ROUND(+'Impact for rates'!$I$72,5) -> 28 | N92: Wellington Regional Strategy | O92: Rural | P92: =L92*1000000/100 -> 280000
G94: TA_ID | H94: Rate_Class_ID | I94: Rates_ID | J94: Rates_Status_ID | K94: Rates_year | L94: Rates_value | N94: =VLOOKUP(G95,$A$25:$B$33,2,FALSE) -> Masterton district
E95: =L95*100000/100 -> 26.55 | G95: 46 | H95: 1 | I95: 1 | J95: =+J5 -> 2 | K95: =+$K$5 -> 2017/18 | L95: =ROUND(+'Impact for rates'!$C$13,5) -> 0.02655 | N95: =VLOOKUP(I95,$A$14:$B$19,2,FALSE) -> General Rate | O95: =VLOOKUP(H95,$A$2:$B$5,2,FALSE) -> Residential | P95: =L95*1000000/100 -> 265.5
E96: =L96*100000/100 -> 0 | G96: =+G95 -> 46 | H96: 1 | I96: 2 | J96: =+J95 -> 2 | K96: 2017/18 | L96: 0 | N96: River Management | O96: Residential | P96: 0
E97: =L97*100000/100 -> 53.57 | G97: 46 | H97: 1 | I97: 3 | J97: =+J96 -> 2 | K97: 2017/18 | L97: =ROUND(+'Impact for rates'!$J$25,5) -> 0.05357 | N97: Regional Transport | O97: Residential | P97: 535.7
E98: =L98*100000/100 -> 0.61 | G98: 46 | H98: 1 | I98: 4 | J98: 2 | K98: 2017/18 | L98: =ROUND(+'Impact for rates'!$C$72,5) -> 0.00061 | N98: Stadium Purposes | O98: Residential | P98: 6.1
D99: =SUM(E95:E99) -> 94.73 | E99: =+L99 -> 14 | G99: 46 | H99: 1 | I99: 5 | J99: 2 | K99: 2017/18 | L99: =ROUND(+'Impact for rates'!$I$75,5) -> 14 | N99: Wellington Regional Strategy | O99: Residential | P99: 140000
E100: =L100*100000/100 -> 26.55 | G100: =+G99 -> 46 | H100: 2 | I100: 1 | J100: 2 | K100: 2017/18 | L100: =ROUND(+'Impact for rates'!$C$13,5) -> 0.02655 | N100: General Rate | O100: Business | P100: 265.5
E101: 0 | G101: 46 | H101: =+H100 -> 2 | I101: 2 | J101: 2 | K101: 2017/18 | L101: 0 | N101: River Management | O101: Business | P101: 0
E102: 53.57 | G102: 46 | H102: =+H101 -> 2 | I102: 3 | J102: 2 | K102: 2017/18 | L102: =ROUND(+'Impact for rates'!$J$25,5) -> 0.05357 | N102: Regional Transport | O102: Business | P102: 535.7
E103: 0.61 | G103: 46 | H103: =+H102 -> 2 | I103: 4 | J103: 2 | K103: 2017/18 | L103: =ROUND(+'Impact for rates'!$C$72,5) -> 0.00061 | N103: Stadium Purposes | O103: Business | P103: 6.1
D104: =SUM(E100:E104) -> 90.19 | E104: 9.46 | G104: 46 | H104: =+H103 -> 2 | I104: 6 | J104: 2 | K104: 2017/18 | L104: =ROUND(+'Impact for rates'!$J$74,5) -> 0.00946 | N104: Wellington Regional Strategy - Business | O104: Business | P104: 94.6
E105: 26.55 | G105: 46 | H105: 3 | I105: 1 | J105: 2 | K105: 2017/18 | L105: =ROUND(+'Impact for rates'!$C$13,5) -> 0.02655 | N105: General Rate | O105: Rural | P105: 265.5
E106: 0 | G106: 46 | H106: =+H105 -> 3 | I106: 2 | J106: 2 | K106: 2017/18 | L106: 0 | N106: River Management | O106: Rural | P106: 0
E107: 8.93 | G107: 46 | H107: =+H106 -> 3 | I107: 3 | J107: 2 | K107: 2017/18 | L107: =ROUND(+'Impact for rates'!$J$26,5) -> 0.00893 | N107: Regional Transport | O107: Rural | P107: 89.3
E108: 0.22 | G108: 46 | H108: =+H107 -> 3 | I108: 4 | J108: 2 | K108: 2017/18 | L108: =ROUND(+'Impact for rates'!$C$73,5) -> 0.00022 | N108: Stadium Purposes | O108: Rural | P108: 2.2
D109: =SUM(E105:E109) -> 63.7 | E109: =+L109 -> 28 | G109: 46 | H109: =+H108 -> 3 | I109: 5 | J109: 2 | K109: 2017/18 | L109: =ROUND(+'Impact for rates'!$I$76,5) -> 28 | N109: Wellington Regional Strategy | O109: Rural | P109: =L109*1000000/100 -> 280000
G111: TA_ID | H111: Rate_Class_ID | I111: Rates_ID | J111: Rates_Status_ID | K111: Rates_year | L111: Rates_value | N111: =VLOOKUP(G112,$A$25:$B$33,2,FALSE) -> Carterton district
E112: =L112*100000/100 -> 26.48 | G112: 47 | H112: 1 | I112: 1 | J112: =+$J$5 -> 2 | K112: =+$K$5 -> 2017/18 | L112: =ROUND(+'Impact for rates'!$C$14,5) -> 0.02648 | N112: =VLOOKUP(I112,$A$14:$B$19,2,FALSE) -> General Rate | O112: =VLOOKUP(H112,$A$2:$B$5,2,FALSE) -> Residential | P112: =L112*1000000/100 -> 264.8
E113: =L113*100000/100 -> 0 | G113: =+G112 -> 47 | H113: 1 | I113: 2 | J113: =+J112 -> 2 | K113: 2017/18 | L113: =ROUND(+'Impact for rates'!$C$28,5) -> 0 | N113: River Management | O113: Residential | P113: 0
E114: =L114*100000/100 -> 53.44 | G114: 47 | H114: 1 | I114: 3 | J114: =+J113 -> 2 | K114: 2017/18 | L114: =ROUND(+'Impact for rates'!$J$28,5) -> 0.05344 | N114: Regional Transport | O114: Residential | P114: 534.4
E115: =L115*100000/100 -> 0.54 | G115: 47 | H115: 1 | I115: 4 | J115: 2 | K115: 2017/18 | L115: =ROUND(+'Impact for rates'!$C$75,5) -> 0.00054 | N115: Stadium Purposes | O115: Residential | P115: 5.4
D116: =SUM(E112:E116) -> 94.46 | E116: =+L116 -> 14 | G116: 47 | H116: 1 | I116: 5 | J116: 2 | K116: 2017/18 | L116: =ROUND(+'Impact for rates'!$I$79,5) -> 14 | N116: Wellington Regional Strategy | O116: Residential | P116: 140000
E117: =L117*100000/100 -> 26.48 | G117: =+G116 -> 47 | H117: 2 | I117: 1 | J117: 2 | K117: 2017/18 | L117: =ROUND(+'Impact for rates'!$C$14,5) -> 0.02648 | N117: General Rate | O117: Business | P117: 264.8
E118: 0 | G118: 47 | H118: =+H117 -> 2 | I118: 2 | J118: 2 | K118: 2017/18 | L118: =ROUND(+'Impact for rates'!$C$28,5) -> 0 | N118: River Management | O118: Business | P118: 0
E119: 53.44 | G119: 47 | H119: =+H118 -> 2 | I119: 3 | J119: 2 | K119: 2017/18 | L119: =ROUND(+'Impact for rates'!$J$28,5) -> 0.05344 | N119: Regional Transport | O119: Business | P119: 534.4
E120: 0.54 | G120: 47 | H120: =+H119 -> 2 | I120: 4 | J120: 2 | K120: 2017/18 | L120: =ROUND(+'Impact for rates'!$C$75,5) -> 0.00054 | N120: Stadium Purposes | O120: Business | P120: 5.4
D121: =SUM(E117:E121) -> 89.9 | E121: 9.44 | G121: 47 | H121: =+H120 -> 2 | I121: 6 | J121: 2 | K121: 2017/18 | L121: =ROUND(+'Impact for rates'!$J$78,5) -> 0.00944 | N121: Wellington Regional Strategy - Business | O121: Business | P121: 94.4
E122: 26.48 | G122: 47 | H122: 3 | I122: 1 | J122: 2 | K122: 2017/18 | L122: =ROUND(+'Impact for rates'!$C$14,5) -> 0.02648 | N122: General Rate | O122: Rural | P122: 264.8
E123: 0 | G123: 47 | H123: =+H122 -> 3 | I123: 2 | J123: 2 | K123: 2017/18 | L123: =ROUND(+'Impact for rates'!$C$28,5) -> 0 | N123: River Management | O123: Rural | P123: 0
E124: 8.91 | G124: 47 | H124: =+H123 -> 3 | I124: 3 | J124: 2 | K124: 2017/18 | L124: =ROUND(+'Impact for rates'!$J$29,5) -> 0.00891 | N124: Regional Transport | O124: Rural | P124: 89.1
E125: 0.2 | G125: 47 | H125: =+H124 -> 3 | I125: 4 | J125: 2 | K125: 2017/18 | L125: =ROUND(+'Impact for rates'!$C$76,5) -> 0.0002 | N125: Stadium Purposes | O125: Rural | P125: 2
D126: =SUM(E122:E126) -> 63.59 | E126: =+L126 -> 28 | G126: 47 | H126: =+H125 -> 3 | I126: 5 | J126: 2 | K126: 2017/18 | L126: =ROUND(+'Impact for rates'!$I$80,5) -> 28 | N126: Wellington Regional Strategy | O126: Rural | P126: =L126*1000000/100 -> 280000
G128: TA_ID | H128: Rate_Class_ID | I128: Rates_ID | J128: Rates_Status_ID | K128: Rates_year | L128: Rates_value | N128: =VLOOKUP(G129,$A$25:$B$33,2,FALSE) -> South Wairarapa district
E129: =L129*100000/100 -> 25.81 | G129: 48 | H129: 1 | I129: 1 | J129: =+$J$5 -> 2 | K129: =+$K$5 -> 2017/18 | L129: =ROUND(+'Impact for rates'!$C$15,5) -> 0.02581 | N129: =VLOOKUP(I129,$A$14:$B$19,2,FALSE) -> General Rate | O129: =VLOOKUP(H129,$A$2:$B$5,2,FALSE) -> Residential | P129: =L129*1000000/100 -> 258.1
E130: =L130*100000/100 -> 0 | G130: =+G129 -> 48 | H130: 1 | I130: 2 | J130: =+J129 -> 2 | K130: 2017/18 | L130: 0 | N130: River Management | O130: Residential | P130: 0
E131: =L131*100000/100 -> 52.08 | G131: 48 | H131: 1 | I131: 3 | J131: =+J130 -> 2 | K131: 2017/18 | L131: =ROUND(+'Impact for rates'!$J$31,5) -> 0.05208 | N131: Regional Transport | O131: Residential | P131: 520.8
E132: =L132*100000/100 -> 0.65 | G132: 48 | H132: 1 | I132: 4 | J132: 2 | K132: 2017/18 | L132: =ROUND(+'Impact for rates'!$C$78,5) -> 0.00065 | N132: Stadium Purposes | O132: Residential | P132: 6.5
D133: =SUM(E129:E133) -> 92.54 | E133: =+L133 -> 14 | G133: 48 | H133: 1 | I133: 5 | J133: 2 | K133: 2017/18 | L133: =ROUND(+'Impact for rates'!$I$83,5) -> 14 | N133: Wellington Regional Strategy | O133: Residential | P133: 140000
E134: =L134*100000/100 -> 25.81 | G134: =+G133 -> 48 | H134: 2 | I134: 1 | J134: 2 | K134: 2017/18 | L134: =ROUND(+'Impact for rates'!$C$15,5) -> 0.02581 | N134: General Rate | O134: Business | P134: 258.1
E135: 0 | G135: 48 | H135: =+H134 -> 2 | I135: 2 | J135: 2 | K135: 2017/18 | L135: 0 | N135: River Management | O135: Business | P135: 0
E136: 52.08 | G136: 48 | H136: =+H135 -> 2 | I136: 3 | J136: 2 | K136: 2017/18 | L136: =ROUND(+'Impact for rates'!$J$31,5) -> 0.05208 | N136: Regional Transport | O136: Business | P136: 520.8
E137: 0.65 | G137: 48 | H137: =+H136 -> 2 | I137: 4 | J137: 2 | K137: 2017/18 | L137: =ROUND(+'Impact for rates'!$C$78,5) -> 0.00065 | N137: Stadium Purposes | O137: Business | P137: 6.5
D138: =SUM(E134:E138) -> 87.74 | E138: 9.2 | G138: 48 | H138: =+H137 -> 2 | I138: 6 | J138: 2 | K138: 2017/18 | L138: =ROUND(+'Impact for rates'!$J$82,5) -> 0.0092 | N138: Wellington Regional Strategy - Business | O138: Business | P138: 92
E139: 25.81 | G139: 48 | H139: 3 | I139: 1 | J139: 2 | K139: 2017/18 | L139: =ROUND(+'Impact for rates'!$C$15,5) -> 0.02581 | N139: General Rate | O139: Rural | P139: 258.1
E140: 0 | G140: 48 | H140: =+H139 -> 3 | I140: 2 | J140: 2 | K140: 2017/18 | L140: 0 | N140: River Management | O140: Rural | P140: 0
E141: 8.68 | G141: 48 | H141: =+H140 -> 3 | I141: 3 | J141: 2 | K141: 2017/18 | L141: =ROUND(+'Impact for rates'!$J$32,5) -> 0.00868 | N141: Regional Transport | O141: Rural | P141: 86.8
E142: 0.15 | G142: 48 | H142: =+H141 -> 3 | I142: 4 | J142: 2 | K142: 2017/18 | L142: =ROUND(+'Impact for rates'!$C$79,5) -> 0.00015 | N142: Stadium Purposes | O142: Rural | P142: 1.5
D143: =SUM(E139:E143) -> 62.64 | E143: =+L143 -> 28 | G143: 48 | H143: =+H142 -> 3 | I143: 5 | J143: 2 | K143: 2017/18 | L143: =ROUND(+'Impact for rates'!$I$84,5) -> 28 | N143: Wellington Regional Strategy | O143: Rural | P143: =L143*1000000/100 -> 280000
G145: TA_ID | H145: Rate_Class_ID | I145: Rates_ID | J145: Rates_Status_ID | K145: Rates_year | L145: Rates_value | N145: =VLOOKUP(G146,$A$25:$B$33,2,FALSE) -> Tararua district
E146: =L146*100000/100 -> 25.9 | G146: 49 | H146: 3 | I146: 1 | J146: =+$J$5 -> 2 | K146: =+$K$5 -> 2017/18 | L146: =ROUND(+'Impact for rates'!$C$16,5) -> 0.0259 | N146: =VLOOKUP(I146,$A$14:$B$19,2,FALSE) -> General Rate | O146: =VLOOKUP(H146,$A$2:$B$5,2,FALSE) -> Rural | P146: =L146*1000000/100 -> 259
E147: =L147*100000/100 -> 0 | G147: =+G146 -> 49 | H147: 3 | I147: 2 | J147: =+J146 -> 2 | K147: =+$K$5 -> 2017/18 | L147: 0 | N147: =VLOOKUP(I147,$A$14:$B$19,2,FALSE) -> River Management | O147: =VLOOKUP(H147,$A$2:$B$5,2,FALSE) -> Rural | P147: =L147*1000000/100 -> 0
E148: =L148*100000/100 -> 0 | G148: 49 | H148: 3 | I148: 3 | J148: =+J147 -> 2 | K148: =+$K$5 -> 2017/18 | L148: 0 | N148: =VLOOKUP(I148,$A$14:$B$19,2,FALSE) -> Regional Transport | O148: =VLOOKUP(H148,$A$2:$B$5,2,FALSE) -> Rural | P148: =L148*1000000/100 -> 0
E149: =L149*100000/100 -> 0 | G149: 49 | H149: 3 | I149: 4 | J149: =+J148 -> 2 | K149: =+$K$5 -> 2017/18 | L149: 0 | N149: =VLOOKUP(I149,$A$14:$B$19,2,FALSE) -> Stadium Purposes | O149: =VLOOKUP(H149,$A$2:$B$5,2,FALSE) -> Rural | P149: =L149*1000000/100 -> 0
E150: =+L150 -> 28 | G150: 49 | H150: 3 | I150: 5 | J150: =+J149 -> 2 | K150: =+$K$5 -> 2017/18 | L150: =ROUND(+'Impact for rates'!$I$85,5) -> 28 | N150: =VLOOKUP(I150,$A$14:$B$19,2,FALSE) -> Wellington Regional Strategy | O150: =VLOOKUP(H150,$A$2:$B$5,2,FALSE) -> Rural | P150: =L150*1000000/100 -> 280000

Sheet Comparison
A1: Comparison of proposed vs current
A2: =check_total -> -3.725290298e-09
A4: Current rates model
B5: TA
B6: Wellington City | C6: Hutt City | D6: Upper Hutt City | E6: Porirua City | F6: Kapiti Coast District | G6: Masterton District | H6: Carterton District | I6: South Wairarapa District | J6: Tararua District | K6: Other | L6: Total
A7: General Rates | B7: =IFERROR(INDEX(Gen!$I$9:$I$17,MATCH(B$32,Gen!$A$9:$A$17,0),),0) -> 21189529 | C7: =IFERROR(INDEX(Gen!$I$9:$I$17,MATCH(C$32,Gen!$A$9:$A$17,0),),0) -> 7179456 | D7: =IFERROR(INDEX(Gen!$I$9:$I$17,MATCH(D$32,Gen!$A$9:$A$17,0),),0) -> 2718137 | E7: =IFERROR(INDEX(Gen!$I$9:$I$17,MATCH(E$32,Gen!$A$9:$A$17,0),),0) -> 3367757 | F7: =IFERROR(INDEX(Gen!$I$9:$I$17,MATCH(F$32,Gen!$A$9:$A$17,0),),0) -> 4329462 | G7: =IFERROR(INDEX(Gen!$I$9:$I$17,MATCH(G$32,Gen!$A$9:$A$17,0),),0) -> 1675353 | H7: =IFERROR(INDEX(Gen!$I$9:$I$17,MATCH(H$32,Gen!$A$9:$A$17,0),),0) -> 774173 | I7: =IFERROR(INDEX(Gen!$I$9:$I$17,MATCH(I$32,Gen!$A$9:$A$17,0),),0) -> 1245449 | J7: =IFERROR(INDEX(Gen!$I$9:$I$17,MATCH(J$32,Gen!$A$9:$A$17,0),),0) -> 2354 | K7: =IFERROR(INDEX(Gen!$I$9:$I$17,MATCH(K$32,Gen!$A$9:$A$17,0),),0) -> 0 | L7: =Essbase!F4 -> 42481670.52 | M7: =ROUND(L7-SUM(B7:K7),-1) -> 0
A8: Remission of Regional Rates | B8: 0 | C8: 0 | D8: 0 | E8: 0 | F8: 0 | G8: 0 | H8: 0 | I8: 0 | J8: 0 | K8: 0 | L8: =Essbase!F5 -> 0 | M8: =ROUND(L8-SUM(B8:K8),-1) -> 0
A9: Transport Rate | B9: =IFERROR(INDEX(Tran!$M$7:$M$48,MATCH(B$32,Tran!$B$7:$B$48,0),),0) -> 38457358.01 | C9: =IFERROR(INDEX(Tran!$M$7:$M$48,MATCH(C$32,Tran!$B$7:$B$48,0),),0) -> 11536013.2 | D9: =IFERROR(INDEX(Tran!$M$7:$M$48,MATCH(D$32,Tran!$B$7:$B$48,0),),0) -> 4596383.563 | E9: =IFERROR(INDEX(Tran!$M$7:$M$48,MATCH(E$32,Tran!$B$7:$B$48,0),),0) -> 6066071.248 | F9: =IFERROR(INDEX(Tran!$M$7:$M$48,MATCH(F$32,Tran!$B$7:$B$48,0),),0) -> 3090620.088 | G9: =IFERROR(INDEX(Tran!$M$7:$M$48,MATCH(G$32,Tran!$B$7:$B$48,0),),0) -> 306748.5661 | H9: =IFERROR(INDEX(Tran!$M$7:$M$48,MATCH(H$32,Tran!$B$7:$B$48,0),),0) -> 198788.9136 | I9: =IFERROR(INDEX(Tran!$M$7:$M$48,MATCH(I$32,Tran!$B$7:$B$48,0),),0) -> 404412.5485 | J9: =IFERROR(INDEX(Tran!$M$7:$M$48,MATCH(J$32,Tran!$B$7:$B$48,0),),0) -> 0 | K9: =IFERROR(INDEX(Tran!$M$7:$M$48,MATCH(K$32,Tran!$B$7:$B$48,0),),0) -> 0 | L9: =Essbase!F6 -> 64656396.13 | M9: 0
A10: River Mgmt Rates | B10: =IFERROR(INDEX(Riv!$H$6:$H$14,MATCH(B$32,Riv!$A$6:$A$14,0),),0) -> 43255 | C10: =IFERROR(INDEX(Riv!$H$6:$H$14,MATCH(C$32,Riv!$A$6:$A$14,0),),0) -> 3685586 | D10: =IFERROR(INDEX(Riv!$H$6:$H$14,MATCH(D$32,Riv!$A$6:$A$14,0),),0) -> 678045 | E10: =IFERROR(INDEX(Riv!$H$6:$H$14,MATCH(E$32,Riv!$A$6:$A$14,0),),0) -> 28308 | F10: =IFERROR(INDEX(Riv!$H$6:$H$14,MATCH(F$32,Riv!$A$6:$A$14,0),),0) -> 1368226 | G10: =IFERROR(INDEX(Riv!$H$6:$H$14,MATCH(G$32,Riv!$A$6:$A$14,0),),0) -> 0 | H10: =IFERROR(INDEX(Riv!$H$6:$H$14,MATCH(H$32,Riv!$A$6:$A$14,0),),0) -> 23240 | I10: =IFERROR(INDEX(Riv!$H$6:$H$14,MATCH(I$32,Riv!$A$6:$A$14,0),),0) -> 0 | J10: =IFERROR(INDEX(Riv!$H$6:$H$14,MATCH(J$32,Riv!$A$6:$A$14,0),),0) -> 0 | K10: =IFERROR(INDEX(Riv!$H$6:$H$14,MATCH(K$32,Riv!$A$6:$A$14,0),),0) -> 0 | L10: =Essbase!F7 -> 5826660.417 | M10: 0
A11: Flood protection - Region | B11: 0 | C11: 0 | D11: 0 | E11: 0 | F11: 0 | G11: 0 | H11: 0 | I11: 0 | J11: 0 | K11: 0 | L11: 0 | M11: =ROUND(L11-SUM(B11:K11),-1) -> 0
A12: Flood protection - Catchment | B12: 0 | C12: 0 | D12: 0 | E12: 0 | F12: 0 | G12: 0 | H12: 0 | I12: 0 | J12: 0 | K12: 0 | L12: 0 | M12: =ROUND(L12-SUM(B12:K12),-1) -> 0
A13: Stadium Rate | B13: =IFERROR(INDEX(Stad!$D$8:$D$49,MATCH(B$6,Stad!$B$8:$B$49,0),),0) -> 580986 | C13: =IFERROR(INDEX(Stad!$D$8:$D$49,MATCH(C$6,Stad!$B$8:$B$49,0),),0) -> 190924 | D13: =IFERROR(INDEX(Stad!$D$8:$D$49,MATCH(D$6,Stad!$B$8:$B$49,0),),0) -> 51447 | E13: =IFERROR(INDEX(Stad!$D$8:$D$49,MATCH(E$6,Stad!$B$8:$B$49,0),),0) -> 70226 | F13: =IFERROR(INDEX(Stad!$D$8:$D$49,MATCH(F$6,Stad!$B$8:$B$49,0),),0) -> 47340 | G13: =IFERROR(INDEX(Stad!$D$8:$D$49,MATCH(G$6,Stad!$B$8:$B$49,0),),0) -> 19562 | H13: =IFERROR(INDEX(Stad!$D$8:$D$49,MATCH(H$6,Stad!$B$8:$B$49,0),),0) -> 6846 | I13: =IFERROR(INDEX(Stad!$D$8:$D$49,MATCH(I$6,Stad!$B$8:$B$49,0),),0) -> 10760 | J13: =IFERROR(INDEX(Stad!$D$8:$D$49,MATCH(J$6,Stad!$B$8:$B$49,0),),0) -> 0 | K13: =IFERROR(INDEX(Stad!$D$8:$D$49,MATCH(K$6,Stad!$B$8:$B$49,0),),0) -> 0 | L13: =Essbase!F11 -> 978091.35 | M13: 0
A14: WRS Rate | B14: =IFERROR(INDEX(WRS!$D$8:$D$49,MATCH(B$6,WRS!$B$8:$B$49,0),),0) -> 2299850.973 | C14: =IFERROR(INDEX(WRS!$D$8:$D$49,MATCH(C$6,WRS!$B$8:$B$49,0),),0) -> 862252.3181 | D14: =IFERROR(INDEX(WRS!$D$8:$D$49,MATCH(D$6,WRS!$B$8:$B$49,0),),0) -> 343198.0108 | E14: =IFERROR(INDEX(WRS!$D$8:$D$49,MATCH(E$6,WRS!$B$8:$B$49,0),),0) -> 354526.1708 | F14: =IFERROR(INDEX(WRS!$D$8:$D$49,MATCH(F$6,WRS!$B$8:$B$49,0),),0) -> 491419.6459 | G14: =IFERROR(INDEX(WRS!$D$8:$D$49,MATCH(G$6,WRS!$B$8:$B$49,0),),0) -> 241562.2933 | H14: =IFERROR(INDEX(WRS!$D$8:$D$49,MATCH(H$6,WRS!$B$8:$B$49,0),),0) -> 90904.66358 | I14: =IFERROR(INDEX(WRS!$D$8:$D$49,MATCH(I$6,WRS!$B$8:$B$49,0),),0) -> 138051.1438 | J14: =IFERROR(INDEX(WRS!$D$8:$D$49,MATCH(J$6,WRS!$B$8:$B$49,0),),0) -> 252 | K14: =IFERROR(INDEX(WRS!$D$8:$D$49,MATCH(K$6,WRS!$B$8:$B$49,0),),0) -> 0 | L14: =Essbase!F12 -> 4822017.219 | M14: 0
A15: District-Wide Rates | B15: =SUM(B7:B14) -> 62570978.98 | C15: 23454231.52 | D15: 8387210.574 | E15: 9886888.419 | F15: 9327067.734 | G15: 2243225.859 | H15: 1093952.577 | I15: 1798672.692 | J15: 2606 | K15: 0 | L15: 118764835.6 | M15: 0
A16: Rates Penalties | B16: 0 | C16: 0 | D16: 0 | E16: 0 | F16: 0 | G16: 0 | H16: 0 | I16: 0 | J16: 0 | K16: 0 | L16: =Essbase!F14 -> 0 | M16: 0
A17: Remission of Rates Penalties | B17: 0 | C17: 0 | D17: 0 | E17: 0 | F17: 0 | G17: 0 | H17: 0 | I17: 0 | J17: 0 | K17: 0 | L17: =Essbase!F15 -> 0 | M17: 0
A18: Farm plans | B18: =IFERROR(INDEX('Farm Plan'!$I$7:$I$9,MATCH(B$6,'Farm Plan'!$M$7:$M$9,0),),0) -> 0 | C18: =IFERROR(INDEX('Farm Plan'!$I$7:$I$9,MATCH(C$6,'Farm Plan'!$M$7:$M$9,0),),0) -> 0 | D18: =IFERROR(INDEX('Farm Plan'!$I$7:$I$9,MATCH(D$6,'Farm Plan'!$M$7:$M$9,0),),0) -> 0 | E18: =IFERROR(INDEX('Farm Plan'!$I$7:$I$9,MATCH(E$6,'Farm Plan'!$M$7:$M$9,0),),0) -> 0 | F18: =IFERROR(INDEX('Farm Plan'!$I$7:$I$9,MATCH(F$6,'Farm Plan'!$M$7:$M$9,0),),0) -> 0 | G18: =IFERROR(INDEX('Farm Plan'!$I$7:$I$9,MATCH(G$6,'Farm Plan'!$M$7:$M$9,0),),0) -> 0 | H18: =IFERROR(INDEX('Farm Plan'!$I$7:$I$9,MATCH(H$6,'Farm Plan'!$M$7:$M$9,0),),0) -> 0 | I18: =IFERROR(INDEX('Farm Plan'!$I$7:$I$9,MATCH(I$6,'Farm Plan'!$M$7:$M$9,0),),0) -> 0 | J18: =IFERROR(INDEX('Farm Plan'!$I$7:$I$9,MATCH(J$6,'Farm Plan'!$M$7:$M$9,0),),0) -> 0 | K18: =IFERROR(INDEX('Farm Plan'!$I$7:$I$9,MATCH(K$6,'Farm Plan'!$M$7:$M$9,0),),0) -> 0 | L18: =Essbase!F16 -> 0 | M18: 0
A19: Pest Rate | B19: =IFERROR(INDEX(Pest!$G$8:$W$8,,MATCH(B$6,Pest!$G$11:$W$11,0)),0) -> 26190.39276 | C19: =IFERROR(INDEX(Pest!$G$8:$W$8,,MATCH(C$6,Pest!$G$11:$W$11,0)),0) -> 11980.44159 | D19: =IFERROR(INDEX(Pest!$G$8:$W$8,,MATCH(D$6,Pest!$G$11:$W$11,0)),0) -> 41780.2034 | E19: =IFERROR(INDEX(Pest!$G$8:$W$8,,MATCH(E$6,Pest!$G$11:$W$11,0)),0) -> 9119.532442 | F19: =IFERROR(INDEX(Pest!$G$8:$W$8,,MATCH(F$6,Pest!$G$11:$W$11,0)),0) -> 22461.21191 | G19: =IFERROR(INDEX(Pest!$G$8:$W$8,,MATCH(G$6,Pest!$G$11:$W$11,0)),0) -> 159355.5116 | H19: =IFERROR(INDEX(Pest!$G$8:$W$8,,MATCH(H$6,Pest!$G$11:$W$11,0)),0) -> 60068.37833 | I19: =IFERROR(INDEX(Pest!$G$8:$W$8,,MATCH(I$6,Pest!$G$11:$W$11,0)),0) -> 136962.2856 | J19: =IFERROR(INDEX(Pest!$G$8:$W$8,,MATCH(J$6,Pest!$G$11:$W$11,0)),0) -> 4082.042306 | K19: =IFERROR(INDEX(Pest!$G$8:$W$8,,MATCH(K$6,Pest!$G$11:$W$11,0)),0) -> 0 | L19: =Essbase!F17 -> 472000 | M19: =ROUND(L19-SUM(B19:K19),-1) -> 0
A20: River Mgmt Rates - Non District Wide | B20: 0 | C20: 0 | D20: 0 | E20: 0 | F20: 0 | G20: 0 | H20: 0 | I20: =Riv!H26 -> 93297 | J20: 0 | K20: 0 | L20: =Essbase!F18 -> 93297.36 | M20: 0
A21: Special Rates - Land Management | B21: 0 | C21: 0 | D21: 0 | E21: 0 | F21: 0 | G21: 0 | H21: 0 | I21: 0 | J21: 0 | K21: ='Summarised data'!F24 -> 61840 | L21: =Essbase!F19 -> 61840 | M21: 0
A22: Special Rates (aka Protected Property) | B22: 0 | C22: 0 | D22: 0 | E22: 0 | F22: 0 | G22: 0 | H22: 0 | I22: 0 | J22: 0 | K22: ='Summarised data'!AO50 -> 1389916.116 | L22: =Essbase!F20 -> 1389916.116 | M22: 0
A23: Total Other Rates | B23: =SUM(B16:B22) -> 26190.39276 | C23: 11980.44159 | D23: 41780.2034 | E23: 9119.532442 | F23: 22461.21191 | G23: 159355.5116 | H23: 60068.37833 | I23: 230259.2856 | J23: 4082.042306 | K23: 1451756.116 | L23: 2017053.476 | M23: 0
A24: Total Regnl Rates | B24: =SUM(B23,B15) -> 62597169.37 | C24: 23466211.96 | D24: 8428990.777 | E24: 9896007.952 | F24: 9349528.945 | G24: 2402581.371 | H24: 1154020.956 | I24: 2028931.978 | J24: 6688.042306 | K24: 1451756.116 | L24: 120781889.1 | M24: 0 | N24: =ROUND(L24-'Summarised data'!E50-'Summarised data'!F50,-1) -> 0
A25: Bulk Water levies | B25: 0 | C25: 0 | D25: 0 | E25: 0 | F25: 0 | G25: 0 | H25: 0 | I25: 0 | J25: 0 | K25: ='Summarised data'!G50 -> 30862765.44 | L25: =Essbase!F23 -> 30862765.44 | M25: 0
A26: External revenue | B26: 0 | C26: 0 | D26: 0 | E26: 0 | F26: 0 | G26: 0 | H26: 0 | I26: 0 | J26: 0 | K26: ='Summarised data'!H50 -> 61897902.43 | L26: ='Summarised data'!H50 -> 61897902.43 | M26: 0
A27: Govt subsidies | B27: 0 | C27: 0 | D27: 0 | E27: 0 | F27: 0 | G27: 0 | H27: 0 | I27: 0 | J27: 0 | K27: ='Summarised data'!I50 -> 92939625.77 | L27: ='Summarised data'!I100 -> 92939625.77 | M27: 0
A28: Total funding | B28: =SUM(B24:B27) -> 62597169.37 | C28: 23466211.96 | D28: 8428990.777 | E28: 9896007.952 | F28: 9349528.945 | G28: 2402581.371 | H28: 1154020.956 | I28: 2028931.978 | J28: 6688.042306 | K28: 187152049.8 | L28: 306482182.7 | M28: 0 | N28: =ROUND(L28-'Summarised data'!J50,-1) -> 0
A30: Proposed rates model
B31: TA
B32: Wellington City | C32: Hutt City | D32: Upper Hutt City | E32: Porirua City | F32: Kapiti Coast District | G32: Masterton District | H32: Carterton District | I32: South Wairarapa District | J32: Tararua District | K32: Other | L32: Total
A33: General Rates | B33: =IFERROR(INDEX(Gen!$C$9:$C$17,MATCH(B$32,Gen!$A$9:$A$17,0),),0) -> 15862811.16 | C33: =IFERROR(INDEX(Gen!$C$9:$C$17,MATCH(C$32,Gen!$A$9:$A$17,0),),0) -> 5374652.677 | D33: =IFERROR(INDEX(Gen!$C$9:$C$17,MATCH(D$32,Gen!$A$9:$A$17,0),),0) -> 2034839.782 | E33: =IFERROR(INDEX(Gen!$C$9:$C$17,MATCH(E$32,Gen!$A$9:$A$17,0),),0) -> 2521155.074 | F33: =IFERROR(INDEX(Gen!$C$9:$C$17,MATCH(F$32,Gen!$A$9:$A$17,0),),0) -> 3241103.016 | G33: =IFERROR(INDEX(Gen!$C$9:$C$17,MATCH(G$32,Gen!$A$9:$A$17,0),),0) -> 1254195.531 | H33: =IFERROR(INDEX(Gen!$C$9:$C$17,MATCH(H$32,Gen!$A$9:$A$17,0),),0) -> 579558.0981 | I33: =IFERROR(INDEX(Gen!$C$9:$C$17,MATCH(I$32,Gen!$A$9:$A$17,0),),0) -> 932362.6248 | J33: =IFERROR(INDEX(Gen!$C$9:$C$17,MATCH(J$32,Gen!$A$9:$A$17,0),),0) -> 1762.57263 | K33: =IFERROR(INDEX(Gen!$C$9:$C$17,MATCH(K$32,Gen!$A$9:$A$17,0),),0) -> 0 | L33: =Essbase!I4 -> 31802440.53 | M33: =ROUND(L33-SUM(B33:K33),-1) -> 0
A34: Remission of Regional Rates | B34: 0 | C34: 0 | D34: 0 | E34: 0 | F34: 0 | G34: 0 | H34: 0 | I34: 0 | J34: 0 | K34: 0 | L34: =Essbase!I5 -> 0 | M34: 0
A35: Transport Rate | B35: =IFERROR(INDEX(Tran!$D$7:$D$48,MATCH(B$32,Tran!$B$7:$B$48,0),),0) -> 44814092.38 | C35: =IFERROR(INDEX(Tran!$D$7:$D$48,MATCH(C$32,Tran!$B$7:$B$48,0),),0) -> 7797061.767 | D35: =IFERROR(INDEX(Tran!$D$7:$D$48,MATCH(D$32,Tran!$B$7:$B$48,0),),0) -> 2732381.001 | E35: =IFERROR(INDEX(Tran!$D$7:$D$48,MATCH(E$32,Tran!$B$7:$B$48,0),),0) -> 3424222.666 | F35: =IFERROR(INDEX(Tran!$D$7:$D$48,MATCH(F$32,Tran!$B$7:$B$48,0),),0) -> 4110579.291 | G35: =IFERROR(INDEX(Tran!$D$7:$D$48,MATCH(G$32,Tran!$B$7:$B$48,0),),0) -> 909359.8333 | H35: =IFERROR(INDEX(Tran!$D$7:$D$48,MATCH(H$32,Tran!$B$7:$B$48,0),),0) -> 333789.1271 | I35: =IFERROR(INDEX(Tran!$D$7:$D$48,MATCH(I$32,Tran!$B$7:$B$48,0),),0) -> 534910.0754 | J35: =IFERROR(INDEX(Tran!$D$7:$D$48,MATCH(J$32,Tran!$B$7:$B$48,0),),0) -> 0 | K35: =IFERROR(INDEX(Tran!$D$7:$D$48,MATCH(K$32,Tran!$B$7:$B$48,0),),0) -> 0 | L35: =Essbase!I6 -> 64656396.14 | M35: 0
A36: River Mgmt Rates | B36: 0 | C36: 0 | D36: 0 | E36: 0 | F36: 0 | G36: 0 | H36: 0 | I36: 0 | J36: 0 | K36: 0 | L36: =Essbase!I7 -> 0 | M36: 0
A37: Flood protection - Region | B37: =IFERROR(INDEX(Gen!$C$33:$C$41,MATCH(B$32,Gen!$A$33:$A$41,0),),0) -> 2746795.375 | C37: =IFERROR(INDEX(Gen!$C$33:$C$41,MATCH(C$32,Gen!$A$33:$A$41,0),),0) -> 930671.8065 | D37: =IFERROR(INDEX(Gen!$C$33:$C$41,MATCH(D$32,Gen!$A$33:$A$41,0),),0) -> 352351.7016 | E37: =IFERROR(INDEX(Gen!$C$33:$C$41,MATCH(E$32,Gen!$A$33:$A$41,0),),0) -> 436561.7815 | F37: =IFERROR(INDEX(Gen!$C$33:$C$41,MATCH(F$32,Gen!$A$33:$A$41,0),),0) -> 561227.5585 | G37: =IFERROR(INDEX(Gen!$C$33:$C$41,MATCH(G$32,Gen!$A$33:$A$41,0),),0) -> 217175.7861 | H37: =IFERROR(INDEX(Gen!$C$33:$C$41,MATCH(H$32,Gen!$A$33:$A$41,0),),0) -> 100355.9513 | I37: =IFERROR(INDEX(Gen!$C$33:$C$41,MATCH(I$32,Gen!$A$33:$A$41,0),),0) -> 161447.3828 | J37: =IFERROR(INDEX(Gen!$C$33:$C$41,MATCH(J$32,Gen!$A$33:$A$41,0),),0) -> 305.206076 | K37: =IFERROR(INDEX(Gen!$C$33:$C$41,MATCH(K$32,Gen!$A$33:$A$41,0),),0) -> 0 | L37: =Essbase!I8 -> 5506892.55 | M37: 0
A38: Flood protection - Catchment | B38: =IFERROR(INDEX(Riv!$B$6:$B$14,MATCH(B$32,Riv!$A$6:$A$14,0),),0) -> 73706.8468 | C38: =IFERROR(INDEX(Riv!$B$6:$B$14,MATCH(C$32,Riv!$A$6:$A$14,0),),0) -> 5845527.493 | D38: =IFERROR(INDEX(Riv!$B$6:$B$14,MATCH(D$32,Riv!$A$6:$A$14,0),),0) -> 1158336.735 | E38: =IFERROR(INDEX(Riv!$B$6:$B$14,MATCH(E$32,Riv!$A$6:$A$14,0),),0) -> 48503.98268 | F38: =IFERROR(INDEX(Riv!$B$6:$B$14,MATCH(F$32,Riv!$A$6:$A$14,0),),0) -> 2181298.067 | G38: =IFERROR(INDEX(Riv!$B$6:$B$14,MATCH(G$32,Riv!$A$6:$A$14,0),),0) -> 767006.5806 | H38: =IFERROR(INDEX(Riv!$B$6:$B$14,MATCH(H$32,Riv!$A$6:$A$14,0),),0) -> 354430.2815 | I38: =IFERROR(INDEX(Riv!$B$6:$B$14,MATCH(I$32,Riv!$A$6:$A$14,0),),0) -> 570188.8192 | J38: =IFERROR(INDEX(Riv!$B$6:$B$14,MATCH(J$32,Riv!$A$6:$A$14,0),),0) -> 0 | K38: =IFERROR(INDEX(Riv!$B$6:$B$14,MATCH(K$32,Riv!$A$6:$A$14,0),),0) -> 0 | L38: =Essbase!I9 -> 10998998.8 | M38: =ROUND(L38-SUM(B38:K38),-1) -> 0
A39: Land management - Wairarapa | B39: =IFERROR(INDEX('Wairarapa LM'!$C$9:$C$17,MATCH(B32,'Wairarapa LM'!$A$9:$A$17,0),),0) -> 0 | C39: =IFERROR(INDEX('Wairarapa LM'!$C$9:$C$17,MATCH(C32,'Wairarapa LM'!$A$9:$A$17,0),),0) -> 0 | D39: =IFERROR(INDEX('Wairarapa LM'!$C$9:$C$17,MATCH(D32,'Wairarapa LM'!$A$9:$A$17,0),),0) -> 0 | E39: =IFERROR(INDEX('Wairarapa LM'!$C$9:$C$17,MATCH(E32,'Wairarapa LM'!$A$9:$A$17,0),),0) -> 0 | F39: =IFERROR(INDEX('Wairarapa LM'!$C$9:$C$17,MATCH(F32,'Wairarapa LM'!$A$9:$A$17,0),),0) -> 0 | G39: =IFERROR(INDEX('Wairarapa LM'!$C$9:$C$17,MATCH(G32,'Wairarapa LM'!$A$9:$A$17,0),),0) -> 0 | H39: =IFERROR(INDEX('Wairarapa LM'!$C$9:$C$17,MATCH(H32,'Wairarapa LM'!$A$9:$A$17,0),),0) -> 0 | I39: =IFERROR(INDEX('Wairarapa LM'!$C$9:$C$17,MATCH(I32,'Wairarapa LM'!$A$9:$A$17,0),),0) -> 0 | J39: =IFERROR(INDEX('Wairarapa LM'!$C$9:$C$17,MATCH(J32,'Wairarapa LM'!$A$9:$A$17,0),),0) -> 0 | K39: =IFERROR(INDEX('Wairarapa LM'!$C$9:$C$17,MATCH(K32,'Wairarapa LM'!$A$9:$A$17,0),),0) -> 0 | L39: ='Summarised data'!F80 -> 0 | M39: =ROUND(L39-SUM(B39:K39),-1) -> 0
A40: Stadium Rate | B40: =IFERROR(INDEX(Stad!$D$8:$D$49,MATCH(B$32,Stad!$B$8:$B$49,0),),0) -> 580986 | C40: =IFERROR(INDEX(Stad!$D$8:$D$49,MATCH(C$32,Stad!$B$8:$B$49,0),),0) -> 190924 | D40: =IFERROR(INDEX(Stad!$D$8:$D$49,MATCH(D$32,Stad!$B$8:$B$49,0),),0) -> 51447 | E40: =IFERROR(INDEX(Stad!$D$8:$D$49,MATCH(E$32,Stad!$B$8:$B$49,0),),0) -> 70226 | F40: =IFERROR(INDEX(Stad!$D$8:$D$49,MATCH(F$32,Stad!$B$8:$B$49,0),),0) -> 47340 | G40: =IFERROR(INDEX(Stad!$D$8:$D$49,MATCH(G$32,Stad!$B$8:$B$49,0),),0) -> 19562 | H40: =IFERROR(INDEX(Stad!$D$8:$D$49,MATCH(H$32,Stad!$B$8:$B$49,0),),0) -> 6846 | I40: =IFERROR(INDEX(Stad!$D$8:$D$49,MATCH(I$32,Stad!$B$8:$B$49,0),),0) -> 10760 | J40: =IFERROR(INDEX(Stad!$D$8:$D$49,MATCH(J$32,Stad!$B$8:$B$49,0),),0) -> 0 | K40: =IFERROR(INDEX(Stad!$D$8:$D$49,MATCH(K$32,Stad!$B$8:$B$49,0),),0) -> 0 | L40: =Essbase!I11 -> 978091.35 | M40: 0
A41: WRS Rate | B41: =IFERROR(INDEX(WRS!$D$8:$D$49,MATCH(B$32,WRS!$B$8:$B$49,0),),0) -> 2299850.973 | C41: =IFERROR(INDEX(WRS!$D$8:$D$49,MATCH(C$32,WRS!$B$8:$B$49,0),),0) -> 862252.3181 | D41: =IFERROR(INDEX(WRS!$D$8:$D$49,MATCH(D$32,WRS!$B$8:$B$49,0),),0) -> 343198.0108 | E41: =IFERROR(INDEX(WRS!$D$8:$D$49,MATCH(E$32,WRS!$B$8:$B$49,0),),0) -> 354526.1708 | F41: =IFERROR(INDEX(WRS!$D$8:$D$49,MATCH(F$32,WRS!$B$8:$B$49,0),),0) -> 491419.6459 | G41: =IFERROR(INDEX(WRS!$D$8:$D$49,MATCH(G$32,WRS!$B$8:$B$49,0),),0) -> 241562.2933 | H41: =IFERROR(INDEX(WRS!$D$8:$D$49,MATCH(H$32,WRS!$B$8:$B$49,0),),0) -> 90904.66358 | I41: =IFERROR(INDEX(WRS!$D$8:$D$49,MATCH(I$32,WRS!$B$8:$B$49,0),),0) -> 138051.1438 | J41: =IFERROR(INDEX(WRS!$D$8:$D$49,MATCH(J$32,WRS!$B$8:$B$49,0),),0) -> 252 | K41: =IFERROR(INDEX(WRS!$D$8:$D$49,MATCH(K$32,WRS!$B$8:$B$49,0),),0) -> 0 | L41: =Essbase!I12 -> 4822017.219 | M41: 0
A42: District-Wide Rates | B42: =SUM(B33:B41) -> 66378242.73 | C42: =SUM(C33:C41) -> 21001090.06 | D42: 6672554.231 | E42: 6855195.675 | F42: 10632967.58 | G42: 3408862.024 | H42: 1465884.122 | I42: 2347720.046 | J42: 2319.778706 | K42: 0 | L42: 118764836.6 | M42: 0
A43: Rates Penalties | B43: 0 | C43: 0 | D43: 0 | E43: 0 | F43: 0 | G43: 0 | H43: 0 | I43: 0 | J43: 0 | K43: 0 | L43: =Essbase!I14 -> 0 | M43: 0
A44: Remission of Rates Penalties | B44: 0 | C44: 0 | D44: 0 | E44: 0 | F44: 0 | G44: 0 | H44: 0 | I44: 0 | J44: 0 | K44: 0 | L44: =Essbase!I15 -> 0 | M44: 0
A45: Farm plans | B45: =IFERROR(INDEX('Farm Plan'!$C$7:$C$9,MATCH(B$32,'Farm Plan'!$M$7:$M$9,0),),0) -> 0 | C45: =IFERROR(INDEX('Farm Plan'!$C$7:$C$9,MATCH(C$32,'Farm Plan'!$M$7:$M$9,0),),0) -> 0 | D45: =IFERROR(INDEX('Farm Plan'!$C$7:$C$9,MATCH(D$32,'Farm Plan'!$M$7:$M$9,0),),0) -> 0 | E45: =IFERROR(INDEX('Farm Plan'!$C$7:$C$9,MATCH(E$32,'Farm Plan'!$M$7:$M$9,0),),0) -> 0 | F45: =IFERROR(INDEX('Farm Plan'!$C$7:$C$9,MATCH(F$32,'Farm Plan'!$M$7:$M$9,0),),0) -> 0 | G45: =IFERROR(INDEX('Farm Plan'!$C$7:$C$9,MATCH(G$32,'Farm Plan'!$M$7:$M$9,0),),0) -> 0 | H45: =IFERROR(INDEX('Farm Plan'!$C$7:$C$9,MATCH(H$32,'Farm Plan'!$M$7:$M$9,0),),0) -> 0 | I45: =IFERROR(INDEX('Farm Plan'!$C$7:$C$9,MATCH(I$32,'Farm Plan'!$M$7:$M$9,0),),0) -> 0 | J45: =IFERROR(INDEX('Farm Plan'!$C$7:$C$9,MATCH(J$32,'Farm Plan'!$M$7:$M$9,0),),0) -> 0 | K45: =IFERROR(INDEX('Farm Plan'!$C$7:$C$9,MATCH(K$32,'Farm Plan'!$M$7:$M$9,0),),0) -> 0 | L45: =Essbase!I16 -> 0 | M45: 0
A46: Pest Rate | B46: =IFERROR(INDEX(Pest!$G$8:$W$8,,MATCH(B$32,Pest!$G$11:$W$11,0)),0) -> 26190.39276 | C46: =IFERROR(INDEX(Pest!$G$8:$W$8,,MATCH(C$32,Pest!$G$11:$W$11,0)),0) -> 11980.44159 | D46: =IFERROR(INDEX(Pest!$G$8:$W$8,,MATCH(D$32,Pest!$G$11:$W$11,0)),0) -> 41780.2034 | E46: =IFERROR(INDEX(Pest!$G$8:$W$8,,MATCH(E$32,Pest!$G$11:$W$11,0)),0) -> 9119.532442 | F46: =IFERROR(INDEX(Pest!$G$8:$W$8,,MATCH(F$32,Pest!$G$11:$W$11,0)),0) -> 22461.21191 | G46: =IFERROR(INDEX(Pest!$G$8:$W$8,,MATCH(G$32,Pest!$G$11:$W$11,0)),0) -> 159355.5116 | H46: =IFERROR(INDEX(Pest!$G$8:$W$8,,MATCH(H$32,Pest!$G$11:$W$11,0)),0) -> 60068.37833 | I46: =IFERROR(INDEX(Pest!$G$8:$W$8,,MATCH(I$32,Pest!$G$11:$W$11,0)),0) -> 136962.2856 | J46: =IFERROR(INDEX(Pest!$G$8:$W$8,,MATCH(J$32,Pest!$G$11:$W$11,0)),0) -> 4082.042306 | K46: =IFERROR(INDEX(Pest!$G$8:$W$8,,MATCH(K$32,Pest!$G$11:$W$11,0)),0) -> 0 | L46: =Essbase!I17 -> 472000 | M46: 0
A47: RiverMgmt Rates - Non District Wide | B47: 0 | C47: 0 | D47: 0 | E47: 0 | F47: 0 | G47: 0 | H47: 0 | I47: =Riv!B26 -> 93297.36 | J47: 0 | K47: 0 | L47: =Essbase!I18 -> 93297.36 | M47: 0
A48: Special Rates - Land Management | B48: 0 | C48: 0 | D48: 0 | E48: 0 | F48: 0 | G48: 0 | H48: 0 | I48: =Riv!B27 -> 0 | J48: 0 | K48: ='Summarised data'!F74 -> 61840 | L48: =Essbase!I19 -> 61840 | M48: =ROUND(L48-SUM(B48:K48),-1) -> 0
A49: Special Rates (aka Protected Property) | B49: 0 | C49: 0 | D49: 0 | E49: 0 | F49: 0 | G49: 0 | H49: 0 | I49: 0 | J49: 0 | K49: ='Summarised data'!AO100 -> 1389916.116 | L49: =Essbase!I20 -> 1389916.116 | M49: 0
A50: Total Other Rates | B50: =SUM(B43:B49) -> 26190.39276 | C50: 11980.44159 | D50: 41780.2034 | E50: 9119.532442 | F50: 22461.21191 | G50: 159355.5116 | H50: 60068.37833 | I50: 230259.6456 | J50: =SUM(J43:J49) -> 4082.042306 | K50: =SUM(K43:K49) -> 1451756.116 | L50: =SUM(L43:L49) -> 2017053.476 | M50: 0
A51: Total Regnl Rates | B51: =SUM(B50,B42) -> 66404433.12 | C51: 21013070.5 | D51: 6714334.435 | E51: 6864315.208 | F51: 10655428.79 | G51: 3568217.536 | H51: 1525952.5 | I51: 2577979.692 | J51: =SUM(J50,J42) -> 6401.821012 | K51: =SUM(K50,K42) -> 1451756.116 | L51: =SUM(L50,L42) -> 120781890.1 | M51: 0 | N51: =ROUND(L51-'Summarised data'!E100-'Summarised data'!F100,-1) -> 0
A52: Bulk Water levies | B52: 0 | C52: 0 | D52: 0 | E52: 0 | F52: 0 | G52: 0 | H52: 0 | I52: 0 | J52: 0 | K52: ='Summarised data'!G100 -> 30862765.44 | L52: =Essbase!I23 -> 30862765.44 | M52: 0
A53: External revenue | B53: 0 | C53: 0 | D53: 0 | E53: 0 | F53: 0 | G53: 0 | H53: 0 | I53: 0 | J53: 0 | K53: ='Summarised data'!H100 -> 61897902.43 | L53: ='Summarised data'!H100 -> 61897902.43 | M53: 0
A54: Govt subsidies | B54: 0 | C54: 0 | D54: 0 | E54: 0 | F54: 0 | G54: 0 | H54: 0 | I54: 0 | J54: 0 | K54: ='Summarised data'!I100 -> 92939625.77 | L54: ='Summarised data'!I100 -> 92939625.77 | M54: 0
A55: Total funding | B55: =SUM(B51:B54) -> 66404433.12 | C55: 21013070.5 | D55: 6714334.435 | E55: 6864315.208 | F55: 10655428.79 | G55: 3568217.536 | H55: 1525952.5 | I55: 2577979.692 | J55: 6401.821012 | K55: 187152049.8 | L55: 306482183.7 | M55: 0 | N55: =ROUND(L55-'Summarised data'!J100,-1) -> 0
B56: =B55-[8]Comparison!B55 -> 580549.6906 | C56: =C55-[8]Comparison!C55 -> -312671.1394 | D56: =D55-[8]Comparison!D55 -> -61071.09549 | E56: =E55-[8]Comparison!E55 -> 41215.8356 | F56: =F55-[8]Comparison!F55 -> -5865.133651 | G56: =G55-[8]Comparison!G55 -> 10598.86747 | H56: =H55-[8]Comparison!H55 -> 38918.98129 | I56: =I55-[8]Comparison!I55 -> -364108.0969 | J56: =J55-[8]Comparison!J55 -> -5.735210689 | K56: =K55-[8]Comparison!K55 -> 72437.82576
A57: Delta | G57: =G56/[8]Comparison!G55 -> 0.002979202791 | H57: =H56/[8]Comparison!H55 -> 0.02617222867 | I57: =I56/[8]Comparison!I55 -> -0.1237584066 | K57: =K56/[8]Comparison!K49 -> 0.05498217792
B58: TA
B59: Wellington City | C59: Lower Hutt City | D59: Upper Hutt City | E59: Porirua City | F59: Kapiti Coast District | G59: Masterton District | H59: Carterton District | I59: South Wairarapa District | J59: Tararua District | K59: Other | L59: Total
A60: General Rates | B60: =B33-B7 -> -5326717.843 | C60: -1804803.323 | D60: -683297.2177 | E60: -846601.9255 | F60: -1088358.984 | G60: -421157.4692 | H60: -194614.9019 | I60: -313086.3752 | J60: -591.4273702 | K60: 0 | L60: -10679229.99 | M60: =ROUND(L60-SUM(B60:K60),-1) -> 0
A61: Remission of Regional Rates | B61: =B34-B8 -> 0 | C61: 0 | D61: 0 | E61: 0 | F61: 0 | G61: 0 | H61: 0 | I61: 0 | J61: 0 | K61: 0 | L61: 0 | M61: 0
A62: Transport Rate | B62: =B35-B9 -> 6356734.367 | C62: -3738951.433 | D62: -1864002.562 | E62: -2641848.582 | F62: 1019959.203 | G62: 602611.2672 | H62: 135000.2135 | I62: 130497.5269 | J62: 0 | K62: 0 | L62: 0.01003502309 | M62: 0
A63: River Mgmt Rates | B63: =B36-B10 -> -43255 | C63: -3685586 | D63: -678045 | E63: -28308 | F63: -1368226 | G63: 0 | H63: -23240 | I63: 0 | J63: 0 | K63: 0 | L63: -5826660.417 | M63: 0
A64: Flood protection - Region | B64: =B37-B11 -> 2746795.375 | C64: 930671.8065 | D64: 352351.7016 | E64: 436561.7815 | F64: 561227.5585 | G64: 217175.7861 | H64: 100355.9513 | I64: 161447.3828 | J64: 305.206076 | K64: 0 | L64: 5506892.55 | M64: 0
A65: Flood protection - Catchment | B65: =B38-B12 -> 73706.8468 | C65: 5845527.493 | D65: 1158336.735 | E65: 48503.98268 | F65: 2181298.067 | G65: 767006.5806 | H65: 354430.2815 | I65: 570188.8192 | J65: 0 | K65: 0 | L65: 10998998.8 | M65: 0
A66: Stadium Rate | B66: =B40-B13 -> 0 | C66: 0 | D66: 0 | E66: 0 | F66: 0 | G66: 0 | H66: 0 | I66: 0 | J66: 0 | K66: 0 | L66: 0 | M66: 0
A67: WRS Rate | B67: =B41-B14 -> 0 | C67: 0 | D67: 0 | E67: 0 | F67: 0 | G67: 0 | H67: 0 | I67: 0 | J67: 0 | K67: 0 | L67: 0 | M67: 0
A68: District-Wide Rates | B68: =B42-B15 -> 3807263.745 | C68: -2453141.457 | D68: -1714656.343 | E68: -3031692.744 | F68: 1305899.845 | G68: 1165636.165 | H68: 371931.5444 | I68: 549047.3537 | J68: -286.2212942 | K68: 0 | L68: 0.9596268088 | M68: 0
A69: Rates Penalties | B69: =B43-B16 -> 0 | C69: 0 | D69: 0 | E69: 0 | F69: 0 | G69: 0 | H69: 0 | I69: 0 | J69: 0 | K69: 0 | L69: 0 | M69: 0
A70: Remission of Rates Penalties | B70: =B44-B17 -> 0 | C70: 0 | D70: 0 | E70: 0 | F70: 0 | G70: 0 | H70: 0 | I70: 0 | J70: 0 | K70: 0 | L70: 0 | M70: 0
A71: Farm plans | B71: =B45-B18 -> 0 | C71: 0 | D71: 0 | E71: 0 | F71: 0 | G71: 0 | H71: 0 | I71: 0 | J71: 0 | K71: 0 | L71: 0 | M71: 0
A72: Pest Rate | B72: =B46-B19 -> 0 | C72: 0 | D72: 0 | E72: 0 | F72: 0 | G72: 0 | H72: 0 | I72: 0 | J72: 0 | K72: 0 | L72: 0 | M72: 0
A73: River Mgmt Rates - Non District Wide | B73: =B47-B20 -> 0 | C73: 0 | D73: 0 | E73: 0 | F73: 0 | G73: 0 | H73: 0 | I73: 0.36 | J73: 0 | K73: 0 | L73: 0 | M73: =ROUND(L73-SUM(B73:K73),-1) -> 0
A74: Special Rates - Land Management | B74: =B48-B21 -> 0 | C74: 0 | D74: 0 | E74: 0 | F74: 0 | G74: 0 | H74: 0 | I74: 0 | J74: 0 | K74: 0 | L74: 0 | M74: =ROUND(L74-SUM(B74:K74),-1) -> 0
A75: Special Rates (aka Protected Property) | B75: =B49-B22 -> 0 | C75: 0 | D75: 0 | E75: 0 | F75: 0 | G75: 0 | H75: 0 | I75: 0 | J75: 0 | K75: 0 | L75: 0 | M75: 0
A76: Total Other Rates | B76: =B50-B23 -> 0 | C76: 0 | D76: 0 | E76: 0 | F76: 0 | G76: 0 | H76: 0 | I76: 0.36 | J76: 0 | K76: 0 | L76: 0 | M76: 0
A77: Total Regnl Rates | B77: =B51-B24 -> 3807263.745 | C77: -2453141.457 | D77: -1714656.343 | E77: -3031692.744 | F77: 1305899.845 | G77: 1165636.165 | H77: 371931.5444 | I77: 549047.7137 | J77: -286.2212942 | K77: 0 | L77: 0.9596268088 | M77: 0
A78: Bulk Water levies | B78: =B52-B25 -> 0 | C78: 0 | D78: 0 | E78: 0 | F78: 0 | G78: 0 | H78: 0 | I78: 0 | J78: 0 | K78: 0 | L78: 0.002362322062 | M78: 0
A79: External revenue | B79: =B53-B26 -> 0 | C79: 0 | D79: 0 | E79: 0 | F79: 0 | G79: 0 | H79: 0 | I79: 0 | J79: 0 | K79: 0 | L79: 0 | M79: 0
A80: Govt subsidies | B80: =B54-B27 -> 0 | C80: 0 | D80: 0 | E80: 0 | F80: 0 | G80: 0 | H80: 0 | I80: 0 | J80: 0 | K80: 0 | L80: 0 | M80: 0
A81: Total funding | B81: =B55-B28 -> 3807263.745 | C81: -2453141.457 | D81: -1714656.343 | E81: -3031692.744 | F81: 1305899.845 | G81: 1165636.165 | H81: 371931.5444 | I81: 549047.7137 | J81: -286.2212942 | K81: 0 | L81: 0.9619891047 | M81: 0

Sheet Council wide view
A1: GWRC rates - model for scenario testing
A2: =check_total -> -3.725290298e-09
A4: OUTCOME
A6: ="A "&INDEX([9]Control!$D$27:$D$67,MATCH(B7&B8,[9]Control!$A$27:$A$67,0),)&" in "&B7&" with a "&DOLLAR(B9,0)&" property" -> A business in Masterton District with a $500,000 property | G6: ="Transition profile: "&A6 -> Transition profile: A business in Masterton District with a $500,000 property
A7: TA | B7: Masterton District | G7: Rate year | H7: Years | I7: Rates
A8: Category | B8: Urban Ward | G8: 2017/18 | H8: 0 | I8: =B22 -> 278.1874085
A9: CV | B9: 500000 | G9: 2018/19 | H9: 1 | I9: =IF(H9>=$B$10,$C$22,($C$22-$B$22)/$B$10+I8) -> 324.3445145
A10: Years to transition to new model | B10: 6 | G10: 2019/20 | H10: 2 | I10: =IF(H10>=$B$10,$C$22,($C$22-$B$22)/$B$10+I9) -> 370.5016205
G11: 2020/21 | H11: 3 | I11: 416.6587264
A12: Annual district-wide GWRC rates (ex-GST) | G12: 2021/22 | H12: 4 | I12: 462.8158324
A13: Category | B13: Current | C13: Proposed | D13: Change $ | E13: Change % | G13: 2022/23 | H13: 5 | I13: 508.9729383
A14: Regional Strategy Rate | B14: =IF(INDEX(Control!$E$27:$E$67,MATCH($B$7&$B$8,Control!$A$27:$A$67,0),)="Yes", INDEX('Summary current'!$M$10:$M$50,MATCH($B$7&$B$8,'Summary current'!$A$10:$A$50,0),), INDEX('Summary current'!$I$10:$M$50,MATCH($B$7&$B$8,'Summary current'!$A$10:$A$50,0),MATCH($F14,'Summary current'!$I$6:$M$6,0))/100*$B$9 ) -> 47.29952209 | C14: =IF(INDEX(Control!$E$27:$E$67,MATCH($B$7&$B$8,Control!$A$27:$A$67,0),)="Yes", INDEX('Summary proposed'!$O$10:$O$50,MATCH($B$7&$B$8,'Summary proposed'!$A$10:$A$50,0),), INDEX('Summary proposed'!$I$10:$O$50,MATCH($B$7&$B$8,'Summary proposed'!$A$10:$A$50,0),MATCH($F14,'Summary proposed'!$I$6:$O$6,0))/100*$B$9 ) -> 47.29952209 | D14: =IF(B14="n/a",C14-0,IF(C14="n/a",0-B14,C14-B14)) -> 0 | E14: =IF(OR(B14="n/a",C14="n/a"),"n/a",C14/B14-1) -> 0 | F14: WRS | G14: 2023/24 | H14: 6 | I14: 555.1300443
A15: General Rate | B15: =IFERROR(INDEX('Summary current'!$I$10:$M$50,MATCH($B$7&$B$8,'Summary current'!$A$10:$A$50,0),MATCH($F15,'Summary current'!$I$6:$M$6,0))/100*$B$9,"n/a") -> 177.3232452 | C15: =IFERROR(INDEX('Summary proposed'!$I$10:$O$50,MATCH($B$7&$B$8,'Summary proposed'!$A$10:$A$50,0),MATCH($F15,'Summary proposed'!$I$6:$O$6,0))/100*$B$9,"n/a") -> 132.7469624 | D15: =IF(B15="n/a",C15-0,IF(C15="n/a",0-B15,C15-B15)) -> -44.57628285 | E15: =IF(OR(B15="n/a",C15="n/a"),"n/a",C15/B15-1) -> -0.2513843168 | F15: General | G15: 2024/25 | H15: 7 | I15: 555.1300443
A16: River | B16: =IFERROR(INDEX('Summary current'!$I$10:$M$50,MATCH($B$7&$B$8,'Summary current'!$A$10:$A$50,0),MATCH($F16,'Summary current'!$I$6:$M$6,0))/100*$B$9,"n/a") -> 0 | C16: =IFERROR(INDEX('Summary proposed'!$I$10:$O$50,MATCH($B$7&$B$8,'Summary proposed'!$A$10:$A$50,0),MATCH($F16,'Summary proposed'!$I$6:$O$6,0))/100*$B$9,"n/a") -> n/a | D16: 0 | E16: =IF(OR(B16="n/a",C16="n/a"),"n/a",C16/B16-1) -> n/a | F16: River | G16: 2025/26 | H16: 8 | I16: 555.1300443
A17: Flood protection - Region | B17: =IFERROR(INDEX('Summary current'!$I$10:$M$50,MATCH($B$7&$B$8,'Summary current'!$A$10:$A$50,0),MATCH($F17,'Summary current'!$I$6:$M$6,0))/100*$B$9,"n/a") -> n/a | C17: =IFERROR(INDEX('Summary proposed'!$I$10:$O$50,MATCH($B$7&$B$8,'Summary proposed'!$A$10:$A$50,0),MATCH($F17,'Summary proposed'!$I$6:$O$6,0))/100*$B$9,"n/a") -> 22.98638865 | D17: 22.98638865 | E17: n/a | F17: RR Protected Region | G17: 2026/27 | H17: 9 | I17: 555.1300443
A18: Flood protection - Catchment | B18: =IFERROR(INDEX('Summary current'!$I$10:$M$50,MATCH($B$7&$B$8,'Summary current'!$A$10:$A$50,0),MATCH($F18,'Summary current'!$I$6:$M$6,0))/100*$B$9,"n/a") -> n/a | C18: =IFERROR(INDEX('Summary proposed'!$I$10:$O$50,MATCH($B$7&$B$8,'Summary proposed'!$A$10:$A$50,0),MATCH($F18,'Summary proposed'!$I$6:$O$6,0))/100*$B$9,"n/a") -> 81.18175452 | D18: 81.18175452 | E18: n/a | F18: RR Protected Catchment | G18: 2027/28 | H18: 10 | I18: 555.1300443
A19: Land management - Wairarapa | B19: =IFERROR(INDEX('Summary current'!$I$10:$M$50,MATCH($B$7&$B$8,'Summary current'!$A$10:$A$50,0),MATCH($F19,'Summary current'!$I$6:$M$6,0))/100*$B$9,"n/a") -> n/a | C19: =IFERROR(INDEX('Summary proposed'!$I$10:$O$50,MATCH($B$7&$B$8,'Summary proposed'!$A$10:$A$50,0),MATCH($F19,'Summary proposed'!$I$6:$O$6,0))/100*$B$9,"n/a") -> 0 | D19: =IF(B19="n/a",C19-0,IF(C19="n/a",0-B19,C19-B19)) -> 0 | E19: =IF(OR(B19="n/a",C19="n/a"),"n/a",C19/B19-1) -> n/a | F19: Land mgmt - Wairarapa
A20: Stadium Rate | B20: =IFERROR(INDEX('Summary current'!$I$10:$M$50,MATCH($B$7&$B$8,'Summary current'!$A$10:$A$50,0),MATCH($F20,'Summary current'!$I$6:$M$6,0))/100*$B$9,"n/a") -> 3.05130335 | C20: =IFERROR(INDEX('Summary proposed'!$I$10:$O$50,MATCH($B$7&$B$8,'Summary proposed'!$A$10:$A$50,0),MATCH($F20,'Summary proposed'!$I$6:$O$6,0))/100*$B$9,"n/a") -> 3.05130335 | D20: 0 | E20: 0 | F20: Stad
A21: Transport Rate | B21: =IFERROR(INDEX('Summary current'!$I$10:$M$50,MATCH($B$7&$B$8,'Summary current'!$A$10:$A$50,0),MATCH($F21,'Summary current'!$I$6:$M$6,0))/100*$B$9,"n/a") -> 50.51333787 | C21: =IFERROR(INDEX('Summary proposed'!$I$10:$O$50,MATCH($B$7&$B$8,'Summary proposed'!$A$10:$A$50,0),MATCH($F21,'Summary proposed'!$I$6:$O$6,0))/100*$B$9,"n/a") -> 267.8641133 | D21: 217.3507754 | E21: 4.302839301 | F21: PT
A22: Total | B22: =SUM(B14:B21) -> 278.1874085 | C22: =SUM(C14:C21) -> 555.1300443 | D22: =IF(OR(B22="n/a",C22="n/a"),"n/a",C22-B22) -> 276.9426357 | E22: 0.9955254165
A23: Note: Property specific rates not modelled above
A25: GRAPHS - district wide rates only
A27: Share of district wide rates by category | F27: District wide rates for an average value residential property, by territorial area | O27: Share of district wide rates and share of ECV, by territorial area
A45: District wide RESIDENTIAL rates, per $100,000 Equalised Capital Value (ECV) | F45: District wide BUSINESS rates, per $100,000 Equalised Capital Value (ECV) | O45: District wide RURAL rates, per $100,000 Equalised Capital Value (ECV)
A63: TABLES
A65: OUTPUT: District-wide rates by TA/rating category | G65: OUTPUT: District-wide rates per $100,000 ECV | L65: OUTPUT: District-wide rates for average CV
A66: TA/Rating category | B66: 2017/18 annual plan | C66: Scenario | D66: Variance | G66: Rates per $100,000 ECV | L66: Rates for average CV | Q66: Capital values | U66: ECV multiplier value | W66: Assessment | AA66: TA group
D67: $ | E67: % | G67: 2017/18 budget | H67: Scenario | I67: Variance $ | J67: Variance % | L67: 2017/18 budget | M67: Scenario | N67: Variance $ | O67: Variance % | Q67: 2017/18 Rateable Capital Value $ m | R67: Net equalised capital value | S67: ECV cllocated to categories | U67: Category | W67: Number | X67: Average CV | Y67: Average CV | AE67: Checks
A69: Wellington City | B69: =SUBTOTAL(9,B70:B73) -> 62570979.33 | C69: =SUBTOTAL(9,C70:C73) -> 66378243.07 | D69: =C69-B69 -> 3807263.745 | E69: =D69/B69 -> 0.06084711772 | Q69: =[10]NRV!B9 -> 51319125451 | R69: =[10]NRV!K9 -> 63374831603 | S69: =SUM(S70:S73) -> 6.33748316e+10 | W69: =[10]NRV!D9 -> 76971 | Y69: =S69/W69 -> 823359.8576 | AE69: =ROUND(D69-'Flood protection model'!D62-'PT model'!D65,-1) -> 0
A70: CBD Business | B70: ='Summary current'!E10 -> 29269028.39 | C70: ='Summary proposed'!E10 -> 29986767.09 | D70: =C70-B70 -> 717738.7029 | E70: =D70/B70 -> 0.02452212261 | G70: =B70/(S70/100000) -> 301.765265 | H70: =C70/(S70/100000) -> 309.1651898 | I70: =H70-G70 -> 7.399924827 | J70: =I70/G70 -> 0.02452212261 | L70: =B70/Q70*X70 -> 8606.006584 | M70: =C70/Q70*X70 -> 8817.044133 | N70: =M70-L70 -> 211.0375486 | O70: =N70/L70 -> 0.02452212261 | Q70: =[10]NRV!B10 -> 7854191500 | S70: =Q70/$Q$69*$R$69 -> 9699270191 | U70: ='PT model'!X66 -> Regional CBD | W70: =[10]NRV!D10 -> 3401 | X70: =Q70/W70 -> 2309377.095 | Y70: =S70/W70 -> 2851887.736 | AA70: Wellington City | AE70: =ROUND(D70-'Flood protection model'!D63-'PT model'!D66,-1) -> 0
A71: Business | B71: ='Summary current'!E11 -> 3259619.517 | C71: ='Summary proposed'!E11 -> 4259553.435 | D71: =C71-B71 -> 999933.918 | E71: =D71/B71 -> 0.3067639989 | G71: =B71/(S71/100000) -> 69.10250393 | H71: =C71/(S71/100000) -> 90.30066438 | I71: =H71-G71 -> 21.19816044 | J71: =I71/G71 -> 0.3067639989 | L71: =B71/Q71*X71 -> 1709.291828 | M71: =C71/Q71*X71 -> 2233.641025 | N71: =M71-L71 -> 524.3491966 | O71: =N71/L71 -> 0.3067639989 | Q71: =[10]NRV!B11 -> 3819755400 | S71: =Q71/$Q$69*$R$69 -> 4717078733 | U71: ='PT model'!X67 -> Business | W71: =[10]NRV!D11 -> 1907 | X71: =Q71/W71 -> 2003018.039 | Y71: =S71/W71 -> 2473559.902 | AA71: Wellington City | AE71: =ROUND(D71-'Flood protection model'!D64-'PT model'!D67,-1) -> 0
A72: Residential | B72: ='Summary current'!E12 -> 29731934.66 | C72: ='Summary proposed'!E12 -> 31836532.34 | D72: =C72-B72 -> 2104597.673 | E72: =D72/B72 -> 0.07078576275 | G72: =B72/(S72/100000) -> 61.62860367 | H72: =C72/(S72/100000) -> 65.99103139 | I72: =H72-G72 -> 4.362427718 | J72: =I72/G72 -> 0.07078576275 | L72: =B72/Q72*X72 -> 419.4153488 | M72: =C72/Q72*X72 -> 449.1039842 | N72: =M72-L72 -> 29.68863538 | O72: =N72/L72 -> 0.07078576275 | Q72: =[10]NRV!B12 -> 39066389001 | S72: =Q72/$Q$69*$R$69 -> 4.824372595e+10 | U72: ='PT model'!X68 -> Residential - excl Wairarapa | W72: =[10]NRV!D12 -> 70889 | X72: =Q72/W72 -> 551092.398 | Y72: =S72/W72 -> 680553.0611 | AA72: Wellington City | AE72: =ROUND(D72-'Flood protection model'!D65-'PT model'!D68,-1) -> 0
A73: Rural | B73: ='Summary current'!E13 -> 310396.7571 | C73: ='Summary proposed'!E13 -> 295390.2083 | D73: =C73-B73 -> -15006.54882 | E73: =D73/B73 -> -0.04834634537 | G73: =B73/(S73/100000) -> 43.42690937 | H73: =C73/(S73/100000) -> 41.32737701 | I73: =H73-G73 -> -2.099532359 | J73: =I73/G73 -> -0.04834634537 | L73: =B73/Q73*X73 -> 401.029402 | M73: =C73/Q73*X73 -> 381.641096 | N73: =M73-L73 -> -19.38830597 | O73: =N73/L73 -> -0.04834634537 | Q73: =[10]NRV!B13 -> 578789550 | S73: =Q73/$Q$69*$R$69 -> 714756729.4 | U73: ='PT model'!X69 -> Rural | W73: =[10]NRV!D13 -> 774 | X73: =Q73/W73 -> 747790.1163 | Y73: =S73/W73 -> 923458.3068 | AA73: Wellington City | AE73: =ROUND(D73-'Flood protection model'!D66-'PT model'!D69,-1) -> 0
A75: Lower Hutt City | B75: =SUBTOTAL(9,B76:B78) -> 23454231.52 | C75: =SUBTOTAL(9,C76:C78) -> 21001090.06 | D75: =C75-B75 -> -2453141.457 | E75: =D75/B75 -> -0.1045927024 | Q75: =[10]NRV!B15 -> 21170821500 | R75: =[10]NRV!K15 -> 21472720375 | S75: =SUM(S76:S79) -> 21472720375 | W75: =[10]NRV!D15 -> 39049 | Y75: =S75/W75 -> 549891.6842
A76: Business | B76: ='Summary current'!E16 -> 4434152.045 | C76: ='Summary proposed'!E16 -> 4517451.577 | D76: =C76-B76 -> 83299.53174 | E76: =D76/B76 -> 0.01878589884 | G76: =B76/(S76/100000) -> 115.1428822 | H76: =C76/(S76/100000) -> 117.3059447 | I76: =H76-G76 -> 2.163062537 | J76: =I76/G76 -> 0.01878589884 | L76: =B76/Q76*X76 -> 1881.269429 | M76: =C76/Q76*X76 -> 1916.610766 | N76: =M76-L76 -> 35.34133718 | O76: =N76/L76 -> 0.01878589884 | Q76: =[10]NRV!B16 -> 3796856000 | S76: =Q76/$Q$75*$R$75 -> 3850999697 | U76: ='PT model'!X72 -> Business | W76: =[10]NRV!D16 -> 2357 | X76: =Q76/W76 -> 1610885.023 | Y76: =S76/W76 -> 1633856.469 | AA76: Lower Hutt City | AE76: =ROUND(D76-'Flood protection model'!D69-'PT model'!D72,-1) -> 0
A77: Residential | B77: ='Summary current'!E17 -> 18796224.14 | C77: ='Summary proposed'!E17 -> 16257977.59 | D77: =C77-B77 -> -2538246.548 | E77: =D77/B77 -> -0.1350402362 | G77: =B77/(S77/100000) -> 108.6540619 | H77: =C77/(S77/100000) -> 93.98139173 | I77: =H77-G77 -> -14.67267019 | J77: =I77/G77 -> -0.1350402362 | L77: =B77/Q77*X77 -> 519.2040256 | M77: =C77/Q77*X77 -> 449.0905914 | N77: =M77-L77 -> -70.11343427 | O77: =N77/L77 -> -0.1350402362 | Q77: =[10]NRV!B17 -> 17055925500 | S77: =Q77/$Q$75*$R$75 -> 1.729914538e+10 | U77: ='PT model'!X73 -> Residential - excl Wairarapa | W77: =[10]NRV!D17 -> 36202 | X77: =Q77/W77 -> 471132.1336 | Y77: =S77/W77 -> 477850.5437 | AA77: Lower Hutt City | AE77: =ROUND(D77-'Flood protection model'!D70-'PT model'!D73,-1) -> 0
A78: Rural | B78: ='Summary current'!E18 -> 223855.3382 | C78: ='Summary proposed'!E18 -> 225660.8967 | D78: =C78-B78 -> 1805.558475 | E78: =D78/B78 -> 0.008065737852 | G78: =B78/(S78/100000) -> 69.39630585 | H78: =C78/(S78/100000) -> 69.95603826 | I78: =H78-G78 -> 0.5597324109 | J78: =I78/G78 -> 0.008065737852 | L78: =B78/Q78*X78 -> 456.847629 | M78: =C78/Q78*X78 -> 460.5324423 | N78: =M78-L78 -> 3.684813214 | O78: =N78/L78 -> 0.008065737852 | Q78: =[10]NRV!B18 -> 318040000 | S78: =Q78/$Q$75*$R$75 -> 322575294.9 | U78: ='PT model'!X74 -> Rural | W78: =[10]NRV!D18 -> 490 | X78: =Q78/W78 -> 649061.2245 | Y78: =S78/W78 -> 658316.9283 | AA78: Lower Hutt City | AE78: =ROUND(D78-'Flood protection model'!D71-'PT model'!D74,-1) -> 0
A80: Upper Hutt City | B80: =SUBTOTAL(9,B81:B83) -> 8387210.574 | C80: =SUBTOTAL(9,C81:C83) -> 6672554.231 | D80: =C80-B80 -> -1714656.343 | E80: =D80/B80 -> -0.2044370208 | Q80: =[10]NRV!B20 -> 8012247760 | R80: =[10]NRV!K20 -> 8129557067 | S80: =SUM(S81:S84) -> 8129557067 | W80: =[10]NRV!D20 -> 16570 | Y80: =S80/W80 -> 490619.0143 | AE80: =ROUND(D80-'Flood protection model'!D73-'PT model'!D76,-1) -> 0
A81: Business | B81: ='Summary current'!E21 -> 1335297.063 | C81: ='Summary proposed'!E21 -> 1231517.277 | D81: =C81-B81 -> -103779.7865 | E81: =D81/B81 -> -0.07772037352 | G81: =B81/(S81/100000) -> 112.4270391 | H81: =C81/(S81/100000) -> 103.6891676 | I81: =H81-G81 -> -8.737871474 | J81: =I81/G81 -> -0.07772037352 | L81: =B81/Q81*X81 -> 1849.441916 | M81: =C81/Q81*X81 -> 1705.702599 | N81: =M81-L81 -> -143.7393165 | O81: =N81/L81 -> -0.07772037352 | Q81: =[10]NRV!B21 -> 1170562500 | S81: =Q81/$Q$80*$R$80 -> 1187700996 | U81: ='PT model'!X77 -> Business | W81: =[10]NRV!D21 -> 722 | X81: =Q81/W81 -> 1621277.701 | Y81: =S81/W81 -> 1645015.23 | AA81: Upper Hutt City | AE81: =ROUND(D81-'Flood protection model'!D74-'PT model'!D77,-1) -> 0
A82: Residential | B82: ='Summary current'!E22 -> 6551666.48 | C82: ='Summary proposed'!E22 -> 4983898.501 | D82: =C82-B82 -> -1567767.979 | E82: =D82/B82 -> -0.2392930079 | G82: =B82/(S82/100000) -> 106.8715063 | H82: =C82/(S82/100000) -> 81.2979021 | I82: =H82-G82 -> -25.5736042 | J82: =I82/G82 -> -0.2392930079 | L82: =B82/Q82*X82 -> 448.6213695 | M82: =C82/Q82*X82 -> 341.2694126 | N82: =M82-L82 -> -107.3519569 | O82: =N82/L82 -> -0.2392930079 | Q82: =[10]NRV!B22 -> 6041952920 | S82: =Q82/$Q$80*$R$80 -> 6130414651 | U82: ='PT model'!X78 -> Residential - excl Wairarapa | W82: =[10]NRV!D22 -> 14604 | X82: =Q82/W82 -> 413719.0441 | Y82: =S82/W82 -> 419776.4073 | AA82: Upper Hutt City | AE82: =ROUND(D82-'Flood protection model'!D75-'PT model'!D78,-1) -> 0
A83: Rural | B83: ='Summary current'!E23 -> 500247.0304 | C83: ='Summary proposed'!E23 -> 457138.4531 | D83: =C83-B83 -> -43108.57733 | E83: =D83/B83 -> -0.08617457919 | G83: =B83/(S83/100000) -> 61.64918604 | H83: =C83/(S83/100000) -> 56.33659338 | I83: =H83-G83 -> -5.312592665 | J83: =I83/G83 -> -0.08617457919 | L83: =B83/Q83*X83 -> 402.1278379 | M83: =C83/Q83*X83 -> 367.4746407 | N83: =M83-L83 -> -34.65319721 | O83: =N83/L83 -> -0.08617457919 | Q83: =[10]NRV!B23 -> 799732340 | S83: =Q83/$Q$80*$R$80 -> 811441419.6 | U83: ='PT model'!X79 -> Rural | W83: =[10]NRV!D23 -> 1244 | X83: =Q83/W83 -> 642871.6559 | Y83: =S83/W83 -> 652284.0993 | AA83: Upper Hutt City | AE83: =ROUND(D83-'Flood protection model'!D76-'PT model'!D79,-1) -> 0
A85: Porirua City | B85: =SUBTOTAL(9,B86:B88) -> 9886888.419 | C85: =SUBTOTAL(9,C86:C88) -> 6855195.675 | D85: =C85-B85 -> -3031692.744 | E85: =D85/B85 -> -0.3066377019 | Q85: =[10]NRV!B25 -> 10044595300 | R85: =[10]NRV!K25 -> 10072475598 | S85: =SUM(S86:S89) -> 10072475598 | W85: =[10]NRV!D25 -> 18514 | Y85: =S85/W85 -> 544046.4296 | AE85: =ROUND(D85-'Flood protection model'!D78-'PT model'!D81,-1) -> 0
A86: Business | B86: ='Summary current'!E26 -> 1172136.436 | C86: ='Summary proposed'!E26 -> 992132.8808 | D86: =C86-B86 -> -180003.5553 | E86: =D86/B86 -> -0.1535687739 | G86: =B86/(S86/100000) -> 106.7735291 | H86: =C86/(S86/100000) -> 90.37644918 | I86: =H86-G86 -> -16.39707995 | J86: =I86/G86 -> -0.1535687739 | L86: =B86/Q86*X86 -> 1472.533211 | M86: =C86/Q86*X86 -> 1246.398091 | N86: =M86-L86 -> -226.1351197 | O86: =N86/L86 -> -0.1535687739 | Q86: =[10]NRV!B26 -> 1094739500 | S86: =Q86/$Q$85*$R$85 -> 1097778116 | U86: ='PT model'!X82 -> Business | W86: =[10]NRV!D26 -> 796 | X86: =Q86/W86 -> 1375300.879 | Y86: =S86/W86 -> 1379118.236 | AA86: Porirua City | AE86: =ROUND(D86-'Flood protection model'!D79-'PT model'!D82,-1) -> 0
A87: Residential | B87: ='Summary current'!E27 -> 8396353.635 | C87: ='Summary proposed'!E27 -> 5614028.415 | D87: =C87-B87 -> -2782325.22 | E87: =D87/B87 -> -0.331373039 | G87: =B87/(S87/100000) -> 100.2882213 | H87: =C87/(S87/100000) -> 67.05540866 | I87: =H87-G87 -> -33.23281268 | J87: =I87/G87 -> -0.331373039 | L87: =B87/Q87*X87 -> 490.842607 | M87: =C87/Q87*X87 -> 328.1906006 | N87: =M87-L87 -> -162.6520063 | O87: =N87/L87 -> -0.331373039 | Q87: =[10]NRV!B27 -> 8349049050 | S87: =Q87/$Q$85*$R$85 -> 8372223102 | U87: ='PT model'!X83 -> Residential - excl Wairarapa | W87: =[10]NRV!D27 -> 17106 | X87: =Q87/W87 -> 488077.2273 | Y87: =S87/W87 -> 489431.9597 | AA87: Porirua City | AE87: =ROUND(D87-'Flood protection model'!D80-'PT model'!D83,-1) -> 0
A88: Rural | B88: ='Summary current'!E28 -> 318398.348 | C88: ='Summary proposed'!E28 -> 249034.3799 | D88: =C88-B88 -> -69363.96807 | E88: =D88/B88 -> -0.2178527888 | G88: =B88/(S88/100000) -> 52.84844608 | H88: =C88/(S88/100000) -> 41.33526472 | I88: =H88-G88 -> -11.51318136 | J88: =I88/G88 -> -0.2178527888 | L88: =B88/Q88*X88 -> 520.2587386 | M88: =C88/Q88*X88 -> 406.9189215 | N88: =M88-L88 -> -113.3398171 | O88: =N88/L88 -> -0.2178527888 | Q88: =[10]NRV!B28 -> 600806750 | S88: =Q88/$Q$85*$R$85 -> 602474380.3 | U88: ='PT model'!X84 -> Rural | W88: =[10]NRV!D28 -> 612 | X88: =Q88/W88 -> 981710.3758 | Y88: =S88/W88 -> 984435.2619 | AA88: Porirua City | AE88: =ROUND(D88-'Flood protection model'!D81-'PT model'!D84,-1) -> 0
A90: Kapiti Coast District | B90: =SUBTOTAL(9,B91:B93) -> 9327065.91 | C90: =SUBTOTAL(9,C91:C93) -> 10632965.75 | D90: =C90-B90 -> 1305899.845 | E90: =D90/B90 -> 0.1400118598 | Q90: =[10]NRV!B30 -> 10974506450 | R90: =[10]NRV!K30 -> 12948799292 | S90: =SUM(S91:S94) -> 12948799292 | W90: =[10]NRV!D30 -> 24761 | Y90: =S90/W90 -> 522951.3869 | AE90: =ROUND(D90-'Flood protection model'!D83-'PT model'!D86,-1) -> 0
A91: Urban - Commercial | B91: ='Summary current'!E31 -> 1201099.058 | C91: ='Summary proposed'!E31 -> 1587072.439 | D91: =C91-B91 -> 385973.3808 | E91: =D91/B91 -> 0.3213501654 | G91: =B91/(S91/100000) -> 80.24301193 | H91: =C91/(S91/100000) -> 106.0291171 | I91: =H91-G91 -> 25.78610515 | J91: =I91/G91 -> 0.3213501654 | L91: =B91/Q91*X91 -> 864.7221438 | M91: =C91/Q91*X91 -> 1142.600748 | N91: =M91-L91 -> 277.8786039 | O91: =N91/L91 -> 0.3213501654 | Q91: =[10]NRV!B31 -> 1268607000 | S91: =Q91/$Q$90*$R$90 -> 1496826987 | U91: ='PT model'!X87 -> Business | W91: =[10]NRV!D31 -> 1389 | X91: =Q91/W91 -> 913323.9741 | Y91: =S91/W91 -> 1077629.22 | AA91: Kapiti Coast District | AE91: =ROUND(D91-'Flood protection model'!D84-'PT model'!D87,-1) -> 0
A92: Urban - Residential | B92: ='Summary current'!E32 -> 7036322.732 | C92: ='Summary proposed'!E32 -> 7883585.012 | D92: =C92-B92 -> 847262.2801 | E92: =D92/B92 -> 0.120412652 | G92: =B92/(S92/100000) -> 74.33083055 | H92: =C92/(S92/100000) -> 83.28120298 | I92: =H92-G92 -> 8.950372429 | J92: =I92/G92 -> 0.120412652 | L92: =B92/Q92*X92 -> 341.8511748 | M92: =C92/Q92*X92 -> 383.0143814 | N92: =M92-L92 -> 41.16320654 | O92: =N92/L92 -> 0.120412652 | Q92: =[10]NRV!B32 -> 8022916350 | S92: =Q92/$Q$90*$R$90 -> 9466223746 | U92: ='PT model'!X88 -> Residential - excl Wairarapa | W92: =[10]NRV!D32 -> 20583 | X92: =Q92/W92 -> 389783.6248 | Y92: =S92/W92 -> 459904.9578 | AA92: Kapiti Coast District | AE92: =ROUND(D92-'Flood protection model'!D85-'PT model'!D88,-1) -> 0
A93: Rural | B93: ='Summary current'!E33 -> 1089644.121 | C93: ='Summary proposed'!E33 -> 1162308.304 | D93: =C93-B93 -> 72664.18353 | E93: =D93/B93 -> 0.06668616125 | G93: =B93/(S93/100000) -> 54.87321722 | H93: =C93/(S93/100000) -> 58.53250143 | I93: =H93-G93 -> 3.659284212 | J93: =I93/G93 -> 0.06668616125 | L93: =B93/Q93*X93 -> 390.6934817 | M93: =C93/Q93*X93 -> 416.7473302 | N93: =M93-L93 -> 26.05384852 | O93: =N93/L93 -> 0.06668616125 | Q93: =[10]NRV!B33 -> 1682983100 | S93: =Q93/$Q$90*$R$90 -> 1985748559 | U93: ='PT model'!X89 -> Rural | W93: =[10]NRV!D33 -> 2789 | X93: =Q93/W93 -> 603436.0344 | Y93: =S93/W93 -> 711993.0296 | AA93: Kapiti Coast District | AE93: =ROUND(D93-'Flood protection model'!D86-'PT model'!D89,-1) -> 0
A95: Masterton District | B95: =SUBTOTAL(9,B96:B98) -> 2243225.876 | C95: =SUBTOTAL(9,C96:C98) -> 3408862.041 | D95: =C95-B95 -> 1165636.165 | E95: =D95/B95 -> 0.5196249638 | Q95: =[10]NRV!B35 -> 4724008400 | R95: =[10]NRV!K35 -> 5010740516 | S95: =SUM(S96:S99) -> 5010740516 | W95: =[10]NRV!D35 -> 12296 | Y95: =S95/W95 -> 407509.8012 | AE95: =ROUND(D95-'Flood protection model'!D88-'PT model'!D91,-1) -> 0
A96: Urban Ward | B96: ='Summary current'!E36 -> 212061.4826 | C96: ='Summary proposed'!E36 -> 423174.0784 | D96: =C96-B96 -> 211112.5958 | E96: =D96/B96 -> 0.9955254165 | G96: =B96/(S96/100000) -> 52.45371021 | H96: =C96/(S96/100000) -> 104.6727119 | I96: =H96-G96 -> 52.2190017 | J96: =I96/G96 -> 0.9955254165 | L96: =B96/Q96*X96 -> 388.3909938 | M96: =C96/Q96*X96 -> 775.0440996 | N96: =M96-L96 -> 386.6531058 | O96: =N96/L96 -> 0.9955254165 | Q96: =[10]NRV!B36 -> 381148600 | S96: =Q96/$Q$95*$R$95 -> 404283094.1 | U96: ='PT model'!X92 -> Business | W96: =[10]NRV!D36 -> 546 | X96: =Q96/W96 -> 698074.359 | Y96: =S96/W96 -> 740445.2273 | AA96: Wairarapa districts | AE96: =ROUND(D96-'Flood protection model'!D89-'PT model'!D92,-1) -> 0
A97: Urban - Residential | B97: ='Summary current'!E37 -> 1021509.358 | C97: ='Summary proposed'!E37 -> 1551104.615 | D97: =C97-B97 -> 529595.2576 | E97: =D97/B97 -> 0.5184438631 | G97: =B97/(S97/100000) -> 48.7648348 | H97: =C97/(S97/100000) -> 74.04666414 | I97: =H97-G97 -> 25.28182934 | J97: =I97/G97 -> 0.5184438631 | L97: =B97/Q97*X97 -> 130.261331 | M97: =C97/Q97*X97 -> 197.7945187 | N97: =M97-L97 -> 67.53318766 | O97: =N97/L97 -> 0.5184438631 | Q97: =[10]NRV!B37 -> 1974896500 | S97: =Q97/$Q$95*$R$95 -> 2094766366 | U97: ='PT model'!X93 -> Residential - Wairarapa | W97: =[10]NRV!D37 -> 7842 | X97: =Q97/W97 -> 251835.8199 | Y97: =S97/W97 -> 267121.4442 | AA97: Wairarapa districts | AE97: =ROUND(D97-'Flood protection model'!D90-'PT model'!D93,-1) -> 0
A98: Rural Ward | B98: ='Summary current'!E38 -> 1009655.036 | C98: ='Summary proposed'!E38 -> 1434583.347 | D98: =C98-B98 -> 424928.3113 | E98: =D98/B98 -> 0.4208648462 | G98: =B98/(S98/100000) -> 40.19821758 | H98: =C98/(S98/100000) -> 57.11623423 | I98: =H98-G98 -> 16.91801666 | J98: =I98/G98 -> 0.4208648462 | L98: =B98/Q98*X98 -> 258.3559457 | M98: =C98/Q98*X98 -> 367.088881 | N98: =M98-L98 -> 108.7329353 | O98: =N98/L98 -> 0.4208648462 | Q98: =[10]NRV!B38 -> 2367963300 | S98: =Q98/$Q$95*$R$95 -> 2511691056 | U98: ='PT model'!X94 -> Rural | W98: =[10]NRV!D38 -> 3908 | X98: =Q98/W98 -> 605927.1494 | Y98: =S98/W98 -> 642704.9786 | AA98: Wairarapa districts | AE98: =ROUND(D98-'Flood protection model'!D91-'PT model'!D94,-1) -> 0
A100: Carterton District | B100: =SUBTOTAL(9,B101:B103) -> 1093949.651 | C100: =SUBTOTAL(9,C101:C103) -> 1465881.196 | D100: =C100-B100 -> 371931.5444 | E100: =D100/B100 -> 0.3399896366 | Q100: =[10]NRV!B40 -> 2188251200 | R100: =[10]NRV!K40 -> 2315440593 | S100: =SUM(S101:S104) -> 2315440593 | W100: =[10]NRV!D40 -> 4561 | Y100: =S100/W100 -> 507660.7308 | AE100: =ROUND(D100-'Flood protection model'!D93-'PT model'!D96,-1) -> 0
A101: Urban Ward | B101: ='Summary current'!E41 -> 60016.58541 | C101: ='Summary proposed'!E41 -> 102993.6675 | D101: =C101-B101 -> 42977.08209 | E101: =D101/B101 -> 0.7160867582 | G101: =B101/(S101/100000) -> 60.95922563 | H101: =C101/(S101/100000) -> 104.6113199 | I101: =H101-G101 -> 43.65209426 | J101: =I101/G101 -> 0.7160867582 | L101: =B101/Q101*X101 -> 266.7403796 | M101: =C101/Q101*X101 -> 457.7496333 | N101: =M101-L101 -> 191.0092537 | O101: =N101/L101 -> 0.7160867582 | Q101: =[10]NRV!B41 -> 93045500 | S101: =Q101/$Q$100*$R$100 -> 98453654.54 | U101: ='PT model'!X97 -> Business | W101: =[10]NRV!D41 -> 225 | X101: =Q101/W101 -> 413535.5556 | Y101: =S101/W101 -> 437571.798 | AA101: Wairarapa districts | AE101: =ROUND(D101-'Flood protection model'!D94-'PT model'!D97,-1) -> 0
A102: Urban - Residential | B102: ='Summary current'!E42 -> 365741.0889 | C102: ='Summary proposed'!E42 -> 473230.7909 | D102: =C102-B102 -> 107489.702 | E102: =D102/B102 -> 0.2938956142 | G102: =B102/(S102/100000) -> 56.87366907 | H102: =C102/(S102/100000) -> 73.58859097 | I102: =H102-G102 -> 16.7149219 | J102: =I102/G102 -> 0.2938956142 | L102: =B102/Q102*X102 -> 159.087033 | M102: =C102/Q102*X102 -> 205.8420143 | N102: =M102-L102 -> 46.75498128 | O102: =N102/L102 -> 0.2938956142 | Q102: =[10]NRV!B42 -> 607751500 | S102: =Q102/$Q$100*$R$100 -> 643076303.8 | U102: ='PT model'!X98 -> Residential - Wairarapa | W102: =[10]NRV!D42 -> 2299 | X102: =Q102/W102 -> 264354.7194 | Y102: =S102/W102 -> 279720.0104 | AA102: Wairarapa districts | AE102: =ROUND(D102-'Flood protection model'!D95-'PT model'!D98,-1) -> 0
A103: Rural Ward | B103: ='Summary current'!E43 -> 668191.9769 | C103: ='Summary proposed'!E43 -> 889656.7372 | D103: =C103-B103 -> 221464.7604 | E103: =D103/B103 -> 0.33143882 | G103: =B103/(S103/100000) -> 42.45425135 | H103: =C103/(S103/100000) -> 56.52523832 | I103: =H103-G103 -> 14.07098697 | J103: =I103/G103 -> 0.33143882 | L103: =B103/Q103*X103 -> 328.02748 | M103: =C103/Q103*X103 -> 436.748521 | N103: =M103-L103 -> 108.7210409 | O103: =N103/L103 -> 0.33143882 | Q103: =[10]NRV!B43 -> 1487454200 | S103: =Q103/$Q$100*$R$100 -> 1573910635 | U103: ='PT model'!X99 -> Rural | W103: =[10]NRV!D43 -> 2037 | X103: =Q103/W103 -> 730218.0658 | Y103: =S103/W103 -> 772661.0872 | AA103: Wairarapa districts | AE103: =ROUND(D103-'Flood protection model'!D96-'PT model'!D99,-1) -> 0
A105: South Wairarapa District | B105: =SUBTOTAL(9,B106:B108) -> 1798673.691 | C105: =SUBTOTAL(9,C106:C108) -> 2347721.044 | D105: =C105-B105 -> 549047.3537 | E105: =D105/B105 -> 0.3052512285 | Q105: =[10]NRV!B45 -> 3612556200 | R105: =[10]NRV!K45 -> 3724959199 | S105: =SUM(S106:S109) -> 3724959199 | W105: =[10]NRV!D45 -> 6598 | Y105: =S105/W105 -> 564558.8359 | AE105: =ROUND(D105-'Flood protection model'!D98-'PT model'!D101,-1) -> 0
A106: Urban Ward | B106: ='Summary current'!E46 -> 128735.9369 | C106: ='Summary proposed'!E46 -> 205633.5959 | D106: =C106-B106 -> 76897.65893 | E106: =D106/B106 -> 0.5973286152 | G106: =B106/(S106/100000) -> 65.56631575 | H106: =C106/(S106/100000) -> 104.7309523 | I106: =H106-G106 -> 39.16463659 | J106: =I106/G106 -> 0.5973286152 | L106: =B106/Q106*X106 -> 412.6151825 | M106: =C106/Q106*X106 -> 659.082038 | N106: =M106-L106 -> 246.4668556 | O106: =N106/L106 -> 0.5973286152 | Q106: =[10]NRV!B46 -> 190419802 | S106: =Q106/$Q$105*$R$105 -> 196344625.2 | U106: ='PT model'!X102 -> Business | W106: =[10]NRV!D46 -> 312 | X106: =Q106/W106 -> 610319.8782 | Y106: =S106/W106 -> 629309.6962 | AA106: Wairarapa districts | AE106: =ROUND(D106-'Flood protection model'!D99-'PT model'!D102,-1) -> 0
A107: Urban - Residential | B107: ='Summary current'!E47 -> 561580.0301 | C107: ='Summary proposed'!E47 -> 673514.256 | D107: =C107-B107 -> 111934.226 | E107: =D107/B107 -> 0.199320168 | G107: =B107/(S107/100000) -> 61.3458455 | H107: =C107/(S107/100000) -> 73.57330973 | I107: =H107-G107 -> 12.22746423 | J107: =I107/G107 -> 0.199320168 | L107: =B107/Q107*X107 -> 178.4493264 | M107: =C107/Q107*X107 -> 214.0178761 | N107: =M107-L107 -> 35.56854971 | O107: =N107/L107 -> 0.199320168 | Q107: =[10]NRV!B47 -> 887809098 | S107: =Q107/$Q$105*$R$105 -> 915432863.5 | U107: ='PT model'!X103 -> Residential - Wairarapa | W107: =[10]NRV!D47 -> 3147 | X107: =Q107/W107 -> 282112.837 | Y107: =S107/W107 -> 290890.6462 | AA107: Wairarapa districts | AE107: =ROUND(D107-'Flood protection model'!D100-'PT model'!D103,-1) -> 0
A108: Rural Ward | B108: ='Summary current'!E48 -> 1108357.723 | C108: ='Summary proposed'!E48 -> 1468573.192 | D108: =C108-B108 -> 360215.4688 | E108: =D108/B108 -> 0.3249992861 | G108: =B108/(S108/100000) -> 42.41410841 | H108: =C108/(S108/100000) -> 56.19866336 | I108: =H108-G108 -> 13.78455495 | J108: =I108/G108 -> 0.3249992861 | L108: =B108/Q108*X108 -> 353.0926166 | M108: =C108/Q108*X108 -> 467.8474649 | N108: =M108-L108 -> 114.7548483 | O108: =N108/L108 -> 0.3249992861 | Q108: =[10]NRV!B48 -> 2534327300 | S108: =Q108/$Q$105*$R$105 -> 2613181710 | U108: ='PT model'!X104 -> Rural | W108: =[10]NRV!D48 -> 3139 | X108: =Q108/W108 -> 807367.7286 | Y108: =S108/W108 -> 832488.5984 | AA108: Wairarapa districts | AE108: =ROUND(D108-'Flood protection model'!D101-'PT model'!D104,-1) -> 0
A110: Tararua District | B110: ='Summary current'!E50 -> 2606 | C110: ='Summary proposed'!E50 -> 2319.778706 | D110: =C110-B110 -> -286.2212942 | E110: =D110/B110 -> -0.1098316555 | G110: =B110/(S110/100000) -> 37.00758329 | H110: =C110/(S110/100000) -> 32.94297915 | I110: =H110-G110 -> -4.064604138 | J110: n/a | L110: =B110/Q110*X110 -> 217.1666667 | M110: =C110/Q110*X110 -> 193.3148922 | N110: =M110-L110 -> -23.85177451 | O110: n/a | Q110: =[10]NRV!B50 -> 6806000 | R110: =[10]NRV!K50 -> 7041800 | S110: =R110 -> 7041800 | U110: Rural | W110: =[10]NRV!D50 -> 12 | X110: =Q110/W110 -> 567166.6667 | Y110: =S110/W110 -> 586816.6667 | AA110: Tararua District | AE110: =ROUND(D110-'Flood protection model'!D103-'PT model'!D106,-1) -> 0
A112: Totals | B112: =SUBTOTAL(9,B69:B110) -> 118764831 | C112: =SUBTOTAL(9,C69:C110) -> 118764832.9 | D112: =SUM(D110,D105,D100,D95,D90,D85,D80,D75,D69) -> 1.887553583 | E112: =D112/B112 -> 1.589320313e-08 | G112: =B112/(S112/100000) -> 93.47398145 | H112: =C112/(S112/100000) -> 93.47398293 | I112: =H112-G112 -> 1.485600961e-06 | J112: =I112/G112 -> 1.589320299e-08 | L112: =B112/Q112*X112 -> 595.8141742 | M112: =C112/Q112*X112 -> 595.8141837 | N112: =M112-L112 -> 9.469395536e-06 | O112: =N112/L112 -> 1.589320286e-08 | Q112: 112052918261 | R112: =SUM(R69,R75,R80,R85,R90,R95,R100,R105,R110) -> 127056566043 | S112: =SUM(S69,S75,S80,S85,S90,S95,S100,S105,S110) -> 127056566043 | W112: =SUM(W69,W75,W80,W85,W90,W95,W100,W105,W110) -> 199332 | X112: =Q112/W112 -> 562142.1461 | Y112: =S112/W112 -> 637411.7856 | AE112: =ROUND(D112-'Flood protection model'!D105-'PT model'!D108,-1) -> 0
A114: Total check | B114: =ROUND(B112-SUM(B69,B75,B80,B85,B90,B95,B100,B105,B110),4) -> 0 | C114: =ROUND(C112-SUM(C69,C75,C80,C85,C90,C95,C100,C105,C110),4) -> 0 | D114: =ROUND(D112-SUM(D69,D75,D80,D85,D90,D95,D100,D105,D110),4) -> 0 | Q114: =ROUND(Q112-SUM(Q69,Q75,Q80,Q85,Q90,Q95,Q100,Q105,Q110),4) -> 0 | R114: =ROUND(R112-SUM(R69,R75,R80,R85,R90,R95,R100,R105,R110),4) -> 0 | S114: =S112-R112 -> 0 | U114: =COUNTBLANK(U70:U110)-15 -> 0 | W114: 0
A115: Rates reconciliation check | C115: =ROUND(C112-'Summarised data'!E102,-1) -> 0
A119: GRAPH DATA - District wide
A121: TA/Rating category | B121: 2017/18 annual plan | C121: Scenario | D121: Variance | G121: Rates per $100,000 ECV | L121: Rates for average CV | Q121: Capital values | W121: Assessment
D122: $ | E122: % | G122: 2017/18 budget | H122: Scenario | I122: Variance $ | J122: Variance % | L122: 2017/18 budget | M122: Scenario | N122: Variance $ | O122: Variance % | Q122: 2017/18 Rateable Capital Value $ m | R122: Net equalised capital value | S122: ECV cllocated to categories | W122: Number | X122: Average CV | AA122: Graph description | AE122: Share of rates | AG122: Share of ECV
A124: Rates by category
A125: Residential - excl Wairarapa | B125: =SUMIF($U$69:$U$110,$A125,B$69:B$110) -> 70512501.65 | C125: 66576021.85 | D125: =C125-B125 -> -3936479.793 | E125: =D125/B125 -> -0.05582669316 | G125: =B125/(S125/100000) -> 78.77459124 | H125: =C125/(S125/100000) -> 74.3768663 | I125: =H125-G125 -> -4.397724934 | J125: =I125/G125 -> -0.05582669316 | L125: =B125/Q125*X125 -> 442.4063999 | M125: =C125/Q125*X125 -> 417.7083136 | N125: =M125-L125 -> -24.69808634 | O125: =N125/L125 -> -0.05582669316 | Q125: =SUMIF($U$69:$U$110,$A125,Q$69:Q$110) -> 78536232821 | S125: =SUMIF($U$69:$U$110,$A125,S$69:S$110) -> 8.951173283e+10 | W125: =SUMIF($U$69:$U$110,$A125,W$69:W$110) -> 159384 | X125: =Q125/W125 -> 492748.537 | AA125: =A125 -> Residential - excl Wairarapa
A126: Residential - Wairarapa | B126: 1948830.477 | C126: 2697849.662 | D126: 749019.1855 | E126: 0.3843429146 | G126: 53.34474389 | H126: 73.84741824 | I126: 20.50267435 | J126: 0.3843429146 | L126: 146.6609329 | M126: 203.0290233 | N126: 56.36809042 | O126: 0.3843429146 | Q126: 3470457098 | S126: 3653275533 | W126: 13288 | X126: 261172.2681 | AA126: Residential - Wairarapa
A127: Residential | B127: =SUM(B125:B126) -> 72461332.12 | C127: =SUM(C125:C126) -> 69273871.52 | D127: =C127-B127 -> -3187460.608 | E127: =D127/B127 -> -0.04398843514 | G127: =B127/(S127/100000) -> 77.77741171 | H127: =C127/(S127/100000) -> 74.35610508 | I127: =H127-G127 -> -3.42130663 | J127: =I127/G127 -> -0.04398843514 | L127: =B127/Q127*X127 -> 666.1664543 | M127: =C127/Q127*X127 -> 636.8628344 | N127: =M127-L127 -> -29.30361986 | O127: =N127/L127 -> -0.04398843514 | Q127: =SUM(Q125:Q126) -> 82006689919 | S127: =SUM(S125:S126) -> 9.316500837e+10 | W127: =SUM(W125:W126) -> 172672 | X127: =SUM(X125:X126) -> 753920.8051 | AA127: Residential
A128: Regional CBD | B128: 29269028.39 | C128: 29986767.09 | D128: 717738.7029 | E128: 0.02452212261 | G128: 301.765265 | H128: 309.1651898 | I128: 7.399924827 | J128: 0.02452212261 | L128: 8606.006584 | M128: 8817.044133 | N128: 211.0375486 | O128: 0.02452212261 | Q128: 7854191500 | S128: 9699270191 | W128: 3401 | X128: 2309377.095 | AA128: Regional CBD
A129: Business | B129: 11803118.12 | C129: 13319528.95 | D129: 1516410.826 | E129: 0.1284754427 | G129: 90.44905142 | H129: 102.0695333 | I129: 11.62048192 | J129: 0.1284754427 | L129: 1429.987657 | M129: 1613.705955 | N129: 183.7182973 | O129: 0.1284754427 | Q129: 11815134302 | S129: 1.30494659e+10 | W129: 8254 | X129: 1431443.458 | AA129: Business
A130: Rural | B130: 5231352.33 | C130: 6184665.297 | D130: 953312.967 | E130: 0.1822306942 | G130: 46.94818355 | H130: 55.50358363 | I130: 8.555400082 | J130: 0.1822306942 | L130: 348.6406085 | M130: 412.1736286 | N130: 63.53302012 | O130: 0.1822306942 | Q130: 10376902540 | S130: 1.114282158e+10 | W130: 15005 | X130: 691562.9817 | AA130: Rural
A131: Tararua | B131: 0 | C131: 0 | D131: 0 | Q131: 0 | S131: 0 | W131: 0 | AA131: Tararua
A132: Total | B132: =SUM(B127:B131) -> 118764831 | C132: =SUM(C127:C131) -> 118764832.9 | D132: =C132-B132 -> 1.887553588 | E132: =D132/B132 -> 1.589320317e-08 | G132: 93.47398145 | H132: 93.47398293 | I132: 1.485600976e-06 | J132: 1.589320314e-08 | L132: 595.8141742 | M132: 595.8141837 | N132: 9.469395764e-06 | O132: 1.589320324e-08 | Q132: =SUM(Q127:Q131) -> 112052918261 | S132: =SUM(S127:S131) -> 1.27056566e+11 | W132: =SUM(W127:W131) -> 199332 | X132: 562142.1461
B133: =B112-B132 -> 0 | C133: =C112-C132 -> 0 | D133: =ROUND(D112-D132,0) -> 0 | Q133: =Q112-Q132 -> 0 | S133: =S112-S132 -> 0 | W133: =W112-W132 -> 0
A135: Combined TA summary for graphs
A136: Wellington | B136: =B69 -> 62570979.33 | C136: =C69 -> 66378243.07 | D136: =C136-B136 -> 3807263.745 | E136: =D136/B136 -> 0.06084711772 | G136: =B136/(S136/100000) -> 98.73159068 | H136: =C136/(S136/100000) -> 104.7391234 | I136: =H136-G136 -> 6.007532721 | J136: =I136/G136 -> 0.06084711772 | L136: =B136/Q136*X136 -> 812.9162844 | M136: =C136/Q136*X136 -> 862.3798973 | N136: =M136-L136 -> 49.46361286 | O136: =N136/L136 -> 0.06084711772 | Q136: =Q69 -> 51319125451 | S136: =S69 -> 6.33748316e+10 | W136: =W69 -> 76971 | X136: =Q136/W136 -> 666733.256 | AA136: Wellington | AE136: =C136/$C$143 -> 0.5589048667 | AG136: =S136/$S$143 -> 0.498792259
A137: Wellington excl CBD | B137: =SUM(B71:B73) -> 33301950.94 | C137: =SUM(C71:C73) -> 36391475.98 | D137: 3089525.042 | E137: 0.09277309453 | G137: 62.04304168 | H137: 67.79896665 | I137: 5.75592497 | J137: 0.09277309453 | L137: 452.6566663 | M137: 494.651026 | N137: 41.99435969 | O137: 0.09277309453 | Q137: =SUM(Q71:Q73) -> 43464933951 | S137: =SUM(S71:S73) -> 5.367556141e+10 | W137: =SUM(W71:W73) -> 73570 | X137: 590796.9818 | AA137: Wellington excl CBD | AE137: =C137/$C$143 -> 0.3064162606 | AG137: =S137/$S$143 -> 0.422454054
A138: Hutt | B138: =B75 -> 23454231.52 | C138: =C75 -> 21001090.06 | D138: -2453141.457 | E138: -0.1045927024 | G138: 109.2280396 | H138: 97.80358378 | I138: -11.42445584 | J138: -0.1045927024 | L138: 600.6359066 | M138: 537.813774 | N138: -62.82213264 | O138: -0.1045927024 | Q138: =Q75 -> 21170821500 | S138: =S75 -> 21472720375 | W138: =W75 -> 39049 | X138: 542160.401 | AA138: Hutt | AE138: 0.1768291973 | AG138: 0.1690012649
A139: Kapiti Coast | B139: =B90 -> 9327065.91 | C139: =C90 -> 10632965.75 | D139: 1305899.845 | E139: 0.1400118598 | G139: 72.03035355 | H139: 82.11545731 | I139: 10.08510376 | J139: 0.1400118598 | L139: 376.6837329 | M139: 429.4239229 | N139: 52.74019 | O139: 0.1400118598 | Q139: =Q90 -> 10974506450 | S139: =S90 -> 12948799292 | W139: =W90 -> 24761 | X139: 443217.4165 | AA139: Kapiti Coast | AE139: 0.08952958126 | AG139: 0.101913657
A140: Wairarapa combined | B140: =SUM(B110,B105,B100,B95) -> 5138455.218 | C140: =SUM(C110,C105,C100,C95) -> 7224784.059 | D140: 2086328.841 | E140: 0.4060225794 | G140: 46.46744978 | H140: 65.3342836 | I140: 18.86683382 | J140: 0.4060225794 | L140: 218.9651518 | M140: 307.8699475 | N140: 88.90479573 | O140: 0.4060225794 | Q140: =SUM(Q110,Q105,Q100,Q95) -> 10531621800 | S140: =SUM(S110,S105,S100,S95) -> 11058182108 | W140: =SUM(W110,W105,W100,W95) -> 23467 | X140: 448784.3269 | AA140: Wairarapa combined | AE140: 0.06083268831 | AG140: 0.08703353516
A141: Porirua | B141: =B85 -> 9886888.419 | C141: =C85 -> 6855195.675 | D141: -3031692.744 | E141: -0.3066377019 | G141: 98.15748197 | H141: 68.05869728 | I141: -30.0987847 | J141: -0.3066377019 | L141: 534.0222761 | M141: 370.2709126 | N141: -163.7513635 | O141: -0.3066377019 | Q141: =Q85 -> 10044595300 | S141: =S85 -> 10072475598 | W141: =W85 -> 18514 | X141: 542540.5261 | AA141: Porirua | AE141: 0.05772075378 | AG141: 0.07927552201
A142: Upper Hutt | B142: =B80 -> 8387210.574 | C142: =C80 -> 6672554.231 | D142: -1714656.343 | E142: -0.2044370208 | G142: 103.1693425 | H142: 82.07770948 | I142: -21.09163302 | J142: -0.2044370208 | L142: 506.1684112 | M142: 402.6888492 | N142: -103.479562 | O142: -0.2044370208 | Q142: =Q80 -> 8012247760 | S142: =S80 -> 8129557067 | W142: =W80 -> 16570 | X142: 483539.3941 | AA142: Upper Hutt | AE142: 0.05618291266 | AG142: 0.06398376188
A143: Total | B143: =SUM(B138:B142,B136) -> 118764831 | C143: =SUM(C138:C142,C136) -> 118764832.9 | D143: =SUM(D138:D142,D136) -> 1.887553582 | E143: 1.589320312e-08 | G143: 93.47398145 | H143: 93.47398293 | I143: 1.485600976e-06 | J143: 1.589320314e-08 | L143: 595.8141742 | M143: 595.8141837 | N143: 9.469395764e-06 | O143: 1.589320324e-08 | Q143: =SUM(Q138:Q142,Q136) -> 112052918261 | S143: =SUM(S138:S142,S136) -> 127056566043 | W143: =SUM(W138:W142,W136) -> 199332 | X143: 562142.1461 | AE143: =SUM(AE136,AE138:AE142) -> 1 | AG143: =SUM(AG136,AG138:AG142) -> 1
B144: =ROUND(B143-B112,0) -> 0 | C144: =ROUND(C143-C112,0) -> 0 | D144: =ROUND(D143-D112,0) -> 0 | Q144: =Q143-Q112 -> 0 | S144: =S143-S112 -> 0 | W144: =W143-W112 -> 0 | X144: =X143-X112 -> 0
A146: Residential summary
A147: Wellington City | B147: =B72 -> 29731934.66 | C147: =C72 -> 31836532.34 | D147: =C147-B147 -> 2104597.673 | E147: =D147/B147 -> 0.07078576275 | G147: =B147/(S147/100000) -> 61.62860367 | H147: =C147/(S147/100000) -> 65.99103139 | I147: =H147-G147 -> 4.362427718 | J147: =I147/G147 -> 0.07078576275 | L147: =B147/Q147*X147 -> 419.4153488 | M147: =C147/Q147*X147 -> 449.1039842 | N147: =M147-L147 -> 29.68863538 | O147: =N147/L147 -> 0.07078576275 | Q147: =Q72 -> 39066389001 | S147: =S72 -> 4.824372595e+10 | W147: =W72 -> 70889 | X147: =Q147/W147 -> 551092.398 | AA147: Wellington
A148: Lower Hutt City | B148: =B77 -> 18796224.14 | C148: =C77 -> 16257977.59 | D148: -2538246.548 | E148: -0.1350402362 | G148: 108.6540619 | H148: 93.98139173 | I148: -14.67267019 | J148: -0.1350402362 | L148: 519.2040256 | M148: 449.0905914 | N148: -70.11343427 | O148: -0.1350402362 | Q148: =Q77 -> 17055925500 | S148: =S77 -> 1.729914538e+10 | W148: =W77 -> 36202 | X148: 471132.1336 | AA148: Hutt
A149: Upper Hutt City | B149: =B82 -> 6551666.48 | C149: =C82 -> 4983898.501 | D149: -1567767.979 | E149: -0.2392930079 | G149: 106.8715063 | H149: 81.2979021 | I149: -25.5736042 | J149: -0.2392930079 | L149: 448.6213695 | M149: 341.2694126 | N149: -107.3519569 | O149: -0.2392930079 | Q149: =Q82 -> 6041952920 | S149: =S82 -> 6130414651 | W149: =W82 -> 14604 | X149: 413719.0441 | AA149: Upper Hutt
A150: Porirua City | B150: =B87 -> 8396353.635 | C150: =C87 -> 5614028.415 | D150: -2782325.22 | E150: -0.331373039 | G150: 100.2882213 | H150: 67.05540866 | I150: -33.23281268 | J150: -0.331373039 | L150: 490.842607 | M150: 328.1906006 | N150: -162.6520063 | O150: -0.331373039 | Q150: =Q87 -> 8349049050 | S150: =S87 -> 8372223102 | W150: =W87 -> 17106 | X150: 488077.2273 | AA150: Porirua
A151: Kapiti Coast District | B151: =B92 -> 7036322.732 | C151: =C92 -> 7883585.012 | D151: 847262.2801 | E151: 0.120412652 | G151: 74.33083055 | H151: 83.28120298 | I151: 8.950372429 | J151: 0.120412652 | L151: 341.8511748 | M151: 383.0143814 | N151: 41.16320654 | O151: 0.120412652 | Q151: =Q92 -> 8022916350 | S151: =S92 -> 9466223746 | W151: =W92 -> 20583 | X151: 389783.6248 | AA151: Kapiti Coast
A152: Masterton District | B152: =B97 -> 1021509.358 | C152: =C97 -> 1551104.615 | D152: 529595.2576 | E152: 0.5184438631 | G152: 48.7648348 | H152: 74.04666414 | I152: 25.28182934 | J152: 0.5184438631 | L152: 130.261331 | M152: 197.7945187 | N152: 67.53318766 | O152: 0.5184438631 | Q152: =Q97 -> 1974896500 | S152: =S97 -> 2094766366 | W152: =W97 -> 7842 | X152: 251835.8199 | AA152: Masterton
A153: Carterton District | B153: =B102 -> 365741.0889 | C153: =C102 -> 473230.7909 | D153: 107489.702 | E153: 0.2938956142 | G153: 56.87366907 | H153: 73.58859097 | I153: 16.7149219 | J153: 0.2938956142 | L153: 159.087033 | M153: 205.8420143 | N153: 46.75498128 | O153: 0.2938956142 | Q153: =Q102 -> 607751500 | S153: =S102 -> 643076303.8 | W153: =W102 -> 2299 | X153: 264354.7194 | AA153: Carterton
A154: South Wairarapa District | B154: =B107 -> 561580.0301 | C154: =C107 -> 673514.256 | D154: 111934.226 | E154: 0.199320168 | G154: 61.3458455 | H154: 73.57330973 | I154: 12.22746423 | J154: 0.199320168 | L154: 178.4493264 | M154: 214.0178761 | N154: 35.56854971 | O154: 0.199320168 | Q154: =Q107 -> 887809098 | S154: =S107 -> 915432863.5 | W154: =W107 -> 3147 | X154: 282112.837 | AA154: Sth Wairarapa
A155: Tararua District | B155: 0 | C155: 0 | D155: 0 | Q155: 0 | S155: 0 | W155: 0 | AA155: Tararua
A156: Total | B156: =SUM(B147:B155) -> 72461332.12 | C156: =SUM(C147:C155) -> 69273871.52 | D156: =SUM(D147:D155) -> -3187460.608 | E156: -0.04398843514 | G156: 77.77741171 | H156: 74.35610508 | I156: -3.42130663 | J156: -0.04398843514 | L156: 419.6472626 | M156: 401.1876362 | N156: -18.45962639 | O156: -0.04398843514 | Q156: =SUM(Q147:Q155) -> 82006689919 | S156: =SUM(S147:S155) -> 9.316500837e+10 | W156: =SUM(W147:W155) -> 172672 | X156: 474927.55
B157: =ROUND(B156-B125-B126,0) -> 0 | C157: =ROUND(C156-C125-C126,0) -> 0 | D157: =ROUND(D156-D125-D126,0) -> 0 | Q157: =ROUND(Q156-Q125-Q126,0) -> 0 | S157: =ROUND(S156-S125-S126,0) -> 0 | W157: =ROUND(W156-W125-W126,0) -> 0
A159: Business summary
A160: Regional CBD | B160: =B70 -> 29269028.39 | C160: =C70 -> 29986767.09 | D160: =C160-B160 -> 717738.7029 | E160: =D160/B160 -> 0.02452212261 | G160: =B160/(S160/100000) -> 301.765265 | H160: =C160/(S160/100000) -> 309.1651898 | I160: =H160-G160 -> 7.399924827 | J160: =I160/G160 -> 0.02452212261 | L160: =B160/Q160*X160 -> 8606.006584 | M160: =C160/Q160*X160 -> 8817.044133 | N160: =M160-L160 -> 211.0375486 | O160: =N160/L160 -> 0.02452212261 | Q160: =Q70 -> 7854191500 | S160: =S70 -> 9699270191 | W160: =W70 -> 3401 | X160: =Q160/W160 -> 2309377.095 | AI160: Regional CBD
A161: Wellington City | B161: =B71 -> 3259619.517 | C161: =C71 -> 4259553.435 | D161: 999933.918 | E161: 0.3067639989 | G161: 69.10250393 | H161: 90.30066438 | I161: 21.19816044 | J161: 0.3067639989 | L161: 1709.291828 | M161: 2233.641025 | N161: 524.3491966 | O161: 0.3067639989 | Q161: =Q71 -> 3819755400 | S161: =S71 -> 4717078733 | W161: =W71 -> 1907 | X161: 2003018.039 | AA161: Wellington | AI161: Wellington
A162: Lower Hutt City | B162: =B76 -> 4434152.045 | C162: =C76 -> 4517451.577 | D162: 83299.53174 | E162: 0.01878589884 | G162: 115.1428822 | H162: 117.3059447 | I162: 2.163062537 | J162: 0.01878589884 | L162: 1881.269429 | M162: 1916.610766 | N162: 35.34133718 | O162: 0.01878589884 | Q162: =Q76 -> 3796856000 | S162: =S76 -> 3850999697 | W162: =W76 -> 2357 | X162: 1610885.023 | AA162: Hutt | AI162: Hutt
A163: Upper Hutt City | B163: =B81 -> 1335297.063 | C163: =C81 -> 1231517.277 | D163: -103779.7865 | E163: -0.07772037352 | G163: 112.4270391 | H163: 103.6891676 | I163: -8.737871474 | J163: -0.07772037352 | L163: 1849.441916 | M163: 1705.702599 | N163: -143.7393165 | O163: -0.07772037352 | Q163: =Q81 -> 1170562500 | S163: =S81 -> 1187700996 | W163: =W81 -> 722 | X163: 1621277.701 | AA163: Upper Hutt | AI163: Upper Hutt
A164: Porirua City | B164: =B86 -> 1172136.436 | C164: =C86 -> 992132.8808 | D164: -180003.5553 | E164: -0.1535687739 | G164: 106.7735291 | H164: 90.37644918 | I164: -16.39707995 | J164: -0.1535687739 | L164: 1472.533211 | M164: 1246.398091 | N164: -226.1351197 | O164: -0.1535687739 | Q164: =Q86 -> 1094739500 | S164: =S86 -> 1097778116 | W164: =W86 -> 796 | X164: 1375300.879 | AA164: Porirua | AI164: Porirua
A165: Kapiti Coast District | B165: =B91 -> 1201099.058 | C165: =C91 -> 1587072.439 | D165: 385973.3808 | E165: 0.3213501654 | G165: 80.24301193 | H165: 106.0291171 | I165: 25.78610515 | J165: 0.3213501654 | L165: 864.7221438 | M165: 1142.600748 | N165: 277.8786039 | O165: 0.3213501654 | Q165: =Q91 -> 1268607000 | S165: =S91 -> 1496826987 | W165: =W91 -> 1389 | X165: 913323.9741 | AA165: Kapiti Coast | AI165: Kapiti Coast
A166: Masterton District | B166: =B96 -> 212061.4826 | C166: =C96 -> 423174.0784 | D166: 211112.5958 | E166: 0.9955254165 | G166: 52.45371021 | H166: 104.6727119 | I166: 52.2190017 | J166: 0.9955254165 | L166: 388.3909938 | M166: 775.0440996 | N166: 386.6531058 | O166: 0.9955254165 | Q166: =Q96 -> 381148600 | S166: =S96 -> 404283094.1 | W166: =W96 -> 546 | X166: 698074.359 | AA166: Masterton | AI166: Masterton
A167: Carterton District | B167: =B101 -> 60016.58541 | C167: =C101 -> 102993.6675 | D167: 42977.08209 | E167: 0.7160867582 | G167: 60.95922563 | H167: 104.6113199 | I167: 43.65209426 | J167: 0.7160867582 | L167: 266.7403796 | M167: 457.7496333 | N167: 191.0092537 | O167: 0.7160867582 | Q167: =Q101 -> 93045500 | S167: =S101 -> 98453654.54 | W167: =W101 -> 225 | X167: 413535.5556 | AA167: Carterton | AI167: Carterton
